Workbook

Sheet Cover
A1: District Type: | G1: ILLINOIS STATE BOARD OF EDUCATION
B2: =IF(N14="SD","x","") -> x | C2: School District | G2: School Business Services Division
B3: =IF(N14="JA","x","") ->  | C3: Joint Agreement | P3: ='DeficitBudgetSum Calc 22'!D7 & " " -> Unbalanced budget; however, a Deficit Reduction Plan is not required at this time.
G4: SCHOOL DISTRICT/JOINT AGREEMENT BUDGET FORM *
A5: Accounting Basis: | G5: ="July 1, "&'B25'!L2-1 -> July 1, 2024 | K5: ="- June 30, "&'B25'!L2 -> - June 30, 2025
B6: x | C6: Cash
C7: Accrual
C8: Is this an amended budget?
C10: Date of Amended Budget:
H11: (MM/DD/YY)
C13: District Name: | H13: Hoover-Schrum Memorial SD 157 | Y13: =IF(H14<>"Select dist name from drop-down on line above",1,0) -> 1
C14: District RCDT No: | H14: =IFERROR(VLOOKUP(H13,'District Drop-down'!$C$2:$D$1001,2,FALSE),"Please select district from drop-down list on line 13.") -> 07016157002 | N14: =IFERROR(VLOOKUP(H14,'District Drop-down'!$D$2:$F$1001,3,FALSE),"") -> SD | P14: =_xlfn.IFNA(VLOOKUP(H13,#REF!,6),"") -> 
C16: ="If your FY"&'B25'!L2-1&" AFR states that you need to do a deficit reduction plan and your FY"&'B25'!L2&" budget is balanced, please state the" -> If your FY2024 AFR states that you need to do a deficit reduction plan and your FY2025 budget is balanced, please state the
E17: measures you took to have your budget become balanced. (Bckgrnd-Assumpt 25-26)
C24: Budget of | E24: =IF(H13="","",H13) -> Hoover-Schrum Memorial SD 157 | L24: , County of | N24: =IFERROR(VLOOKUP($H$13,'District Drop-down'!$C$2:$E$1001,3,FALSE),"") -> Cook | S24: ,
B25: State of Illinois, for the Fiscal Year beginning | I25: ="July 1, "&'B25'!L2-1 -> July 1, 2024 | L25: and ending | N25: ="June 30, "&'B25'!L2 -> June 30, 2025 | R25: .
C27: WHEREAS the Board of Education of | H27: =IF(H13=" Click here to choose your district from drop-down list","",H13) -> Hoover-Schrum Memorial SD 157 | S27: ,
A28: County of | D28: =N24 -> Cook | I28: , State of Illinois, caused to be prepared in tentative form a budget, and the Secretary
A29: of this Board has made the same conveniently available to public inspection for at least thirty days prior to final action thereon;
C31: AND WHEREAS a public hearing was held as to such budget on the | K31: 26 | L31: day of | M31: September | P31: , 20 | Q31: 24 | R31: ,
A32: notice of said hearing was given at least thirty days prior thereto as required by law, and all other legal requirements have been complied with;
C34: NOW, THEREFORE, Be it resolved by the Board of Education of said district as follows:
C36: Section 1: That the fiscal year of this school district be and the same hereby is fixed and declared to be
A37: beginning | E37: =I25 -> July 1, 2024 | H37: and ending | J37: =N25 -> June 30, 2025 | M37: .
C39: Section 2: That the following budget containing an estimate of amounts available in each Fund, separately, and expenditures from each be
A40: and the same is hereby adopted as the budget of this school district for said fiscal year.
A42: ADOPTION OF BUDGET
C43: The budget shall be approved and signed below by members of the School Board. Adopted this | N43: 26 | O43: day of | P43: September | S43: , 20 | T43: 24
A44: by a roll call vote of | E44: 6 | G44: Yeas, and | H44: 0 | I44: Nays, to wit:
E48: ** MEMBERS VOTING YEA: | K48: ** MEMBERS VOTING NAY:
E49: Charles Garcia
E50: Angela Bomba
E51: Alexis Smith
E52: Tyana Roth
E53: Allicia Ocampo
E54: Eric Gibson
D60: * | E60: Based on the 23 Illinois Administrative Code-Part 100 and inconformity with Section 17-1 of the School Code.
D61: ** | E61: Type in the members who voted "YEA" nor "NAY". Actual school board member signatures are not required for electronic submission.
D63: (1) | E63: A certified copy of this document must be filed with the county clerk within 30 days of adoption as required
E64: by Section 18-50 of the Property Tax Code (35 ILCS 200/18-50).
D65: (2) | E65: Districts are required to submit the adopted/amended budget electronically to ISBE within 30 days of adoption or by October 30,
E66: whichever comes first. Budgets are submitted through IWAS: | M66: https://apps.isbe.net/iwas/asp/login.asp?js=true
E67: Please type the member signatures before submitting to ISBE. We do not accept PDF copies.
C70: SD50-36/JA50-39 | E70: 5/24
C71: =H13 -> Hoover-Schrum Memorial SD 157
C72: =H14 -> 07016157002

Sheet BudgetSum 2-4
A1: Begin entering data on EstRev 6-11 and EstExp 12-20 tabs. | C1: (10) | D1: (20) | E1: (30) | F1: (40) | G1: (50) | H1: (60) | I1: (70) | J1: (80) | K1: (90)
A2: Description: Enter Whole Numbers Only | B2: Acct # | C2: Educational | D2: Operations & Maintenance | E2: Debt Service | F2: Transportation | G2: Municipal Retirement/ Social Security | H2: Capital Projects | I2: Working Cash | J2: Tort | K2: Fire Prevention & Safety
A3: ="ESTIMATED BEGINNING FUND BALANCE (without Student Activity Funds)1 as of July 1, "&'B25'!L2-1 -> ESTIMATED BEGINNING FUND BALANCE (without Student Activity Funds)1 as of July 1, 2024 | C3: =7606730-230232 -> 7,376,498 | D3: 0 | E3: 3,057,750 | F3: 969 | G3: =182433-170385 -> 12,048 | H3: 0 | I3: 5,004,949 | J3: 0 | K3: 0
A4: RECEIPTS/REVENUES (without Student Activity Funds)
A5: LOCAL SOURCES | B5: 1000 | C5: ='EstRev 6-11'!C111 -> 5,003,900 | D5: ='EstRev 6-11'!D111 -> 247,000 | E5: ='EstRev 6-11'!E111 -> 1,695,000 | F5: ='EstRev 6-11'!F111 -> 25,000 | G5: ='EstRev 6-11'!G111 -> 390,000 | H5: ='EstRev 6-11'!H111 -> 0 | I5: ='EstRev 6-11'!I111 -> 27,000 | J5: ='EstRev 6-11'!J111 -> 21,000 | K5: ='EstRev 6-11'!K111 -> 28,000
A6: FLOW-THROUGH RECEIPTS/REVENUES FROM ONE DISTRICT TO ANOTHER DISTRICT | B6: 2000 | C6: ='EstRev 6-11'!C117 -> 0 | D6: ='EstRev 6-11'!D117 -> 0 | F6: ='EstRev 6-11'!F117 -> 0 | G6: ='EstRev 6-11'!G117 -> 0
A7: STATE SOURCES | B7: 3000 | C7: ='EstRev 6-11'!C172 -> 6,057,000 | D7: ='EstRev 6-11'!D172 -> 1,350,000 | E7: ='EstRev 6-11'!E172 -> 500,000 | F7: ='EstRev 6-11'!F172 -> 485,000 | G7: ='EstRev 6-11'!G172 -> 215,000 | H7: ='EstRev 6-11'!H172 -> 0 | I7: ='EstRev 6-11'!I172 -> 0 | J7: ='EstRev 6-11'!J172 -> 200,000 | K7: ='EstRev 6-11'!K172 -> 150,000
A8: FEDERAL SOURCES | B8: 4000 | C8: ='EstRev 6-11'!C271 -> 1,757,000 | D8: ='EstRev 6-11'!D271 -> 0 | E8: ='EstRev 6-11'!E271 -> 0 | F8: ='EstRev 6-11'!F271 -> 0 | G8: ='EstRev 6-11'!G271 -> 0 | H8: ='EstRev 6-11'!H271 -> 203,000 | I8: ='EstRev 6-11'!I271 -> 0 | J8: ='EstRev 6-11'!J271 -> 0 | K8: ='EstRev 6-11'!K271 -> 0
A9: Total Direct Receipts/Revenues 8 | C9: =SUM(C5:C8) -> 12,817,900 | D9: =SUM(D5:D8) -> 1,597,000 | E9: 2,195,000 | F9: 510,000 | G9: 605,000 | H9: 203,000 | I9: 27,000 | J9: 221,000 | K9: 178,000
A10: Receipts/Revenues for "On Behalf" Payments 2 | B10: 3998 | C10: 0
A11: Total Receipts/Revenues | C11: =SUM(C9:C10) -> 12,817,900 | D11: =SUM(D9:D10) -> 1,597,000 | E11: 2,195,000 | F11: 510,000 | G11: 605,000 | H11: 203,000 | I11: 27,000 | J11: 221,000 | K11: 178,000
A12: DISBURSEMENTS/EXPENDITURES (without Student Activity Funds)
A13: INSTRUCTION | B13: 1000 | C13: ='EstExp 12-20'!K34 -> 7,233,137 | G13: ='EstExp 12-20'!K233 -> 212,500 | J13: ='EstExp 12-20'!K344 -> 0
A14: SUPPORT SERVICES | B14: 2000 | C14: ='EstExp 12-20'!K76 -> 5,295,819 | D14: ='EstExp 12-20'!K133 -> 1,564,500 | F14: ='EstExp 12-20'!K188 -> 450,000 | G14: ='EstExp 12-20'!K276 -> 366,300 | H14: ='EstExp 12-20'!K300 -> 203,000 | J14: ='EstExp 12-20'!K387 -> 15,000 | K14: ='EstExp 12-20'!K438 -> 150,000
A15: COMMUNITY SERVICES | B15: 3000 | C15: ='EstExp 12-20'!K77 -> 315,000 | D15: ='EstExp 12-20'!K134 -> 0 | F15: ='EstExp 12-20'!K189 -> 0 | G15: ='EstExp 12-20'!K277 -> 22,100 | J15: ='EstExp 12-20'!K388 -> 0
A16: PAYMENTS TO OTHER DISTRICTS & GOVT UNITS | B16: 4000 | C16: ='EstExp 12-20'!K104 -> 890,000 | D16: ='EstExp 12-20'!K143 -> 0 | E16: ='EstExp 12-20'!K164 -> 0 | F16: ='EstExp 12-20'!K200 -> 0 | G16: ='EstExp 12-20'!K282 -> 0 | H16: ='EstExp 12-20'!K307 -> 0 | J16: ='EstExp 12-20'!K415 -> 0 | K16: ='EstExp 12-20'!K443 -> 0
A17: DEBT SERVICES | B17: 5000 | C17: ='EstExp 12-20'!K114 -> 0 | D17: ='EstExp 12-20'!K153 -> 0 | E17: ='EstExp 12-20'!K176 -> 1,322,000 | F17: ='EstExp 12-20'!K212 -> 0 | G17: ='EstExp 12-20'!K290 -> 0 | J17: ='EstExp 12-20'!K426 -> 0 | K17: ='EstExp 12-20'!K451 -> 0
A18: PROVISION FOR CONTINGENCIES | B18: 6000 | C18: ='EstExp 12-20'!K115 -> 0 | D18: ='EstExp 12-20'!K154 -> 0 | E18: ='EstExp 12-20'!K177 -> 0 | F18: ='EstExp 12-20'!K213 -> 0 | G18: ='EstExp 12-20'!K291 -> 0 | H18: ='EstExp 12-20'!K308 -> 0 | J18: ='EstExp 12-20'!K427 -> 0 | K18: ='EstExp 12-20'!K452 -> 0
A19: Total Direct Disbursements/Expenditures 9 | C19: =SUM(C13:C18) -> 13,733,956 | D19: 1,564,500 | E19: 1,322,000 | F19: 450,000 | G19: =SUM(G13:G18) -> 600,900 | H19: =SUM(H13:H18) -> 203,000 | J19: =SUM(J13:J18) -> 15,000 | K19: =SUM(K13:K18) -> 150,000
A20: Disbursements/Expenditures for "On Behalf" Payments 2 | B20: 4180 | C20: =C10 -> 0 | D20: 0 | E20: 0 | F20: 0 | G20: 0 | H20: 0 | J20: =J10 -> 0 | K20: =K10 -> 0
A21: Total Disbursements/Expenditures | C21: =SUM(C19:C20) -> 13,733,956 | D21: 1,564,500 | E21: 1,322,000 | F21: 450,000 | G21: 600,900 | H21: 203,000 | J21: =SUM(J19:J20) -> 15,000 | K21: =SUM(K19:K20) -> 150,000
A22: Excess of Direct Receipts/Revenues Over (Under) Direct Disbursements/Expenditures | C22: =C9-C19 -> (916,056) | D22: =D9-D19 -> 32,500 | E22: 873,000 | F22: 60,000 | G22: 4,100 | H22: 0 | I22: 27,000 | J22: 206,000 | K22: 28,000
A23: OTHER SOURCES/USES OF FUNDS
A24: OTHER SOURCES OF FUNDS (7000)
A25: PERMANENT TRANSFER FROM VARIOUS FUNDS
A26: Abolishment the Working Cash Fund 16 | B26: 7110
A27: Abatement of the Working Cash Fund 16 | B27: 7110 | C27: 0 | E27: 0
A28: Transfer of Working Cash Fund Interest | B28: 7120 | C28: 0
A29: Transfer Among Funds | B29: 7130 | C29: 0
A30: Transfer of Interest | B30: 7140 | C30: 0 | D30: 0 | I30: 0 | K30: 0
A31: Transfer from Capital Projects Fund to O&M Fund | B31: 7150 | D31: =H54 -> 0
A32: Transfer of Excess Fire Prev & Safety Tax & Interest 3 Proceeds to O&M Fund | B32: 7160 | D32: =K55 -> 0
A33: Transfer of Excess Accumulated Fire Prev & Safety Bond and Int 3a Proceeds to Debt Service Fund | B33: 7170 | E33: =K56 -> 0
A34: SALE OF BONDS (7200)
A35: Principal on Bonds Sold 4 | B35: 7210 | C35: 0 | E35: 0 | H35: 0 | I35: 0
A36: Premium on Bonds Sold | B36: 7220 | E36: 0 | H36: 0
A37: Accrued Interest on Bonds Sold | B37: 7230 | E37: 0 | I37: 0
A38: Sale or Compensation for Fixed Assets 5 | B38: 7300
A39: Transfer to Debt Service to Pay Principal on GASB 87 Leases | B39: 7400 | E39: =SUM(C57:H60) -> 0
A40: Transfer to Debt Service to Pay Interest on GASB 87 Leases | B40: 7500 | E40: =SUM(C61:H64) -> 0
A41: Transfer to Debt Service Fund to Pay Principal on Revenue Bonds | B41: 7600 | E41: =SUM(C65:D68) -> 0
A42: Transfer to Debt Service Fund to Pay Interest on Revenue Bonds | B42: 7700 | E42: =SUM(C69:D72) -> 0
A43: Transfer to Capital Projects Fund | B43: 7800 | H43: =SUM(C73:D76) -> 0
A44: ISBE Loan Proceeds | B44: 7900 | E44: 0 | H44: 0
A45: Other Sources Not Classified Elsewhere | B45: 7990 | E45: 0 | H45: 0
A46: Total Other Sources of Funds 8 | C46: =SUM(C26:C45) -> 0 | D46: =SUM(D26:D45) -> 0 | E46: 0 | F46: 0 | G46: 0 | H46: 0 | I46: 0 | J46: 0 | K46: 0
A47: OTHER USES OF FUNDS (8000)
A49: TRANSFER TO VARIOUS OTHER FUNDS (8100)
A50: Abolishment or Abatement of the Working Cash Fund 16 | B50: 8110 | I50: =SUM(C26,C27,D27,E27,F27,G27,H27,J27,K27) -> 0
A51: Transfer of Working Cash Fund Interest | B51: 8120 | I51: =SUM(C28:K28) -> 0
A52: Transfer Among Funds | B52: 8130 | C52: 0
A53: Transfer of Interest 6 | B53: 8140
A54: Transfer from Capital Projects Fund to O&M Fund | B54: 8150
A55: Transfer of Excess Fire Prev & Safety Tax & Interest 3 Proceeds to O&M Fund | B55: 8160
A56: Transfer of Excess Accumulated Fire Prev & Safety Bond 3a and Int Proceeds to Debt Service Fund | B56: 8170
A57: Taxes Pledged to Pay Principal on GASB 87 Leases | B57: 8410
A58: Grants/Reimbursements Pledged to Pay Principal on GASB 87 Leases | B58: 8420
A59: Other Revenues Pledged to Pay Principal on GASB 87 Leases | B59: 8430
A60: Fund Balance Transfers Pledged to Pay Principal on GASB 87 Leases | B60: 8440
A61: Taxes Pledged to Pay Interest on GASB 87 Leases | B61: 8510
A62: Grants/Reimbursements Pledged to Pay Interest on GASB 87 Leases | B62: 8520
A63: Other Revenues Pledged to Pay Interest on GASB 87 Leases | B63: 8530
A64: Fund Balance Transfers Pledged to Pay Interest on GASB 87 Leases | B64: 8540
A65: Taxes Pledged to Pay Principal on Revenue Bonds | B65: 8610
A66: Grants/Reimbursements Pledged to Pay Principal on Revenue Bonds | B66: 8620
A67: Other Revenues Pledged to Pay Principal on Revenue Bonds | B67: 8630
A68: Fund Balance Transfers Pledged to Pay Principal on Revenue Bonds | B68: 8640
A69: Taxes Pledged to Pay Interest on Revenue Bonds | B69: 8710
A70: Grants/Reimbursements Pledged to Pay Interest on Revenue Bonds | B70: 8720
A71: Other Revenues Pledged to Pay Interest on Revenue Bonds | B71: 8730
A72: Fund Balance Transfers Pledged to Pay Interest on Revenue Bonds | B72: 8740
A73: Taxes Transferred to Pay for Capital Projects | B73: 8810
A74: Grants/Reimbursements Pledged to Pay for Capital Projects | B74: 8820
A75: Other Revenues Pledged to Pay for Capital Projects | B75: 8830
A76: Fund Balance Transfers Pledged to Pay for Capital Projects | B76: 8840
A77: Transfer to Debt Service Fund to Pay Principal on ISBE Loans | B77: 8910
A78: Other Uses Not Classified Elsewhere | B78: 8990 | E78: 115,000 | H78: 0
A79: Total Other Uses of Funds 9 | C79: =SUM(C50:C78) -> 0 | D79: =SUM(D50:D78) -> 0 | E79: 115,000 | F79: 0 | G79: 0 | H79: 0 | I79: 0 | J79: 0 | K79: 0
A80: Total Other Sources/Uses of Fund | C80: =C46-C79 -> 0 | D80: 0 | E80: (115,000) | F80: 0 | G80: 0 | H80: 0 | I80: 0 | J80: 0 | K80: 0
A81: ="ESTIMATED ENDING FUND BALANCE (without Student Activity Funds) as of June 30, "&'B25'!L2 -> ESTIMATED ENDING FUND BALANCE (without Student Activity Funds) as of June 30, 2025 | C81: =C3+C22+C80 -> 6,460,442 | D81: 32,500 | E81: =E3+E22+E80 -> 3,815,750 | F81: 60,969 | G81: 16,148 | H81: 0 | I81: 5,031,949 | J81: 206,000 | K81: 28,000
A83: ="Student Activity (Fund 11) ESTIMATED BEGINNING FUND BALANCE as of July 1, "&'B25'!L2-1 -> Student Activity (Fund 11) ESTIMATED BEGINNING FUND BALANCE as of July 1, 2024 | C83: 0
A84: RECEIPTS/REVENUES (For Student Activity Funds)
A85: Total Student Activity Direct Receipts/Revenues (Local Sources) | B85: 1799 | C85: ='EstRev 6-11'!C82 -> 0
A86: DISBURSEMENTS/EXPENDITURES (For Student Activity Funds)
A87: Total Student Activity Direct Disbursements/Expenditures | B87: 1999 | C87: ='EstExp 12-20'!K33 -> 0
A88: Excess of Direct Receipts/Revenues Over (Under) Direct Disbursements/Expenditures | C88: =C85-C87 -> 0
A89: ="Student Activity ESTIMATED ENDING FUND BALANCE as of June 30, "&'B25'!L2 -> Student Activity ESTIMATED ENDING FUND BALANCE as of June 30, 2025 | C89: =C83+C88 -> 0
A91: ="Total ESTIMATED BEGINNING FUND BALANCE (All Sources Including Student Activity Funds) as of July 1, "&'B25'!L2-1 -> Total ESTIMATED BEGINNING FUND BALANCE (All Sources Including Student Activity Funds) as of July 1, 2024 | C91: =C3+C83 -> 7,376,498 | D91: =D3 -> 0 | E91: =E3 -> 3,057,750 | F91: 969 | G91: 12,048 | H91: 0 | I91: 5,004,949 | J91: 0 | K91: 0
A92: RECEIPTS/REVENUES (All Sources with Student Activity Funds)
A93: LOCAL SOURCES | B93: 1000 | C93: =C5+C85 -> 5,003,900 | D93: =D5 -> 247,000 | E93: =E5 -> 1,695,000 | F93: 25,000 | G93: 390,000 | H93: 0 | I93: 27,000 | J93: 21,000 | K93: 28,000
A94: FLOW-THROUGH RECEIPTS/REVENUES FROM ONE DISTRICT TO ANOTHER DISTRICT | B94: 2000 | C94: =C6 -> 0 | D94: =D6 -> 0 | F94: =F6 -> 0 | G94: =G6 -> 0
A95: STATE SOURCES | B95: 3000 | C95: =C7 -> 6,057,000 | D95: =D7 -> 1,350,000 | E95: 500,000 | F95: 485,000 | G95: 215,000 | H95: 0 | I95: 0 | J95: 200,000 | K95: 150,000
A96: FEDERAL SOURCES | B96: 4000 | C96: =C8 -> 1,757,000 | D96: =D8 -> 0 | E96: 0 | F96: 0 | G96: 0 | H96: 203,000 | I96: 0 | J96: 0 | K96: 0
A97: Total Direct Receipts/Revenues 8 | C97: =SUM(C93:C96) -> 12,817,900 | D97: =SUM(D93:D96) -> 1,597,000 | E97: 2,195,000 | F97: 510,000 | G97: 605,000 | H97: 203,000 | I97: 27,000 | J97: 221,000 | K97: 178,000
A98: Receipts/Revenues for "On Behalf" Payments 2 | B98: 3998 | C98: =C10 -> 0 | D98: =D10 -> 0 | E98: 0 | F98: 0 | G98: 0 | H98: 0 | J98: 0 | K98: 0
A99: Total Receipts/Revenues | C99: =SUM(C97:C98) -> 12,817,900 | D99: =SUM(D97:D98) -> 1,597,000 | E99: 2,195,000 | F99: 510,000 | G99: 605,000 | H99: 203,000 | I99: 27,000 | J99: 221,000 | K99: 178,000
A100: DISBURSEMENTS/EXPENDITURES (All Sources with Student Activity Funds)
A101: INSTRUCTION | B101: 1000 | C101: =C13+C87 -> 7,233,137 | G101: =G13 -> 212,500 | J101: =J13 -> 0
A102: SUPPORT SERVICES | B102: 2000 | C102: =C14 -> 5,295,819 | D102: 1,564,500 | F102: =F14 -> 450,000 | G102: 366,300 | H102: =H14 -> 203,000 | J102: =J14 -> 15,000 | K102: =K14 -> 150,000
A103: COMMUNITY SERVICES | B103: 3000 | C103: 315,000 | D103: 0 | F103: =F15 -> 0 | G103: 22,100 | J103: =J15 -> 0
A104: PAYMENTS TO OTHER DISTRICTS & GOVT UNITS | B104: 4000 | C104: 890,000 | D104: 0 | E104: =E16 -> 0 | F104: =F16 -> 0 | G104: 0 | H104: =H16 -> 0 | J104: =J16 -> 0 | K104: 0
A105: DEBT SERVICES | B105: 5000 | C105: 0 | D105: 0 | E105: =E17 -> 1,322,000 | F105: =F17 -> 0 | G105: 0 | J105: 0 | K105: 0
A106: PROVISION FOR CONTINGENCIES | B106: 6000 | C106: 0 | D106: 0 | E106: =E18 -> 0 | F106: =F18 -> 0 | G106: 0 | H106: =H18 -> 0 | J106: 0 | K106: 0
A107: Total Direct Disbursements/Expenditures 9 | C107: =SUM(C101:C106) -> 13,733,956 | D107: 1,564,500 | E107: 1,322,000 | F107: 450,000 | G107: 600,900 | H107: 203,000 | J107: =SUM(J101:J106) -> 15,000 | K107: =SUM(K101:K106) -> 150,000
A108: Disbursements/Expenditures for "On Behalf" Payments 2 | B108: 4180 | C108: =C98 -> 0 | D108: 0 | E108: 0 | F108: 0 | G108: 0 | H108: 0 | J108: =J98 -> 0 | K108: =K98 -> 0
A109: Total Disbursements/Expenditures | C109: =SUM(C107:C108) -> 13,733,956 | D109: 1,564,500 | E109: 1,322,000 | F109: 450,000 | G109: 600,900 | H109: 203,000 | J109: =SUM(J107:J108) -> 15,000 | K109: =SUM(K107:K108) -> 150,000
A110: Excess of Direct Receipts/Revenues Over (Under) Direct Disbursements/Expenditures | C110: =C97-C107 -> (916,056) | D110: =D97-D107 -> 32,500 | E110: 873,000 | F110: 60,000 | G110: 4,100 | H110: 0 | I110: 27,000 | J110: 206,000 | K110: 28,000
A111: OTHER SOURCES/USES OF FUNDS
A112: OTHER SOURCES OF FUNDS (7000)
A113: Total Other Sources of Funds 8 | C113: =C46 -> 0 | D113: =D46 -> 0 | E113: 0 | F113: 0 | G113: 0 | H113: 0 | I113: 0 | J113: 0 | K113: 0
A114: OTHER USES OF FUNDS (8000)
A116: Total Other Uses of Funds 9 | C116: =C79 -> 0 | D116: =D79 -> 0 | E116: 115,000 | F116: 0 | G116: 0 | H116: 0 | I116: 0 | J116: 0 | K116: 0
A117: Total Other Sources/Uses of Fund | C117: =C80 -> 0 | D117: =D80 -> 0 | E117: (115,000) | F117: 0 | G117: 0 | H117: 0 | I117: 0 | J117: 0 | K117: 0
A118: ="ESTIMATED ENDING FUND BALANCE (All Sources with Student Activity Funds) as of June 30, "&'B25'!L2 -> ESTIMATED ENDING FUND BALANCE (All Sources with Student Activity Funds) as of June 30, 2025 | C118: =C81+C89 -> 6,460,442 | D118: =D81+D89 -> 32,500 | E118: 3,815,750 | F118: 60,969 | G118: 16,148 | H118: 0 | I118: 5,031,949 | J118: 206,000 | K118: 28,000
A120: SUMMARY OF EXPENDITURES Without Student Activity Funds (by Major Object)
C121: (10) | D121: (20) | E121: (30) | F121: (40) | G121: (50) | H121: (60) | I121: (70) | J121: (80) | K121: (90)
A122: Description | B122: Acct # | C122: Educational | D122: Operations & Maintenance | E122: Debt Service | F122: Transportation | G122: Municipal Retirement/ Social Security | H122: Capital Projects | I122: Working Cash | J122: Tort | K122: Fire Prevention & Safety | L122: Total By Object
A123: Object Name
A124: Salaries | B124: 100 | C124: ='EstExp 12-20'!C116 -> 8,357,606 | D124: ='EstExp 12-20'!C155 -> 818,000 | F124: ='EstExp 12-20'!C214 -> 0 | H124: ='EstExp 12-20'!C309 -> 0 | J124: ='EstExp 12-20'!C$428 -> 0 | K124: ='EstExp 12-20'!C453 -> 115,000 | L124: =SUM(C124:K124) -> 9,290,606
A125: Employee Benefits | B125: 200 | C125: ='EstExp 12-20'!D116 -> 1,443,450 | D125: ='EstExp 12-20'!D155 -> 85,000 | F125: ='EstExp 12-20'!D214 -> 0 | G125: ='EstExp 12-20'!D292 -> 600,900 | H125: ='EstExp 12-20'!D309 -> 0 | J125: ='EstExp 12-20'!D428 -> 0 | K125: ='EstExp 12-20'!D453 -> 20,000 | L125: 2,149,350
A126: Purchased Services | B126: 300 | C126: ='EstExp 12-20'!E116 -> 2,028,400 | D126: ='EstExp 12-20'!E155 -> 209,500 | E126: ='EstExp 12-20'!E178 -> 0 | F126: ='EstExp 12-20'!E214 -> 450,000 | H126: ='EstExp 12-20'!E309 -> 0 | J126: ='EstExp 12-20'!E428 -> 15,000 | K126: ='EstExp 12-20'!E453 -> 15,000 | L126: 2,717,900
A127: Supplies & Materials | B127: 400 | C127: ='EstExp 12-20'!F116 -> 778,000 | D127: ='EstExp 12-20'!F155 -> 442,000 | F127: ='EstExp 12-20'!F214 -> 0 | H127: ='EstExp 12-20'!F309 -> 0 | J127: ='EstExp 12-20'!F428 -> 0 | K127: ='EstExp 12-20'!F453 -> 0 | L127: 1,220,000
A128: Capital Outlay | B128: 500 | C128: ='EstExp 12-20'!G116 -> 195,500 | D128: ='EstExp 12-20'!G155 -> 10,000 | F128: ='EstExp 12-20'!G214 -> 0 | H128: ='EstExp 12-20'!G309 -> 203,000 | J128: ='EstExp 12-20'!G428 -> 0 | K128: ='EstExp 12-20'!G453 -> 0 | L128: 408,500
A129: Other Objects | B129: 600 | C129: ='EstExp 12-20'!H116 -> 931,000 | D129: ='EstExp 12-20'!H155 -> 0 | E129: ='EstExp 12-20'!H178 -> 1,322,000 | F129: ='EstExp 12-20'!H214 -> 0 | G129: ='EstExp 12-20'!H292 -> 0 | H129: ='EstExp 12-20'!H309 -> 0 | J129: ='EstExp 12-20'!H428 -> 0 | K129: ='EstExp 12-20'!H453 -> 0 | L129: 2,253,000
A130: Non-Capitalized Equipment | B130: 700 | C130: ='EstExp 12-20'!I116 -> 0 | D130: ='EstExp 12-20'!I155 -> 0 | F130: ='EstExp 12-20'!I214 -> 0 | H130: ='EstExp 12-20'!I309 -> 0 | J130: ='EstExp 12-20'!I428 -> 0 | K130: ='EstExp 12-20'!I453 -> 0 | L130: 0
A131: Termination Benefits | B131: 800 | C131: ='EstExp 12-20'!J116 -> 0 | D131: ='EstExp 12-20'!J155 -> 0 | F131: ='EstExp 12-20'!J214 -> 0 | J131: ='EstExp 12-20'!J428 -> 0 | L131: 0
A132: Total Expenditures | C132: =SUM(C124:C131) -> 13,733,956 | D132: 1,564,500 | E132: 1,322,000 | F132: 450,000 | G132: 600,900 | H132: 203,000 | J132: =SUM(J124:J131) -> 15,000 | K132: =SUM(K124:K131) -> 150,000 | L132: 18,039,356

Sheet CashSum 5
C1: (10) | D1: (20) | E1: (30) | F1: (40) | G1: (50) | H1: (60) | I1: (70) | J1: (80) | K1: (90)
A2: Description: Enter Whole Numbers Only | B2: Acct # | C2: Educational | D2: Operations & Maintenance | E2: Debt Service | F2: Transportation | G2: Municipal Retirement/ Social Security | H2: Capital Projects | I2: Working Cash | J2: Tort | K2: Fire Prevention & Safety
A3: ="BEGINNING CASH BALANCE ON HAND (without Student Activity Funds)7 as of July 1, "&'B25'!L2-1 -> BEGINNING CASH BALANCE ON HAND (without Student Activity Funds)7 as of July 1, 2024 | C3: 7,376,498 | D3: 0 | E3: 3,057,750 | F3: 969 | G3: 12,048 | H3: 0 | I3: 5,004,949 | J3: 0 | K3: 0
A4: Total Direct Receipts & Other Sources 8 | C4: ='BudgetSum 2-4'!C9+'BudgetSum 2-4'!C46 -> 12,817,900 | D4: ='BudgetSum 2-4'!D9+'BudgetSum 2-4'!D46 -> 1,597,000 | E4: ='BudgetSum 2-4'!E9+'BudgetSum 2-4'!E46 -> 2,195,000 | F4: ='BudgetSum 2-4'!F9+'BudgetSum 2-4'!F46 -> 510,000 | G4: ='BudgetSum 2-4'!G9+'BudgetSum 2-4'!G46 -> 605,000 | H4: ='BudgetSum 2-4'!H9+'BudgetSum 2-4'!H46 -> 203,000 | I4: ='BudgetSum 2-4'!I9+'BudgetSum 2-4'!I46 -> 27,000 | J4: ='BudgetSum 2-4'!J9+'BudgetSum 2-4'!J46 -> 221,000 | K4: ='BudgetSum 2-4'!K9+'BudgetSum 2-4'!K46 -> 178,000
A5: OTHER RECEIPTS
A6: Interfund Loans Payable (Loans from Other Funds) | B6: 411
A7: Interfund Loans Receivable (Repayment of Loans) | B7: 141
A8: Notes and Warrants Payable | B8: 433
A9: Other Current Assets | B9: 199
A10: Total Other Receipts | C10: =SUM(C6:C9) -> 0 | D10: =SUM(D6:D9) -> 0 | E10: 0 | F10: 0 | G10: 0 | H10: 0 | I10: 0 | J10: 0 | K10: 0
A11: Total Direct Receipts, Other Sources, & Other Receipts | C11: =SUM(C4,C10) -> 12,817,900 | D11: =SUM(D4,D10) -> 1,597,000 | E11: 2,195,000 | F11: 510,000 | G11: 605,000 | H11: 203,000 | I11: 27,000 | J11: 221,000 | K11: 178,000
A12: Total Amount Available | C12: =SUM(C3,C11) -> 20,194,398 | D12: =SUM(D3,D11) -> 1,597,000 | E12: 5,252,750 | F12: 510,969 | G12: 617,048 | H12: 203,000 | I12: 5,031,949 | J12: 221,000 | K12: 178,000
A13: Total Direct Disbursements & Other Uses 9 | C13: =SUM('BudgetSum 2-4'!C19,'BudgetSum 2-4'!C79) -> 13,733,956 | D13: =SUM('BudgetSum 2-4'!D19,'BudgetSum 2-4'!D79) -> 1,564,500 | E13: =SUM('BudgetSum 2-4'!E19,'BudgetSum 2-4'!E79) -> 1,437,000 | F13: =SUM('BudgetSum 2-4'!F19,'BudgetSum 2-4'!F79) -> 450,000 | G13: =SUM('BudgetSum 2-4'!G19,'BudgetSum 2-4'!G79) -> 600,900 | H13: =SUM('BudgetSum 2-4'!H19,'BudgetSum 2-4'!H79) -> 203,000 | I13: =SUM('BudgetSum 2-4'!I19,'BudgetSum 2-4'!I79) -> 0 | J13: =SUM('BudgetSum 2-4'!J19,'BudgetSum 2-4'!J79) -> 15,000 | K13: =SUM('BudgetSum 2-4'!K19,'BudgetSum 2-4'!K79) -> 150,000
A14: OTHER DISBURSEMENTS
A15: Interfund Loans Receivable (Loans to Other Funds) 10 | B15: 141
A16: Interfund Loans Payable (Repayment of Loans) | B16: 411
A17: Notes and Warrants Payable | B17: 433
A18: Other Current Liabilities | B18: 499
A19: Total Other Disbursements | C19: =SUM(C15:C18) -> 0 | D19: 0 | E19: 0 | F19: 0 | G19: 0 | H19: 0 | I19: 0 | J19: 0 | K19: 0
A20: Total Direct Disbursements, Other Uses, & Other Disbursements | C20: =SUM(C13,C19) -> 13,733,956 | D20: =SUM(D13,D19) -> 1,564,500 | E20: =SUM(E13,E19) -> 1,437,000 | F20: 450,000 | G20: 600,900 | H20: 203,000 | I20: 0 | J20: 15,000 | K20: 150,000
A21: ="ENDING CASH BALANCE ON HAND (without Student Activity Funds) as of June 30, "&'B25'!L2 -> ENDING CASH BALANCE ON HAND (without Student Activity Funds) as of June 30, 2025 | C21: =SUM(C12-C20) -> 6,460,442 | D21: =SUM(D12-D20) -> 32,500 | E21: 3,815,750 | F21: 60,969 | G21: 16,148 | H21: 0 | I21: 5,031,949 | J21: 206,000 | K21: 28,000
A23: ="Activity Funds BEGINNING CASH BALANCE ON HAND7 as of July 1, "&'B25'!L2-1 -> Activity Funds BEGINNING CASH BALANCE ON HAND7 as of July 1, 2024 | C23: 0
A24: Total Direct Receipts & Other Sources 8 | C24: ='BudgetSum 2-4'!C85 -> 0
A25: Total Amount Available | C25: =SUM(C23,C24) -> 0
A26: Total Direct Disbursements & Other Uses 9 | C26: ='BudgetSum 2-4'!C87 -> 0
A27: ="Activity funds ENDING CASH BALANCE ON HAND7 as of June 30, "&'B25'!L2 -> Activity funds ENDING CASH BALANCE ON HAND7 as of June 30, 2025 | C27: =SUM(C25-C26) -> 0
A29: ="Total BEGINNING CASH BALANCE ON HAND (with Student Activity Funds)7 as of July 1, "&'B25'!L2-1 -> Total BEGINNING CASH BALANCE ON HAND (with Student Activity Funds)7 as of July 1, 2024 | C29: =C3+C23 -> 7,376,498 | D29: =D3 -> 0 | E29: 3,057,750 | F29: 969 | G29: 12,048 | H29: 0 | I29: 5,004,949 | J29: 0 | K29: 0
A30: Total Direct Receipts & Other Sources 8 | C30: =C4+C24 -> 12,817,900 | D30: 1,597,000 | E30: 2,195,000 | F30: 510,000 | G30: 605,000 | H30: 203,000 | I30: 27,000 | J30: 221,000 | K30: 178,000
A31: Total Other Receipts | C31: =C10 -> 0 | D31: 0 | E31: 0 | F31: 0 | G31: 0 | H31: 0 | I31: 0 | J31: 0 | K31: 0
A32: Total Direct Receipts, Other Sources, & Other Receipts | C32: =SUM(C30,C31) -> 12,817,900 | D32: 1,597,000 | E32: 2,195,000 | F32: 510,000 | G32: 605,000 | H32: 203,000 | I32: 27,000 | J32: 221,000 | K32: 178,000
A33: Total Amount Available | C33: =SUM(C29,C32) -> 20,194,398 | D33: 1,597,000 | E33: 5,252,750 | F33: 510,969 | G33: 617,048 | H33: 203,000 | I33: 5,031,949 | J33: 221,000 | K33: 178,000
A34: Total Direct Disbursements & Other Uses 9 | C34: =C13+C26 -> 13,733,956 | D34: =D13 -> 1,564,500 | E34: 1,437,000 | F34: 450,000 | G34: 600,900 | H34: 203,000 | I34: 0 | J34: 15,000 | K34: 150,000
A35: Total Other Disbursements | C35: =C19 -> 0 | D35: 0 | E35: 0 | F35: 0 | G35: 0 | H35: 0 | I35: 0 | J35: 0 | K35: 0
A36: Total Direct Disbursements, Other Uses, & Other Disbursements | C36: =SUM(C34,C35) -> 13,733,956 | D36: 1,564,500 | E36: 1,437,000 | F36: 450,000 | G36: 600,900 | H36: 203,000 | I36: 0 | J36: 15,000 | K36: 150,000
A37: ="Total ENDING CASH BALANCE ON HAND (with Student Activity Funds)7 as of June 30, "&'B25'!L2 -> Total ENDING CASH BALANCE ON HAND (with Student Activity Funds)7 as of June 30, 2025 | C37: =SUM(C33-C36) -> 6,460,442 | D37: 32,500 | E37: 3,815,750 | F37: 60,969 | G37: 16,148 | H37: 0 | I37: 5,031,949 | J37: 206,000 | K37: 28,000

Sheet EstRev 6-11
C1: (10) | D1: (20) | E1: (30) | F1: (40) | G1: (50) | H1: (60) | I1: (70) | J1: (80) | K1: (90)
A2: Description: Enter Whole Numbers Only | B2: Acct # | C2: Educational | D2: Operations & Maintenance | E2: Debt Service | F2: Transportation | G2: Municipal Retirement/ Social Security | H2: Capital Projects | I2: Working Cash | J2: Tort | K2: Fire Prevention & Safety
A3: RECEIPTS/REVENUES FROM LOCAL SOURCES (1000)
A4: AD VALOREM TAXES LEVIED BY LOCAL EDUCATION AGENCY | B4: 1100
A5: Designated Purposes Levies 11 (1110-1120) | B5: ­ | C5: 4,220,000 | D5: 202,000 | E5: 1,695,000 | F5: 25,000 | G5: 106,000 | H5: 0 | I5: 27,000 | J5: 21,000 | K5: 28,000
A6: Leasing Purposes Levy 12 | B6: 1130
A7: Special Education Purposes Levy | B7: 1140 | C7: 212,000
A8: FICA and Medicare Only Levies | B8: 1150 | G8: 254,000
A9: Area Vocational Construction Purposes Levy | B9: 1160
A10: Summer School Purposes Levy | B10: 1170
A11: Other Tax Levies (Describe & Itemize) | B11: 1190 | C11: 0
A12: Total Ad Valorem Taxes Levied by District | C12: =SUM(C5:C11) -> 4,432,000 | D12: =SUM(D5:D11) -> 202,000 | E12: 1,695,000 | F12: 25,000 | G12: 360,000 | H12: 0 | I12: 27,000 | J12: 21,000 | K12: 28,000
A13: PAYMENTS IN LIEU OF TAXES | B13: 1200
A14: Mobile Home Privilege Tax | B14: 1210
A15: Payments from Local Housing Authority | B15: 1220
A16: Corporate Personal Property Replacement Taxes13 | B16: 1230 | C16: 550,000 | D16: 0 | F16: 0 | G16: 30,000
A17: Other Payments in Lieu of Taxes (Describe & Itemize) | B17: 1290
A18: Total Payments in Lieu of Taxes | C18: =SUM(C14:C17) -> 550,000 | D18: =SUM(D14:D17) -> 0 | E18: 0 | F18: 0 | G18: 30,000 | H18: 0 | I18: 0 | J18: 0 | K18: 0
A19: TUITION | B19: 1300
A20: Regular Tuition from Pupils or Parents (In State) | B20: 1311 | C20: 3,000
A21: Regular Tuition from Other Districts (In State) | B21: 1312
A22: Regular Tuition from Other Sources (In State) | B22: 1313
A23: Regular Tuition from Other Sources (Out of State) | B23: 1314
A24: Summer School Tuition from Pupils or Parents (In State) | B24: 1321
A25: Summer School Tuition from Other Districts (In State) | B25: 1322
A26: Summer School Tuition from Other Sources (In State) | B26: 1323
A27: Summer School Tuition from Other Sources (Out of State) | B27: 1324
A28: CTE Tuition from Pupils or Parents (In State) | B28: 1331
A29: CTE Tuition from Other Districts (In State) | B29: 1332
A30: CTE Tuition from Other Sources (In State) | B30: 1333
A31: CTE Tuition from Other Sources (Out of State) | B31: 1334
A32: Special Education Tuition from Pupils or Parents (In State) | B32: 1341
A33: Special Education Tuition from Other Districts (In State) | B33: 1342 | C33: 0
A34: Special Education Tuition from Other Sources (In State) | B34: 1343
A35: Special Education Tuition from Other Sources (Out of State) | B35: 1344
A36: Adult Tuition from Pupils or Parents (In State) | B36: 1351
A37: Adult Tuition from Other Districts (In State) | B37: 1352
A38: Adult Tuition from Other Sources (In State) | B38: 1353
A39: Adult Tuition from Other Sources (Out of State) | B39: 1354
A40: Total Tuition | C40: =SUM(C20:C39) -> 3,000
A41: TRANSPORTATION FEES | B41: 1400
A42: Regular Transportation Fees from Pupils or Parents (In State) | B42: 1411
A43: Regular Transportation Fees from Other Districts (In State) | B43: 1412
A44: Regular Transportation Fees from Other Sources (In State) | B44: 1413
A45: Regular Transportation Fees from Co-curricular Activities (In State) | B45: 1415
A46: Regular Transportation Fees from Other Sources (Out of State) | B46: 1416
A47: Summer School Transportation Fees from Pupils or Parents (In State) | B47: 1421
A48: Summer School Transportation Fees from Other Districts (In State) | B48: 1422
A49: Summer School Transportation Fees from Other Sources (In State) | B49: 1423
A50: Summer School Transportation Fees from Other Sources (Out of State) | B50: 1424
A51: CTE Transportation Fees from Pupils or Parents (In State) | B51: 1431
A52: CTE Transportation Fees from Other Districts (In State) | B52: 1432
A53: CTE Transportation Fees from Other Sources (In State) | B53: 1433
A54: CTE Transportation Fees from Other Sources (Out of State) | B54: 1434
A55: Special Education Transportation Fees from Pupils or Parents (In State) | B55: 1441
A56: Special Education Transportation Fees from Other Districts (In State) | B56: 1442
A57: Special Education Transportation Fees from Other Sources (In State) | B57: 1443
A58: Special Education Transportation Fees from Other Sources (Out of State) | B58: 1444
A59: Adult Transportation Fees from Pupils or Parents (In State) | B59: 1451
A60: Adult Transportation Fees from Other Districts (In State) | B60: 1452
A61: Adult Transportation Fees from Other Sources (In State) | B61: 1453
A62: Adult Transportation Fees from Other Sources (Out of State) | B62: 1454
A63: Total Transportation Fees | F63: =SUM(F42:F62) -> 0
A64: EARNINGS ON INVESTMENTS | B64: 1500
A65: Interest on Investments | B65: 1510 | C65: 0 | D65: 0 | E65: 0 | F65: 0 | G65: 0 | H65: 0 | I65: 0 | J65: 0 | K65: 0
A66: Gain or Loss on Sale of Investments | B66: 1520
A67: Total Earnings on Investments | C67: =SUM(C65:C66) -> 0 | D67: =SUM(D65:D66) -> 0 | E67: 0 | F67: 0 | G67: 0 | H67: 0 | I67: 0 | J67: 0 | K67: 0
A68: FOOD SERVICE | B68: 1600
A69: Sales to Pupils - Lunch | B69: 1611 | C69: 0
A70: Sales to Pupils - Breakfast | B70: 1612
A71: Sales to Pupils - A la Carte | B71: 1613
A72: Sales to Pupils - Other (Describe & Itemize) | B72: 1614 | C72: 0
A73: Sales to Adults | B73: 1620 | C73: 1,900
A74: Other Food Service (Describe & Itemize) | B74: 1690 | C74: 0
A75: Total Food Service | C75: =SUM(C69:C74) -> 1,900
A76: DISTRICT/SCHOOL ACTIVITY INCOME | B76: 1700
A77: Admissions - Athletic | B77: 1711
A78: Admissions - Other | B78: 1719 | C78: 0
A79: Fees | B79: 1720
A80: Book Store Sales | B80: 1730
A81: Other District/School Activity Revenue (Describe & Itemize) | B81: 1790
A82: Student Activity Fund Revenues | B82: 1799
A83: Total District/School Activity Income (without Student Activity Funds 1799) | C83: =SUM(C77:C81) -> 0 | D83: =SUM(D77:D81) -> 0
A84: Total District/School Activity Income (with Student Activity Funds 1799) | C84: =C83+C82 -> 0
A85: TEXTBOOK INCOME | B85: 1800
A86: Textbook Rentals - Regular Textbooks | B86: 1811 | C86: 0
A87: Textbook Rentals - Summer School Textbooks | B87: 1812
A88: Textbook Rentals - Adult/Continuing Education Textbooks | B88: 1813
A89: Textbook Rentals - Other (Describe & Itemize) | B89: 1819
A90: Textbook Sales - Regular Textbooks | B90: 1821
A91: Textbook Sales - Summer School | B91: 1822
A92: Textbook Sales - Adult/Continuing Education | B92: 1823
A93: Textbook Sales - Other (Describe & Itemize) | B93: 1829
A94: Other Textbook Income (Describe & Itemize) | B94: 1890
A95: Total Textbooks | C95: =SUM(C86:C94) -> 0
A96: OTHER REVENUE FROM LOCAL SOURCES | B96: 1900
A97: Rentals | B97: 1910 | C97: 0 | D97: 45,000
A98: Contributions and Donations from Private Sources | B98: 1920 | C98: 0
A99: Impact Fees from Municipal or County Governments | B99: 1930 | C99: 0 | D99: 0
A100: Services Provided Other Districts | B100: 1940
A101: Refund of Prior Years' Expenditures | B101: 1950 | C101: 0
A102: Payments of Surplus Moneys from TIF Districts | B102: 1960 | C102: 0
A103: Drivers' Education Fees | B103: 1970
A104: Proceeds from Vendors' Contracts | B104: 1980
A105: School Facility Occupation Tax Proceeds | B105: 1983
A106: Payment from Other Districts | B106: 1991
A107: Sale of Vocational Projects | B107: 1992
A108: Other Local Fees (Describe & Itemize) | B108: 1993 | C108: 0 | D108: 0
A109: Other Local Revenues (Describe & Itemize) | B109: 1999 | C109: 17,000 | D109: 0 | E109: 0 | J109: 0
A110: Total Other Revenue from Local Sources | C110: =SUM(C97:C109) -> 17,000 | D110: =SUM(D97:D109) -> 45,000 | E110: =SUM(E97:E109) -> 0 | F110: 0 | G110: 0 | H110: 0 | I110: 0 | J110: 0 | K110: 0
A111: Total Receipts/Revenues from Local Sources (without Student Activity Funds 1799) | B111: 1000 | C111: =SUM(C12,C18,C40,C63,C67,C75,C83,C95,C110) -> 5,003,900 | D111: 247,000 | E111: 1,695,000 | F111: 25,000 | G111: 390,000 | H111: 0 | I111: 27,000 | J111: 21,000 | K111: 28,000
A112: Total Receipts/Revenues from Local Sources (with Student Activity Funds 1799) | C112: =C12+C18+C40+C67+C75+C84+C95+C110 -> 5,003,900
A113: FLOW-THROUGH RECEIPTS/REVENUES FROM ONE DISTRICT TO ANOTHER DISTRICT (2000)
A114: Flow-Through Revenue from State Sources | B114: 2100
A115: Flow-Through Revenue from Federal Sources | B115: 2200
A116: Other Flow-Through Revenue (Describe & Itemize) | B116: 2300
A117: Total Flow-Through Receipts/Revenues From One District to Another District | B117: 2000 | C117: =SUM(C114:C116) -> 0 | D117: =SUM(D114:D116) -> 0 | F117: =SUM(F114:F116) -> 0 | G117: =SUM(G114:G116) -> 0
A118: RECEIPTS/REVENUES FROM STATE SOURCES (3000)
A119: UNRESTRICTED GRANTS-IN-AID (3001-3099)
A120: Evidence Based Funding Formula (Section 18-8.15) | B120: 3001 | C120: 5,500,000 | D120: 1,300,000 | E120: 500,000 | F120: 200,000 | G120: 215,000 | H120: 0 | J120: 200,000 | K120: 150,000
A121: Reorganization Incentives (Accounts 3005-3021) | B121: 3005
A122: Fast Growth District Grants | B122: 3030
A123: Other Unrestricted Grants-In-Aid From State Sources (Describe & Itemize) | B123: 3099 | C123: 0
A124: Total Unrestricted Grants-In-Aid | C124: =SUM(C120:C123) -> 5,500,000 | D124: 1,300,000 | E124: 500,000 | F124: 200,000 | G124: 215,000 | H124: 0 | J124: =SUM(J120:J123) -> 200,000 | K124: =SUM(K120:K123) -> 150,000
A125: RESTRICTED GRANTS-IN-AID (3100-3900)
A126: SPECIAL EDUCATION
A127: Special Education - Private Facility Tuition | B127: 3100 | C127: 5,000
A128: Special Education - Funding for Children Requiring Sp Ed Services | B128: 3105 | C128: 0
A129: Special Education - Personnel | B129: 3110 | C129: 0
A130: Special Education - Orphanage - Individual | B130: 3120 | C130: 40,000
A131: Special Education - Orphanage - Summer Individual | B131: 3130 | C131: 0
A132: Special Education - Summer School | B132: 3145 | C132: 0
A133: Special Education - Other (Describe & Itemize) | B133: 3199
A134: Total Special Education | C134: =SUM(C127:C133) -> 45,000 | D134: =SUM(D127:D133) -> 0 | F134: =SUM(F127:F133) -> 0
A135: CAREER AND TECHNICAL EDUCATION (CTE)
A136: CTE - Technical Education - Tech Prep | B136: 3200
A137: CTE - Secondary Program Improvement (CTEI) | B137: 3220 | C137: 0
A138: CTE - WECEP | B138: 3225
A139: CTE - Agriculture Education | B139: 3235
A140: CTE - Instructor Practicum | B140: 3240
A141: CTE - Student Organizations | B141: 3270
A142: CTE - Other (Describe & Itemize) | B142: 3299
A143: Total Career and Technical Education | C143: =SUM(C136:C142) -> 0 | D143: =SUM(D136:D142) -> 0 | G143: =SUM(G136:G142) -> 0
A144: BILINGUAL EDUCATION
A145: Bilingual Education - Downstate - TPI and TBE | B145: 3305 | C145: 0
A146: Bilingual Education - Downstate - Transitional Bilingual Education | B146: 3310 | C146: 0
A147: Total Bilingual Education | C147: =SUM(C145:C146) -> 0 | G147: =SUM(G145:G146) -> 0
A148: State Free Lunch & Breakfast | B148: 3360 | C148: 13,000
A149: School Breakfast Initiative | B149: 3365 | C149: 0
A150: Driver Education | B150: 3370
A151: Adult Education (from ICCB) | B151: 3410
A152: Adult Education - Other (Describe & Itemize) | B152: 3499
A153: TRANSPORTATION
A154: Transportation - Regular and Vocational | B154: 3500 | F154: 145,000
A155: Transportation - Special Education | B155: 3510 | F155: 140,000
A156: Transportation - Other (Describe & Itemize) | B156: 3599
A157: Total Transportation | C157: =SUM(C154:C156) -> 0 | D157: =SUM(D154:D156) -> 0 | F157: =SUM(F154:F156) -> 285,000 | G157: =SUM(G154:G156) -> 0
A158: Learning Improvement - Change Grants | B158: 3610 | C158: 0
A159: Scientific Literacy | B159: 3660
A160: Truant Alternative/Optional Education | B160: 3695
A161: Early Childhood - Block Grant | B161: 3705 | C161: 329,000
A162: Chicago General Education Block Grant | B162: 3766
A163: Chicago Educational Services Block Grant | B163: 3767
A164: School Safety & Educational Improvement Block Grant | B164: 3775 | C164: 0
A165: Technology - Technology for Success | B165: 3780 | C165: 0
A166: State Charter Schools | B166: 3815
A167: Extended Learning Opportunities - Summer Bridges | B167: 3825 | C167: 0 | F167: 0
A168: Infrastructure Improvements - Planning/Construction | B168: 3920
A169: School Infrastructure - Maintenance Projects | B169: 3925 | D169: 50,000 | K169: 0
A170: Other Restricted Revenue from State Sources (Describe & Itemize) | B170: 3999 | C170: 170,000 | D170: 0
A171: Total Restricted Grants-In-Aid | C171: =SUM(C134,C143,C147:C152,C157:C170) -> 557,000 | D171: 50,000 | E171: 0 | F171: 285,000 | G171: 0 | H171: 0 | I171: 0 | J171: 0 | K171: 0
A172: Total Receipts/Revenues from State Sources | B172: 3000 | C172: =SUM(C124,C171) -> 6,057,000 | D172: 1,350,000 | E172: 500,000 | F172: 485,000 | G172: 215,000 | H172: 0 | I172: 0 | J172: 200,000 | K172: 150,000
A173: RECEIPTS/REVENUES FROM FEDERAL SOURCES (4000)
A174: UNRESTRICTED GRANTS-IN-AID RECEIVED DIRECTLY FROM FEDERAL GOVT. (4001-4009)
A175: Federal Impact Aid | B175: 4001
A176: Other Unrestricted Grants-In-Aid Received from Fed. Govt. (Describe & Itemize) | B176: 4009
A177: Total Unrestricted Grants-In-Aid Received Directly from Fed Govt | C177: =SUM(C175:C176) -> 0 | D177: =SUM(D175:D176) -> 0 | E177: 0 | F177: 0 | G177: 0 | H177: 0 | I177: 0 | J177: 0 | K177: 0
A178: RESTRICTED GRANTS-IN-AID RECEIVED DIRECTLY FROM FEDERAL GOVT (4045-4090)
A179: Head Start | B179: 4045
A180: Construction (Impact Aid) | B180: 4050
A181: MAGNET | B181: 4060
A182: Other Restricted Grants-In-Aid Received from Fed. Govt. (Describe & Itemize) | B182: 4090
A183: Total Restricted Grants-In-Aid Received Directly from Federal Govt. | C183: =SUM(C179:C182) -> 0 | D183: =SUM(D179:D182) -> 0 | F183: =SUM(F179:F182) -> 0 | G183: =SUM(G179:G182) -> 0 | H183: =SUM(H179:H182) -> 0 | K183: =SUM(K179:K182) -> 0
A184: RESTRICTED GRANTS-IN-AID RECEIVED FROM FEDERAL GOVT. THRU THE STATE (4100-4999)
A185: TITLE V
A186: Title V - Flexibility and Accountability | B186: 4100 | C186: 0
A187: Title V - SEA Projects | B187: 4105
A188: Title V - Rural Education Initiative (REI) | B188: 4107 | C188: 0
A189: Title V - Other (Describe & Itemize) | B189: 4199
A190: Total Title V | C190: =SUM(C186:C189) -> 0 | D190: =SUM(D186:D189) -> 0 | F190: =SUM(F186:F189) -> 0 | G190: =SUM(G186:G189) -> 0
A191: FOOD SERVICE
A192: Breakfast Start-Up Expansion | B192: 4200
A193: National School Lunch Program | B193: 4210 | C193: 480,000
A194: Special Milk Program | B194: 4215 | C194: 0
A195: School Breakfast Program | B195: 4220 | C195: 140,000
A196: Summer Food Service Admin/Program | B196: 4225 | C196: 0
A197: Child and Adult Care Food Program | B197: 4226
A198: Fresh Fruit and Vegetables | B198: 4240 | C198: 0
A199: Food Service - Other (Describe & Itemize) | B199: 4299 | C199: 0
A200: Total Food Service | C200: =SUM(C192:C199) -> 620,000 | G200: =SUM(G192:G199) -> 0
... 73 more rows

Sheet EstExp 12-20
A1: Description: Enter Whole Numbers Only | C1: (100) | D1: (200) | E1: (300) | F1: (400) | G1: (500) | H1: (600) | I1: (700) | J1: (800) | K1: (900)
B2: Funct # | C2: Salaries | D2: Employee Benefits | E2: Purchased Services | F2: Supplies & Materials | G2: Capital Outlay | H2: Other Objects | I2: Non-Capitalized Equipment | J2: Termination Benefits | K2: Total
A3: 10 - EDUCATIONAL FUND (ED)
A4: INSTRUCTION (ED) | B4: 1000
A5: Regular Programs | B5: 1100 | C5: 3,754,899 | D5: 510,650 | E5: 178,400 | F5: 156,500 | G5: 125,000 | H5: 0 | K5: =SUM(C5:J5) -> 4,725,449
A6: Tuition Payment to Charter Schools | B6: 1115 | K6: =SUM(C6:J6) -> 0
A7: Pre-K Programs | B7: 1125 | C7: =200000+42388 -> 242,388 | D7: 36,200 | E7: 7,000 | F7: 18,000 | G7: 0 | H7: 0 | I7: 0 | K7: =SUM(C7:J7) -> 303,588
A8: Special Education Programs (Functions 1200 - 1220) | B8: 1200 | C8: 1,000,000 | D8: 176,500 | E8: 448,000 | F8: 11,000 | G8: 3,000 | H8: 0 | K8: 1,638,500
A9: Special Education Programs Pre-K | B9: 1225 | E9: 0 | K9: 0
A10: Remedial and Supplemental Programs K-12 | B10: 1250 | D10: 0 | K10: 0
A11: Remedial and Supplemental Programs Pre-K | B11: 1275 | K11: 0
A12: Adult/Continuing Education Programs | B12: 1300 | K12: 0
A13: CTE Programs | B13: 1400 | F13: 0 | K13: 0
A14: Interscholastic Programs | B14: 1500 | C14: 235,000 | D14: 12,100 | E14: 21,000 | F14: 15,000 | H14: 13,000 | K14: 296,100
A15: Summer School Programs | B15: 1600 | C15: 109,000 | D15: 9,000 | E15: 0 | F15: 0 | K15: 118,000
A16: Gifted Programs | B16: 1650 | K16: 0
A17: Driver's Education Programs | B17: 1700 | K17: 0
A18: Bilingual Programs | B18: 1800 | C18: 115,000 | D18: 36,500 | E18: 0 | F18: 0 | G18: 0 | H18: 0 | K18: 151,500
A19: Truant Alternative & Optional Programs | B19: 1900 | K19: 0
A20: Pre-K Programs - Private Tuition | B20: 1910 | K20: 0
A21: Regular K-12 Programs Private Tuition | B21: 1911 | K21: 0
A22: Special Education Programs K-12 Private Tuition | B22: 1912 | K22: 0
A23: Special Education Programs Pre-K Tuition | B23: 1913 | K23: 0
A24: Remedial/Supplemental Programs K-12 Private Tuition | B24: 1914 | K24: 0
A25: Remedial/Supplemental Programs Pre-K Private Tuition | B25: 1915 | K25: 0
A26: Adult/Continuing Education Programs Private Tuition | B26: 1916 | K26: 0
A27: CTE Programs Private Tuition | B27: 1917 | K27: 0
A28: Interscholastic Programs Private Tuition | B28: 1918 | K28: 0
A29: Summer School Programs Private Tuition | B29: 1919 | K29: 0
A30: Gifted Programs Private Tuition | B30: 1920 | K30: 0
A31: Bilingual Programs Private Tuition | B31: 1921 | K31: 0
A32: Truants Alternative/Opt Ed Programs Private Tuition | B32: 1922 | K32: 0
A33: Student Activity Fund Expenditures | B33: 1999 | K33: =SUM(C33:J33) -> 0
A34: Total Instruction14 (Without Student Activity Funds 1999) | B34: 1000 | C34: =SUM(C5:C32) -> 5,456,287 | D34: =SUM(D5:D32) -> 780,950 | E34: 654,400 | F34: 200,500 | G34: 128,000 | H34: =SUM(H5:H32) -> 13,000 | I34: 0 | J34: 0 | K34: 7,233,137
A35: Total Instruction14 (With Student Activity Funds 1999) | B35: 1000 | C35: =SUM(C5:C33) -> 5,456,287 | D35: =SUM(D5:D33) -> 780,950 | E35: 654,400 | F35: 200,500 | G35: 128,000 | H35: =SUM(H5:H33) -> 13,000 | I35: 0 | J35: 0 | K35: =SUM(C35:J35) -> 7,233,137
A36: SUPPORT SERVICES (ED) | B36: 2000
A37: Support Services - Pupil | B37: 2100
A38: Attendance & Social Work Services | B38: 2110 | C38: 130,000 | D38: 20,000 | E38: 2,000 | F38: 2,000 | G38: 0 | K38: =SUM(C38:J38) -> 154,000
A39: Guidance Services | B39: 2120 | C39: 0 | D39: 0 | E39: 0 | K39: 0
A40: Health Services | B40: 2130 | C40: 30,000 | D40: 8,000 | E40: 350,000 | F40: 5,000 | G40: 0 | K40: 393,000
A41: Psychological Services | B41: 2140 | C41: 0 | D41: 0 | E41: 42,000 | F41: 0 | G41: 0 | K41: 42,000
A42: Speech Pathology & Audiology Services | B42: 2150 | C42: 0 | D42: 0 | E42: 29,000 | F42: 0 | K42: 29,000
A43: Other Support Services - Pupils (Describe & Itemize) | B43: 2190 | C43: 0 | D43: 0 | K43: 0
A44: Total Support Services - Pupil | B44: 2100 | C44: =SUM(C38:C43) -> 160,000 | D44: =SUM(D38:D43) -> 28,000 | E44: 423,000 | F44: 7,000 | G44: 0 | H44: 0 | I44: 0 | J44: 0 | K44: 618,000
A45: Support Services - Instructional Staff | B45: 2200
A46: Improvement of Instruction Services | B46: 2210 | C46: 182,500 | D46: 85,500 | E46: 229,500 | F46: 13,500 | G46: 0 | H46: 0 | K46: =SUM(C46:J46) -> 511,000
A47: Educational Media Services | B47: 2220 | C47: 27,500 | D47: 2,000 | E47: 0 | F47: 13,000 | G47: 0 | H47: 0 | K47: =SUM(C47:J47) -> 42,500
A48: Assessment & Testing | B48: 2230 | E48: 2,000 | F48: 0 | G48: 0 | K48: =SUM(C48:J48) -> 2,000
A49: Total Support Services - Instructional Staff | B49: 2200 | C49: =SUM(C46:C48) -> 210,000 | D49: =SUM(D46:D48) -> 87,500 | E49: 231,500 | F49: 26,500 | G49: 0 | H49: 0 | I49: 0 | J49: 0 | K49: 555,500
A50: Support Services - General Administration | B50: 2300
A51: Board of Education Services | B51: 2310 | C51: 500 | D51: 3,000 | E51: 217,500 | F51: 33,500 | G51: 0 | H51: 10,000 | K51: =SUM(C51:J51) -> 264,500
A52: Executive Administration Services | B52: 2320 | C52: 260,000 | D52: 45,000 | E52: 29,000 | F52: 12,500 | G52: 0 | H52: 6,000 | K52: =SUM(C52:J52) -> 352,500
A53: Special Area Administration Services | B53: 2330 | C53: 267,819 | D53: 90,000 | E53: 0 | F53: 500 | G53: 0 | H53: 0 | K53: =SUM(C53:J53) -> 358,319
A54: Tort Immunity Services | B54: 2361, 2365 | C54: 0 | D54: 0 | K54: =SUM(C54:J54) -> 0
A55: Total Support Services - General Administration | B55: 2300 | C55: =SUM(C51:C54) -> 528,319 | D55: =SUM(D51:D54) -> 138,000 | E55: 246,500 | F55: 46,500 | G55: 0 | H55: 16,000 | I55: 0 | J55: 0 | K55: 975,319
A56: Support Services - School Administration | B56: 2400
A57: Office of the Principal Services | B57: 2410 | C57: 775,000 | D57: 200,000 | E57: 0 | F57: 20,000 | G57: 0 | H57: 8,000 | K57: =SUM(C57:J57) -> 1,003,000
A58: Other Support Services - School Administration (Describe & Itemize) | B58: 2490 | K58: =SUM(C58:J58) -> 0
A59: Total Support Services - School Administration | B59: 2400 | C59: =SUM(C57:C58) -> 775,000 | D59: =SUM(D57:D58) -> 200,000 | E59: 0 | F59: 20,000 | G59: 0 | H59: 8,000 | I59: 0 | J59: 0 | K59: =SUM(K57:K58) -> 1,003,000
A60: Support Services - Business | B60: 2500
A61: Direction of Business Support Services | B61: 2510 | C61: 100,000 | D61: 35,000 | E61: 37,000 | F61: 8,000 | G61: 0 | H61: 2,000 | K61: =SUM(C61:J61) -> 182,000
A62: Fiscal Services | B62: 2520 | C62: 155,000 | D62: 25,000 | E62: 2,000 | F62: 20,000 | G62: 0 | H62: 0 | K62: 202,000
A63: Operation & Maintenance of Plant Services | B63: 2540 | C63: 0 | D63: 0 | E63: 99,000 | G63: 0 | H63: 0 | K63: 99,000
A64: Pupil Transportation Services | B64: 2550 | D64: 0 | E64: 0 | K64: 0
A65: Food Services | B65: 2560 | C65: 386,000 | D65: 40,000 | E65: 31,000 | F65: 235,000 | G65: 0 | H65: 500 | K65: 692,500
A66: Internal Services | B66: 2570 | E66: 0 | K66: 0
A67: Total Support Services - Business | B67: 2500 | C67: =SUM(C61:C66) -> 641,000 | D67: =SUM(D61:D66) -> 100,000 | E67: 169,000 | F67: 263,000 | G67: 0 | H67: 2,500 | I67: 0 | J67: 0 | K67: 1,175,500
A68: Support Services - Central | B68: 2600
A69: Direction of Central Support Services | B69: 2610 | K69: =SUM(C69:J69) -> 0
A70: Planning, Research, Development & Evaluation Services | B70: 2620 | K70: =SUM(C70:J70) -> 0
A71: Information Services | B71: 2630 | C71: 329,000 | D71: 67,000 | E71: 189,000 | F71: 187,000 | G71: 42,500 | H71: 1,500 | K71: 816,000
A72: Staff Services | B72: 2640 | C72: 2,500 | D72: 0 | E72: 5,000 | F72: 20,000 | K72: 27,500
A73: Data Processing Services | B73: 2660 | K73: 0
A74: Total Support Services - Central | B74: 2600 | C74: =SUM(C69:C73) -> 331,500 | D74: =SUM(D69:D73) -> 67,000 | E74: 194,000 | F74: 207,000 | G74: 42,500 | H74: 1,500 | I74: 0 | J74: 0 | K74: =SUM(K69:K73) -> 843,500
A75: Other Support Services - Misc. (Describe & Itemize) | B75: 2900 | C75: 70,000 | D75: 5,000 | E75: 50,000 | F75: 0 | K75: 125,000
A76: Total Support Services | B76: 2000 | C76: =SUM(C44,C49,C55,C59,C67,C74,C75) -> 2,715,819 | D76: =SUM(D44,D49,D55,D59,D67,D74,D75) -> 625,500 | E76: 1,314,000 | F76: 570,000 | G76: 42,500 | H76: 28,000 | I76: 0 | J76: 0 | K76: 5,295,819
A77: COMMUNITY SERVICES (ED) | B77: 3000 | C77: 185,500 | D77: 37,000 | E77: 60,000 | F77: 7,500 | G77: 25,000 | H77: 0 | K77: 315,000
A78: PAYMENTS TO OTHER DIST & GOVT UNITS (ED) | B78: 4000
A79: Payments to Other Dist & Govt Units (In-State) | B79: 4100
A80: Payments for Regular Programs | B80: 4110 | K80: =SUM(C80:J80) -> 0
A81: Payments for Special Education Programs | B81: 4120 | H81: 50,000 | K81: 50,000
A82: Payments for Adult/Continuing Education Programs | B82: 4130 | K82: 0
A83: Payments for CTE Programs | B83: 4140 | K83: 0
A84: Payments for Community College Programs | B84: 4170 | K84: 0
A85: Other Payments to In-State Govt Units - Programs (Describe & Itemize) | B85: 4190 | H85: 110,000 | K85: 110,000
A86: Total Payments to Other Dist & Govt Units (In-State) | B86: 4100 | E86: =SUM(E80:E85) -> 0 | H86: =SUM(H80:H85) -> 160,000 | K86: =SUM(K80:K85) -> 160,000
A87: Payments for Regular Programs - Tuition | B87: 4210 | K87: =SUM(C87:J87) -> 0
A88: Payments for Special Education Programs - Tuition | B88: 4220 | H88: 600,000 | K88: =SUM(C88:J88) -> 600,000
A89: Payments for Adult/Continuing Education Programs - Tuition | B89: 4230 | K89: 0
A90: Payments for CTE Programs - Tuition | B90: 4240 | K90: 0
A91: Payments for Community College Programs - Tuition | B91: 4270 | K91: 0
A92: Payments for Other Programs - Tuition | B92: 4280 | H92: 130,000 | K92: 130,000
A93: Other Payments to In-State Govt Units - Tuition (Describe & Itemize) | B93: 4290 | H93: 0 | K93: 0
A94: Total Payments to Other Dist & Govt Units - Tuition (In State) | B94: 4200 | H94: =SUM(H87:H93) -> 730,000 | K94: =SUM(K87:K93) -> 730,000
A95: Payments for Regular Programs - Transfers | B95: 4310 | K95: 0
A96: Payments for Special Education Programs - Transfers | B96: 4320 | K96: 0
A97: Payments for Adult/Continuing Ed Programs - Transfers | B97: 4330 | K97: 0
A98: Payments for CTE Programs - Transfers | B98: 4340 | K98: 0
A99: Payments for Community College Program - Transfers | B99: 4370 | K99: 0
A100: Payments for Other Programs - Transfers | B100: 4380 | K100: 0
A101: Other Payments to In-State Govt Units - Transfers (Describe & Itemize) | B101: 4390 | K101: 0
A102: Total Payments to Other Dist & Govt Units-Transfers (In State) | B102: 4300 | E102: =SUM(E95:E101) -> 0 | H102: =SUM(H95:H101) -> 0 | K102: =SUM(K95:K101) -> 0
A103: Payments to Other Dist & Govt Units (Out of State) | B103: 4400 | K103: =SUM(C103:J103) -> 0
A104: Total Payments to Other Dist & Govt Units | B104: 4000 | E104: =SUM(E86,E94,E102,E103) -> 0 | H104: =SUM(H86,H94,H102,H103) -> 890,000 | K104: =SUM(K86,K94,K102,K103) -> 890,000
A105: DEBT SERVICE (ED) | B105: 5000
A106: Debt Service - Interest on Short-Term Debt | B106: 5100
A107: Tax Anticipation Warrants | B107: 5110 | K107: =SUM(C107:J107) -> 0
A108: Tax Anticipation Notes | B108: 5120 | K108: =SUM(C108:J108) -> 0
A109: Corporate Personal Property Repl Tax Anticipated Notes | B109: 5130 | K109: =SUM(C109:J109) -> 0
A110: State Aid Anticipation Certificates | B110: 5140 | K110: =SUM(C110:J110) -> 0
A111: Other Interest on Short-Term Debt (Describe & Itemize) | B111: 5150 | K111: =SUM(C111:J111) -> 0
A112: Total Debt Service - Interest on Short-Term Debt | B112: 5100 | H112: =SUM(H107:H111) -> 0 | K112: =SUM(K107:K111) -> 0
A113: Debt Service - Interest on Long-Term Debt | B113: 5200 | K113: =H113 -> 0
A114: Total Debt Service | B114: 5000 | H114: =SUM(H112:H113) -> 0 | K114: =SUM(K112:K113) -> 0
A115: PROVISION FOR CONTINGENCIES (ED) | B115: 6000 | K115: =SUM(C115:J115) -> 0
A116: Total Direct Disbursements/Expenditures (without Student Activity Funds (1999) | C116: =SUM(C34,C76,C77,C104,C114,C115,) -> 8,357,606 | D116: =SUM(D34,D76,D77,D104,D114,D115,) -> 1,443,450 | E116: 2,028,400 | F116: 778,000 | G116: 195,500 | H116: 931,000 | I116: 0 | J116: 0 | K116: 13,733,956
A117: Total Direct Disbursements/Expenditures (with Student Activity Funds (1999) | C117: =SUM(C35,C76,C77,C104,C114,C115,) -> 8,357,606 | D117: =SUM(D35,D76,D77,D104,D114,D115,) -> 1,443,450 | E117: =SUM(E35,E76,E77,E104,E114,E115,) -> 2,028,400 | F117: 778,000 | G117: 195,500 | H117: 931,000 | I117: 0 | J117: 0 | K117: 13,733,956
A118: Excess (Deficiency) of Receipts/Revenues Over Disbursements/Expenditures (without Student Activity Funds 1999) | K118: ='EstRev 6-11'!C272-'EstExp 12-20'!K116 -> (916,056)
A119: Excess (Deficiency) of Receipts/Revenues Over Disbursements/Expenditures (with Student Activity Funds 1999) | K119: ='EstRev 6-11'!C273-'EstExp 12-20'!K117 -> (916,056)
A121: 20 - OPERATIONS AND MAINTENANCE FUND (O&M)
A122: SUPPORT SERVICES (O&M) | B122: 2000
A123: Support Services - Pupil | B123: 2100
A124: Other Support Services - Pupils (Describe & Itemize) | B124: 2190 | K124: =SUM(C124:J124) -> 0
A125: Support Services - Business | B125: 2500
A126: Direction of Business Support Services | B126: 2510 | K126: =SUM(C126:J126) -> 0
A127: Facilities Acquisition & Construction Services | B127: 2530 | E127: 0 | G127: 0 | K127: =SUM(C127:J127) -> 0
A128: Operation & Maintenance of Plant Services | B128: 2540 | C128: 818,000 | D128: 85,000 | E128: 209,500 | F128: 442,000 | G128: 10,000 | H128: 0 | I128: 0 | K128: =SUM(C128:J128) -> 1,564,500
A129: Pupil Transportation Services | B129: 2550 | K129: =SUM(C129:J129) -> 0
A130: Food Services | B130: 2560 | K130: =SUM(C130:J130) -> 0
A131: Total Support Services - Business | B131: 2500 | C131: =SUM(C126:C129) -> 818,000 | D131: =SUM(D126:D129) -> 85,000 | E131: =SUM(E126:E130) -> 209,500 | F131: 442,000 | G131: =SUM(G126:G130) -> 10,000 | H131: =SUM(H126:H130) -> 0 | I131: 0 | J131: 0 | K131: 1,564,500
A132: Other Support Services - Misc. (Describe & Itemize) | B132: 2900 | K132: =SUM(C132:J132) -> 0
A133: Total Support Services | B133: 2000 | C133: =SUM(C124,C131,C132) -> 818,000 | D133: =SUM(D124,D131,D132) -> 85,000 | E133: 209,500 | F133: 442,000 | G133: =SUM(G124,G131,G132) -> 10,000 | H133: =SUM(H124,H131,H132) -> 0 | I133: 0 | J133: 0 | K133: 1,564,500
A134: COMMUNITY SERVICES (O&M) | B134: 3000 | E134: 0 | K134: =SUM(C134:J134) -> 0
A135: PAYMENTS TO OTHER DIST & GOVT UNITS (O&M) | B135: 4000
A136: Payments to Other Dist & Govt Units (In-State) | B136: 4100
A137: Payments for Regular Programs | B137: 4110 | K137: =SUM(E137,H137) -> 0
A138: Payments for Special Education Programs | B138: 4120 | K138: =SUM(C138:J138) -> 0
A139: Payments for CTE Program | B139: 4140 | K139: =SUM(C139:J139) -> 0
A140: Other Payments to In-State Govt Units - Programs (Describe & Itemize) | B140: 4190 | K140: =SUM(C140:J140) -> 0
A141: Total Payments to Other Dist & Govt Units (In-State) | B141: 4100 | E141: =SUM(E137:E140) -> 0 | H141: =SUM(H137:H140) -> 0 | K141: =SUM(K137:K140) -> 0
A142: Payments to Other Dist & Govt Units (Out of State) 14 | B142: 4400 | K142: =SUM(C142:J142) -> 0
A143: Total Payments to Other Dist & Govt Unit | B143: 4000 | E143: =SUM(E141:E142) -> 0 | H143: =SUM(H141:H142) -> 0 | K143: =SUM(K141:K142) -> 0
A144: DEBT SERVICE (O&M) | B144: 5000
A145: Debt Service - Interest on Short-Term Debt | B145: 5100
A146: Tax Anticipation Warrants | B146: 5110 | K146: =SUM(C146:J146) -> 0
A147: Tax Anticipation Notes | B147: 5120 | K147: =SUM(C147:J147) -> 0
A148: Corporate Personal Prop Repl Tax Anticipated Notes | B148: 5130 | K148: =SUM(C148:J148) -> 0
A149: State Aid Anticipation Certificates | B149: 5140 | K149: =SUM(C149:J149) -> 0
A150: Other Interest on Short-Term Debt (Describe & Itemize) | B150: 5150 | K150: =SUM(C150:J150) -> 0
A151: Total Debt Service - Interest on Short-Term Debt | B151: 5100 | H151: =SUM(H146:H150) -> 0 | K151: =SUM(K146:K150) -> 0
A152: Debt Service - Interest on Long-Term Debt | B152: 5200 | K152: =SUM(H152:J152) -> 0
A153: Total Debt Service | B153: 5000 | H153: =SUM(H151:H152) -> 0 | K153: =SUM(K151:K152) -> 0
A154: PROVISION FOR CONTINGENCIES (O&M) | B154: 6000 | K154: =SUM(C154:J154) -> 0
A155: Total Direct Disbursements/Expenditures | C155: =SUM(C133,C134,C143,C153,C154) -> 818,000 | D155: =SUM(D133,D134,D143,D153,D154) -> 85,000 | E155: =SUM(E133,E134,E143) -> 209,500 | F155: 442,000 | G155: 10,000 | H155: =SUM(H133,H134,H143,H153,H154) -> 0 | I155: 0 | J155: 0 | K155: =SUM(K133,K134,K143,K153,K154) -> 1,564,500
A156: Excess (Deficiency) of Receipts/Revenues Over Disbursements/Expenditures | K156: ='EstRev 6-11'!D272-'EstExp 12-20'!K155 -> 32,500
A158: 30 - DEBT SERVICE FUND (DS)
A159: PAYMENTS TO OTHER DIST & GOVT UNITS (DS) | B159: 4000
A160: Payments to Other Dist & Govt Units (In-State) | B160: 4100
A161: Payments for Regular Programs | B161: 4110 | K161: =H161 -> 0
A162: Payments for Special Education Programs | B162: 4120 | K162: =H162 -> 0
A163: Other Payments to In-State Govt Units - Programs (Describe & Itemize) | B163: 4190 | K163: =H163 -> 0
A164: Total Payments to Other Dist & Govt Units (In-State) | B164: 4000 | H164: =SUM(H161:H163) -> 0 | K164: =SUM(K161:K163) -> 0
A165: DEBT SERVICE (DS) | B165: 5000
A166: Debt Service - Interest on Short-Term Debt | B166: 5100
A167: Tax Anticipation Warrants | B167: 5110 | K167: =SUM(C167:J167) -> 0
A168: Tax Anticipation Notes | B168: 5120 | K168: =SUM(C168:J168) -> 0
A169: Corporate Personal Prop Repl Tax Anticipation Notes | B169: 5130 | K169: 0
A170: State Aid Anticipation Certificates | B170: 5140 | K170: 0
A171: Other Interest on Short-Term Debt (Describe & Itemize) | B171: 5150 | K171: 0
A172: Total Debt Service - Interest On Short-Term Debt | B172: 5100 | H172: =SUM(H167:H171) -> 0 | K172: =SUM(K167:K171) -> 0
A173: Debt Service - Interest on Long-Term Debt | B173: 5200 | H173: 1,300,000 | K173: 1,300,000
A174: Debt Service - Payments of Principal on Long-Term Debt 15 (Lease/Purchase Principal Retired) (Describe & Itemize) | B174: 5300 | H174: 20,000 | K174: 20,000
A175: Debt Service - Other (Describe & Itemize) | B175: 5400 | H175: 2,000 | K175: =SUM(C175:J175) -> 2,000
A176: Total Debt Service | B176: 5000 | E176: =SUM(E172:E175) -> 0 | H176: =SUM(H172:H175) -> 1,322,000 | K176: =SUM(K172:K175) -> 1,322,000
A177: PROVISION FOR CONTINGENCIES (DS) | B177: 6000 | K177: =SUM(C177:J177) -> 0
A178: Total Direct Disbursements/Expenditures | E178: =SUM(E176) -> 0 | H178: =SUM(H164,H176,H177) -> 1,322,000 | K178: =SUM(K164,K176,K177) -> 1,322,000
A179: Excess (Deficiency) of Receipts/Revenues Over Disbursements/Expenditures | K179: ='EstRev 6-11'!E272-'EstExp 12-20'!K178 -> 873,000
A181: 40 - TRANSPORTATION FUND (TR)
A182: SUPPORT SERVICES (TR) | B182: 2000
A183: Support Services - Pupils | B183: 2100
A184: Other Support Services - Pupils (Describe & Itemize) | B184: 2190 | E184: 0 | K184: =SUM(C184:J184) -> 0
A185: Support Services - Business
A186: Pupil Transportation Services | B186: 2550 | C186: 0 | D186: 0 | E186: 450,000 | K186: =SUM(C186:J186) -> 450,000
A187: Other Support Services - Business (Describe & Itemize) | B187: 2900 | K187: =SUM(C187:J187) -> 0
A188: Total Support Services | B188: 2000 | C188: =SUM(C184:C187) -> 0 | D188: =SUM(D184,D186,D187) -> 0 | E188: 450,000 | F188: 0 | G188: 0 | H188: 0 | I188: 0 | J188: 0 | K188: =SUM(K184,K186,K187) -> 450,000
A189: COMMUNITY SERVICES (TR) | B189: 3000 | K189: =SUM(C189:J189) -> 0
A190: PAYMENTS TO OTHER DIST & GOVT UNITS (TR) | B190: 4000
A191: Payments to Other Dist & Govt Units (In-State) | B191: 4100
A192: Payments for Regular Program | B192: 4110 | K192: =SUM(C192:J192) -> 0
A193: Payments for Special Education Programs | B193: 4120 | K193: 0
A194: Payments for Adult/Continuing Education Programs | B194: 4130 | K194: 0
A195: Payments for CTE Programs | B195: 4140 | K195: 0
A196: Payments for Community College Programs | B196: 4170 | K196: 0
A197: Other Payments to In-State Govt Units - Programs (Describe & Itemize) | B197: 4190 | K197: 0
A198: Total Payments to Other Dist & Govt Units (In-State) | B198: 4100 | E198: =SUM(E192:E197) -> 0 | H198: =SUM(H192:H197) -> 0 | K198: =SUM(K192:K197) -> 0
A199: Payments to Other Dist & Govt Units (Out-of-State) (Describe & Itemize) | B199: 4400 | K199: =SUM(C199:J199) -> 0
A200: Total Payments to Other Dist & Govt Units | B200: 4000 | E200: =SUM(E198,E199) -> 0 | H200: =SUM(H198,H199) -> 0 | K200: =SUM(K198,K199) -> 0
A201: DEBT SERVICE (TR) | B201: 5000
A202: Debt Service - Interest on Short-Term Debt | B202: 5100
A203: Tax Anticipation Warrants | B203: 5110 | K203: =SUM(C203:J203) -> 0
... 246 more rows

Sheet Itemize 21
B1: If there is an amount in column C or column G, please describe the type of revenue or expenditure in column D or column H.
B2: Revenue Check: | C2: =IF(COUNTIF(A:A,"ERROR-Describe Revenue")<>0,"Error - Please describe all the revenue.","OK") -> OK
B3: Expenditure Check: | C3: =IF(COUNTIF(I:I,"ERROR-Describe Expenditures")<>0,"Error - Please describe all the expenditures.","OK") -> OK
A4: Error Message | B4: Revenues Acct. (EstRev tab) | C4: Amount | D4: Describe Revenue | F4: Expenditures Fund-Function (EstExp tab) | G4: Amount | H4: Describe Expenditures | I4: Error Message
A5: =IF(AND(C5="",D5=""),"OK",IF(AND(C5<>"",D5<>""),"OK","ERROR-Describe Revenue")) -> OK | B5: 1190 | C5: =IF(SUM('EstRev 6-11'!$C$11:$K$11)>0,SUM('EstRev 6-11'!$C$11:$K$11),"") ->  | F5: 10-2190 | G5: =IF(SUM('EstExp 12-20'!$C$43:$J$43)>0,SUM('EstExp 12-20'!$C$43:$J$43),"") ->  | I5: =IF(AND(G5="",H5=""),"OK",IF(AND(G5<>"",H5<>""),"OK","ERROR-Describe Expenditures")) -> OK
A6: OK | B6: 1290 | C6: =IF(SUM('EstRev 6-11'!$C$17:$K$17)>0,SUM('EstRev 6-11'!$C$17:$K$17),"") ->  | F6: 10-2490 | G6: =IF(SUM('EstExp 12-20'!$C$58:$J$58)>0,SUM('EstExp 12-20'!$C$58:$J$58),"") ->  | I6: =IF(AND(G6="",H6=""),"OK",IF(AND(G6<>"",H6<>""),"OK","ERROR-Describe Expenditures")) -> OK
A7: OK | B7: 1614 | C7: =IF(SUM('EstRev 6-11'!$C$72:$K$72)>0,SUM('EstRev 6-11'!$C$72:$K$72),"") ->  | F7: 10-2900 | G7: =IF(SUM('EstExp 12-20'!$C$75:$J$75)>0,SUM('EstExp 12-20'!$C$75:$J$75),"") -> $125,000 | H7: Huntington Learning Center and McKinney Vento Exps | I7: OK
A8: OK | B8: 1690 | C8: =IF(SUM('EstRev 6-11'!$C$74:$K$74)>0,SUM('EstRev 6-11'!$C$74:$K$74),"") ->  | F8: 10-4190 | G8: =IF(SUM('EstExp 12-20'!$C$85:$J$85)>0,SUM('EstExp 12-20'!$C$85:$J$85),"") -> $110,000 | H8: Refund to ISBE for ESSER III | I8: OK
A9: OK | B9: 1790 | C9: =IF(SUM('EstRev 6-11'!$C$81:$K$81)>0,SUM('EstRev 6-11'!$C$81:$K$81),"") ->  | F9: 10-4290 | G9: =IF(SUM('EstExp 12-20'!$C$93:$J$93)>0,SUM('EstExp 12-20'!$C$93:$J$93),"") ->  | I9: OK
A10: OK | B10: 1819 | C10: =IF(SUM('EstRev 6-11'!$C$89:$K$89)>0,SUM('EstRev 6-11'!$C$89:$K$89),"") ->  | F10: 10-4390 | G10: =IF(SUM('EstExp 12-20'!$C$101:$J$101)>0,SUM('EstExp 12-20'!$C$101:$J$101),"") ->  | I10: OK
A11: OK | B11: 1829 | C11: =IF(SUM('EstRev 6-11'!$C$93:$K$93)>0,SUM('EstRev 6-11'!$C$93:$K$93),"") ->  | F11: 10-4400 | G11: =IF(SUM('EstExp 12-20'!$C$103:$J$103)>0,SUM('EstExp 12-20'!$C$103:$J$103),"") ->  | I11: OK
A12: OK | B12: 1890 | C12: =IF(SUM('EstRev 6-11'!$C$94:$K$94)>0,SUM('EstRev 6-11'!$C$94:$K$94),"") ->  | F12: 10-5150 | G12: =IF(SUM('EstExp 12-20'!$C$111:$J$111)>0,SUM('EstExp 12-20'!$C$111:$J$111),"") ->  | I12: OK
A13: OK | B13: 1993 | C13: =IF(SUM('EstRev 6-11'!$C$108:$K$108)>0,SUM('EstRev 6-11'!$C$108:$K$108),"") ->  | F13: 20-2190 | G13: =IF(SUM('EstExp 12-20'!$C$124:$J$124)>0,SUM('EstExp 12-20'!$C$124:$J$124),"") ->  | I13: OK
A14: OK | B14: 1999 | C14: =IF(SUM('EstRev 6-11'!$C$109:$K$109)>0,SUM('EstRev 6-11'!$C$109:$K$109),"") -> $17,000 | D14: Misc Rev & Tech Fee | F14: 20-2900 | G14: =IF(SUM('EstExp 12-20'!$C$132:$J$132)>0,SUM('EstExp 12-20'!$C$132:$J$132),"") ->  | I14: OK
A15: OK | B15: 2300 | C15: =IF(SUM('EstRev 6-11'!$C$116:$K$116)>0,SUM('EstRev 6-11'!$C$116:$K$116),"") ->  | F15: 20-4190 | G15: =IF(SUM('EstExp 12-20'!$C$140:$J$140)>0,SUM('EstExp 12-20'!$C$140:$J$140),"") ->  | I15: OK
A16: OK | B16: 3099 | C16: =IF(SUM('EstRev 6-11'!$C$123:$K$123)>0,SUM('EstRev 6-11'!$C$123:$K$123),"") ->  | F16: 20-4400 | G16: =IF(SUM('EstExp 12-20'!$C$142:$J$142)>0,SUM('EstExp 12-20'!$C$142:$J$142),"") ->  | I16: OK
A17: OK | B17: 3199 | C17: =IF(SUM('EstRev 6-11'!$C$133:$K$133)>0,SUM('EstRev 6-11'!$C$133:$K$133),"") ->  | F17: 20-5150 | G17: =IF(SUM('EstExp 12-20'!$C$150:$J$150)>0,SUM('EstExp 12-20'!$C$150:$J$150),"") ->  | I17: OK
A18: OK | B18: 3299 | C18: =IF(SUM('EstRev 6-11'!$C$142:$K$142)>0,SUM('EstRev 6-11'!$C$142:$K$142),"") ->  | F18: 30-4190 | G18: =IF(SUM('EstExp 12-20'!$C$163:$J$163)>0,SUM('EstExp 12-20'!$C$163:$J$163),"") ->  | I18: OK
A19: OK | B19: 3499 | C19: =IF(SUM('EstRev 6-11'!$C$152:$K$152)>0,SUM('EstRev 6-11'!$C$152:$K$152),"") ->  | F19: 30-5150 | G19: =IF(SUM('EstExp 12-20'!$C$171:$J$171)>0,SUM('EstExp 12-20'!$C$171:$J$171),"") ->  | I19: OK
A20: OK | B20: 3599 | C20: =IF(SUM('EstRev 6-11'!$C$156:$K$156)>0,SUM('EstRev 6-11'!$C$156:$K$156),"") ->  | F20: 30-5300 | G20: =IF(SUM('EstExp 12-20'!$C$174:$J$174)>0,SUM('EstExp 12-20'!$C$174:$J$174),"") -> $20,000 | H20: Exp related to Bond Payments | I20: OK
A21: OK | B21: 3999 | C21: =IF(SUM('EstRev 6-11'!$C$170:$K$170)>0,SUM('EstRev 6-11'!$C$170:$K$170),"") -> $170,000 | D21: Teacher Vacancy Grant Funds | F21: 30-5400 | G21: =IF(SUM('EstExp 12-20'!$C$175:$J$175)>0,SUM('EstExp 12-20'!$C$175:$J$175),"") -> $2,000 | H21: Exp Related to Bond Payments | I21: OK
A22: OK | B22: 4009 | C22: =IF(SUM('EstRev 6-11'!$C$176:$K$176)>0,SUM('EstRev 6-11'!$C$176:$K$176),"") ->  | F22: 40-2190 | G22: =IF(SUM('EstExp 12-20'!$C$184:$J$184)>0,SUM('EstExp 12-20'!$C$184:$J$184),"") ->  | I22: OK
A23: OK | B23: 4090 | C23: =IF(SUM('EstRev 6-11'!$C$182:$K$182)>0,SUM('EstRev 6-11'!$C$182:$K$182),"") ->  | F23: 40-2900 | G23: =IF(SUM('EstExp 12-20'!$C$187:$J$187)>0,SUM('EstExp 12-20'!$C$187:$J$187),"") ->  | I23: OK
A24: OK | B24: 4199 | C24: =IF(SUM('EstRev 6-11'!$C$189:$K$189)>0,SUM('EstRev 6-11'!$C$189:$K$189),"") ->  | F24: 40-4190 | G24: =IF(SUM('EstExp 12-20'!$C$197:$J$197)>0,SUM('EstExp 12-20'!$C$197:$J$197),"") ->  | I24: OK
A25: OK | B25: 4299 | C25: =IF(SUM('EstRev 6-11'!$C$199:$K$199)>0,SUM('EstRev 6-11'!$C$199:$K$199),"") ->  | F25: 40-4400 | G25: =IF(SUM('EstExp 12-20'!$C$199:$J$199)>0,SUM('EstExp 12-20'!$C$199:$J$199),"") ->  | I25: OK
A26: OK | B26: 4399 | C26: =IF(SUM('EstRev 6-11'!$C$205:$K$205)>0,SUM('EstRev 6-11'!$C$205:$K$205),"") ->  | F26: 40-5150 | G26: =IF(SUM('EstExp 12-20'!$C$207:$J$207)>0,SUM('EstExp 12-20'!$C$207:$J$207),"") ->  | I26: OK
A27: OK | B27: 4499 | C27: =IF(SUM('EstRev 6-11'!$C$211:$K$211)>0,SUM('EstRev 6-11'!$C$211:$K$211),"") ->  | F27: 40-5300 | G27: =IF(SUM('EstExp 12-20'!$C$210:$J$210)>0,SUM('EstExp 12-20'!$C$210:$J$210),"") ->  | I27: OK
A28: OK | B28: 4699 | C28: =IF(SUM('EstRev 6-11'!$C$219:$K$219)>0,SUM('EstRev 6-11'!$C$219:$K$219),"") ->  | F28: 40-5400 | G28: =IF(SUM('EstExp 12-20'!$C$211:$J$211)>0,SUM('EstExp 12-20'!$C$211:$J$211),"") ->  | I28: OK
A29: OK | B29: 4799 | C29: =IF(SUM('EstRev 6-11'!$C$223:$K$223)>0,SUM('EstRev 6-11'!$C$223:$K$223),"") ->  | F29: 50-2190 | G29: =IF(SUM('EstExp 12-20'!$C$241:$J$241)>0,SUM('EstExp 12-20'!$C$241:$J$241),"") ->  | I29: OK
A30: OK | B30: 4998 | C30: =IF(SUM('EstRev 6-11'!$C$269:$K$269)>0,SUM('EstRev 6-11'!$C$269:$K$269),"") -> $403,000 | D30: Remained of ESSER III funds to be received | F30: 50-2490 | G30: =IF(SUM('EstExp 12-20'!$C$257:$J$257)>0,SUM('EstExp 12-20'!$C$257:$J$257),"") ->  | I30: OK
F31: 50-2900 | G31: =IF(SUM('EstExp 12-20'!$C$275:$J$275)>0,SUM('EstExp 12-20'!$C$275:$J$275),"") -> $5,000 | H31: IMRF Exp | I31: OK
F32: 50-5150 | G32: =IF(SUM('EstExp 12-20'!$C$289:$J$289)>0,SUM('EstExp 12-20'!$C$289:$J$289),"") ->  | I32: OK
F33: 60-2900 | G33: =IF(SUM('EstExp 12-20'!$C$299:$J$299)>0,SUM('EstExp 12-20'!$C$299:$J$299),"") ->  | I33: OK
F34: 60-4190 | G34: =IF(SUM('EstExp 12-20'!$C$306:$J$306)>0,SUM('EstExp 12-20'!$C$306:$J$306),"") ->  | I34: OK
F35: 80-2190 | G35: =IF(SUM('EstExp 12-20'!$C$352:$J$352)>0,SUM('EstExp 12-20'!$C$352:$J$352),"") ->  | I35: OK
F36: 80-2490 | G36: =IF(SUM('EstExp 12-20'!$C$368:$J$368)>0,SUM('EstExp 12-20'!$C$368:$J$368),"") ->  | I36: OK
F37: 80-2900 | G37: =IF(SUM('EstExp 12-20'!$C$386:$J$386)>0,SUM('EstExp 12-20'!$C$386:$J$386),"") ->  | I37: OK
F38: 80-4190 | G38: =IF(SUM('EstExp 12-20'!$C$396:$J$396)>0,SUM('EstExp 12-20'!$C$396:$J$396),"") ->  | I38: OK
F39: 80-4290 | G39: =IF(SUM('EstExp 12-20'!$C$404:$J$404)>0,SUM('EstExp 12-20'!$C$404:$J$404),"") ->  | I39: OK
F40: 80-4390 | G40: =IF(SUM('EstExp 12-20'!$C$412:$J$412)>0,SUM('EstExp 12-20'!$C$412:$J$412),"") ->  | I40: OK
F41: 80-4400 | G41: =IF(SUM('EstExp 12-20'!$C$414:$J$414)>0,SUM('EstExp 12-20'!$C$414:$J$414),"") ->  | I41: OK
F42: 80-5150 | G42: =IF(SUM('EstExp 12-20'!$C$422:$J$422)>0,SUM('EstExp 12-20'!$C$422:$J$422),"") ->  | I42: OK
F43: 80-5300 | G43: =IF(SUM('EstExp 12-20'!$C$424:$J$424)>0,SUM('EstExp 12-20'!$C$424:$J$424),"") ->  | I43: OK
F44: 80-5400 | G44: =IF(SUM('EstExp 12-20'!$C$425:$J$425)>0,SUM('EstExp 12-20'!$C$425:$J$425),"") ->  | I44: OK
F45: 90-2900 | G45: =IF(SUM('EstExp 12-20'!$C$437:$J$437)>0,SUM('EstExp 12-20'!$C$437:$J$437),"") ->  | I45: OK
F46: 90-4190 | G46: =IF(SUM('EstExp 12-20'!$C$442:$J$442)>0,SUM('EstExp 12-20'!$C$442:$J$442),"") ->  | I46: OK
F47: 90-5150 | G47: =IF(SUM('EstExp 12-20'!$C$447:$J$447)>0,SUM('EstExp 12-20'!$C$447:$J$447),"") ->  | I47: OK
F48: 90-5300 | G48: =IF(SUM('EstExp 12-20'!$C$450:$J$450)>0,SUM('EstExp 12-20'!$C$450:$J$450),"") ->  | I48: OK

Sheet DeficitBudgetSum Calc 22
B1: DEFICIT BUDGET SUMMARY INFORMATION - Operating Funds Only (School Districts Only)
B2: Description | C2: EDUCATIONAL FUND (10) | D2: OPERATIONS & MAINTENANCE FUND (20) | E2: TRANSPORTATION FUND (40) | F2: WORKING CASH FUND (70) | G2: TOTAL
B3: Direct Revenues | C3: ='BudgetSum 2-4'!C9 -> 12,817,900 | D3: ='BudgetSum 2-4'!D9 -> 1,597,000 | E3: ='BudgetSum 2-4'!F9 -> 510,000 | F3: ='BudgetSum 2-4'!I9 -> 27,000 | G3: =SUM(C3:F3) -> 14,951,900
B4: Direct Expenditures | C4: ='BudgetSum 2-4'!C19 -> 13,733,956 | D4: ='BudgetSum 2-4'!D19 -> 1,564,500 | E4: ='BudgetSum 2-4'!F19 -> 450,000 | G4: =SUM(C4:F4) -> 15,748,456
B5: Difference | C5: =(C3-C4) -> (916,056) | D5: =(D3-D4) -> 32,500 | E5: =(E3-E4) -> 60,000 | F5: =(F3-F4) -> 27,000 | G5: =SUM(G3-G4) -> (796,556)
B6: ="Estimated Fund Balance - June 30, "&'B25'!L2 -> Estimated Fund Balance - June 30, 2025 | C6: ='BudgetSum 2-4'!C81 -> 6,460,442 | D6: ='BudgetSum 2-4'!D81 -> 32,500 | E6: ='BudgetSum 2-4'!F81 -> 60,969 | F6: ='BudgetSum 2-4'!I81 -> 5,031,949 | G6: =SUM(C6:F6) -> 11,585,860
D7: =IF(Cover!B3="X", "Deficit Reduction Plan is not required", IF(AND(G5<0,G6>=0,ABS(G5*3)>ABS(G6)),B17,IF(AND(G5<0,G6>0,ABS(G5*3)<=ABS(G6)),B18,IF(AND(G5<0,G6<0),B17,IF(G6=0,B20,B19))))) -> Unbalanced budget; however, a Deficit Reduction Plan is not required at this time.
B8: ="A deficit reduction plan is required if the local board of education adopts (or amends) the "&'B25'!L2-1&-'B25'!L2 -> A deficit reduction plan is required if the local board of education adopts (or amends) the 2024-2025 | E8: school district budget in which the “operating funds”
B9: listed above result in direct revenues (line 9, BudgetSum 2-4) being less than direct expenditures (line 19, BudgetSum 2-4) by an amount equal to or greater than one-third (1/3) of the ending fund balance (line 81, BudgetSum 2-4).
B11: Note: The balance is determined using only the four funds listed above. That is, if the estimated ending fund balance is less than three times the deficit spending, the district must adopt and file with ISBE a deficit reduction plan to balance the shortfall within three years.
B13: ="Per School Code (105 ILCS 5/17-1) - If the Deficit AFR Summary Information tab from the "&'B25'!L2-2&"-"&'B25'!L2-1 -> Per School Code (105 ILCS 5/17-1) - If the Deficit AFR Summary Information tab from the 2023-2024 | E13: Annual Financial Report (AFR) reflects a deficit as
B14: defined above, then the school district shall adopt and submit a deficit reduction plan (found here on page 23-27) to ISBE within 30 days after acceptance of the AFR.
B15: The deficit reduction plan, if required, is developed using ISBE guidelines and format.
B17: Unbalanced budget. A Deficit Reduction Plan must be adopted and submitted concurrently with this budget. This Deficit Reduction Plan must result in a balanced budget by the last year of the attached plan, as adopted by the local board of education. (Tab: Deficit BudgetSum Calc) | G17: Deficit Reduction Plan is required
B18: Unbalanced budget; however, a Deficit Reduction Plan is not required at this time. | G18: Deficit Reduction Plan is not required
B19: Balanced budget; no Deficit Reduction Plan is required. | G19: Deficit Reduction Plan is not required
B20: To determine if the budget is balanced, complete all pages of the budget first. | G20: ERROR - INCOMPLETE BUDGET. PLEASE COMPLETE BUDGET FORM

Sheet DefReductPlan 23-27
A1: *School Districts Only | C1: DEFICIT REDUCTION PLAN | W1: SUMMARY
C2: ESTIMATED BUDGET | H2: ESTIMATED BUDGET | M2: ESTIMATED BUDGET | R2: ESTIMATED BUDGET | W2: BUDGET ADDENDUM - DEFICIT REDUCTION PLAN
A3: =Cover!H14 -> 07016157002 | C3: ="FY"&'B25'!L2-1&-'B25'!L2 -> FY2024-2025 | H3: ="FY"&'B25'!L2&-'B25'!L2-1 -> FY2025-2026 | M3: ="FY"&'B25'!L2+1&-'B25'!L2-2 -> FY2026-2027 | R3: ="FY"&'B25'!L2+2&-'B25'!L2-3 -> FY2027-2028 | W3: ESTIMATED BUDGET
A4: District Number | W4: Date of Adoption:
A5: =Cover!H13 -> Hoover-Schrum Memorial SD 157 | Y5: (Enter as MM/DD/YY)
A6: District Name | C6: Educational Fund | D6: Operations & Maintenance Fund | E6: Transportation Fund | F6: Working Cash Fund | G6: Total | H6: Educational Fund | I6: Operations & Maintenance Fund | J6: Transportation Fund | K6: Working Cash Fund | L6: Total | M6: Educational Fund | N6: Operations & Maintenance Fund | O6: Transportation Fund | P6: Working Cash Fund | Q6: Total | R6: Educational Fund | S6: Operations & Maintenance Fund | T6: Transportation Fund | U6: Working Cash Fund | V6: Total | W6: ="FY"&'B25'!L2-1&-'B25'!L2 -> FY2024-2025 | X6: ="FY"&'B25'!L2&-'B25'!L2-1 -> FY2025-2026 | Y6: ="FY"&'B25'!L2+1&-'B25'!L2-2 -> FY2026-2027 | Z6: ="FY"&'B25'!L2+2&-'B25'!L2-3 -> FY2027-2028
A7: ESTIMATED BEGINNING FUND BALANCE (must equal prior Ending Fund Balance) | C7: ='BudgetSum 2-4'!C3 -> 7,376,498 | D7: ='BudgetSum 2-4'!D3 -> 0 | E7: ='BudgetSum 2-4'!F3 -> 969 | F7: ='BudgetSum 2-4'!I3 -> 5,004,949 | G7: =SUM(C7:F7) -> 12,382,416 | H7: =C27 -> 6,460,442 | I7: =D27 -> 32,500 | J7: =E27 -> 60,969 | K7: =F27 -> 5,031,949 | L7: =SUM(H7:K7) -> 11,585,860 | M7: =H27 -> 6,460,442 | N7: =I27 -> 32,500 | O7: =J27 -> 60,969 | P7: =K27 -> 5,031,949 | Q7: =SUM(M7:P7) -> 11,585,860 | R7: =M27 -> 6,460,442 | S7: =N27 -> 32,500 | T7: =O27 -> 60,969 | U7: =P27 -> 5,031,949 | V7: =SUM(R7:U7) -> 11,585,860 | W7: =G7 -> 12,382,416 | X7: =L7 -> 11,585,860 | Y7: =Q7 -> 11,585,860 | Z7: =V7 -> 11,585,860
A8: RECEIPTS/REVENUES | B8: Acct #
A9: LOCAL SOURCES | B9: 1000 | C9: ='BudgetSum 2-4'!C5 -> 5,003,900 | D9: ='BudgetSum 2-4'!D5 -> 247,000 | E9: ='BudgetSum 2-4'!F5 -> 25,000 | F9: ='BudgetSum 2-4'!I5 -> 27,000 | G9: =SUM(C9:F9) -> 5,302,900 | L9: =SUM(H9:K9) -> 0 | Q9: =SUM(M9:P9) -> 0 | V9: =SUM(R9:U9) -> 0 | W9: =G9 -> 5,302,900 | X9: =L9 -> 0 | Y9: =Q9 -> 0 | Z9: =V9 -> 0
A10: FLOW-THROUGH RECEIPTS/REVENUES FROM ONE DISTRICT TO ANOTHER DISTRICT | B10: 2000 | C10: ='BudgetSum 2-4'!C6 -> 0 | D10: ='BudgetSum 2-4'!D6 -> 0 | E10: ='BudgetSum 2-4'!F6 -> 0 | G10: =SUM(C10:F10) -> 0 | L10: 0 | Q10: =SUM(M10:P10) -> 0 | V10: =SUM(R10:U10) -> 0 | W10: =G10 -> 0 | X10: =L10 -> 0 | Y10: =Q10 -> 0 | Z10: =V10 -> 0
A11: STATE SOURCES | B11: 3000 | C11: ='BudgetSum 2-4'!C7 -> 6,057,000 | D11: ='BudgetSum 2-4'!D7 -> 1,350,000 | E11: ='BudgetSum 2-4'!F7 -> 485,000 | F11: ='BudgetSum 2-4'!I7 -> 0 | G11: =SUM(C11:F11) -> 7,892,000 | L11: 0 | Q11: =SUM(M11:P11) -> 0 | V11: =SUM(R11:U11) -> 0 | W11: =G11 -> 7,892,000 | X11: =L11 -> 0 | Y11: =Q11 -> 0 | Z11: =V11 -> 0
A12: FEDERAL SOURCES | B12: 4000 | C12: ='BudgetSum 2-4'!C8 -> 1,757,000 | D12: ='BudgetSum 2-4'!D8 -> 0 | E12: ='BudgetSum 2-4'!F8 -> 0 | F12: ='BudgetSum 2-4'!I8 -> 0 | G12: =SUM(C12:F12) -> 1,757,000 | L12: 0 | Q12: =SUM(M12:P12) -> 0 | V12: =SUM(R12:U12) -> 0 | W12: =G12 -> 1,757,000 | X12: =L12 -> 0 | Y12: =Q12 -> 0 | Z12: =V12 -> 0
A13: Total Receipts/Revenues | C13: =SUM(C9:C12) -> 12,817,900 | D13: =SUM(D9:D12) -> 1,597,000 | E13: =SUM(E9:E12) -> 510,000 | F13: =SUM(F9:F12) -> 27,000 | G13: =SUM(C13:F13) -> 14,951,900 | H13: =SUM(H9:H12) -> 0 | I13: =SUM(I9:I12) -> 0 | J13: =SUM(J9:J12) -> 0 | K13: =SUM(K9:K12) -> 0 | L13: 0 | M13: =SUM(M9:M12) -> 0 | N13: =SUM(N9:N12) -> 0 | O13: =SUM(O9:O12) -> 0 | P13: =SUM(P9:P12) -> 0 | Q13: =SUM(M13:P13) -> 0 | R13: =SUM(R9:R12) -> 0 | S13: =SUM(S9:S12) -> 0 | T13: =SUM(T9:T12) -> 0 | U13: =SUM(U9:U12) -> 0 | V13: =SUM(R13:U13) -> 0 | W13: =G13 -> 14,951,900 | X13: =L13 -> 0 | Y13: =Q13 -> 0 | Z13: =V13 -> 0
A14: DISBURSEMENTS/EXPENDITURES | B14: Funct #
A15: INSTRUCTION | B15: 1000 | C15: ='BudgetSum 2-4'!C13 -> 7,233,137 | G15: =SUM(C15:F15) -> 7,233,137 | L15: 0 | Q15: =SUM(M15:P15) -> 0 | V15: =SUM(R15:U15) -> 0 | W15: =G15 -> 7,233,137 | X15: =L15 -> 0 | Y15: =Q15 -> 0 | Z15: =V15 -> 0
A16: SUPPORT SERVICES | B16: 2000 | C16: ='BudgetSum 2-4'!C14 -> 5,295,819 | D16: ='BudgetSum 2-4'!D14 -> 1,564,500 | E16: ='BudgetSum 2-4'!F14 -> 450,000 | G16: 7,310,319 | L16: 0 | Q16: 0 | V16: 0 | W16: 7,310,319 | X16: 0 | Y16: 0 | Z16: 0
A17: COMMUNITY SERVICES | B17: 3000 | C17: ='BudgetSum 2-4'!C15 -> 315,000 | D17: ='BudgetSum 2-4'!D15 -> 0 | E17: ='BudgetSum 2-4'!F15 -> 0 | G17: 315,000 | L17: 0 | Q17: 0 | V17: 0 | W17: 315,000 | X17: 0 | Y17: 0 | Z17: 0
A18: PAYMENTS TO OTHER DISTRICTS & GOVT. UNITS | B18: 4000 | C18: ='BudgetSum 2-4'!C16 -> 890,000 | D18: ='BudgetSum 2-4'!D16 -> 0 | E18: ='BudgetSum 2-4'!F16 -> 0 | G18: 890,000 | L18: 0 | Q18: 0 | V18: 0 | W18: 890,000 | X18: 0 | Y18: 0 | Z18: 0
A19: DEBT SERVICES | B19: 5000 | C19: ='BudgetSum 2-4'!C17 -> 0 | D19: ='BudgetSum 2-4'!D17 -> 0 | E19: ='BudgetSum 2-4'!F17 -> 0 | G19: 0 | L19: 0 | Q19: 0 | V19: 0 | W19: 0 | X19: 0 | Y19: 0 | Z19: 0
A20: PROVISION FOR CONTINGENCIES | B20: 6000 | C20: ='BudgetSum 2-4'!C18 -> 0 | D20: ='BudgetSum 2-4'!D18 -> 0 | E20: ='BudgetSum 2-4'!F18 -> 0 | G20: 0 | L20: 0 | Q20: 0 | V20: 0 | W20: 0 | X20: 0 | Y20: 0 | Z20: 0
A21: Total Disbursements/Expenditures | C21: =SUM(C15:C20) -> 13,733,956 | D21: =SUM(D15:D20) -> 1,564,500 | E21: =SUM(E15:E20) -> 450,000 | G21: 15,748,456 | H21: =SUM(H15:H20) -> 0 | I21: =SUM(I15:I20) -> 0 | J21: =SUM(J15:J20) -> 0 | L21: 0 | M21: =SUM(M15:M20) -> 0 | N21: =SUM(N15:N20) -> 0 | O21: =SUM(O15:O20) -> 0 | Q21: 0 | R21: =SUM(R15:R20) -> 0 | S21: =SUM(S15:S20) -> 0 | T21: =SUM(T15:T20) -> 0 | V21: 0 | W21: 15,748,456 | X21: 0 | Y21: 0 | Z21: 0
A22: Excess of Receipts/Revenue Over/(Under) Disbursements/Expenditures | C22: =SUM(C13-C21) -> (916,056) | D22: =SUM(D13-D21) -> 32,500 | E22: =SUM(E13-E21) -> 60,000 | F22: =SUM(F13-F21) -> 27,000 | G22: =G13-G21 -> (796,556) | H22: =SUM(H13-H21) -> 0 | I22: =SUM(I13-I21) -> 0 | J22: =SUM(J13-J21) -> 0 | K22: =SUM(K13-K21) -> 0 | L22: =SUM(H22:K22) -> 0 | M22: =SUM(M13-M21) -> 0 | N22: =SUM(N13-N21) -> 0 | O22: =SUM(O13-O21) -> 0 | P22: =SUM(P13-P21) -> 0 | Q22: =SUM(M22:P22) -> 0 | R22: =SUM(R13-R21) -> 0 | S22: =SUM(S13-S21) -> 0 | T22: =SUM(T13-T21) -> 0 | U22: =SUM(U13-U21) -> 0 | V22: =SUM(R22:U22) -> 0 | W22: (796,556) | X22: 0 | Y22: 0 | Z22: 0
A23: OTHER SOURCES/USES OF FUNDS
A24: OTHER SOURCES OF FUNDS (7000) | C24: ='BudgetSum 2-4'!C46 -> 0 | D24: ='BudgetSum 2-4'!D46 -> 0 | E24: ='BudgetSum 2-4'!F46 -> 0 | F24: ='BudgetSum 2-4'!I46 -> 0 | G24: =SUM(C24:F24) -> 0 | L24: =SUM(H24:K24) -> 0 | Q24: =SUM(M24:P24) -> 0 | V24: =SUM(R24:U24) -> 0 | W24: =G24 -> 0 | X24: =L24 -> 0 | Y24: =Q24 -> 0 | Z24: =V24 -> 0
A25: OTHER USES OF FUNDS (8000) | C25: ='BudgetSum 2-4'!C79 -> 0 | D25: ='BudgetSum 2-4'!D79 -> 0 | E25: ='BudgetSum 2-4'!F79 -> 0 | F25: ='BudgetSum 2-4'!I79 -> 0 | G25: =SUM(C25:F25) -> 0 | L25: =SUM(H25:K25) -> 0 | Q25: =SUM(M25:P25) -> 0 | V25: =SUM(R25:U25) -> 0 | W25: =G25 -> 0 | X25: =L25 -> 0 | Y25: =Q25 -> 0 | Z25: =V25 -> 0
A26: TOTAL OTHER SOURCES/USES OF FUNDS | C26: =SUM(C24-C25) -> 0 | D26: 0 | E26: 0 | F26: 0 | G26: 0 | H26: 0 | I26: =SUM(I24-I25) -> 0 | J26: 0 | K26: 0 | L26: =SUM(H26:K26) -> 0 | M26: 0 | N26: 0 | O26: 0 | P26: 0 | Q26: =SUM(M26:P26) -> 0 | R26: 0 | S26: 0 | T26: 0 | U26: 0 | V26: =SUM(R26:U26) -> 0 | W26: =G26 -> 0 | X26: =L26 -> 0 | Y26: =Q26 -> 0 | Z26: =V26 -> 0
A27: ESTIMATED ENDING FUND BALANCE | C27: =C7+C22+C26 -> 6,460,442 | D27: =D7+D22+D26 -> 32,500 | E27: 60,969 | F27: 5,031,949 | G27: 11,585,860 | H27: 6,460,442 | I27: 32,500 | J27: 60,969 | K27: 5,031,949 | L27: =SUM(H27:K27) -> 11,585,860 | M27: 6,460,442 | N27: 32,500 | O27: 60,969 | P27: 5,031,949 | Q27: 11,585,860 | R27: 6,460,442 | S27: 32,500 | T27: 60,969 | U27: 5,031,949 | V27: =V7+V22+V26 -> 11,585,860 | W27: =G27 -> 11,585,860 | X27: =L27 -> 11,585,860 | Y27: =Q27 -> 11,585,860 | Z27: =V27 -> 11,585,860
A30: =IF(V13<>0,IF(V21<>0,IF(V22<0,IF(V27/3<ABS(V22),"The district's plan does not result in a balanced budget. Revise the plan prior to school board approval and submission to ISBE.", "The district's plan meets the requirements."),"The district's plan meets the requirements."),"Plan is incomplete."),"Plan is incomplete.") -> Plan is incomplete.

Sheet Bckgrnd-Assumpt 28-29
B1: Deficit Reduction Plan-Background/Assumptions (School Districts Only)
B2: ="Fiscal Year "&'B25'!L2-1&-'B25'!L2 -> Fiscal Year 2024-2025
B3: ="through Fiscal Year "&'B25'!L2+2&-'B25'!L2-3 -> through Fiscal Year 2027-2028
B5: =Cover!H13&" "&Cover!H14 -> Hoover-Schrum Memorial SD 157 07016157002
B6: Please complete the following schedule and include a brief description to identify any areas of the budget that will be impacted from one year to the next. If the deficit reduction plan relies upon new local revenues, identify contingencies for further budget reductions which will be enacted in the event those new revenues are not available.
A9: 1. | B9: Background and Narrative of Budget Reductions:
A12: 2. | B12: Assumptions Used in the Deficit Reduction Plan:
B15: - EBF and Estimated New Tier Funding:
B18: - Equal Assessed Valuation and Tax Rates:
B21: - Employee Salaries and Benefits:
B24: - Short- and Long-Term Borrowing:
B27: - Educational Impact:
B30: - Other Assumptions:
B33: - Has the district considered shared services or outsourcing (Ex: Transportation, Insurance)? If yes, please explain:

Sheet EBF Spending Plan 30-34
A1: Evidence-Based Funding: Fiscal Year 2025 Spending Plan | N1: RCDT | O1: =IF(Cover!H13=0,"",IF(Cover!H8="Yes","",Cover!H14)) -> 07016157002 | Q1: P1.Q2 | R1: P2.Q1 | S1: P2.Q2 | T1: P2.Q3,P3Q2-4 | U1: P2.Q4 | V1: Assurances
A2: =IF(Cover!H13=0,"",IF(Cover!H8="Yes","N/A - EBF Spending Plan Not Required for Amended Budgets",IFERROR(VLOOKUP(O1,'FY24 Data for FY25 Plan'!A3:B932,2,FALSE),"N/A - EBF Spending Plan Not Required for Joint Agreements"))) -> HOOVER-SCHRUM MEMORIAL SD 157 | Q2: Focus increased time and attention on special student groups | R2: Estimated | S2: Climate and culture survey data (e.g., Five Essentials Survey) | T2: Yes | U2: Core Teachers | V2: Yes
A3: Part I: Achieving Student Growth and Making Progress Toward State Education Goals | N3: Color Key | O3: Text or dollar figure entered by user. | Q3: Increase the number of high-quality educators dedicated to special student groups | R3: Actual | S3: Attendance data (e.g., chronic absenteeism, graduation or dropout rates) | U3: Specialist Teachers | V3: No
A4: The questions below allow you to indicate the strategic priorities and strategies that will drive your efforts to achieve student growth and make progress toward state education goals. These may involve investing in any combination of an Organizational Unit's core resources: time, money, people, and programs. | O4: Response selected from dropdown list | Q4: Increase number and/or quality of professional development opportunities | S4: Student growth and achievement data, disaggregated by student groups | U4: Instructional Facilitator
A5: Collaboration Opportunity - Organizational Units may find that Part I is most easily and effectively completed if led by program leaders in consultation with finance leaders. | O5: Value is provided based on district selection. | Q5: Maintain or expand early childhood programming | S5: Student grades or other local academic performance data | U5: Core Intervention Teacher
A6: 1) | B6: What are the Organizational Unit's strategic goals for student success for the 2024-25 school year? What measures will be used to evaluate progress? (No more than 2000 characters, including spaces.) | Q6: Maintain or decrease class sizes | S6: Student discipline and behavior data | U6: Substitute Teacher
B7: Hoover Schrum Memorial School District 157 will set goals for student success that align with broader educational objectives. These goals will focus on academic achievement, standardized test scores, student well-being, and more. Creating a nurturing learning community where excellence is expected of everyone. Creating a nurturing learning community where excellence is expected of everyone requires a comprehensive approach that involves strategies and initiatives. Some steps we include in this process is: 1. Clear Vision and Mission 2. Leadership Support 3. High Expectations 4. Inclusive Environment 5. Effective Teaching 6. Student Support Services 7. Parent and Community Engagement 8. Positive Behavior Supports 9. Safe and Well-Maintained Facilities 10. Technology Integration Just to name a few. Student success will be measured using a combination of academic performance (grades, test scores), personal growth (skills development, critical thinking) and overall well-being (attendance, engagement, mental helath). | N7: =IF(LEN(B7)>10,1,0) -> 1 | Q7: Maintain or expand pupil support services | S7: Educator shortages, retention and recruitment data | U7: Guidance Counselor
Q8: Maintain or expand college and career readiness options (e.g., CTE programming, AP/IB programming, dual credit/dual enrollment programming) | S8: Family and community engagement data | U8: Nurse
Q9: Improve programs, curriculum, and/or learning tools | S9: Site-based expenditure data | U9: Supervisory Aide
G10: Top Strategy 1 | I10: Top Strategy 2 | L10: Top Strategy 3 | Q10: Increase number and/or quality of community, parent, and family engagement opportunities | S10: Annual Financial Report data | U10: Librarian
A11: 2) | B11: Select the top three strategies that the Organizational Unit will employ to achieve student growth and make progress toward state education goals. (Select three different responses from the dropdown list.) | G11: Maintain or expand early childhood programming | I11: Increase the number of high-quality educators dedicated to special student groups | L11: Improve programs, curriculum, and/or learning tools | N11: =IF(OR(G11="",I11="",L11=""),0,IF(OR(G11=I11,G11=L11,I11=L11),0,1)) -> 1 | Q11: Maintain or increase equitable resource allocation for students so that more dollars benefit students in greater need | S11: Financial projections | U11: Librarian Aide
B12: If "Other" was selected in question 2, please describe. (No more than 1000 characters, including spaces.) | Q12: Provide interventions and services to reduce truancy or dropout rates | S12: EBF student allocations and/or cost factors | U12: Principal
A13: =IF(OR(G11="Other", I11="Other",M11="Other"),"Required","") ->  | B13: =IF(COUNTIF(G11:M11,"Other"),"Required","") ->  | N13: =IF(B13="",1,IF(LEN(G12)>10,1,0)) -> 1 | Q13: Provide alternative learning programs and models to address unique student needs | S13: Health and/or technology access data (e.g., CDC School Health Index, ventilation data, etc.) | U13: Assistant Principal
Q14: Other | S14: Equity Journey Continuum Data | U14: School Site Staff
A15: Part II: Planned Use of Evidence-Based Funding | S15: State Performance Plan Indicators for Special Education | U15: Gifted
A16: The questions below provide an opportunity to document the stakeholders with whom you consulted and the data you analyzed as you determined your strategic allocations of FY 2025 EBF dollars. Key statistics related to EBF distributions are provided for your reference. Form 50-36/50-39 is typically released before current-year appropriations are known. Therefore, the figures provided are for the prior fiscal year. | S16: Other local data sources | U16: Professional Development
A17: Collaboration Opportunity - Organizational Units may find that questions in this section are most easily and effectively completed if led by finance leaders in consultation with program leaders. | U17: Instructional Materials
A18: Evidence-Based Funding Organizational Unit Results (FY 2024) | E18: Final Resources / Adequacy Target = Percent of Adequacy | F18: Average Student Enrollment | G18: =IF(Cover!H13=0,"",VLOOKUP($O$1,'FY24 Data for FY25 Plan'!$A$3:$BC$932,3,FALSE)) -> 803.81 | H18: Adequacy Target | J18: =IF(Cover!H13=0,"",VLOOKUP($O$1,'FY24 Data for FY25 Plan'!$A$3:$BC$932,4,FALSE)) -> $13,556,328 | U18: Assessments
U19: Computer & Tech Equip
F20: Final Resources | G20: =IF(Cover!H13=0,"",VLOOKUP($O$1,'FY24 Data for FY25 Plan'!$A$3:$BC$932,5,FALSE)) -> $10,877,535 | H20: Percent of Adequacy | J20: =IF(Cover!H13=0,"",VLOOKUP($O$1,'FY24 Data for FY25 Plan'!$A$3:$BC$932,6,FALSE)) -> 80% | U20: Student Activities
U21: Maintenance & Operations
E22: Base Funding Minimum + Tier Funding = Gross State Contribution | F22: Tier Assignment | G22: =IF(Cover!H13=0,"",VLOOKUP($O$1,'FY24 Data for FY25 Plan'!$A$3:$BC$932,7,FALSE)) -> 2 | H22: Gross State Contribution | J22: =IF(Cover!H13=0,"",VLOOKUP($O$1,'FY24 Data for FY25 Plan'!$A$3:$BC$932,10,FALSE)) -> $7,452,400 | U22: Central Office
U23: Employee Benefits
F24: FY24 Base Funding Minimum | G24: =IF(Cover!H13=0,"",VLOOKUP($O$1,'FY24 Data for FY25 Plan'!$A$3:$BC$932,9,FALSE)) -> $7,352,394 | H24: FY 2024 Tier Funding | J24: =IF(Cover!H13=0,"",VLOOKUP($O$1,'FY24 Data for FY25 Plan'!$A$3:$BC$932,8,FALSE)) -> $100,006 | U24: Low-Income Intervention Teacher
U25: Low-Income Pupil Support Staff
E26: Within FY 2024 Gross State Contribution, Resources Attributable to Specific Populations | F26: Low-Income Students | G26: =IF(Cover!H13=0,"",VLOOKUP(O1,'FY24 Data for FY25 Plan'!$A$3:$BC$932,53,FALSE)) -> $1,959,132 | U26: Low-Income Extended Day Teacher
F27: English Learners (Els) | G27: =IF(Cover!H13=0,"",VLOOKUP(O1,'FY24 Data for FY25 Plan'!$A$3:$BC$932,54,FALSE)) -> $41,952 | U27: Low-Income Summer School Teacher
F28: Special Education | G28: =IF(Cover!H13=0,"",VLOOKUP($O$1,'FY24 Data for FY25 Plan'!$A$3:$BC$932,55,FALSE)) -> $317,522 | U28: EL Intervention Teacher
U29: EL Pupil Support Staff
G30: FY 2025 Tier Funding | H30: Funding Type (Select) | I30: *Note: Tier Funding allocations are published annually at https://www.isbe.net/Pages/ebfdistribution.aspx . Amounts are available in early August. Districts must use actual funding amounts if they are available before submitting the budget to ISBE. | U30: EL Extended Day Teacher
A31: 1) | B31: FY 2025 Tier Funding Allocation*: Enter the dollar amount of Tier Funding (e.g., NEW MONEY only) allocated to the Organizational Unit for FY 2025. Select whether the amount is estimated or actual funding. | G31: $107,412 | H31: Estimated | N31: =IF(AND(ISNUMBER(G31),H31<>0),1,0) -> 1 | U31: EL Summer School Teacher
U32: EL Core Teacher
U33: Sp Ed Teacher
G34: Data Source 1 | I34: Data Source 2 | L34: Data Source 3 | U34: Sp Ed Instructional Assistant
A35: 2) | B35: Select the top three sources of data used to inform the Organizational Unit's planned allocation of EBF dollars. (Select three different responses.) | G35: EBF student allocations and/or cost factors | I35: Attendance data (e.g., chronic absenteeism, graduation or dropout rates) | L35: Student growth and achievement data, disaggregated by student groups | N35: =IF(OR(G35="",I35="",L35=""),0,IF(OR(G35=I35,G35=L35,I35=L35),0,1)) -> 1 | U35: Sp Ed Psychologist
U36: Other
A37: 3) | B37: Indicate with which groups the Organizational Unit engaged to inform its intended allocation of EBF dollars. (Select any that apply; otherwise leave blank.) | G37: Bilingual Program Director(s) | H37: Yes | I37: Principals | K37: Yes | L37: Bilingual Parent Advisory Committee | M37: Yes | N37: =IF(COUNTIF(H37:M40,"Yes"),1,0) -> 1
G38: Special Ed. Program Director(s) | H38: Yes | I38: School Improvement Teams | L38: Other Parent Group(s)
G39: Other Program Leaders | H39: Yes | I39: Teacher or Support Staff Unions | K39: Yes | L39: Community Focus Group(s)
G40: School Board Members | H40: Yes | I40: Other School Staff | L40: Other
B41: [Optional] Provide a brief description of the Organizational Unit's process for consulting with internal and external stakeholders in determining the allocation of EBF dollars. (No more than 1000 characters, including spaces.)
G42: Priority Investment 1 | I42: Priority Investment 2 | L42: Priority Investment 3
A43: 4) | B43: Given the data analyzed, the stakeholders consulted, and the priorities identified in Part I, indicate the top three priority investments the Organizational Unit will make with its FY 2025 Base Funding Minimum (e.g., excluding Tier Funding). Choose "Other" if investments do not match the provided list. (Select three different responses. "Other" may be selected more than once if needed.) | G43: Core Teachers | I43: Instructional Materials | L43: Assessments | N43: =IF(OR(G43="",I43="",L43=""),0,IF(OR(G43="Other",I43="Other"),1,IF(OR(G43=I43,G43=L43,I43=L43),0,1))) -> 1
B44: If "Other" was selected in question 4, please describe. (No more than 1000 characters, including spaces.) | N44: =IF(B45="",1,IF(AND(B45="Required",LEN(G44)>10),1,0)) -> 1
B45: =IF(COUNTIF(G43:L43,"Other"), "Required","") -> 
B47: Cost Factor Table
A48: 5) | B48: The table below presents the regionally adjusted amount embedded in the Organizational Unit's FY 2024 Adequacy Target for each of the 34 cost factors in the Evidence-Based Funding model (Column F). Column G is required for all Organizational Units that receive at least $5,000 in Tier Funding, while column H is optional. Organizational Units may choose to provide additional narrative context in Columns I-M to elaborate on the figures included in the table. ISBE has produced guidance for populating the cost factor table. The guidance includes a definition for each cost factor, along with suggestions for using Employee Information System position codes and common expenditure accounts to support a determination of expenditures. This guidance is available at https://www.isbe.net/ebfspendingplan. Column G: If the Organizational Unit will receive at least $5,000 in FY 2025 Tier Funding (as entered in Q2.1/cell G31), column G is required. Please indicate the Organizational Unit's planned expenditures in FY 2025 from Tier Funds only. Organizational Units are not expected to place a value in each cell. Rather, the table allows for the communication of priority investments with new state resources for the current fiscal year. During years in which there is no new Tier Funding, column G will not be required. During years in which Tier Funding is available, the amount of new Tier Funding entered in Q2.1/cell G31 above must equal the sum in cell G90 below. If some or all Tier Funding is invested outside of the cost factors, enter a dollar amount in cell G89 and provide additional context in the space for a narrative beginning in row 93. Column H: Optionally, Organizational Units may populate column H with total planned expenditures in FY 2025 for each cost factor from all revenue sources (e.g., not just from EBF). By comparing the figures in column F to the figures entered in column H, the Organizational Unit may engage local stakeholders in productive dialogue about resource allocation decisions.
A49: Cost Factors | F49: Amount in FY 2024 Adjusted Adequacy Target | G49: Budgeted FY 2025 Investments with New Tier Funding | H49: Budgeted FY 2025 Expenditures (All Resources) | I49: Optional District Narratives
G51: =IF(G31=0,"[N/A]",IF(G31>=5000,"[Required]","[Optional]")) -> [Required] | H51: [Optional]
A52: Core Investments | E52: Core Teachers | F52: =IF(Cover!H13=0,"",VLOOKUP($O$1,'FY24 Data for FY25 Plan'!$A$3:$BC$932,12,FALSE)) -> $3,150,256 | G52: $27,412 | I52: Enter optional context for core investment decisions.
E53: Specialist Teachers | F53: =IF(Cover!H13=0,"",VLOOKUP($O$1,'FY24 Data for FY25 Plan'!$A$3:$BC$932,13,FALSE)) -> $630,051
E54: Instructional Facilitator | F54: =IF(Cover!H13=0,"",VLOOKUP($O$1,'FY24 Data for FY25 Plan'!$A$3:$BC$932,14,FALSE)) -> $295,705 | G54: $30,000
E55: Core Intervention Teacher | F55: =IF(Cover!H13=0,"",VLOOKUP($O$1,'FY24 Data for FY25 Plan'!$A$3:$BC$932,15,FALSE)) -> $130,523
E56: Substitute Teachers | F56: =IF(Cover!H13=0,"",VLOOKUP($O$1,'FY24 Data for FY25 Plan'!$A$3:$BC$932,16,FALSE)) -> $123,022
E57: Guidance Counselor | F57: =IF(Cover!H13=0,"",VLOOKUP($O$1,'FY24 Data for FY25 Plan'!$A$3:$BC$932,17,FALSE)) -> $182,792
E58: Nurse | F58: =IF(Cover!H13=0,"",VLOOKUP($O$1,'FY24 Data for FY25 Plan'!$A$3:$BC$932,18,FALSE)) -> $68,560
E59: Supervisory Aide | F59: =IF(Cover!H13=0,"",VLOOKUP($O$1,'FY24 Data for FY25 Plan'!$A$3:$BC$932,19,FALSE)) -> $111,818
E60: Librarian | F60: =IF(Cover!H13=0,"",VLOOKUP($O$1,'FY24 Data for FY25 Plan'!$A$3:$BC$932,20,FALSE)) -> $150,706
E61: Librarian Aide | F61: =IF(Cover!H13=0,"",VLOOKUP($O$1,'FY24 Data for FY25 Plan'!$A$3:$BC$932,21,FALSE)) -> $83,864
E62: Principal | F62: =IF(Cover!H13=0,"",VLOOKUP($O$1,'FY24 Data for FY25 Plan'!$A$3:$BC$932,22,FALSE)) -> $223,578
E63: Assistant Principal | F63: =IF(Cover!H13=0,"",VLOOKUP($O$1,'FY24 Data for FY25 Plan'!$A$3:$BC$932,23,FALSE)) -> $192,501
E64: School Site Staff | F64: =IF(Cover!H13=0,"",VLOOKUP($O$1,'FY24 Data for FY25 Plan'!$A$3:$BC$932,24,FALSE)) -> $134,176
E65: Subtotal | F65: =IF(Cover!H13=0,"",VLOOKUP($O$1,'FY24 Data for FY25 Plan'!$A$3:$BC$932,25,FALSE)) -> $5,477,552 | G65: =IF(AND(ISBLANK(G52),ISBLANK(G53),ISBLANK(G54),ISBLANK(G55),ISBLANK(G56),ISBLANK(G57),ISBLANK(G58),ISBLANK(G59),ISBLANK(G60),ISBLANK(G61),ISBLANK(G62),ISBLANK(G63),ISBLANK(G64)),"",SUM(G52:G64)) -> $57,412 | H65: =IF(AND(ISBLANK(H52),ISBLANK(H53),ISBLANK(H54),ISBLANK(H55),ISBLANK(H56),ISBLANK(H57),ISBLANK(H58),ISBLANK(H59),ISBLANK(H60),ISBLANK(H61),ISBLANK(H62),ISBLANK(H63),ISBLANK(H64)),"",SUM(H52:H64)) -> 
A66: Per Student Investments | E66: Gifted | F66: =IF(Cover!H13=0,"",VLOOKUP($O$1,'FY24 Data for FY25 Plan'!$A$3:$BC$932,26,FALSE)) -> $71,998 | I66: Enter optional context for per student investment decisions.
E67: Professional Development | F67: =IF(Cover!H13=0,"",VLOOKUP($O$1,'FY24 Data for FY25 Plan'!$A$3:$BC$932,27,FALSE)) -> $100,476
E68: Instructional Materials | F68: =IF(Cover!H13=0,"",VLOOKUP($O$1,'FY24 Data for FY25 Plan'!$A$3:$BC$932,28,FALSE)) -> $261,238 | G68: $40,000
E69: Assessments | F69: =IF(Cover!H13=0,"",VLOOKUP($O$1,'FY24 Data for FY25 Plan'!$A$3:$BC$932,29,FALSE)) -> $27,330 | G69: $10,000
E70: Computer & Tech Equipment | F70: =IF(Cover!H13=0,"",VLOOKUP($O$1,'FY24 Data for FY25 Plan'!$A$3:$BC$932,30,FALSE)) -> $458,976
E71: Student Activities | F71: =IF(Cover!H13=0,"",VLOOKUP($O$1,'FY24 Data for FY25 Plan'!$A$3:$BC$932,31,FALSE)) -> $136,640
E72: Maintenance & Operations | F72: =IF(Cover!H13=0,"",VLOOKUP($O$1,'FY24 Data for FY25 Plan'!$A$3:$BC$932,32,FALSE)) -> $1,093,985
E73: Central Office | F73: =IF(Cover!H13=0,"",VLOOKUP($O$1,'FY24 Data for FY25 Plan'!$A$3:$BC$932,33,FALSE)) -> $753,170
E74: Employee Benefits | F74: =IF(Cover!H13=0,"",VLOOKUP($O$1,'FY24 Data for FY25 Plan'!$A$3:$BC$932,34,FALSE)) -> $2,496,068
E75: Subtotal* | F75: =IF(Cover!H13=0,"",VLOOKUP($O$1,'FY24 Data for FY25 Plan'!$A$3:$BC$932,38,FALSE)) -> $5,443,868 | G75: =IF(AND(ISBLANK(G66),ISBLANK(G67),ISBLANK(G68),ISBLANK(G69),ISBLANK(G70),ISBLANK(G71),ISBLANK(G72),ISBLANK(G73),ISBLANK(G74)),"",SUM(G66:G74)) -> $50,000 | H75: =IF(AND(ISBLANK(H66),ISBLANK(H67),ISBLANK(H68),ISBLANK(H69),ISBLANK(H70),ISBLANK(H71),ISBLANK(H72),ISBLANK(H73),ISBLANK(H74)),"",SUM(H66:H74)) -> 
A76: Additional Investments | E76: Low-Income Intervention Teacher | F76: =IF(Cover!H13=0,"",VLOOKUP($O$1,'FY24 Data for FY25 Plan'!$A$3:$BC$932,39,FALSE)) -> $360,563 | I76: Enter optional context for additional investment decisions.
E77: Low-Income Pupil Support Staff | F77: =IF(Cover!H13=0,"",VLOOKUP($O$1,'FY24 Data for FY25 Plan'!$A$3:$BC$932,40,FALSE)) -> $360,563
E78: Low-Income Extended Day Teacher | F78: =IF(Cover!H13=0,"",VLOOKUP($O$1,'FY24 Data for FY25 Plan'!$A$3:$BC$932,41,FALSE)) -> $376,071
E79: Low-Income Summer School Teacher | F79: =IF(Cover!H13=0,"",VLOOKUP($O$1,'FY24 Data for FY25 Plan'!$A$3:$BC$932,42,FALSE)) -> $376,071
E80: EL Intervention Teacher | F80: =IF(Cover!H13=0,"",VLOOKUP($O$1,'FY24 Data for FY25 Plan'!$A$3:$BC$932,43,FALSE)) -> $88,396
E81: EL Pupil Support Staff | F81: =IF(Cover!H13=0,"",VLOOKUP($O$1,'FY24 Data for FY25 Plan'!$A$3:$BC$932,44,FALSE)) -> $88,396
E82: EL Extended Day Teacher | F82: =IF(Cover!H13=0,"",VLOOKUP($O$1,'FY24 Data for FY25 Plan'!$A$3:$BC$932,45,FALSE)) -> $92,273
E83: EL Summer School Teacher | F83: =IF(Cover!H13=0,"",VLOOKUP($O$1,'FY24 Data for FY25 Plan'!$A$3:$BC$932,46,FALSE)) -> $92,273
E84: EL Core Teacher | F84: =IF(Cover!H13=0,"",VLOOKUP($O$1,'FY24 Data for FY25 Plan'!$A$3:$BC$932,47,FALSE)) -> $110,883
E85: Sp Ed Teacher | F85: =IF(Cover!H13=0,"",VLOOKUP($O$1,'FY24 Data for FY25 Plan'!$A$3:$BC$932,48,FALSE)) -> $441,981
E86: Sp Ed Instructional Assistant | F86: =IF(Cover!H13=0,"",VLOOKUP($O$1,'FY24 Data for FY25 Plan'!$A$3:$BC$932,49,FALSE)) -> $179,035
E87: Sp Ed Psychologist | F87: =IF(Cover!H13=0,"",VLOOKUP($O$1,'FY24 Data for FY25 Plan'!$A$3:$BC$932,50,FALSE)) -> $68,403
E88: Subtotal | F88: =IF(Cover!H13=0,"",VLOOKUP($O$1,'FY24 Data for FY25 Plan'!$A$3:$BC$932,51,FALSE)) -> $2,634,908 | G88: =IF(AND(ISBLANK(G76),ISBLANK(G77),ISBLANK(G78),ISBLANK(G79),ISBLANK(G80),ISBLANK(G81),ISBLANK(G82),ISBLANK(G83),ISBLANK(G84),ISBLANK(G85),ISBLANK(G86),ISBLANK(G87)),"",SUM(G76:G87)) ->  | H88: =IF(AND(ISBLANK(H76),ISBLANK(H77),ISBLANK(H78),ISBLANK(H79),ISBLANK(H80),ISBLANK(H81),ISBLANK(H82),ISBLANK(H83),ISBLANK(H84),ISBLANK(H85),ISBLANK(H86),ISBLANK(H87)),"",SUM(H76:H87)) -> 
E89: Other Investments | F89: N/A | I89: =SUM(G88,G89,G75,G65) -> $107,412.00
E90: Total** | F90: =IF(Cover!H13=0,"",VLOOKUP($O$1,'FY24 Data for FY25 Plan'!$A$3:$BC$932,52,FALSE)) -> $13,556,328 | G90: =IF(AND(ISBLANK(G52),ISBLANK(G53),ISBLANK(G54),ISBLANK(G55),ISBLANK(G56),ISBLANK(G57),ISBLANK(G58),ISBLANK(G59),ISBLANK(G60),ISBLANK(G61),ISBLANK(G62),ISBLANK(G63),ISBLANK(G64),ISBLANK(G66),ISBLANK(G67),ISBLANK(G68),ISBLANK(G69),ISBLANK(G70),ISBLANK(G71),ISBLANK(G72),ISBLANK(G73),ISBLANK(G74),ISBLANK(G76),ISBLANK(G77),ISBLANK(G78),ISBLANK(G79),ISBLANK(G80),ISBLANK(G81),ISBLANK(G82),ISBLANK(G83),ISBLANK(G84),ISBLANK(G85),ISBLANK(G86),ISBLANK(G87),ISBLANK(G89)),"",SUM(G65,G75,G88,G89)) -> $107,412 | H90: =IF(H65="","",SUM(H65,H75,H88,H89)) ->  | I90: Tier Funding Check (Cell G90) | L90: =IF(I89=0,"",IF(ROUND(G90,0)=ROUND(G31,0)," Complete, G90=G31",IF(G90<G31," Incomplete, G90<G31",IF(G90>G31," Incomplete, G90>G31")))) -> Complete, G90=G31 | N90: =IF(G51="[N/A]",0,IF(AND(G51="[Optional]",G90=""),1,IF(AND(G51="[Required]",G90=""),0,IF(ROUND(G31,0)=ROUND(G90,0),1,0)))) -> 1
E91: *The subtotal for Per Student Investments is a calculated figure that adjusts salary portions of Central Office and Maintenance & Operations to account for regional salary differences. As a result, the sum of each individual cost factor will not equal the subtotal. **The total is the Final Adequacy Target (adjusted for Regionalization Factor) calculated in the Full FY 2024 EBF Calculation file. Due to differences in rounding, this figure may vary slightly from the sum of the subtotals in this table.
B93: If some or all Tier Funding was invested outside of the cost factors, please describe. (No more than 1000 characters, including spaces.) | N93: =IF(B94="",1,IF(AND(B94="Required",LEN(G93)>10),1,0)) -> 1
B94: =IF(G89>0,"Required","") -> 
A96: Part III: Support for Special Student Groups
A97: EBF statute sets aside specific allocations to be spent for special education, English learners, and low-income students. Per statue these designated funds must be spent on programs and services benefiting these specific student groups. Funds for English learners and low-income students must be spent in addition to, and not in lieu of, funding that supports general programs of instruction for all students. Funds attributable to special education must be used for the provision of special education facilities and services as outlined in ILCS 14-1.08. Current-year EBF amounts attributable to each of the special student groups must be reported in cells G100-G102 below. If the Organizational Unit received at least $5,000 for any of the student groups, a response to the questions below is required. For amounts less than $5,000, a response is optional. All other EBF funds may be spent in any manner deemed appropriate by the school district.
A98: Collaboration Opportunity - Organizational Units may find that questions in this section are most easily and effectively completed through collaboration between program leaders affiliated with each student group and finance leaders.
G99: Enter Amounts | H99: Select type | I99: *Note: Allocations for each of the three student groups are published annually at isbe.net/ebfdist under "Reports." Amounts are typically available by September 1. Districts must use actual funding amounts if they are available before submitting the budget to ISBE.
A100: 1) | B100: FY 2025 Student Population Allocations*: Enter the dollar amount of resources attributable to Specific Populations within the FY25 Gross State Contribution. Enter "0" if no funds are allocated for a student group. Select whether amounts are estimated or actual. | F100: Low-Income Students | G100: $1,980,313 | H100: Actual | N100: =IF(SUM(G100,G101,G102)=0,0,IF(AND(ISNUMBER(G100),H100<>0),1,0)) -> 1
F101: English Learners | G101: $46,667 | H101: Actual | N101: =IF(AND(ISNUMBER(G101),H101<>0),1,0) -> 1
F102: Special Education | G102: $324,633 | H102: Actual | N102: 1
A104: 2) | B104: Organizational Unit investment of EBF dollars for low-income students: Select the investments that apply. (Optionally, dollar amounts for each investment may be entered.) | G104: Low-Income Intervention Teacher | H104: Yes | I104: Low-Income Extended Day Teacher | L104: Other Investments | N104: =IF(B105="Response Optional",1,IF(AND(B105="Response Required",COUNTIF(H104:M106,"Yes")),1,0)) -> 1
B105: =IF($O$1=0,"",IF($G$100>=5000,"Response Required","Response Optional")) -> Response Required | G105: $340,000 | I105: [Optional - Enter $] | L105: [Optional - Enter $]
G106: Low-Income Pupil Support Staff | I106: Low-Income Summer School Teacher
G107: [Optional - Enter $] | I107: [Optional - Enter $]
B108: Additional context for the Organizational Unit's planned use of dollars attributable to low-income students in FY 2025. (Required if "Other Investments" selected above. No more than 500 characters, including spaces.) | N108: =IF(B109="",1,IF(AND(B109="Required",LEN(G108)>10),1,0)) -> 1
B109: =IF(M104="Yes","Required","") -> 
A111: 3) | B111: Organizational Unit investment of EBF dollars for English learners: Select the investments that apply. (Optionally, dollar amounts for each investment may be entered.) | G111: English Learner Intervention Teacher | H111: Yes | I111: English Learner Extended Day Teacher | L111: English Learner Core Teacher | N111: =IF(B112="Response Optional",1,IF(AND(B112="Response Required",COUNTIF(H111:M113,"Yes")),1,0)) -> 1
B112: =IF($O$1=0,"",IF($G$101>=5000,"Response Required","Response Optional")) -> Response Required | G112: [Optional - Enter $] | I112: [Optional - Enter $] | L112: [Optional - Enter $]
G113: English Learner Pupil Support Staff | I113: English Learner Summer School Teacher | L113: Other Investments
G114: [Optional - Enter $] | I114: [Optional - Enter $] | L114: [Optional - Enter $]
B115: Additional context for the Organizational Unit's planned use of dollars attributable to English learners in FY 2025. (Required if "Other Investments" selected above. No more than 500 characters, including spaces.) | N115: =IF(B116="",1,IF(AND(B116="Required",LEN(G115)>10),1,0)) -> 1
B116: =IF(M113="Yes","Required","") -> 
A118: 4) | B118: Organizational Units investment of EBF dollars for Special Education: Select the investments that apply. (Optionally, dollar amounts for each investment may be entered.) | G118: Special Education Teacher | H118: Yes | I118: Special Education Psychologist | N118: =IF(B119="Response Optional",1,IF(AND(B119="Response Required",COUNTIF(H118:K120,"Yes")),1,0)) -> 1
B119: =IF($O$1=0,"",IF($G$102>=5000,"Response Required","Response Optional")) -> Response Required | G119: [Optional - Enter $] | I119: [Optional - Enter $]
G120: Special Education Instructional Assistant | I120: Other Investments
G121: [Optional - Enter $] | I121: [Optional - Enter $]
B122: Additional context for the Organizational Unit's planned use of dollars attributable to Special Education students in FY 2025. (Required if "Other Investments" selected above. No more than 500 characters, including spaces.) | N122: =IF(B123="",1,IF(AND(B123="Required",LEN(G122)>10),1,0)) -> 1
B123: =IF(K120="Yes","Required","") -> 
A125: Plan Assurances
A126: Please complete the assurances below related to Article 14C of the Illinois School Code, which stipulates allowable expenditures for English learners. Organizational Units should maintain supporting documentation (e.g., sign-in sheets, meeting agendas) to affirm the veracity of the below assurances. Note that a separate collection of the Bilingual Service Plan takes place before each school year and must be separately reviewed by the Bilingual Parent Advisory Committee (BPAC). Responses in this plan should be aligned with information contained in the Bilingual Service Plan. Responses in this section are only required if an Organizational Unit receives any amount of EBF dollars attributable to English learners.
A127: Collaboration Opportunity - Organizational Units may find that the plan assurances are most easily and effectively completed if led by program leaders.
D128: 1). "I hereby affirm that at least 60% of the school district's state funds attributable to English learners will be used for instructional costs of programs and services for English learners (function 1000), in accordance with Article 14C of the Illinois School Code. The remaining balance of state funds attributable to English learners will also be used to serve English learners."
D130: =IF(G101="","",IF($G$101>=1,"Required","N/A")) -> Required | E130: Yes | N130: =IF(D130="",1,IF(D130="N/A",1,IF(AND(D130="Required",E130<>""),1,0))) -> 1
D131: 2). "My school district has at least one attendance center with 20 or more English learners (including parental refusals) who speak the same home language other than English in grades K-12. Alternatively and/or additionally, my school district has at least one attendance center with 20 or more English learners (including parent refusals) who speak the same home language other than English in pre-K."
D133: =IF(G101="","",IF($G$101>=0,"Required","N/A")) -> Required | E133: Yes | N133: =IF(D133="",1,IF(D133="N/A",1,IF(AND(D133="Required",E133<>""),1,0))) -> 1
D134: 3). "I hereby affirm that the school district's BPAC will review this EBF Spending Plan by or before October 31, 2024."
D135: =IF($E$133=0,"",IF($E$133="Yes","Required","N/A")) -> Required | E135: Yes | N135: =IF(OR(D135="",D135="N/A"),1,IF(AND(D135="Required",E135<>""),1,0)) -> 1
D136: 4). Enter the anticipated date on which the BPAC review will take place and the name of the BPAC chair for SY 2024-25.
D137: =IF($E$133=0,"",IF($E$133="Yes","Required","N/A")) -> Required | E137: BPAC Meeting (MM/DD/YYYY) | F137: 2024-09-11 | N137: =IF(OR(D137="",D137="N/A"),1,IF(AND(D137="Required",F137<>""),1,0)) -> 1
E138: Name of Chair | F138: Nellie Sandavol | N138: =IF(OR(D137="",D137="N/A"),1,IF(AND(D137="Required",F138<>""),1,0)) -> 1
N140: =SUM(N7:N138) -> 24
B141: Spending Plan Completion Tracker
A142: Use the information below to confirm completion of all required questions. Note that the "status" column adjusts to responses, so the tracker is most helpful to consult after you have completed the spending plan.
A143: Question | E143: Status | F143: Acceptance Criteria
A144: Part 1, Q1 | E144: =IF(N7=1,"Complete","Incomplete") -> Complete | F144: Character length of response must be >10 and <=2000, including spaces.
A145: Part 1, Q2 | E145: =IF(N11=1,"Complete","Incomplete") -> Complete | F145: A different response must be selected in G11, I11, and L11; cells cannot be blank.
A146: Part 1, Q2 (Narrative) | E146: =IF(N13=1,"Complete","Incomplete") -> Complete | F146: Response required only if "Other" selected in G11, I11, or L11; character length of response must be >10 and <=1000, including spaces.
A147: Part 2, Q1 | E147: =IF(N31=1,"Complete","Incomplete") -> Complete | F147: A numeric value must be entered in cell G31 (estimated or actual Tier Funding, or 0 if appropriations did not include Tier Funding). A type must be selected in cell H31.
A148: Part 2, Q2 | E148: =IF(N35=1,"Complete","Incomplete") -> Complete | F148: A different response must be selected in G35, I35, and L35; cells cannot be blank.
A149: Part 2, Q3 | E149: =IF(N37=1,"Complete","Incomplete") -> Complete | F149: At least one response must be selected.
A150: Part 2, Q4 | E150: =IF(N43=1,"Complete","Incomplete") -> Complete | F150: Cells G43, I43, and L43 cannot be blank. "Other" may be selected more than once, but other responses may not be repeated.
A151: Part 2, Q4 (Narrative) | E151: =IF(N44=1,"Complete","Incomplete") -> Complete | F151: Response required only if "Other" selected in G43, I43, or L43; character length of response must be >10 and <=1000, including spaces.
A152: Part 2, Q5 (Cell G90) | E152: =IF(N90=1,"Complete","Incomplete") -> Complete | F152: Cell G90 must be equal to the value in cell G31.
A153: Part 2, Q5 (Narrative) | E153: =IF(N93=1,"Complete","Incomplete") -> Complete | F153: Response required only if a value was entered in cell G89; character length of response must be >10 and <=1000, including spaces.
A154: Part 3, Q1 Low-Income Funds | E154: =IF(N100=1,"Complete","Incomplete") -> Complete | F154: A numeric value must be entered. A type must be selected in cell H100.
A155: Part 3, Q1 English Learner Funds | E155: =IF(N101=1,"Complete","Incomplete") -> Complete | F155: A numeric value must be entered, which may be "0" if the organizational unit received no funding for the specified student group. A type must be selected in cell H101.
A156: Part 3, Q1 Spec. Ed. Funds | E156: =IF(N102=1,"Complete","Incomplete") -> Complete | F156: A numeric value must be entered. A type must be selected in cell H102.
A157: Part 3, Q2 | E157: =IF(N104=1,"Complete","Incomplete") -> Complete | F157: At least one response must be selected.
A158: Part 3, Q2 (Narrative) | E158: =IF(N108=1,"Complete","Incomplete") -> Complete | F158: Response required only if "Other Investments" was selected in the previous question; character length of response must be >10 and <=500, including spaces.
A159: Part 3, Q3 | E159: =IF(N111=1,"Complete","Incomplete") -> Complete | F159: At least one response must be selected.
A160: Part 3, Q3 (Narrative) | E160: =IF(N115=1,"Complete","Incomplete") -> Complete | F160: Response required only if "Other Investments" was selected in the previous question; character length of response must be >10 and <=500, including spaces.
A161: Part 3, Q4 | E161: =IF(N118=1,"Complete","Incomplete") -> Complete | F161: At least one response must be selected.
A162: Part 3, Q4 (Narrative | E162: =IF(N122=1,"Complete","Incomplete") -> Complete | F162: Response required only if "Other Investments" was selected in the previous question; character length of response must be >10 and <=500, including spaces.
A163: Assurances 1 | E163: =IF(N130=1,"Complete","Incomplete") -> Complete | F163: Response required if the value entered in cell G101>0.
A164: Assurances 2 | E164: =IF(N133=1,"Complete","Incomplete") -> Complete | F164: Response required if the value entered in cell G101>0.
A165: Assurances 3 | E165: =IF(N135=1,"Complete","Incomplete") -> Complete | F165: Response required if "Yes" selected in cell E133.
A166: Assurances 4 (Meeting Date) | E166: =IF(N137=1,"Complete","Incomplete") -> Complete | F166: Response required if "Yes" selected in cell E133; enter date in MM/DD/YYYY format.
A167: Assurances 4 (Name of Chair) | E167: =IF(N138=1,"Complete","Incomplete") -> Complete | F167: Response required if "Yes" selected in cell E133.

Sheet AC 35
A1: ESTIMATED LIMITATION OF ADMINISTRATIVE COSTS (School Districts Only)
A2: (For Local Use Only)
A3: This is an estimated Limitation of Administrative Costs Worksheet only and will not be accepted for Official Submission of the Limitation of Administrative Costs Worksheet.
A5: ="The worksheet is intended for use during the budgeting process to estimate the district's percent increase of FY"&'B25'!L2 -> The worksheet is intended for use during the budgeting process to estimate the district's percent increase of FY2025 | H5: ="budgeted expenditures over actual FY"&'B25'!L2-1 -> budgeted expenditures over actual FY2024 | K5: expenditures. Budget
A6: information is copied to this page. Insert the prior year estimated actual expenditures to compute the estimated percentage increase (decrease).
A8: The official Limitation of Administrative Costs Worksheet is attached to the end of the Annual Financial Report (ISBE Form 50-35) and may be submitted in conjunction with that report.
A9: An official Limitation of Administrative Costs Worksheet can also be found on the ISBE website at: | G9: Limitation of Administrative Costs
A11: ESTIMATED LIMITATION OF ADMINISTRATIVE COSTS WORKSHEET | I11: School District Name: | J11: =Cover!H13 -> Hoover-Schrum Memorial SD 157
A12: (Section 17-1.5 of the School Code) | I12: RCDT Number: | J12: =Cover!H14 -> 07016157002
E14: ="Estimated Actual Expenditures, Fiscal Year "&'B25'!L2-1 -> Estimated Actual Expenditures, Fiscal Year 2024 | I14: ="Budgeted Expenditures, Fiscal Year "&'B25'!L2 -> Budgeted Expenditures, Fiscal Year 2025
E15: (10) | F15: (20) | G15: (80) | I15: (10) | J15: (20) | K15: (80)
A16: Description | D16: Funct. No. | E16: Educational Fund | F16: Operations & Maintenance Fund | G16: Tort Fund | H16: Total | I16: Educational Fund | J16: Operations & Maintenance Fund | K16: Tort Fund | L16: Total
A17: 1. | B17: Executive Administration Services | D17: 2320 | E17: 333,572 | G17: 0 | H17: =SUM(E17:G17) -> 333,572 | I17: ='EstExp 12-20'!K52 -> 352,500 | K17: ='EstExp 12-20'!K361 -> 0 | L17: =SUM(I17:K17) -> 352,500
A18: 2. | B18: Special Area Administration Services | D18: 2330 | E18: 356,643 | G18: 0 | H18: 356,643 | I18: ='EstExp 12-20'!K53 -> 358,319 | K18: ='EstExp 12-20'!K362 -> 0 | L18: 358,319
A19: 3. | B19: Other Support Services - School Administration | D19: 2490 | E19: 0 | G19: 0 | H19: 0 | I19: ='EstExp 12-20'!K58 -> 0 | K19: ='EstExp 12-20'!K368 -> 0 | L19: 0
A20: 4. | B20: Direction of Business Support Services | D20: 2510 | E20: 171,445 | F20: 0 | G20: 0 | H20: 171,445 | I20: ='EstExp 12-20'!K61 -> 182,000 | J20: ='EstExp 12-20'!K126 -> 0 | K20: ='EstExp 12-20'!K371 -> 0 | L20: 182,000
A21: 5. | B21: Internal Services | D21: 2570 | E21: 451 | G21: 0 | H21: 451 | I21: ='EstExp 12-20'!K66 -> 0 | K21: ='EstExp 12-20'!K377 -> 0 | L21: 0
A22: 6. | B22: Direction of Central Support Services | D22: 2610 | E22: 0 | G22: 0 | H22: 0 | I22: ='EstExp 12-20'!K69 -> 0 | K22: ='EstExp 12-20'!K380 -> 0 | L22: 0
A23: 7. | B23: Deduct - Early Retirement or other pension obligations required by state law and included above. | H23: 0 | L23: 0
A24: 8. | B24: Totals | E24: =SUM(E17:E22)-E23 -> 862,111 | F24: 0 | G24: =SUM(G17:G22)-G23 -> 0 | H24: 862,111 | I24: 892,819 | J24: 0 | K24: 0 | L24: 892,819
A25: 9. | B25: ="Estimated Percent Increase (Decrease) for FY"&'B25'!L2 -> Estimated Percent Increase (Decrease) for FY2025 | L25: =IF(AND(H24>0,L24>0),(((L24-H24)/H24)),"Enter Actual Data") -> 4%
B26: ="(Budgeted) over (Actual) FY "&'B25'!L2-"1" -> (Budgeted) over (Actual) FY 2024

Sheet VendContract 36
A1: REPORTING OF PUBLIC VENDOR CONTRACTS OF $1,000 OR MORE (School Districts Only)
A2: In accordance with the School Code, Section 10-20.21, all school districts are required to file a report listing ‘vendor contracts’ as an attachment to their budget. In this context, the term "vendor contracts" refers to "all contracts and agreements that pertain to goods and services that were intended to generate additional revenue and other remunerations for the school district in excess of $1,000, including without limitation vending machine contracts, sports and other attire, class rings, and photographic services. The report is to list information regarding such contracts for the fiscal year immediately preceding the fiscal year of the budget. All such contracts executed on or after July 1, 2007 must be approved by the school board.
A3: See: School Code, Section 10-20.21 - Contracts
A5: Name of Vendor | B5: Product or Service Provided | C5: Net Revenue | D5: Non-Monetary Remuneration | E5: Purpose of Proceeds | F5: Distribution Method and Recipient of Non-Monetary Remunerations Distributed

Sheet Ref 37
B1: Reference Description
A3: 1 | B3: Each fund balance should correspond to the fund balance reflected on the books as of June 30th - Balance Sheet Accounts #720 and #730 (audit figures, if available).
A5: 2 | B5: Accounting and Financial Reporting for Certain Grants and Other Financial Assistance. The "On-Behalf" Payments should only be reflected on this page (Budget Summary, Lines 10 and 20).
A7: 3 | B7: Requires the secretary of the school board to notify the county clerk (within 30 days of the transfer approval) to abate an equal amount of taxes to be next extended. See Sec. 10-22.14 & 17-2.11.
A8: 3a | B8: Requires notification to the county clerk to abate an equal amount from taxes next extended. See section 10-22.14
A9: 4 | B9: Principal on Bonds Sold:
B10: (1) Funding Bonds are to be entered in the fund or funds in which the liability occurs.
B11: (2) Refunding Bonds can be entered in the Debt Services Fund only.
B12: (3) Building Bonds can be entered in the Capital Projects Fund only.
B13: (4) Fire Prevention and Safety Bonds can be entered in the Fire Prevention & Safety Fund only.
A15: 5 | B15: The proceeds from the sale of school sites, buildings, or other real estate shall be used first to pay the principal and interest on any outstanding bonds on the property being sold, and after all such bonds have been retired, the remaining proceeds from the sale next shall be used by the school board to meet any urgent district needs as determined under Sections 2-3.12 and 17-2.11 of the School Code. Once these issues have been addressed, any remaining proceeds may be used for any other authorized purpose and for deposit into any district fund.
A17: 6 | B17: The School Code, Section 10-22.44 prohibits the transfer of interest earned on the investment of "any funds for purposes of Illinois Municipal Retirement under the Pension Code." This prohibition does not include funds for Social Security and Medicare-only purposes. For additional requirements on interest earnings, see 23 Illinois Administrative Code, Part 100, Section 100.50.
A19: 7 | B19: Cash plus investments must be greater than or equal to zero.
A21: 8 | B21: For cash basis budgets, this total will equal the Budget Summary - Total Direct Receipts/Revenues (Line 9) plus Total Other Sources of Funds (Line 46).
A23: 9 | B23: For cash basis budgets, this total will equal the Budget Summary - Total Direct Disbursements/Expenditures (Line 19) plus Total Other Uses of Funds (Line 79).
A25: 10 | B25: Working Cash Fund loans may be made to any district fund for which taxes are levied (Section 20-5 of the School Code).
A27: 11 | B27: Include revenue accounts 1110 through 1115, 1117,1118 & 1120.
A29: 12 | B29: The School Code Section 17-2.2c. Tax for leasing educational facilities or computer technology or both, and for temporary relocation expense purposes.
A31: 13 | B31: Corporate personal property replacement tax revenue must be first applied to the Municipal Retirement/Social Security Fund to replace tax revenue lost due to the abolition of the corporate personal property tax (30 ILCS 115/12). This provision does not apply to taxes levied for Medicare-Only purposes.
A33: 14 | B33: Only tuition payments made to private facilities. See Functions 4200 or 4400 for estimated public facility disbursements/expenditures.
A35: 15 | B35: Payment towards the retirement of lease/purchase agreements or bonded/other indebtedness (principal only) otherwise reported within the fund - e.g.: alternate revenue bonds. (Describe & Itemize)
A37: 16 | B37: Only abolishment of Working Cash Fund must transfer its funds directly to the Educational Fund upon adoption of a resolution and
B38: at the close of the current school Year (see 105 ILCS 5/20-8 for further explanation)
B39: Only abatement of working cash fund can transfer its funds to any fund in most need of money
B40: (see 105 ILCS 5/20-10 for further explanation)

Sheet Error Checks
A1: CHECK FOR ERRORS
A2: This worksheet checks various cells to assure that selected items are in balance.
A3: Please fix errors below before submitting to ISBE.
B4: Budget Item References | C4: Message
A5: 1. | B5: Deficit Reduction Plan (DefReductPlan 23-27 tab)
B6: Is Deficit Reduction Plan Required? (Joint Agreements do not complete Deficit Reduction Plan.) | C6: =IF(Cover!B3="X", "Deficit Reduction Plan is not required", IF(AND('DeficitBudgetSum Calc 22'!G5<0,'DeficitBudgetSum Calc 22'!G6>=0,ABS('DeficitBudgetSum Calc 22'!G5*3)>ABS('DeficitBudgetSum Calc 22'!G6)),'DeficitBudgetSum Calc 22'!G17,IF(AND('DeficitBudgetSum Calc 22'!G5<0,'DeficitBudgetSum Calc 22'!G6>0,ABS('DeficitBudgetSum Calc 22'!G5*3)<=ABS('DeficitBudgetSum Calc 22'!G6)),'DeficitBudgetSum Calc 22'!G18,IF(AND('DeficitBudgetSum Calc 22'!G5<0,'DeficitBudgetSum Calc 22'!G6<0),'DeficitBudgetSum Calc 22'!G17,IF('DeficitBudgetSum Calc 22'!G6=0,'DeficitBudgetSum Calc 22'!G20,'DeficitBudgetSum Calc 22'!G19))))) -> Deficit Reduction Plan is not required
B7: If required, is Deficit Reduction Plan completed? (DefReductPlan 23-27 tab) | C7: =IF(AND(C6='DeficitBudgetSum Calc 22'!G17,'DefReductPlan 23-27'!Z22>0),"Deficit Reduction Plan complete",IF(AND(C6='DeficitBudgetSum Calc 22'!G17,'DefReductPlan 23-27'!Z22=0),"ERROR - PLEASE COMPLETE Deficit Reduction Plan","")) ->  | I7: For ISBE Use Only
A8: 2. | B8: Cover Page (Cover tab) | I8: RCDT | J8: =IF(ChosenDistrict="","",Cover!H14) -> 07016157002 | K8: Type
B9: District Name must be selected from drop-down. (Cell H13) | C9: =IF(ChosenDistrict="","ERROR -Choose district from drop-down list.","OK") -> OK | F9: =C9 -> OK | I9: Tier Funding | J9: =IF('EBF Spending Plan 30-34'!G31="[Enter $]","",'EBF Spending Plan 30-34'!G31) -> 107412 | K9: =IF('EBF Spending Plan 30-34'!H31="","",'EBF Spending Plan 30-34'!H31) -> Estimated
B10: Accounting Basis must be selected on Cover sheet. | C10: =IF(AND(Cover!B6="",Cover!B7=""),"ERROR - Choose Accounting Basis.","OK") -> OK | F10: =C10 -> OK | I10: Low-Income | J10: =IF('EBF Spending Plan 30-34'!G100="[Enter $]","",'EBF Spending Plan 30-34'!G100) -> 1980313.44 | K10: =IF('EBF Spending Plan 30-34'!H100="","",'EBF Spending Plan 30-34'!H100) -> Actual
B11: Dates (Day, Month, Year) must be input on Cover sheet. | C11: =IF(OR(ISBLANK(Cover!M31),ISBLANK(Cover!Q31),ISBLANK(Cover!P43),ISBLANK(Cover!T43)),"ERROR - INPUT DATE(S)","OK") -> OK | F11: OK | I11: EL | J11: =IF('EBF Spending Plan 30-34'!G101="[Enter $]","",'EBF Spending Plan 30-34'!G101) -> 46667.23 | K11: =IF('EBF Spending Plan 30-34'!H101="","",'EBF Spending Plan 30-34'!H101) -> Actual
B12: Board Names must be typed on Cover sheet. | C12: =IF(AND(Cover!E49:J58="",Cover!K49:Q58=""),"ERROR - TYPE BOARD NAMES","OK") -> OK | F12: OK | I12: SpEd | J12: =IF('EBF Spending Plan 30-34'!G102="[Enter $]","",'EBF Spending Plan 30-34'!G102) -> 324633.08 | K12: =IF('EBF Spending Plan 30-34'!H102="","",'EBF Spending Plan 30-34'!H102) -> Actual
A13: 3. | B13: Budget Summary: Other Sources (BudgetSum 2-4 tab - Acct 7000) must equal Other Uses (BudgetSum 2-4 tab - Acct 8000).
B14: Estimated Beginning Fund Balance July, 1 2024 for all Funds (Cells C3 - K3) (Line must have a number or zero. Do not leave blank.) | C14: =IF(AND(ISNUMBER('BudgetSum 2-4'!C3),ISNUMBER('BudgetSum 2-4'!D3),ISNUMBER('BudgetSum 2-4'!E3),ISNUMBER('BudgetSum 2-4'!F3),ISNUMBER('BudgetSum 2-4'!G3),ISNUMBER('BudgetSum 2-4'!H3),ISNUMBER('BudgetSum 2-4'!I3),ISNUMBER('BudgetSum 2-4'!J3),ISNUMBER('BudgetSum 2-4'!K3)),"OK","ERROR - ENTER AMOUNTS. IF ZERO, ENTER NUMBER 0") -> OK | F14: =C14 -> OK
B15: Estimated Activity Fund Beginning Fund Balance July, 1 2024 (Cell C83) (Cell must have a number or zero. Do not leave blank.) | C15: =IF(ISNUMBER('BudgetSum 2-4'!C83),"OK","ERROR - ENTER AMOUNT. IF ZERO, ENTER NUMBER 0") -> OK | F15: =C15 -> OK
B16: Transfer Among Funds (Funds 10, 20, 40 - Acct 7130 - Cells C29, D29, F29), must equal (Funds 10, 20 & 40 - Acct 8130 - Cells C52, D52, F52). | C16: =IF(SUM('BudgetSum 2-4'!C29:D29,'BudgetSum 2-4'!F29)<>SUM('BudgetSum 2-4'!C52:D52,'BudgetSum 2-4'!F52),"ERROR - CHECK TRANSFER(S)","OK") -> OK | F16: OK
B17: Transfer of Interest (Funds 10 thru 90 - Acct 7140 - Cells C30:K30), must equal (Funds 10 thru 60, & 80 - Acct 8140 - Cells C53:H53, J53). | C17: =IF(SUM('BudgetSum 2-4'!C30:K30)<>SUM('BudgetSum 2-4'!C53:J53),"ERROR - CHECK TRANSFER(S)","OK") -> OK | F17: OK
B18: Transfer to Debt Service to Pay Principal on GASB 87 Leases (Fund 30 - Acct 7400 - Cell E39) must equal (Funds 10, 20 & 60 - Acct 8400 Cells C57:H60). | C18: =IF(('BudgetSum 2-4'!E39)<>SUM('BudgetSum 2-4'!C57:H60),"ERROR - CHECK TRANSFER(S)","OK") -> OK | F18: OK
B19: Transfer to Debt Service to Pay Interest on GASB 87 Leases (Fund 30 - Acct 7500 - Cell E40) must equal (Funds 10, 20 & 60 - Acct 8500 - Cells C61:H64). | C19: =IF(('BudgetSum 2-4'!E40)<>SUM('BudgetSum 2-4'!C61:H64),"ERROR - CHECK TRANSFER(S)","OK") -> OK | F19: OK
B20: Transfer to Debt Service Fund to Pay Principal on Revenue Bonds (Fund 30 - Acct 7600 - Cell E41) must equal (Funds 10 & 20 - Acct 8600 - Cells C65:D68). | C20: =IF(('BudgetSum 2-4'!E41)<>SUM('BudgetSum 2-4'!C65:D68),"ERROR - CHECK TRANSFER(S)","OK") -> OK | F20: OK
B21: Transfer to Debt Service to Pay Interest on Revenue Bonds (Fund 30 - Acct 7700 - Cell E42) must equal (Funds 10 & 20 - Acct 8700 - Cells C69:D72). | C21: =IF(('BudgetSum 2-4'!E42)<>SUM('BudgetSum 2-4'!C69:D72),"ERROR - CHECK TRANSFER(S)","OK") -> OK | F21: OK
B22: Transfer to Capital Projects Fund (Fund 60 - Acct 7800 - Cell H43) must equal (Fund 10 & 20, Acct 8800 - Cells C73:D76). | C22: =IF(('BudgetSum 2-4'!H43)<>SUM('BudgetSum 2-4'!C73:D76),"ERROR - CHECK TRANSFER(S)","OK") -> OK | F22: OK
A23: 4. | B23: Summary of Cash Transactions: Beginning Cash Balance on Hand July 1, 2024 (CashSum 5 tab, All Funds) cannot be negative. | F23: 0
B24: Educational (Fund 10 - Cell C3) | C24: =IF(OR('CashSum 5'!$C$3<0,'CashSum 5'!$C$3=""),"CHECK ERROR - NEGATIVE BEGINNING BALANCE OR BLANK","OK") -> OK | F24: OK
B25: Operations & Maintenance (Fund 20 - Cell D3) | C25: =IF(OR('CashSum 5'!$D$3<0,'CashSum 5'!$D$3=""),"CHECK ERROR - NEGATIVE BEGINNING BALANCE OR BLANK","OK") -> OK | F25: OK
B26: Debt Service (Fund 30 - Cell E3) | C26: =IF(OR('CashSum 5'!$E$3<0,'CashSum 5'!$E$3=""),"CHECK ERROR - NEGATIVE BEGINNING BALANCE OR BLANK","OK") -> OK | F26: OK
B27: Transportation (Fund 40 - Cell F3) | C27: =IF(OR('CashSum 5'!$F$3<0,'CashSum 5'!$F$3=""),"CHECK ERROR - NEGATIVE BEGINNING BALANCE OR BLANK","OK") -> OK | F27: OK
B28: Municipal Retirement/Social Security (Fund 50 - Cell G3) | C28: =IF(OR('CashSum 5'!$G$3<0,'CashSum 5'!$G$3=""),"CHECK ERROR - NEGATIVE BEGINNING BALANCE OR BLANK","OK") -> OK | F28: OK
B29: Capital Projects (Fund 60 - Cell H3) | C29: =IF(OR('CashSum 5'!$H$3<0,'CashSum 5'!$H$3=""),"CHECK ERROR - NEGATIVE BEGINNING BALANCE OR BLANK","OK") -> OK | F29: OK
B30: Working Cash (Fund 70 - Cell I3) | C30: =IF(OR('CashSum 5'!$I$3<0,'CashSum 5'!$I$3=""),"CHECK ERROR - NEGATIVE BEGINNING BALANCE OR BLANK","OK") -> OK | F30: OK
B31: Tort (Fund 80 - Cell J3) | C31: =IF(OR('CashSum 5'!$J$3<0,'CashSum 5'!$J$3=""),"CHECK ERROR - NEGATIVE BEGINNING BALANCE OR BLANK","OK") -> OK | F31: OK
B32: Fire Prevention & Safety (Fund 90 - Cell K3) | C32: =IF(OR('CashSum 5'!$K$3<0,'CashSum 5'!$K$3=""),"CHECK ERROR - NEGATIVE BEGINNING BALANCE OR BLANK","OK") -> OK | F32: OK
B33: Activity Funds (Cell C23) | C33: =IF(ISNUMBER('CashSum 5'!C23),"OK","ERROR - ENTER AMOUNTS. IF ZERO, ENTER NUMBER 0") -> OK | F33: OK
A34: 5. | B34: Summary of Cash Transactions: Ending Cash Balance on Hand June 30, 2024 (CashSum 5 tab - All Funds) cannot be negative. | F34: 0
B35: Educational (Fund 10 - Cell C21) | C35: =IF('CashSum 5'!$C$21<0,"CHECK ERROR - NEGATIVE END BALANCE","OK") -> OK | F35: OK
B36: Operations & Maintenance (Fund 20 - Cell D21) | C36: =IF('CashSum 5'!$D$21<0,"CHECK ERROR - NEGATIVE END BALANCE","OK") -> OK | F36: OK
B37: Debt Service (Fund 30 - Cell E21) | C37: =IF('CashSum 5'!$E$21<0,"CHECK ERROR - NEGATIVE END BALANCE","OK") -> OK | F37: OK
B38: Transportation (Fund 40 - Cell F21) | C38: =IF('CashSum 5'!$F$21<0,"CHECK ERROR - NEGATIVE END BALANCE","OK") -> OK | F38: OK
B39: Municipal Retirement/Social Security (Fund 50 - Cell G21) | C39: =IF('CashSum 5'!$G$21<0,"CHECK ERROR - NEGATIVE END BALANCE","OK") -> OK | F39: OK
B40: Capital Projects (Fund 60 - Cell H21) | C40: =IF('CashSum 5'!$H$21<0,"CHECK ERROR - NEGATIVE END BALANCE","OK") -> OK | F40: OK
B41: Working Cash (Fund 70 - Cell I21) | C41: =IF('CashSum 5'!$I$21<0,"CHECK ERROR - NEGATIVE END BALANCE","OK") -> OK | F41: OK
B42: Tort (Fund 80 - Cell J21) | C42: =IF('CashSum 5'!$J$21<0,"CHECK ERROR - NEGATIVE END BALANCE","OK") -> OK | F42: OK
B43: Fire Prevention & Safety (Fund 90 - Cell K21) | C43: =IF('CashSum 5'!$K$21<0,"ERROR - NEGATIVE END BALANCE. PLEASE CORRECT.","OK") -> OK | F43: OK
A44: 6. | B44: Summary of Cash Transactions: Other Receipts (CashSum 5 tab) must equal Other Disbursements (CashSum 5 tab). | F44: 0
B45: Interfund Loans Payable (Funds 10:60, 80, 90 - Acct 411 - Cells C6:H6, J6:K6) must equal Interfund Loans Receivable (Funds 10:20, 40, 70 - Acct 141 - Cells C15:D15, F15, I15). | C45: =IF(SUM('CashSum 5'!C6:K6)<>SUM('CashSum 5'!C15:K15),"ERROR - CHECK INTERFUND LOANS","OK") -> OK | F45: OK
B46: Interfund Loans Receivable (Funds 10, 20, 40, 70 - Acct 141 - Cells C7:D7, F7, I7) must equal Interfund Loans Payable (Funds 10:60, 80, 90 - Acct 411 - Cells C16:H16, J16, K16). | C46: =IF(SUM('CashSum 5'!C7:K7)<>SUM('CashSum 5'!C16:K16),"ERROR - CHECK INTERFUND LOANS","OK") -> OK | F46: OK
A47: 7. | B47: Estimated Revenue (EstRev 6-11 tab) | F47: 0
B48: Amounts must be input for revenue. | C48: =IF(OR('BudgetSum 2-4'!C9>0,'BudgetSum 2-4'!D9>0,'BudgetSum 2-4'!E9>0,'BudgetSum 2-4'!F9>0,'BudgetSum 2-4'!G9>0,'BudgetSum 2-4'!H9>0,'BudgetSum 2-4'!I9>0,'BudgetSum 2-4'!J9>0,'BudgetSum 2-4'!K9>0),"OK","ERROR - ESTREV TAB IS BLANK. PLEASE INPUT AMOUNTS.") -> OK | F48: OK
A49: 8. | B49: Estimated Expenditures (EstExp 12-20 tab) | F49: 0
B50: Amounts must be input for expenditures. | C50: =IF(OR('BudgetSum 2-4'!C19>0,'BudgetSum 2-4'!D19>0,'BudgetSum 2-4'!E19>0,'BudgetSum 2-4'!F19>0,'BudgetSum 2-4'!G19>0,'BudgetSum 2-4'!H19>0,'BudgetSum 2-4'!I19>0,'BudgetSum 2-4'!J19>0,'BudgetSum 2-4'!K19>0),"OK","ERROR - ESTEXP TAB IS BLANK. PLEASE INPUT AMOUNTS.") -> OK | F50: OK
A51: 9. | B51: Itemization Notes: Revenues/Expenditures reported that require note on Itemize 21 tab. | F51: 0
B52: Include brief note(s) describing revenue source. | C52: =IF('Itemize 21'!C2="OK","OK","ERROR -Please describe revenue.") -> OK | F52: OK
B53: Include brief note(s) describing expenditure use. | C53: =IF('Itemize 21'!C3="OK","OK","ERROR -Please describe expenditures.") -> OK | F53: =COUNTIFS(F8:F52,"OK") -> 37
A54: 10. | B54: EBF Spending Plan
B55: All required questions have been answered. | C55: =IF(Cover!B3="x","OK",IF(Cover!H8="Yes","OK",IF('EBF Spending Plan 30-34'!N140=24,"OK","INCOMPLETE"))) -> OK
B56: End of Balancing

Sheet FY24 Data for FY25 Plan (hidden)
A1: 1 | B1: 2 | C1: 3 | D1: 4 | E1: 5 | F1: 6 | G1: 7 | H1: 8 | I1: 9 | J1: 10 | K1: 11 | L1: 12 | M1: 13 | N1: 14 | O1: 15 | P1: 16 | Q1: 17 | R1: 18 | S1: 19 | T1: 20 | U1: 21 | V1: 22 | W1: 23 | X1: 24 | Y1: 25 | Z1: 26 | AA1: 27 | AB1: 28 | AC1: 29 | AD1: 30 | AE1: 31 | AF1: 32 | AG1: 33 | AH1: 34 | AI1: 35 | AJ1: 36 | AK1: 37 | AL1: 38 | AM1: 39 | AN1: 40 | AO1: 41 | AP1: 42 | AQ1: 43 | AR1: 44 | AS1: 45 | AT1: 46 | AU1: 47 | AV1: 48 | AW1: 49 | AX1: 50 | AY1: 51 | AZ1: 52 | BA1: 53 | BB1: 54 | BC1: 55
A2: District ID | B2: District Name | C2: ASE | D2: Final Adequacy Target (Adjusted for Regionalization Factor) | E2: Final Resources | F2: Final Adequacy Level | G2: Tier Assignment | H2: Calculated New FY 24 Funding (Tier Funding) | I2: Gross Base Funding Minimum | J2: Total Gross FY 24 State Contribution | K2: Regionalization Factor (CWI) | L2: Core Teachers | M2: Specialist Teacher | N2: Instructional Facilitator | O2: Core Intervention Teacher | P2: Substitute Teachers | Q2: Guidance Counselor | R2: Nurse | S2: Supervisory Aide | T2: Librarian | U2: Librarian Aide | V2: Principal | W2: Assistant Principal | X2: School Site Staff | Y2: Total Core Investment Cost | Z2: Gifted | AA2: Professional Development | AB2: Instructional Materials | AC2: Assessments | AD2: Computer & Tech Equip | AE2: Student Activities | AF2: Maintenance & Operations | AG2: Central Office | AH2: Employee Benefits | AI2: Total Cost | AJ2: Total Salary Portion of Central Office and O&M Subject to CWI Cost Subject to CWI | AK2: Total Cost NOT Subject to CWI | AL2: Total Adjusted Per Student Investments | AM2: LI Intervention Teacher | AN2: LI Pupil Support Staff | AO2: LI Extended Day Teacher | AP2: LI Summer School Teacher | AQ2: EL Intervention Teacher | AR2: EL Pupil Support Staff | AS2: EL Extended Day Teacher | AT2: EL Summer School Teacher | AU2: EL Core Teacher | AV2: Sp Ed Teacher | AW2: Sp Ed Instructional Assistant | AX2: Sp Ed Psychologist | AY2: Total Additional Investments | AZ2: Final Adjusted Adequacy Target | BA2: Total Allocation of Low-Income Funds from State Contribution | BB2: Total Allocation of EL Funds from State Contribution | BC2: Total Allocation of Sp Ed Funds from FY 23 State Contribution | BD2: Calculated Final Adequacy Target
B3: ALT SCH-ADAMS/PIKE ROE | C3: 31.31 | D3: $464,554.07 | E3: $377,919.13 | F3: 81% | G3: 2 | H3: $3,242.91 | I3: $331,463.73 | J3: $334,706.64 | K3: 0.90 | L3: $100,336.45 | M3: $33,442.13 | N3: $10,827.67 | O3: $3,609.22 | P3: $3,406.83 | Q3: $9,251.28 | R3: $2,201.86 | S3: $4,009.77 | T3: $3,623.22 | U3: $2,673.18 | V3: $5,375.16 | W3: $4,628.02 | X3: $4,811.53 | Y3: $188,196.32 | Z3: $2,817.90 | AA3: $3,913.75 | AB3: $10,175.75 | AC3: $1,064.54 | AD3: $17,878.01 | AE3: $26,895.29 | AF3: $42,612.91 | AG3: $29,337.47 | AH3: $89,063.75 | AI3: $223,759.37 | AJ3: $29,803.36 | AK3: $193,956.01 | AL3: $220,779.03 | AM3: $7,259.17 | AN3: $7,259.17 | AO3: $7,259.17 | AP3: $7,259.17 | AQ3: $659.92 | AR3: $659.92 | AS3: $659.92 | AT3: $659.92 | AU3: $1,319.85 | AV3: $14,518.35 | AW3: $5,880.99 | AX3: $2,183.08 | AY3: $55,578.63 | AZ3: $464,554.07 | BA3: $6,683.80 | BB3: $388.26 | BC3: $3,134.33 | BD3: $464,553.98
B4: SAFE SCH-ADAMS/PIKE ROE | C4: 64.64 | D4: $921,850.67 | E4: $768,033.61 | F4: 83% | G4: 2 | H4: $4,974.35 | I4: $675,848.55 | J4: $680,822.90 | K4: 0.90 | L4: $200,477.90 | M4: $60,879.51 | N4: $21,717.45 | O4: $7,657.55 | P4: $6,830.90 | Q4: $18,706.17 | R4: $4,403.73 | S4: $8,286.85 | T4: $7,971.08 | U4: $5,613.67 | V4: $11,825.35 | W4: $10,181.65 | X4: $9,943.83 | Y4: $374,495.64 | Z4: $5,817.60 | AA4: $8,080.00 | AB4: $21,008.00 | AC4: $2,197.76 | AD4: $36,909.44 | AE4: $45,771.86 | AF4: $87,975.04 | AG4: $60,567.68 | AH4: $177,055.48 | AI4: $445,382.86 | AJ4: $61,529.52 | AK4: $383,853.34 | AL4: $439,229.90 | AM4: $15,178.27 | AN4: $15,178.27 | AO4: $15,838.20 | AP4: $15,838.20 | AQ4: $0.00 | AR4: $0.00 | AS4: $0.00 | AT4: $0.00 | AU4: $0.00 | AV4: $29,696.62 | AW4: $12,029.31 | AX4: $4,366.17 | AY4: $108,125.04 | AZ4: $921,850.67 | BA4: $29,997.33 | BB4: $0.00 | BC4: $14,090.38 | BD4: $921,850.58
A5: 01001001026 | B5: PAYSON COMM UNIT SCHOOL DIST 1 | C5: 469.95 | D5: $6,469,310.53 | E5: $5,123,475.87 | F5: 79% | G5: 2 | H5: $37,179.73 | I5: $2,381,625.07 | J5: $2,418,804.80 | K5: 0.90 | L5: $1,464,634.53 | M5: $358,742.70 | N5: $154,114.79 | O5: $61,350.31 | P5: $50,700.68 | Q5: $107,902.08 | R5: $33,578.48 | S5: $58,008.00 | T5: $68,116.53 | U5: $41,434.29 | V5: $101,053.00 | W5: $87,006.87 | X5: $69,606.87 | Y5: $2,656,249.13 | Z5: $41,966.10 | AA5: $58,743.75 | AB5: $152,733.75 | AC5: $15,978.30 | AD5: $268,341.45 | AE5: $186,229.27 | AF5: $639,601.95 | AG5: $440,343.15 | AH5: $1,265,502.03 | AI5: $3,069,439.75 | AJ5: $447,336.00 | AK5: $2,622,103.75 | AL5: $3,024,706.15 | AM5: $108,227.70 | AN5: $108,227.70 | AO5: $112,847.17 | AP5: $112,847.17 | AQ5: $659.92 | AR5: $659.92 | AS5: $659.92 | AT5: $659.92 | AU5: $1,319.85 | AV5: $219,755.02 | AW5: $89,016.89 | AX5: $33,473.97 | AY5: $788,355.15 | AZ5: $6,469,310.53 | BA5: $230,411.81 | BB5: $466.98 | BC5: $182,844.64 | BD5: $6,469,310.43
A6: 01001002026 | B6: LIBERTY COMM UNIT SCHOOL DIST 2 | C6: 583.52 | D6: $7,524,808.43 | E6: $5,746,983.00 | F6: 76% | G6: 1 | H6: $72,871.66 | I6: $2,381,784.19 | J6: $2,454,655.85 | K6: 0.90 | L6: $1,740,693.81 | M6: $423,480.53 | N6: $190,673.94 | O6: $76,256.28 | P6: $57,374.39 | Q6: $131,452.02 | R6: $41,835.49 | S6: $71,641.22 | T6: $84,783.34 | U6: $51,325.05 | V6: $125,778.74 | W6: $108,295.78 | X6: $85,966.09 | Y6: $3,189,556.68 | Z6: $52,164.90 | AA6: $72,940.00 | AB6: $189,644.00 | AC6: $19,839.68 | AD6: $333,189.92 | AE6: $224,401.55 | AF6: $794,170.72 | AG6: $546,758.24 | AH6: $1,447,441.51 | AI6: $3,680,550.52 | AJ6: $555,441.01 | AK6: $3,125,109.51 | AL6: $3,625,006.41 | AM6: $69,952.05 | AN6: $69,952.05 | AO6: $72,591.75 | AP6: $72,591.75 | AQ6: $0.00 | AR6: $0.00 | AS6: $0.00 | AT6: $0.00 | AU6: $0.00 | AV6: $272,549.02 | AW6: $110,402.33 | AX6: $42,206.31 | AY6: $710,245.26 | AZ6: $7,524,808.43 | BA6: $111,191.82 | BB6: $0.00 | BC6: $245,397.23 | BD6: $7,524,808.35
A7: 01001003026 | B7: CAMP POINT C U SCHOOL DIST 3 | C7: 811.2 | D7: $10,785,305.20 | E7: $8,755,700.99 | F7: 81% | G7: 2 | H7: $47,762.82 | I7: $3,633,559.92 | J7: $3,681,322.74 | K7: 0.90 | L7: $2,478,872.50 | M7: $598,154.63 | N7: $265,141.69 | O7: $107,417.67 | P7: $83,542.11 | Q7: $183,773.88 | R7: $58,349.50 | S7: $99,709.61 | T7: $119,566.26 | U7: $71,908.54 | V7: $177,380.28 | W7: $152,724.82 | X7: $119,646.83 | Y7: $4,516,188.32 | Z7: $72,670.50 | AA7: $101,400.00 | AB7: $263,640.00 | AC7: $27,580.80 | AD7: $463,195.20 | AE7: $306,238.73 | AF7: $1,104,043.20 | AG7: $760,094.40 | AH7: $2,093,766.33 | AI7: $5,192,629.16 | AJ7: $772,165.05 | AK7: $4,420,464.11 | AL7: $5,115,412.65 | AM7: $137,264.40 | AN7: $137,264.40 | AO7: $143,203.72 | AP7: $143,203.72 | AQ7: $0.00 | AR7: $0.00 | AS7: $0.00 | AT7: $0.00 | AU7: $659.92 | AV7: $379,456.87 | AW7: $153,707.85 | AX7: $58,943.29 | AY7: $1,153,704.17 | AZ7: $10,785,305.20 | BA7: $380,802.84 | BB7: $54.38 | BC7: $253,941.90 | BD7: $10,785,305.14
A8: 01001004026 | B8: COMMUNITY UNIT SCHOOL DIST 4 | C8: 634.56 | D8: $8,427,434.53 | E8: $6,729,521.21 | F8: 80% | G8: 2 | H8: $43,207.29 | I8: $2,777,896.51 | J8: $2,821,103.80 | K8: 0.90 | L8: $1,934,117.91 | M8: $461,010.69 | N8: $206,708.72 | O8: $84,320.80 | P8: $65,514.03 | Q8: $140,637.76 | R8: $45,138.29 | S8: $77,789.53 | T8: $94,203.72 | U8: $56,136.78 | V8: $139,754.16 | W8: $120,328.65 | X8: $93,343.77 | Y8: $3,519,004.81 | Z8: $56,698.20 | AA8: $79,320.00 | AB8: $206,232.00 | AC8: $21,575.04 | AD8: $362,333.76 | AE8: $228,359.94 | AF8: $863,636.16 | AG8: $594,582.72 | AH8: $1,638,301.91 | AI8: $4,051,039.73 | AJ8: $604,024.97 | AK8: $3,447,014.76 | AL8: $3,990,637.23 | AM8: $104,928.07 | AN8: $104,928.07 | AO8: $109,547.55 | AP8: $109,547.55 | AQ8: $4,619.47 | AR8: $4,619.47 | AS8: $5,279.40 | AT8: $5,279.40 | AU8: $5,939.32 | AV8: $296,966.25 | AW8: $120,293.10 | AX8: $45,844.78 | AY8: $917,792.43 | AZ8: $8,427,434.53 | BA8: $151,440.49 | BB8: $823.37 | BC8: $241,670.90 | BD8: $8,427,434.47
A9: 01001172022 | B9: QUINCY SCHOOL DISTRICT 172 | C9: 6053.8 | D9: $85,086,132.73 | E9: $74,109,693.93 | F9: 87% | G9: 2 | H9: $125,614.30 | I9: $16,979,168.67 | J9: $17,104,782.97 | K9: 0.90 | L9: $19,256,253.18 | M9: $4,665,961.78 | N9: $1,986,979.79 | O9: $807,719.90 | P9: $674,927.76 | Q9: $1,371,700.33 | R9: $443,125.93 | S9: $746,619.17 | T9: $898,558.56 | U9: $538,913.08 | V9: $1,333,039.68 | W9: $1,147,750.20 | X9: $895,907.81 | Y9: $34,767,457.17 | Z9: $538,550.10 | AA9: $756,725.00 | AB9: $1,967,485.00 | AC9: $205,829.20 | AD9: $3,456,719.80 | AE9: $2,298,789.97 | AF9: $8,239,221.80 | AG9: $5,672,410.60 | AH9: $16,759,491.16 | AI9: $39,895,222.63 | AJ9: $5,762,491.14 | AK9: $34,132,731.49 | AL9: $39,318,973.51 | AM9: $1,592,399.02 | AN9: $1,592,399.02 | AO9: $1,659,051.45 | AP9: $1,659,051.45 | AQ9: $14,518.35 | AR9: $14,518.35 | AS9: $14,518.35 | AT9: $14,518.35 | AU9: $17,817.97 | AV9: $2,833,058.02 | AW9: $1,147,596.17 | AX9: $440,255.47 | AY9: $10,999,701.97 | AZ9: $85,086,132.73 | BA9: $5,256,749.70 | BB9: $2,037.83 | BC9: $2,435,983.95 | BD9: $85,086,132.65
A10: 01005001026 | B10: BROWN COUNTY C U SCH DIST 1 | C10: 638.7 | D10: $8,498,720.37 | E10: $7,692,611.41 | F10: 91% | G10: 3 | H10: $9,658.03 | I10: $2,368,614.95 | J10: $2,378,272.98 | K10: 0.90 | L10: $1,933,190.61 | M10: $473,334.08 | N10: $209,377.63 | O10: $84,164.44 | P10: $65,536.21 | Q10: $146,507.11 | R10: $46,239.22 | S10: $78,591.49 | T10: $93,479.07 | U10: $56,671.41 | V10: $138,679.12 | W10: $119,403.04 | X10: $94,306.08 | Y10: $3,539,479.51 | Z10: $56,906.10 | AA10: $79,837.50 | AB10: $207,577.50 | AC10: $21,715.80 | AD10: $364,697.70 | AE10: $250,603.89 | AF10: $869,270.70 | AG10: $598,461.90 | AH10: $1,648,019.70 | AI10: $4,097,090.79 | AJ10: $607,965.75 | AK10: $3,489,125.04 | AL10: $4,036,294.21 | AM10: $108,227.70 | AN10: $108,227.70 | AO10: $112,847.17 | AP10: $112,847.17 | AQ10: $2,639.70 | AR10: $2,639.70 | AS10: $3,299.62 | AT10: $3,299.62 | AU10: $3,959.55 | AV10: $298,286.10 | AW10: $120,827.73 | AX10: $45,844.78 | AY10: $922,946.54 | AZ10: $8,498,720.37 | BA10: $284,937.08 | BB10: $162.95 | BC10: $210,060.55 | BD10: $8,498,720.26
A11: 01009015026 | B11: BEARDSTOWN C U SCH DIST 15 | C11: 1338.75 | D11: $21,894,878.65 | E11: $15,194,409.35 | F11: 69% | G11: 1 | H11: $841,089.20 | I11: $12,333,932.63 | J11: $13,175,021.83 | K11: 0.90 | L11: $4,254,917.59 | M11: $1,044,293.39 | N11: $440,063.60 | O11: $176,958.89 | P11: $183,223.81 | Q11: $305,552.88 | R11: $97,983.12 | S11: $165,202.52 | T11: $196,378.52 | U11: $118,956.51 | V11: $291,333.67 | W11: $250,838.95 | X11: $198,235.24 | Y11: $7,723,938.69 | Z11: $118,530.00 | AA11: $167,343.75 | AB11: $435,093.75 | AC11: $45,517.50 | AD11: $764,426.25 | AE11: $526,672.00 | AF11: $1,822,038.75 | AG11: $1,254,408.75 | AH11: $4,462,988.36 | AI11: $9,597,019.11 | AJ11: $1,274,329.35 | AK11: $8,322,689.76 | AL11: $9,469,586.17 | AM11: $368,898.07 | AN11: $368,898.07 | AO11: $384,736.27 | AP11: $384,736.27 | AQ11: $415,752.75 | AR11: $415,752.75 | AS11: $432,910.80 | AT11: $432,910.80 | AU11: $520,020.90 | AV11: $626,268.82 | AW11: $253,684.78 | AX11: $96,783.43 | AY11: $4,701,353.71 | AZ11: $21,894,878.65 | BA11: $1,891,672.54 | BB11: $841,216.77 | BC11: $727,000.03 | BD11: $21,894,878.57
A12: 01009064026 | B12: VIRGINIA C U SCH DIST 64 | C12: 293.12 | D12: $3,870,580.73 | E12: $3,096,181.36 | F12: 80% | G12: 2 | H12: $17,965.53 | I12: $775,312.38 | J12: $793,277.91 | K12: 0.90 | L12: $895,647.76 | M12: $210,594.12 | N12: $94,488.74 | O12: $38,159.19 | P12: $30,228.14 | Q12: $63,034.97 | R12: $20,917.74 | S12: $35,553.29 | T12: $42,753.99 | U12: $25,929.84 | V12: $63,426.88 | W12: $54,610.69 | X12: $42,662.27 | Y12: $1,618,007.62 | Z12: $26,096.40 | AA12: $36,640.00 | AB12: $95,264.00 | AC12: $9,966.08 | AD12: $167,371.52 | AE12: $99,997.02 | AF12: $398,936.32 | AG12: $274,653.44 | AH12: $752,610.72 | AI12: $1,861,535.50 | AJ12: $279,015.06 | AK12: $1,582,520.44 | AL12: $1,833,633.99 | AM12: $49,494.37 | AN12: $49,494.37 | AO12: $51,474.15 | AP12: $51,474.15 | AQ12: $659.92 | AR12: $659.92 | AS12: $659.92 | AT12: $659.92 | AU12: $1,319.85 | AV12: $136,604.47 | AW12: $55,334.82 | AX12: $21,103.15 | AY12: $418,939.01 | AZ12: $3,870,580.73 | BA12: $141,598.83 | BB12: $51.07 | BC12: $51,263.86 | BD12: $3,870,580.62
A13: 01009262026 | B13: A C CENTRAL CUSD 262 | C13: 341.13 | D13: $4,626,779.07 | E13: $4,455,798.92 | F13: 96% | G13: 3 | H13: $5,257.92 | I13: $1,354,739.06 | J13: $1,359,996.98 | K13: 0.90 | L13: $1,059,534.37 | M13: $262,038.50 | N13: $111,624.52 | O13: $43,839.71 | P13: $35,999.21 | Q13: $78,170.11 | R13: $24,220.54 | S13: $41,701.60 | T13: $48,551.14 | U13: $29,939.61 | V13: $72,027.14 | W13: $62,015.53 | X13: $50,039.96 | Y13: $1,919,701.94 | Z13: $30,582.00 | AA13: $42,641.25 | AB13: $110,867.25 | AC13: $11,598.42 | AD13: $194,785.23 | AE13: $139,341.36 | AF13: $464,277.93 | AG13: $319,638.81 | AH13: $900,440.61 | AI13: $2,214,172.86 | AJ13: $324,714.82 | AK13: $1,889,458.04 | AL13: $2,181,701.37 | AM13: $67,972.27 | AN13: $67,972.27 | AO13: $70,611.97 | AP13: $70,611.97 | AQ13: $0.00 | AR13: $0.00 | AS13: $0.00 | AT13: $0.00 | AU13: $0.00 | AV13: $159,041.92 | AW13: $64,423.63 | AX13: $24,741.63 | AY13: $525,375.66 | AZ13: $4,626,779.07 | BA13: $119,001.56 | BB13: $3.15 | BC13: $88,907.27 | BD13: $4,626,778.97
A14: 01069001026 | B14: FRANKLIN C U SCHOOL DISTRICT 1 | C14: 270.46 | D14: $3,520,498.92 | E14: $3,541,232.73 | F14: 101% | G14: 4 | H14: $224.25 | I14: $519,288.99 | J14: $519,513.24 | K14: 0.90 | L14: $821,848.42 | M14: $201,222.68 | N14: $88,244.91 | O14: $34,582.11 | P14: $27,795.02 | Q14: $61,478.58 | R14: $18,715.87 | S14: $32,880.11 | T14: $38,406.13 | U14: $23,791.30 | V14: $56,976.69 | W14: $49,057.06 | X14: $39,454.58 | Y14: $1,494,453.46 | Z14: $24,237.00 | AA14: $33,807.50 | AB14: $87,899.50 | AC14: $9,195.64 | AD14: $77,216.32 | AE14: $107,252.00 | AF14: $368,096.06 | AG14: $253,421.02 | AH14: $697,256.08 | AI14: $1,658,381.12 | AJ14: $257,445.46 | AK14: $1,400,935.66 | AL14: $1,632,636.57 | AM14: $48,174.52 | AN14: $48,174.52 | AO14: $50,154.30 | AP14: $50,154.30 | AQ14: $0.00 | AR14: $0.00 | AS14: $0.00 | AT14: $0.00 | AU14: $0.00 | AV14: $126,045.67 | AW14: $51,057.73 | AX14: $19,647.76 | AY14: $393,408.80 | AZ14: $3,520,498.92 | BA14: $77,232.72 | BB14: $0.00 | BC14: $99,187.20 | BD14: $3,520,498.83
A15: 01069006026 | B15: WAVERLY C U SCHOOL DIST 6 | C15: 331.05 | D15: $4,477,194.38 | E15: $3,885,716.34 | F15: 87% | G15: 2 | H15: $6,869.17 | I15: $1,000,268.41 | J15: $1,007,137.58 | K15: 0.90 | L15: $1,023,189.35 | M15: $248,418.84 | N15: $107,732.55 | O15: $43,023.61 | P15: $34,996.01 | Q15: $72,868.08 | R15: $23,119.61 | S15: $40,365.01 | T15: $47,826.50 | U15: $29,137.66 | V15: $70,952.11 | W15: $61,089.93 | X15: $48,436.11 | Y15: $1,851,155.37 | Z15: $29,487.60 | AA15: $41,381.25 | AB15: $107,591.25 | AC15: $11,255.70 | AD15: $189,029.55 | AE15: $125,494.06 | AF15: $450,559.05 | AG15: $310,193.85 | AH15: $873,081.48 | AI15: $2,138,073.79 | AJ15: $315,119.87 | AK15: $1,822,953.92 | AL15: $2,106,561.80 | AM15: $67,312.35 | AN15: $67,312.35 | AO15: $69,952.05 | AP15: $69,952.05 | AQ15: $659.92 | AR15: $659.92 | AS15: $659.92 | AT15: $659.92 | AU15: $1,319.85 | AV15: $154,422.45 | AW15: $62,552.41 | AX15: $24,013.93 | AY15: $519,477.12 | AZ15: $4,477,194.38 | BA15: $149,778.05 | BB15: $243.10 | BC15: $107,298.93 | BD15: $4,477,194.29
A16: 01069011026 | B16: MEREDOSIA-CHAMBERSBURG CUSD 11 | C16: 183.25 | D16: $2,570,507.49 | E16: $4,678,986.76 | F16: 182% | G16: 4 | H16: $163.73 | I16: $343,310.57 | J16: $343,474.30 | K16: 0.90 | L16: $590,748.99 | M16: $138,837.51 | N16: $58,651.43 | O16: $23,253.22 | P16: $21,222.94 | Q16: $38,903.20 | R16: $12,660.74 | S16: $22,187.39 | T16: $26,087.18 | U16: $16,039.08 | V16: $38,701.15 | W16: $33,321.78 | X16: $26,623.82 | Y16: $1,047,238.43 | Z16: $16,200.00 | AA16: $22,906.25 | AB16: $59,556.25 | AC16: $6,230.50 | AD16: $52,317.87 | AE16: $62,025.00 | AF16: $249,403.25 | AG16: $171,705.25 | AH16: $520,843.05 | AI16: $1,161,187.42 | AJ16: $174,432.01 | AK16: $986,755.41 | AL16: $1,143,744.21 | AM16: $60,713.10 | AN16: $60,713.10 | AO16: $62,692.87 | AP16: $62,692.87 | AQ16: $0.00 | AR16: $0.00 | AS16: $0.00 | AT16: $0.00 | AU16: $0.00 | AV16: $85,130.32 | AW16: $34,484.02 | AX16: $13,098.51 | AY16: $379,524.79 | AZ16: $2,570,507.49 | BA16: $203,791.87 | BB16: $0.00 | BC16: $71,236.35 | BD16: $2,570,507.43
A17: 01069027026 | B17: TRIOPIA C U SCHOOL DISTRICT 27 | C17: 365 | D17: $4,729,277.90 | E17: $3,906,333.51 | F17: 83% | G17: 2 | H17: $15,173.40 | I17: $1,060,491.22 | J17: $1,075,664.62 | K17: 0.90 | L17: $1,076,106.84 | M17: $268,816.98 | N17: $119,721.17 | O17: $47,166.19 | P17: $35,777.16 | Q17: $84,730.35 | R17: $25,871.94 | S17: $44,909.42 | T17: $52,174.36 | U17: $32,078.16 | V17: $77,402.30 | W17: $66,643.56 | X17: $53,889.19 | Y17: $1,985,287.62 | Z17: $32,580.00 | AA17: $45,625.00 | AB17: $118,625.00 | AC17: $12,410.00 | AD17: $208,415.00 | AE17: $152,130.00 | AF17: $496,765.00 | AG17: $342,005.00 | AH17: $908,095.49 | AI17: $2,316,650.49 | AJ17: $347,436.20 | AK17: $1,969,214.29 | AL17: $2,281,906.87 | AM17: $48,174.52 | AN17: $48,174.52 | AO17: $50,154.30 | AP17: $50,154.30 | AQ17: $0.00 | AR17: $0.00 | AS17: $0.00 | AT17: $0.00 | AU17: $0.00 | AV17: $170,260.65 | AW17: $68,968.04 | AX17: $26,197.02 | AY17: $462,083.35 | AZ17: $4,729,277.90 | BA17: $73,398.08 | BB17: $0.00 | BC17: $113,184.63 | BD17: $4,729,277.84
A18: 01069117022 | B18: JACKSONVILLE SCHOOL DIST 117 | C18: 3005.87 | D18: $42,539,554.42 | E18: $35,508,148.50 | F18: 83% | G18: 2 | H18: $151,488.81 | I18: $11,223,485.54 | J18: $11,374,974.35 | K18: 0.90 | L18: $9,590,460.81 | M18: $2,302,691.24 | N18: $984,402.55 | O18: $401,081.80 | P18: $339,360.56 | Q18: $676,038.81 | R18: $220,186.80 | S18: $369,968.11 | T18: $447,105.34 | U18: $267,585.31 | V18: $663,294.74 | W18: $571,098.28 | X18: $443,944.29 | Y18: $17,277,218.64 | Z18: $267,783.30 | AA18: $375,733.75 | AB18: $976,907.75 | AC18: $102,199.58 | AD18: $1,716,351.77 | AE18: $1,110,277.45 | AF18: $4,090,989.07 | AG18: $2,816,500.19 | AH18: $8,401,169.64 | AI18: $19,857,912.50 | AJ18: $2,861,227.53 | AK18: $16,996,684.97 | AL18: $19,571,789.74 | AM18: $802,468.80 | AN18: $802,468.80 | AO18: $836,124.97 | AP18: $836,124.97 | AQ18: $40,915.35 | AR18: $40,915.35 | AS18: $42,895.12 | AT18: $42,895.12 | AU18: $51,474.15 | AV18: $1,406,300.17 | AW18: $569,654.65 | AX18: $218,308.50 | AY18: $5,690,545.95 | AZ18: $42,539,554.42 | BA18: $3,187,006.50 | BB18: $58,217.83 | BC18: $1,344,819.73 | BD18: $42,539,554.33
A19: 01075003026 | B19: PLEASANT HILL C U SCH DIST 3 | C19: 338.25 | D19: $4,521,939.27 | E19: $3,119,016.91 | F19: 69% | G19: 1 | H19: $168,917.53 | I19: $1,311,943.32 | J19: $1,480,860.85 | K19: 0.90 | L19: $1,044,116.35 | M19: $249,621.37 | N19: $109,332.60 | O19: $44,184.56 | P19: $35,315.05 | Q19: $74,708.13 | R19: $24,220.54 | S19: $41,166.97 | T19: $49,275.79 | U19: $29,672.29 | V19: $73,102.17 | W19: $62,941.14 | X19: $49,398.42 | Y19: $1,887,055.38 | Z19: $30,285.00 | AA19: $42,281.25 | AB19: $109,931.25 | AC19: $11,500.50 | AD19: $193,140.75 | AE19: $123,423.50 | AF19: $460,358.25 | AG19: $316,940.25 | AH19: $880,184.22 | AI19: $2,168,044.97 | AJ19: $321,973.41 | AK19: $1,846,071.56 | AL19: $2,135,847.62 | AM19: $62,032.95 | AN19: $62,032.95 | AO19: $64,672.65 | AP19: $64,672.65 | AQ19: $0.00 | AR19: $0.00 | AS19: $0.00 | AT19: $0.00 | AU19: $0.00 | AV19: $157,722.07 | AW19: $63,889.00 | AX19: $24,013.93 | AY19: $499,036.20 | AZ19: $4,521,939.27 | BA19: $182,667.24 | BB19: $0.00 | BC19: $154,557.93 | BD19: $4,521,939.20
A20: 01075004026 | B20: GRIGGSVILLE-PERRY C U SCH DIST 4 | C20: 315.63 | D20: $4,361,727.81 | E20: $3,990,010.22 | F20: 91% | G20: 3 | H20: $4,956.71 | I20: $1,693,508.21 | J20: $1,698,464.92 | K20: 0.90 | L20: $994,536.18 | M20: $239,705.33 | N20: $102,334.78 | O20: $40,952.33 | P20: $34,475.56 | Q20: $70,460.71 | R20: $22,569.14 | S20: $38,493.79 | T20: $45,652.57 | U20: $27,801.07 | V20: $67,727.01 | W20: $58,313.11 | X20: $46,190.73 | Y20: $1,789,212.31 | Z20: $28,152.00 | AA20: $39,453.75 | AB20: $102,579.75 | AC20: $10,731.42 | AD20: $180,224.73 | AE20: $118,204.50 | AF20: $429,572.43 | AG20: $295,745.31 | AH20: $855,757.56 | AI20: $2,060,421.45 | AJ20: $300,441.88 | AK20: $1,759,979.57 | AL20: $2,030,377.26 | AM20: $76,551.30 | AN20: $76,551.30 | AO20: $79,850.92 | AP20: $79,850.92 | AQ20: $0.00 | AR20: $0.00 | AS20: $0.00 | AT20: $0.00 | AU20: $0.00 | AV20: $147,163.27 | AW20: $59,611.91 | AX20: $22,558.54 | AY20: $542,138.16 | AZ20: $4,361,727.81 | BA20: $273,672.59 | BB20: $0.00 | BC20: $148,536.62 | BD20: $4,361,727.73
A21: 01075010026 | B21: PIKELAND C U SCH DIST 10 | C21: 1084.45 | D21: $15,068,262.41 | E21: $11,419,576.47 | F21: 76% | G21: 1 | H21: $190,272.04 | I21: $5,719,676.64 | J21: $5,909,948.68 | K21: 0.90 | L21: $3,418,021.62 | M21: $825,339.24 | N21: $354,359.05 | O21: $143,788.32 | P21: $119,001.48 | Q21: $247,768.90 | R21: $78,716.78 | S21: $133,391.68 | T21: $160,146.32 | U21: $95,967.16 | V21: $237,582.07 | W21: $204,558.70 | X21: $160,063.73 | Y21: $6,178,705.05 | Z21: $97,120.80 | AA21: $135,556.25 | AB21: $352,446.25 | AC21: $36,871.30 | AD21: $619,220.95 | AE21: $412,006.18 | AF21: $1,475,936.45 | AG21: $1,016,129.65 | AH21: $2,959,059.84 | AI21: $7,104,347.67 | AJ21: $1,032,266.26 | AK21: $6,072,081.41 | AL21: $7,001,121.04 | AM21: $264,629.92 | AN21: $264,629.92 | AO21: $275,848.65 | AP21: $275,848.65 | AQ21: $2,639.70 | AR21: $2,639.70 | AS21: $3,299.62 | AT21: $3,299.62 | AU21: $3,959.55 | AV21: $507,482.32 | AW21: $205,567.54 | AX21: $78,591.06 | AY21: $1,888,436.25 | AZ21: $15,068,262.41 | BA21: $845,654.00 | BB21: $720.80 | BC21: $535,973.92 | BD21: $15,068,262.34
A22: 01075012026 | B22: WESTERN CUSD 12 | C22: 458.38 | D22: $6,353,138.76 | E22: $5,270,696.09 | F22: 83% | G22: 2 | H22: $23,537.40 | I22: $2,248,692.55 | J22: $2,272,229.95 | K22: 0.90 | L22: $1,448,398.25 | M22: $344,045.04 | N22: $149,029.74 | O22: $60,973.32 | P22: $50,428.04 | Q22: $100,774.51 | R22: $32,477.55 | S22: $55,869.46 | T22: $68,116.53 | U22: $40,632.33 | V22: $101,053.00 | W22: $87,006.87 | X22: $67,040.72 | Y22: $2,605,845.36 | Z22: $40,781.70 | AA22: $57,297.50 | AB22: $148,973.50 | AC22: $15,584.92 | AD22: $261,734.98 | AE22: $162,936.89 | AF22: $623,855.18 | AG22: $429,502.06 | AH22: $1,249,591.69 | AI22: $2,990,258.42 | AJ22: $436,322.75 | AK22: $2,553,935.67 | AL22: $2,946,626.14 | AM22: $113,507.10 | AN22: $113,507.10 | AO22: $118,126.57 | AP22: $118,126.57 | AQ22: $659.92 | AR22: $659.92 | AS22: $659.92 | AT22: $659.92 | AU22: $659.92 | AV22: $214,475.62 | AW22: $86,878.35 | AX22: $32,746.27 | AY22: $800,667.18 | AZ22: $6,353,138.76 | BA22: $411,638.38 | BB22: $61.37 | BC22: $161,138.20 | BD22: $6,353,138.68
A23: 01086001026 | B23: WINCHESTER C U SCH DIST 1 | C23: 541.36 | D23: $7,345,713.49 | E23: $5,787,947.11 | F23: 79% | G23: 2 | H23: $49,882.07 | I23: $2,971,419.19 | J23: $3,021,301.26 | K23: 0.90 | L23: $1,676,171.20 | M23: $405,572.47 | N23: $177,273.77 | O23: $70,952.76 | P23: $57,433.82 | Q23: $121,902.57 | R23: $39,083.15 | S23: $66,562.18 | T23: $78,986.19 | U23: $47,849.92 | V23: $117,178.48 | W23: $100,890.94 | X23: $79,871.48 | Y23: $3,039,728.93 | Z23: $48,355.20 | AA23: $67,670.00 | AB23: $175,942.00 | AC23: $18,406.24 | AD23: $309,116.56 | AE23: $205,212.56 | AF23: $736,790.96 | AG23: $507,254.32 | AH23: $1,433,710.40 | AI23: $3,502,458.24 | AJ23: $515,309.75 | AK23: $2,987,148.49 | AL23: $3,450,927.26 | AM23: $112,847.17 | AN23: $112,847.17 | AO23: $117,466.65 | AP23: $117,466.65 | AQ23: $0.00 | AR23: $0.00 | AS23: $0.00 | AT23: $0.00 | AU23: $0.00 | AV23: $252,751.27 | AW23: $102,382.79 | AX23: $39,295.53 | AY23: $855,057.23 | AZ23: $7,345,713.49 | BA23: $289,744.98 | BB23: $0.00 | BC23: $251,643.61 | BD23: $7,345,713.42
A24: 01086002026 | B24: SCOTT-MORGAN C U SCHOOL DIST 2 | C24: 183.43 | D24: $2,518,227.09 | E24: $2,375,491.75 | F24: 94% | G24: 3 | H24: $2,861.74 | I24: $1,011,935.02 | J24: $1,014,796.76 | K24: 0.90 | L24: $567,001.06 | M24: $139,957.46 | N24: $59,405.41 | O24: $23,535.97 | P24: $19,671.05 | Q24: $42,176.07 | R24: $12,660.74 | S24: $22,454.71 | T24: $26,087.18 | U24: $15,771.76 | V24: $38,701.15 | W24: $33,321.78 | X24: $26,944.59 | Y24: $1,027,688.93 | Z24: $16,344.00 | AA24: $22,928.75 | AB24: $59,614.75 | AC24: $6,236.62 | AD24: $104,738.53 | AE24: $74,226.70 | AF24: $249,648.23 | AG24: $171,873.91 | AH24: $491,886.97 | AI24: $1,197,498.46 | AJ24: $174,603.34 | AK24: $1,022,895.12 | AL24: $1,180,038.12 | AM24: $43,555.05 | AN24: $43,555.05 | AO24: $44,874.90 | AP24: $44,874.90 | AQ24: $0.00 | AR24: $0.00 | AS24: $0.00 | AT24: $0.00 | AU24: $0.00 | AV24: $85,790.25 | AW24: $34,751.34 | AX24: $13,098.51 | AY24: $310,500.00 | AZ24: $2,518,227.09 | BA24: $195,977.53 | BB24: $27.78 | BC24: $74,662.70 | BD24: $2,518,227.05
B25: ALT SCH-BOND/EFFINGHAM/FAYETTE RO | C25: 103.99 | D25: $1,523,139.90 | E25: $927,819.22 | F25: 61% | G25: 1 | H25: $104,511.83 | I25: $775,505.23 | J25: $880,017.06 | K25: 0.90 | L25: $331,326.85 | M25: $110,431.23 | N25: $36,814.09 | O25: $12,271.36 | P25: $11,052.09 | Q25: $31,608.54 | R25: $7,156.07 | S25: $13,633.21 | T25: $12,318.94 | U25: $9,088.81 | V25: $18,275.54 | W25: $15,735.28 | X25: $16,359.21 | Y25: $626,071.22 | Z25: $9,359.10 | AA25: $12,998.75 | AB25: $33,796.75 | AC25: $3,535.66 | AD25: $59,378.29 | AE25: $89,327.41 | AF25: $141,530.39 | AG25: $97,438.63 | AH25: $290,927.21 | AI25: $738,292.19 | AJ25: $98,986.00 | AK25: $639,306.19 | AL25: $728,393.59 | AM25: $23,097.37 | AN25: $23,097.37 | AO25: $23,757.30 | AP25: $23,757.30 | AQ25: $0.00 | AR25: $0.00 | AS25: $0.00 | AT25: $0.00 | AU25: $0.00 | AV25: $48,174.52 | AW25: $19,514.21 | AX25: $7,276.95 | AY25: $168,675.02 | AZ25: $1,523,139.90 | BA25: $50,734.48 | BB25: $59.40 | BC25: $26,218.78 | BD25: $1,523,139.83
B26: SAFE SCH-BOND/EFFINGHAM/FAYETTE R | C26: 38 | D26: $479,223.79 | E26: $484,194.79 | F26: 101% | G26: 4 | H26: $30.52 | I26: $436,272.42 | J26: $436,302.94 | K26: 0.90 | L26: $105,436.29 | M26: $21,087.25 | N26: $11,924.34 | O26: $5,020.77 | P26: $3,831.23 | Q26: $10,145.79 | R26: $2,752.33 | S26: $4,277.08 | T26: $5,797.15 | U26: $3,207.81 | V26: $8,600.25 | W26: $7,404.84 | X26: $5,132.30 | Y26: $194,617.43 | Z26: $3,420.00 | AA26: $4,750.00 | AB26: $12,350.00 | AC26: $1,292.00 | AD26: $10,849.00 | AE26: $9,462.00 | AF26: $51,718.00 | AG26: $35,606.00 | AH26: $95,529.25 | AI26: $224,976.25 | AJ26: $36,171.44 | AK26: $188,804.81 | AL26: $221,359.10 | AM26: $7,919.10 | AN26: $7,919.10 | AO26: $8,579.02 | AP26: $8,579.02 | AQ26: $659.92 | AR26: $659.92 | AS26: $659.92 | AT26: $659.92 | AU26: $1,319.85 | AV26: $17,158.05 | AW26: $6,950.26 | AX26: $2,183.08 | AY26: $63,247.16 | AZ26: $479,223.79 | BA26: $260.88 | BB26: $0.33 | BC26: $135.22 | BD26: $479,223.69
A27: 03003001026 | B27: MULBERRY GROVE C U SCH DIST 1 | C27: 330.79 | D27: $4,622,490.17 | E27: $3,971,022.94 | F27: 86% | G27: 2 | H27: $11,535.38 | I27: $2,268,575.68 | J27: $2,280,111.06 | K27: 0.93 | L27: $1,063,781.78 | M27: $259,414.28 | N27: $111,482.13 | O27: $44,482.11 | P27: $36,702.02 | Q27: $78,233.33 | R27: $24,472.49 | S27: $41,733.39 | T27: $49,447.82 | U27: $30,125.42 | V27: $73,357.38 | W27: $63,160.87 | X27: $50,078.10 | Y27: $1,926,471.12 | Z27: $29,538.90 | AA27: $41,348.75 | AB27: $107,506.75 | AC27: $11,246.86 | AD27: $188,881.09 | AE27: $129,153.81 | AF27: $450,205.19 | AG27: $309,950.23 | AH27: $885,688.61 | AI27: $2,153,520.19 | AJ27: $314,872.38 | AK27: $1,838,647.81 | AL27: $2,131,639.70 | AM27: $77,099.49 | AN27: $77,099.49 | AO27: $80,510.98 | AP27: $80,510.98 | AQ27: $0.00 | AR27: $0.00 | AS27: $0.00 | AT27: $0.00 | AU27: $0.00 | AV27: $159,657.37 | AW27: $64,672.93 | AX27: $24,828.00 | AY27: $564,379.24 | AZ27: $4,622,490.17 | BA27: $246,864.72 | BB27: $0.00 | BC27: $143,139.42 | BD27: $4,622,490.06
A28: 03003002026 | B28: BOND CO C U SCHOOL DIST 2 | C28: 1581.05 | D28: $21,821,375.86 | E28: $16,767,341.49 | F28: 77% | G28: 1 | H28: $201,177.98 | I28: $8,403,008.33 | J28: $8,604,186.31 | K28: 0.93 | L28: $5,013,701.73 | M28: $1,227,175.93 | N28: $537,652.15 | O28: $216,570.74 | P28: $171,750.32 | Q28: $376,691.57 | R28: $118,947.71 | S28: $201,757.45 | T28: $240,496.22 | U28: $145,375.92 | V28: $356,783.66 | W28: $307,191.54 | X28: $242,099.44 | Y28: $9,156,194.38 | Z28: $140,667.30 | AA28: $197,631.25 | AB28: $513,841.25 | AC28: $53,755.70 | AD28: $902,779.55 | AE28: $621,187.01 | AF28: $2,151,809.05 | AG28: $1,481,443.85 | AH28: $4,166,926.02 | AI28: $10,230,040.98 | AJ28: $1,504,969.87 | AK28: $8,725,071.11 | AL28: $10,125,460.62 | AM28: $328,866.89 | AN28: $328,866.89 | AO28: $342,512.82 | AP28: $342,512.82 | AQ28: $682.29 | AR28: $682.29 | AS28: $682.29 | AT28: $682.29 | AU28: $682.29 | AV28: $764,854.32 | AW28: $309,822.06 | AX28: $118,873.48 | AY28: $2,539,720.73 | AZ28: $21,821,375.86 | BA28: $948,751.17 | BB28: $581.26 | BC28: $649,374.14 | BD28: $21,821,375.73
A29: 03011001026 | B29: MORRISONVILLE C U SCH DIST 1 | C29: 276.75 | D29: $3,741,417.78 | E29: $3,337,545.80 | F29: 89% | G29: 2 | H29: $5,742.46 | I29: $785,336.70 | J29: $791,079.16 | K29: 0.90 | L29: $848,959.31 | M29: $205,490.19 | N29: $90,566.80 | O29: $36,464.90 | P29: $29,168.30 | Q29: $61,965.86 | R29: $19,816.81 | S29: $33,949.38 | T29: $40,580.06 | U29: $24,593.25 | V29: $60,201.79 | W29: $51,833.88 | X29: $40,737.66 | Y29: $1,544,328.19 | Z29: $24,570.00 | AA29: $34,593.75 | AB29: $89,943.75 | AC29: $9,409.50 | AD29: $158,024.25 | AE29: $105,076.00 | AF29: $376,656.75 | AG29: $259,314.75 | AH29: $729,523.38 | AI29: $1,787,112.13 | AJ29: $263,432.79 | AK29: $1,523,679.34 | AL29: $1,760,768.85 | AM29: $57,413.47 | AN29: $57,413.47 | AO29: $60,053.17 | AP29: $60,053.17 | AQ29: $0.00 | AR29: $0.00 | AS29: $0.00 | AT29: $0.00 | AU29: $0.00 | AV29: $129,345.30 | AW29: $52,394.32 | AX29: $19,647.76 | AY29: $436,320.66 | AZ29: $3,741,417.78 | BA29: $121,528.05 | BB29: $0.00 | BC29: $46,280.99 | BD29: $3,741,417.70
A30: 03011003026 | B30: TAYLORVILLE C U SCH DIST 3 | C30: 2163.94 | D30: $30,121,989.35 | E30: $23,040,606.35 | F30: 76% | G30: 1 | H30: $277,823.87 | I30: $8,650,203.30 | J30: $8,928,027.17 | K30: 0.90 | L30: $6,771,142.27 | M30: $1,686,771.46 | N30: $714,184.48 | O30: $285,696.03 | P30: $235,592.64 | Q30: $512,833.17 | R30: $158,534.49 | S30: $268,119.95 | T30: $315,944.78 | U30: $192,201.64 | V30: $468,713.95 | W30: $403,563.78 | X30: $321,731.30 | Y30: $12,335,029.94 | Z30: $192,902.40 | AA30: $270,492.50 | AB30: $703,280.50 | AC30: $73,573.96 | AD30: $1,235,609.74 | AE30: $903,728.62 | AF30: $2,945,122.34 | AG30: $2,027,611.78 | AH30: $5,898,471.52 | AI30: $14,250,793.36 | AJ30: $2,059,811.20 | AK30: $12,190,982.16 | AL30: $14,044,812.24 | AM30: $529,259.85 | AN30: $529,259.85 | AO30: $551,697.30 | AP30: $551,697.30 | AQ30: $0.00 | AR30: $0.00 | AS30: $0.00 | AT30: $0.00 | AU30: $659.92 | AV30: $1,012,324.95 | AW30: $410,065.81 | AX30: $157,182.12 | AY30: $3,742,147.10 | AZ30: $30,121,989.35 | BA30: $1,792,872.38 | BB30: $53.96 | BC30: $439,862.05 | BD30: $30,121,989.28
A31: 03011004026 | B31: EDINBURG C U SCH DIST 4 | C31: 223.38 | D31: $3,030,452.34 | E31: $2,805,409.39 | F31: 93% | G31: 3 | H31: $3,443.83 | I31: $578,876.13 | J31: $582,319.96 | K31: 0.90 | L31: $691,115.41 | M31: $171,034.75 | N31: $72,617.09 | O31: $28,117.64 | P31: $23,622.56 | Q31: $50,183.64 | R31: $15,413.07 | S31: $26,999.11 | T31: $31,159.69 | U31: $19,514.21 | V31: $46,226.37 | W31: $39,801.01 | X31: $32,397.66 | Y31: $1,248,202.21 | Z31: $19,962.00 | AA31: $27,922.50 | AB31: $72,598.50 | AC31: $7,594.92 | AD31: $127,549.98 | AE31: $90,719.58 | AF31: $304,020.18 | AG31: $209,307.06 | AH31: $589,946.50 | AI31: $1,449,621.22 | AJ31: $212,630.95 | AK31: $1,236,990.27 | AL31: $1,428,358.12 | AM31: $46,854.67 | AN31: $46,854.67 | AO31: $48,834.45 | AP31: $48,834.45 | AQ31: $0.00 | AR31: $0.00 | AS31: $0.00 | AT31: $0.00 | AU31: $0.00 | AV31: $104,268.15 | AW31: $42,236.24 | AX31: $16,009.29 | AY31: $353,891.92 | AZ31: $3,030,452.34 | BA31: $76,861.40 | BB31: $0.00 | BC31: $39,087.51 | BD31: $3,030,452.25
A32: 03011008026 | B32: PANA COMM UNIT SCHOOL DIST 8 | C32: 1126.12 | D32: $15,981,492.95 | E32: $12,345,875.79 | F32: 77% | G32: 1 | H32: $135,383.65 | I32: $7,164,851.26 | J32: $7,300,234.91 | K32: 0.90 | L32: $3,598,266.58 | M32: $888,426.59 | N32: $370,271.78 | O32: $148,496.39 | P32: $126,562.00 | Q32: $262,118.59 | R32: $82,019.58 | S32: $139,005.36 | T32: $164,494.18 | U32: $99,976.93 | V32: $244,032.26 | W32: $210,112.33 | X32: $166,799.88 | Y32: $6,500,582.45 | Z32: $100,900.80 | AA32: $140,765.00 | AB32: $365,989.00 | AC32: $38,288.08 | AD32: $643,014.52 | AE32: $458,408.42 | AF32: $1,532,649.32 | AG32: $1,055,174.44 | AH32: $3,147,918.12 | AI32: $7,483,107.70 | AJ32: $1,071,931.10 | AK32: $6,411,176.60 | AL32: $7,375,914.59 | AM32: $312,804.45 | AN32: $312,804.45 | AO32: $325,343.02 | AP32: $325,343.02 | AQ32: $1,319.85 | AR32: $1,319.85 | AS32: $1,319.85 | AT32: $1,319.85 | AU32: $1,979.77 | AV32: $526,620.15 | AW32: $213,319.76 | AX32: $81,501.84 | AY32: $2,104,995.86 | AZ32: $15,981,492.95 | BA32: $1,521,992.82 | BB32: $1,106.00 | BC32: $289,556.30 | BD32: $15,981,492.90
A33: 03011014024 | B33: SOUTH FORK SCHOOL DISTRICT 14 | C33: 280.46 | D33: $3,899,698.08 | E33: $2,796,458.70 | F33: 72% | G33: 1 | H33: $114,023.20 | I33: $2,039,468.62 | J33: $2,153,491.82 | K33: 0.90 | L33: $893,176.02 | M33: $216,546.64 | N33: $91,382.89 | O33: $35,837.30 | P33: $30,906.72 | Q33: $62,831.35 | R33: $19,266.34 | S33: $34,216.70 | T33: $39,855.42 | U33: $24,593.25 | V33: $59,126.76 | W33: $50,908.27 | X33: $41,058.43 | Y33: $1,599,706.09 | Z33: $25,121.70 | AA33: $35,057.50 | AB33: $91,149.50 | AC33: $9,535.64 | AD33: $160,142.66 | AE33: $107,845.45 | AF33: $381,706.06 | AG33: $262,791.02 | AH33: $765,601.53 | AI33: $1,838,951.06 | AJ33: $266,964.26 | AK33: $1,571,986.80 | AL33: $1,812,254.63 | AM33: $69,292.12 | AN33: $69,292.12 | AO33: $72,591.75 | AP33: $72,591.75 | AQ33: $0.00 | AR33: $0.00 | AS33: $0.00 | AT33: $0.00 | AU33: $0.00 | AV33: $130,665.15 | AW33: $52,928.96 | AX33: $20,375.46 | AY33: $487,737.31 | AZ33: $3,899,698.08 | BA33: $336,412.22 | BB33: $0.00 | BC33: $80,309.08 | BD33: $3,899,698.03
A34: 03025010026 | B34: ALTAMONT COMM UNIT SCH DIST 10 | C34: 686.45 | D34: $9,503,797.80 | E34: $7,159,783.89 | F34: 75% | G34: 1 | H34: $133,249.81 | I34: $3,552,602.03 | J34: $3,685,851.84 | K34: 0.90 | L34: $2,155,250.91 | M34: $532,371.87 | N34: $225,759.43 | O34: $90,284.05 | P34: $74,543.58 | Q34: $157,016.61 | R34: $49,542.03 | S34: $84,739.80 | T34: $100,000.87 | U34: $60,681.18 | V34: $148,354.41 | W34: $127,733.49 | X34: $101,683.77 | Y34: $3,907,962.00 | Z34: $61,038.00 | AA34: $85,806.25 | AB34: $223,096.25 | AC34: $23,339.30 | AD34: $391,962.95 | AE34: $276,150.18 | AF34: $934,258.45 | AG34: $643,203.65 | AH34: $1,860,954.30 | AI34: $4,499,809.33 | AJ34: $653,418.02 | AK34: $3,846,391.31 | AL34: $4,434,467.52 | AM34: $161,681.62 | AN34: $161,681.62 | AO34: $168,940.80 | AP34: $168,940.80 | AQ34: $0.00 | AR34: $0.00 | AS34: $0.00 | AT34: $0.00 | AU34: $0.00 | AV34: $320,723.55 | AW34: $129,916.54 | AX34: $49,483.26 | AY34: $1,161,368.19 | AZ34: $9,503,797.80 | BA34: $497,247.62 | BB34: $0.00 | BC34: $257,561.10 | BD34: $9,503,797.71
A35: 03025020026 | B35: BEECHER CITY C U SCHOOL DIST 20 | C35: 321.25 | D35: $4,238,184.82 | E35: $4,502,007.25 | F35: 106% | G35: 4 | H35: $269.96 | I35: $600,628.40 | J35: $600,898.36 | K35: 0.90 | L35: $997,513.47 | M35: $236,933.02 | N35: $103,934.83 | O35: $42,113.27 | P35: $33,992.82 | Q35: $70,271.60 | R35: $22,569.14 | S35: $39,295.74 | T35: $47,101.86 | U35: $28,335.70 | V35: $69,877.08 | W35: $60,164.32 | X35: $47,153.04 | Y35: $1,799,255.89 | Z35: $28,710.00 | AA35: $40,156.25 | AB35: $104,406.25 | AC35: $10,922.50 | AD35: $91,716.87 | AE35: $114,191.00 | AF35: $437,221.25 | AG35: $301,011.25 | AH35: $845,412.02 | AI35: $1,973,747.39 | AJ35: $305,791.45 | AK35: $1,667,955.94 | AL35: $1,943,168.24 | AM35: $63,352.80 | AN35: $63,352.80 | AO35: $65,992.50 | AP35: $65,992.50 | AQ35: $659.92 | AR35: $659.92 | AS35: $659.92 | AT35: $659.92 | AU35: $659.92 | AV35: $149,802.97 | AW35: $60,681.18 | AX35: $23,286.24 | AY35: $495,760.59 | AZ35: $4,238,184.82 | BA35: $214,480.31 | BB35: $18.24 | BC35: $91,193.67 | BD35: $4,238,184.72
A36: 03025030026 | B36: DIETERICH COMM UNIT SCH DIST 30 | C36: 572.25 | D36: $7,345,487.37 | E36: $4,829,425.29 | F36: 66% | G36: 1 | H36: $360,325.41 | I36: $2,897,744.57 | J36: $3,258,069.98 | K36: 0.90 | L36: $1,708,107.86 | M36: $404,839.38 | N36: $185,494.64 | O36: $75,157.45 | P36: $56,317.19 | Q36: $127,611.82 | R36: $40,734.55 | S36: $69,769.99 | T36: $84,058.70 | U36: $50,523.10 | V36: $124,703.71 | W36: $107,370.18 | X36: $83,720.70 | Y36: $3,118,409.27 | Z36: $51,255.00 | AA36: $71,531.25 | AB36: $185,981.25 | AC36: $19,456.50 | AD36: $326,754.75 | AE36: $203,614.50 | AF36: $778,832.25 | AG36: $536,198.25 | AH36: $1,415,064.94 | AI36: $3,588,688.69 | AJ36: $544,713.33 | AK36: $3,043,975.36 | AL36: $3,534,217.35 | AM36: $67,312.35 | AN36: $67,312.35 | AO36: $70,611.97 | AP36: $70,611.97 | AQ36: $0.00 | AR36: $0.00 | AS36: $0.00 | AT36: $0.00 | AU36: $0.00 | AV36: $267,269.62 | AW36: $108,263.79 | AX36: $41,478.61 | AY36: $692,860.66 | AZ36: $7,345,487.37 | BA36: $200,507.83 | BB36: $0.00 | BC36: $225,406.68 | BD36: $7,345,487.28
A37: 03025040026 | B37: EFFINGHAM COMM UNIT SCH DIST 40 | C37: 2300.71 | D37: $31,900,715.96 | E37: $30,181,066.69 | F37: 95% | G37: 3 | H37: $36,252.31 | I37: $6,393,735.89 | J37: $6,429,988.20 | K37: 0.90 | L37: $7,154,970.19 | M37: $1,754,299.74 | N37: $756,828.94 | O37: $305,590.64 | P37: $250,404.75 | Q37: $530,528.27 | R37: $167,892.43 | S37: $284,159.03 | T37: $339,133.39 | U37: $204,498.27 | V37: $503,114.97 | W37: $433,183.14 | X37: $340,977.44 | Y37: $13,025,581.20 | Z37: $204,611.40 | AA37: $287,588.75 | AB37: $747,730.75 | AC37: $78,224.14 | AD37: $1,313,705.41 | AE37: $908,919.90 | AF37: $3,131,266.31 | AG37: $2,155,765.27 | AH37: $6,253,124.78 | AI37: $15,080,936.71 | AJ37: $2,189,999.83 | AK37: $12,890,936.88 | AL37: $14,861,936.72 | AM37: $514,741.50 | AN37: $514,741.50 | AO37: $536,519.02 | AP37: $536,519.02 | AQ37: $43,555.05 | AR37: $43,555.05 | AS37: $44,874.90 | AT37: $44,874.90 | AU37: $54,113.85 | AV37: $1,076,337.67 | AW37: $435,995.65 | AX37: $167,369.85 | AY37: $4,013,197.96 | AZ37: $31,900,715.96 | BA37: $1,447,233.07 | BB37: $2,720.07 | BC37: $889,681.86 | BD37: $31,900,715.88
A38: 03025050026 | B38: TEUTOPOLIS C U SCHOOL DIST 50 | C38: 1071.5 | D38: $13,252,396.37 | E38: $10,454,826.47 | F38: 79% | G38: 2 | H38: $66,783.91 | I38: $3,325,385.85 | J38: $3,392,169.76 | K38: 0.90 | L38: $3,078,630.65 | M38: $741,584.42 | N38: $350,749.82 | O38: $142,438.88 | P38: $98,945.60 | Q38: $242,655.98 | R38: $77,615.84 | S38: $131,787.77 | T38: $158,697.03 | U38: $95,165.20 | V38: $235,432.00 | W38: $202,707.49 | X38: $158,139.11 | Y38: $5,714,549.79 | Z38: $95,580.00 | AA38: $133,937.50 | AB38: $348,237.50 | AC38: $36,431.00 | AD38: $611,826.50 | AE38: $399,761.00 | AF38: $1,458,311.50 | AG38: $1,003,995.50 | AH38: $2,521,327.42 | AI38: $6,609,407.92 | AJ38: $1,019,939.42 | AK38: $5,589,468.50 | AL38: $6,507,413.97 | AM38: $60,713.10 | AN38: $60,713.10 | AO38: $63,352.80 | AP38: $63,352.80 | AQ38: $0.00 | AR38: $0.00 | AS38: $0.00 | AT38: $0.00 | AU38: $659.92 | AV38: $500,883.07 | AW38: $202,894.36 | AX38: $77,863.36 | AY38: $1,030,432.51 | AZ38: $13,252,396.37 | BA38: $57,391.09 | BB38: $16.20 | BC38: $265,903.72 | BD38: $13,252,396.27
A39: 03026201026 | B39: BROWNSTOWN C U SCH DIST 201 | C39: 375.75 | D39: $5,172,098.92 | E39: $3,518,637.33 | F39: 68% | G39: 1 | H39: $218,487.13 | I39: $2,435,781.36 | J39: $2,654,268.49 | K39: 0.90 | L39: $1,195,806.33 | M39: $279,766.91 | N39: $121,162.69 | O39: $49,738.68 | P39: $41,186.20 | Q39: $81,377.44 | R39: $26,422.41 | S39: $45,711.37 | T39: $55,797.58 | U39: $33,147.43 | V39: $82,777.46 | W39: $71,271.58 | X39: $54,851.49 | Y39: $2,139,017.57 | Z39: $33,570.00 | AA39: $46,968.75 | AB39: $122,118.75 | AC39: $12,775.50 | AD39: $214,553.25 | AE39: $127,143.00 | AF39: $511,395.75 | AG39: $352,077.75 | AH39: $1,016,994.72 | AI39: $2,437,597.47 | AJ39: $357,668.91 | AK39: $2,079,928.56 | AL39: $2,401,830.57 | AM39: $87,770.02 | AN39: $87,770.02 | AO39: $91,069.65 | AP39: $91,069.65 | AQ39: $0.00 | AR39: $0.00 | AS39: $0.00 | AT39: $0.00 | AU39: $0.00 | AV39: $175,540.05 | AW39: $71,106.58 | AX39: $26,924.71 | AY39: $631,250.68 | AZ39: $5,172,098.92 | BA39: $338,263.01 | BB39: $0.00 | BC39: $154,164.91 | BD39: $5,172,098.82
A40: 03026202026 | B40: ST ELMO C U SCHOOL DIST 202 | C40: 391.38 | D40: $5,584,053.16 | E40: $4,580,057.76 | F40: 82% | G40: 2 | H40: $31,516.29 | I40: $2,417,145.22 | J40: $2,448,661.51 | K40: 0.90 | L40: $1,266,333.01 | M40: $308,209.32 | N40: $127,597.19 | O40: $50,837.52 | P40: $44,636.49 | Q40: $88,599.56 | R40: $27,523.35 | S40: $47,849.92 | T40: $56,522.23 | U40: $34,216.70 | V40: $83,852.49 | W40: $72,197.19 | X40: $57,417.65 | Y40: $2,265,792.62 | Z40: $35,021.70 | AA40: $48,922.50 | AB40: $127,198.50 | AC40: $13,306.92 | AD40: $223,477.98 | AE40: $151,895.93 | AF40: $532,668.18 | AG40: $366,723.06 | AH40: $1,103,187.18 | AI40: $2,602,401.95 | AJ40: $372,546.79 | AK40: $2,229,855.16 | AL40: $2,565,147.27 | AM40: $112,847.17 | AN40: $112,847.17 | AO40: $117,466.65 | AP40: $117,466.65 | AQ40: $1,319.85 | AR40: $1,319.85 | AS40: $1,319.85 | AT40: $1,319.85 | AU40: $1,979.77 | AV40: $182,799.22 | AW40: $74,047.08 | AX40: $28,380.10 | AY40: $753,113.21 | AZ40: $5,584,053.16 | BA40: $359,945.95 | BB40: $304.79 | BC40: $142,846.52 | BD40: $5,584,053.10
A41: 03026203026 | B41: VANDALIA C U SCH DIST 203 | C41: 1348.5 | D41: $18,685,047.54 | E41: $13,516,617.80 | F41: 72% | G41: 1 | H41: $483,339.55 | I41: $8,319,561.15 | J41: $8,802,900.70 | K41: 0.90 | L41: $4,279,646.25 | M41: $1,022,585.64 | N41: $440,656.89 | O41: $179,248.64 | P41: $148,125.10 | Q41: $298,737.99 | R41: $97,983.12 | S41: $165,737.16 | T41: $200,001.74 | U41: $119,758.46 | V41: $296,708.83 | W41: $255,466.98 | X41: $198,876.78 | Y41: $7,703,533.58 | Z41: $120,825.00 | AA41: $168,562.50 | AB41: $438,262.50 | AC41: $45,849.00 | AD41: $769,993.50 | AE41: $490,476.50 | AF41: $1,835,308.50 | AG41: $1,263,544.50 | AH41: $3,671,927.66 | AI41: $8,804,749.66 | AJ41: $1,283,610.18 | AK41: $7,521,139.48 | AL41: $8,676,388.64 | AM41: $322,043.40 | AN41: $322,043.40 | AO41: $335,241.90 | AP41: $335,241.90 | AQ41: $1,319.85 | AR41: $1,319.85 | AS41: $1,319.85 | AT41: $1,319.85 | AU41: $1,319.85 | AV41: $630,888.30 | AW41: $255,556.00 | AX41: $97,511.13 | AY41: $2,305,125.28 | AZ41: $18,685,047.54 | BA41: $1,284,814.51 | BB41: $193.33 | BC41: $597,510.09 | BD41: $18,685,047.50
A42: 03026204026 | B42: RAMSEY COMM UNIT SCH DIST 204 | C42: 387.45 | D42: $5,351,396.11 | E42: $3,983,615.42 | F42: 74% | G42: 1 | H42: $101,586.65 | I42: $2,753,985.11 | J42: $2,855,571.76 | K42: 0.90 | L42: $1,216,063.14 | M42: $298,732.68 | N42: $126,530.49 | O42: $50,304.17 | P42: $42,059.52 | Q42: $87,341.34 | R42: $27,523.35 | S42: $47,315.28 | T42: $55,797.58 | U42: $34,216.70 | V42: $82,777.46 | W42: $71,271.58 | X42: $56,776.11 | Y42: $2,196,709.40 | Z42: $34,406.10 | AA42: $48,431.25 | AB42: $125,921.25 | AC42: $13,173.30 | AD42: $221,233.95 | AE42: $153,777.03 | AF42: $527,319.45 | AG42: $363,040.65 | AH42: $1,047,709.88 | AI42: $2,535,012.86 | AJ42: $368,805.90 | AK42: $2,166,206.96 | AL42: $2,498,132.27 | AM42: $91,729.57 | AN42: $91,729.57 | AO42: $95,689.12 | AP42: $95,689.12 | AQ42: $0.00 | AR42: $0.00 | AS42: $0.00 | AT42: $0.00 | AU42: $0.00 | AV42: $180,819.45 | AW42: $73,245.13 | AX42: $27,652.41 | AY42: $656,554.37 | AZ42: $5,351,396.11 | BA42: $407,115.41 | BB42: $0.00 | BC42: $147,696.02 | BD42: $5,351,396.04
A43: 03068002026 | B43: PANHANDLE COMM UNIT SCH DIST 2 | C43: 421.79 | D43: $5,773,466.45 | E43: $5,433,527.43 | F43: 94% | G43: 3 | H43: $6,561.02 | I43: $1,218,249.32 | J43: $1,224,810.34 | K43: 0.90 | L43: $1,313,092.24 | M43: $320,447.82 | N43: $137,576.63 | O43: $54,791.60 | P43: $45,248.34 | Q43: $95,741.64 | R43: $30,275.68 | S43: $51,592.37 | T43: $60,870.09 | U43: $37,157.20 | V43: $90,302.68 | W43: $77,750.82 | X43: $61,908.41 | Y43: $2,376,755.52 | Z43: $37,841.40 | AA43: $52,723.75 | AB43: $137,081.75 | AC43: $14,340.86 | AD43: $240,842.09 | AE43: $165,506.14 | AF43: $574,056.19 | AG43: $395,217.23 | AH43: $1,128,025.54 | AI43: $2,745,634.95 | AJ43: $401,493.46 | AK43: $2,344,141.49 | AL43: $2,705,485.60 | AM43: $87,770.02 | AN43: $87,770.02 | AO43: $91,729.57 | AP43: $91,729.57 | AQ43: $4,619.47 | AR43: $4,619.47 | AS43: $4,619.47 | AT43: $4,619.47 | AU43: $5,939.32 | AV43: $197,317.57 | AW43: $79,928.08 | AX43: $30,563.19 | AY43: $691,225.22 | AZ43: $5,773,466.45 | BA43: $223,284.60 | BB43: $91.11 | BC43: $72,081.16 | BD43: $5,773,466.34
A44: 03068003026 | B44: HILLSBORO COMM UNIT SCH DIST 3 | C44: 1470.37 | D44: $20,091,333.48 | E44: $16,531,149.64 | F44: 82% | G44: 2 | H44: $96,184.68 | I44: $5,866,116.63 | J44: $5,962,301.31 | K44: 0.90 | L44: $4,581,270.20 | M44: $1,111,488.35 | N44: $482,333.23 | O44: $195,441.94 | P44: $157,304.87 | Q44: $335,299.35 | R44: $107,341.06 | S44: $181,241.60 | T44: $217,393.20 | U44: $130,451.18 | V44: $322,509.60 | W44: $277,681.50 | X44: $217,481.38 | Y44: $8,317,237.46 | Z44: $131,381.10 | AA44: $183,796.25 | AB44: $477,870.25 | AC44: $49,992.58 | AD44: $839,581.27 | AE44: $563,341.03 | AF44: $2,001,173.57 | AG44: $1,377,736.69 | AH44: $3,927,192.92 | AI44: $9,552,065.66 | AJ44: $1,399,615.79 | AK44: $8,152,449.87 | AL44: $9,412,104.08 | AM44: $315,444.15 | AN44: $315,444.15 | AO44: $328,642.65 | AP44: $328,642.65 | AQ44: $0.00 | AR44: $0.00 | AS44: $0.00 | AT44: $0.00 | AU44: $659.92 | AV44: $687,641.85 | AW44: $278,545.35 | AX44: $106,971.16 | AY44: $2,361,991.88 | AZ44: $20,091,333.48 | BA44: $1,212,924.31 | BB44: $134.17 | BC44: $363,245.93 | BD44: $20,091,333.42
A45: 03068012026 | B45: LITCHFIELD C U SCHOOL DIST 12 | C45: 1216.14 | D45: $17,337,835.88 | E45: $13,533,849.74 | F45: 78% | G45: 2 | H45: $128,378.66 | I45: $6,604,761.27 | J45: $6,733,139.93 | K45: 0.90 | L45: $3,909,777.49 | M45: $953,519.21 | N45: $398,702.14 | O45: $161,142.57 | P45: $138,157.82 | Q45: $277,864.57 | R45: $88,625.18 | S45: $149,698.08 | T45: $178,987.06 | U45: $107,996.47 | V45: $265,532.90 | W45: $228,624.43 | X45: $179,630.64 | Y45: $7,038,258.56 | Z45: $108,552.60 | AA45: $152,017.50 | AB45: $395,245.50 | AC45: $41,348.76 | AD45: $694,415.94 | AE45: $474,295.74 | AF45: $1,655,166.54 | AG45: $1,139,523.18 | AH45: $3,424,182.91 | AI45: $8,084,748.67 | AJ45: $1,157,619.34 | AK45: $6,927,129.33 | AL45: $7,968,986.73 | AM45: $349,760.25 | AN45: $349,760.25 | AO45: $364,938.52 | AP45: $364,938.52 | AQ45: $2,639.70 | AR45: $2,639.70 | AS45: $2,639.70 | AT45: $2,639.70 | AU45: $3,299.62 | AV45: $568,855.35 | AW45: $230,428.11 | AX45: $88,051.09 | AY45: $2,330,590.51 | AZ45: $17,337,835.88 | BA45: $1,234,354.30 | BB45: $1,338.58 | BC45: $305,238.08 | BD45: $17,337,835.80
A46: 03068022026 | B46: NOKOMIS COMM UNIT SCH DIST 22 | C46: 550.7 | D46: $7,502,680.13 | E46: $6,064,492.83 | F46: 81% | G46: 2 | H46: $41,647.92 | I46: $3,117,794.51 | J46: $3,159,442.43 | K46: 0.90 | L46: $1,705,265.64 | M46: $416,106.23 | N46: $180,255.40 | O46: $72,396.45 | P46: $58,584.12 | Q46: $124,986.33 | R46: $39,633.62 | S46: $67,898.77 | T46: $80,435.48 | U46: $48,384.55 | V46: $119,328.55 | W46: $102,742.15 | X46: $81,475.32 | Y46: $3,097,492.61 | Z46: $49,060.80 | AA46: $68,837.50 | AB46: $178,977.50 | AC46: $18,723.80 | AD46: $314,449.70 | AE46: $213,962.34 | AF46: $749,502.70 | AG46: $516,005.90 | AH46: $1,464,694.02 | AI46: $3,574,214.26 | AJ46: $524,200.31 | AK46: $3,050,013.95 | AL46: $3,521,794.22 | AM46: $118,126.57 | AN46: $118,126.57 | AO46: $122,746.05 | AP46: $122,746.05 | AQ46: $0.00 | AR46: $0.00 | AS46: $0.00 | AT46: $0.00 | AU46: $0.00 | AV46: $257,370.75 | AW46: $104,254.02 | AX46: $40,023.22 | AY46: $883,393.23 | AZ46: $7,502,680.13 | BA46: $603,590.35 | BB46: $0.00 | BC46: $122,796.86 | BD46: $7,502,680.06
B47: ALT SCH-BOONE/WINNEBAGO ROE | C47: 17 | D47: $219,656.29 | E47: $302,044.30 | F47: 138% | G47: 4 | H47: $13.99 | I47: $280,078.68 | J47: $280,092.67 | K47: 0.92 | L47: $50,237.37 | M47: $11,809.04 | N47: $5,298.23 | O47: $1,276.62 | P47: $1,781.19 | Q47: $4,223.79 | R47: $559.86 | S47: $1,903.18 | T47: $1,474.03 | U47: $1,359.41 | V47: $2,186.78 | W47: $1,882.82 | X47: $2,283.72 | Y47: $86,276.04 | Z47: $1,530.00 | AA47: $2,125.00 | AB47: $5,525.00 | AC47: $578.00 | AD47: $4,853.50 | AE47: $6,673.00 | AF47: $23,137.00 | AG47: $15,929.00 | AH47: $42,877.45 | AI47: $103,227.95 | AJ47: $16,181.96 | AK47: $87,045.99 | AL47: $101,858.47 | AM47: $4,698.36 | AN47: $4,698.36 | AO47: $4,698.36 | AP47: $4,698.36 | AQ47: $0.00 | AR47: $0.00 | AS47: $0.00 | AT47: $0.00 | AU47: $671.19 | AV47: $8,054.34 | AW47: $3,262.59 | AX47: $740.12 | AY47: $31,521.68 | AZ47: $219,656.29 | BA47: $6.71 | BB47: $0.05 | BC47: $2.86 | BD47: $219,656.19
B48: SAFE SCH-BOONE/WINNEBAGO ROE | C48: 163 | D48: $2,430,844.64 | E48: $1,936,393.16 | F48: 80% | G48: 2 | H48: $20,287.97 | I48: $1,693,308.70 | J48: $1,713,596.67 | K48: 0.92 | L48: $512,295.18 | M48: $144,541.06 | N48: $56,208.81 | O48: $20,587.31 | P48: $18,784.17 | Q48: $48,370.32 | R48: $11,757.22 | S48: $20,935.00 | T48: $22,110.57 | U48: $14,409.80 | V48: $32,801.73 | W48: $28,242.36 | X48: $25,121.02 | Y48: $956,164.55 | Z48: $14,670.00 | AA48: $20,375.00 | AB48: $52,975.00 | AC48: $5,542.00 | AD48: $93,073.00 | AE48: $98,537.00 | AF48: $221,843.00 | AG48: $152,731.00 | AH48: $470,837.09 | AI48: $1,130,583.09 | AJ48: $155,156.44 | AK48: $975,426.65 | AL48: $1,117,452.20 | AM48: $46,312.45 | AN48: $46,312.45 | AO48: $48,326.04 | AP48: $48,326.04 | AQ48: $8,725.53 | AR48: $8,725.53 | AS48: $9,396.73 | AT48: $9,396.73 | AU48: $11,410.31 | AV48: $77,187.43 | AW48: $31,266.56 | AX48: $11,841.95 | AY48: $357,227.75 | AZ48: $2,430,844.64 | BA48: $94,303.69 | BB48: $4,522.08 | BC48: $39,348.94 | BD48: $2,430,844.50
B49: ALOP-BOONE/WINNEBAGO ROE | C49: 126.98 | D49: $1,964,066.91 | E49: $1,680,550.92 | F49: 86% | G49: 2 | H49: $7,030.63 | I49: $1,484,144.23 | J49: $1,491,174.86 | K49: 0.92 | L49: $421,223.30 | M49: $140,223.54 | N49: $46,252.86 | O49: $15,417.62 | P49: $14,693.07 | Q49: $39,205.29 | R49: $8,957.88 | S49: $17,128.64 | T49: $15,477.40 | U49: $11,419.09 | V49: $22,961.21 | W49: $19,769.65 | X49: $20,553.56 | Y49: $793,283.11 | Z49: $11,428.20 | AA49: $15,872.50 | AB49: $41,268.50 | AC49: $4,317.32 | AD49: $72,505.58 | AE49: $108,673.22 | AF49: $172,819.78 | AG49: $118,980.26 | AH49: $376,275.09 | AI49: $922,140.45 | AJ49: $120,869.72 | AK49: $801,270.73 | AL49: $911,911.24 | AM49: $36,244.53 | AN49: $36,244.53 | AO49: $37,586.92 | AP49: $37,586.92 | AQ49: $3,355.97 | AR49: $3,355.97 | AS49: $3,355.97 | AT49: $3,355.97 | AU49: $4,027.17 | AV49: $60,407.55 | AW49: $24,469.48 | AX49: $8,881.46 | AY49: $258,872.44 | AZ49: $1,964,066.91 | BA49: $55,309.40 | BB49: $3,876.61 | BC49: $22,623.72 | BD49: $1,964,066.79
A50: 04004100026 | B50: BELVIDERE C U SCH DIST 100 | C50: 7394.3 | D50: $112,238,842.06 | E50: $82,598,958.76 | F50: 74% | G50: 1 | H50: $2,381,222.26 | I50: $40,922,609.44 | J50: $43,303,831.70 | K50: 0.95 | L50: $24,517,900.40 | M50: $6,091,940.54 | N50: $2,588,943.34 | O50: $1,037,788.00 | P50: $918,427.77 | Q50: $1,838,861.77 | R50: $573,870.21 | S50: $971,708.98 | T50: $1,147,765.56 | U50: $697,840.55 | V50: $1,702,746.05 | W50: $1,466,068.22 | X50: $1,166,004.98 | Y50: $44,719,866.37 | Z50: $662,652.00 | AA50: $924,287.50 | AB50: $2,403,147.50 | AC50: $251,406.20 | AD50: $4,222,145.30 | AE50: $3,068,811.50 | AF50: $10,063,642.30 | AG50: $6,928,459.10 | AH50: $21,499,700.64 | AI50: $50,024,252.04 | AJ50: $7,038,486.28 | AK50: $42,985,765.76 | AL50: $49,697,103.19 | AM50: $1,763,303.05 | AN50: $1,763,303.05 | AO50: $1,836,715.75 | AP50: $1,836,715.75 | AQ50: $918,707.46 | AR50: $918,707.46 | AS50: $957,161.73 | AT50: $957,161.73 | AU50: $1,148,733.91 | AV50: $3,666,439.82 | AW50: $1,485,176.89 | AX50: $569,745.79 | AY50: $17,821,872.39 | AZ50: $112,238,842.06 | BA50: $5,281,762.83 | BB50: $927,264.05 | BC50: $3,336,335.81 | BD50: $112,238,841.95
A51: 04004200026 | B51: NORTH BOONE C U SCH DIST 200 | C51: 1502.62 | D51: $21,551,007.85 | E51: $15,021,888.17 | F51: 70% | G51: 1 | H51: $757,452.21 | I51: $8,864,926.39 | J51: $9,622,378.60 | K51: 0.95 | L51: $4,907,638.73 | M51: $1,197,954.71 | N51: $522,187.99 | O51: $210,788.23 | P51: $173,196.19 | Q51: $367,705.99 | R51: $115,473.88 | S51: $196,267.65 | T51: $234,159.52 | U51: $141,324.04 | V51: $347,382.97 | W51: $299,097.53 | X51: $235,511.93 | Y51: $8,948,689.36 | Z51: $134,740.80 | AA51: $187,827.50 | AB51: $488,351.50 | AC51: $51,089.08 | AD51: $857,996.02 | AE51: $589,781.34 | AF51: $2,045,065.82 | AG51: $1,407,954.94 | AH51: $4,079,388.90 | AI51: $9,842,195.90 | AJ51: $1,430,313.92 | AK51: $8,411,881.98 | AL51: $9,775,714.90 | AM51: $311,829.16 | AN51: $311,829.16 | AO51: $325,113.37 | AP51: $325,113.37 | AQ51: $73,412.69 | AR51: $73,412.69 | AS51: $76,209.37 | AT51: $76,209.37 | AU51: $91,591.07 | AV51: $744,614.49 | AW51: $301,623.45 | AX51: $115,645.28 | AY51: $2,826,603.47 | AZ51: $21,551,007.85 | BA51: $944,005.86 | BB51: $109,272.41 | BC51: $726,325.10 | BD51: $21,551,007.73
A52: 04101122022 | B52: HARLEM UNIT DIST 122 | C52: 6016.86 | D52: $85,596,630.89 | E52: $70,874,251.41 | F52: 83% | G52: 2 | H52: $400,956.65 | I52: $32,524,416.40 | J52: $32,925,373.05 | K52: 0.92 | L52: $19,245,172.89 | M52: $4,677,952.78 | N52: $2,010,286.04 | O52: $816,056.70 | P52: $682,794.25 | Q52: $1,400,614.66 | R52: $448,454.07 | S52: $755,291.52 | T52: $907,270.76 | U52: $545,125.81 | V52: $1,345,964.51 | W52: $1,158,878.51 | X52: $906,314.22 | Y52: $34,900,176.72 | Z52: $536,440.50 | AA52: $752,107.50 | AB52: $1,955,479.50 | AC52: $204,573.24 | AD52: $3,435,627.06 | AE52: $2,317,266.29 | AF52: $8,188,946.46 | AG52: $5,637,797.82 | AH52: $16,689,467.48 | AI52: $39,717,705.85 | AJ52: $5,727,328.69 | AK52: $33,990,377.16 | AL52: $39,233,002.02 | AM52: $1,488,039.43 | AN52: $1,488,039.43 | AO52: $1,549,789.37 | AP52: $1,549,789.37 | AQ52: $172,497.12 | AR52: $172,497.12 | AS52: $179,209.07 | AT52: $179,209.07 | AU52: $215,453.61 | AV52: $2,863,989.28 | AW52: $1,160,125.60 | AX52: $444,813.57 | AY52: $11,463,452.04 | AZ52: $85,596,630.89 | BA52: $4,503,758.71 | BB52: $123,669.52 | BC52: $2,531,411.85 | BD52: $85,596,630.78
A53: 04101131004 | B53: KINNIKINNICK C C SCH DIST 131 | C53: 1685.3 | D53: $20,958,569.19 | E53: $17,145,233.23 | F53: 82% | G53: 2 | H53: $87,730.22 | I53: $4,443,641.28 | J53: $4,531,371.50 | K53: 0.92 | L53: $4,945,026.01 | M53: $989,005.20 | N53: $537,461.19 | O53: $238,729.79 | P53: $165,651.49 | Q53: $329,521.90 | R53: $125,410.37 | S53: $203,368.63 | T53: $275,645.22 | U53: $152,526.47 | V53: $408,928.29 | W53: $352,088.19 | X53: $244,032.77 | Y53: $8,967,395.52 | Z53: $149,817.60 | AA53: $210,662.50 | AB53: $547,722.50 | AC53: $57,300.20 | AD53: $962,306.30 | AE53: $281,258.60 | AF53: $2,293,693.30 | AG53: $1,579,126.10 | AH53: $4,027,226.43 | AI53: $10,109,113.53 | AJ53: $1,604,203.36 | AK53: $8,504,910.17 | AL53: $9,973,349.79 | AM53: $162,429.20 | AN53: $162,429.20 | AO53: $169,141.15 | AP53: $169,141.15 | AQ53: $19,464.65 | AR53: $19,464.65 | AS53: $20,135.85 | AT53: $20,135.85 | AU53: $24,163.02 | AV53: $802,078.08 | AW53: $324,900.42 | AX53: $124,340.56 | AY53: $2,017,823.78 | AZ53: $20,958,569.19 | BA53: $191,345.25 | BB53: $2,071.93 | BC53: $672,332.36 | BD53: $20,958,569.09
A54: 04101133004 | B54: PRAIRIE HILL C C SCH DIST 133 | C54: 730 | D54: $8,882,862.15 | E54: $6,136,017.42 | F54: 69% | G54: 1 | H54: $310,858.19 | I54: $2,358,675.20 | J54: $2,669,533.39 | K54: 0.92 | L54: $2,112,822.52 | M54: $422,564.50 | N54: $232,984.96 | O54: $102,768.70 | P54: $69,676.82 | Q54: $138,275.37 | R54: $53,747.30 | S54: $87,818.27 | T54: $118,660.10 | U54: $65,795.73 | V54: $176,035.97 | W54: $151,567.37 | X54: $105,377.78 | Y54: $3,838,095.39 | Z54: $64,665.00 | AA54: $91,250.00 | AB54: $237,250.00 | AC54: $24,820.00 | AD54: $416,830.00 | AE54: $117,588.50 | AF54: $993,530.00 | AG54: $684,010.00 | AH54: $1,697,782.79 | AI54: $4,327,726.29 | AJ54: $694,872.40 | AK54: $3,632,853.89 | AL54: $4,268,919.23 | AM54: $44,298.87 | AN54: $44,298.87 | AO54: $46,312.45 | AP54: $46,312.45 | AQ54: $10,067.92 | AR54: $10,067.92 | AS54: $10,067.92 | AT54: $10,067.92 | AU54: $12,752.70 | AV54: $347,007.84 | AW54: $140,563.61 | AX54: $54,028.93 | AY54: $775,847.40 | AZ54: $8,882,862.15 | BA54: $72,173.96 | BB54: $3,871.53 | BC54: $275,128.24 | BD54: $8,882,862.02
A55: 04101134004 | B55: SHIRLAND C C SCHOOL DIST 134 | C55: 103.75 | D55: $1,283,333.64 | E55: $1,370,921.83 | F55: 107% | G55: 4 | H55: $81.74 | I55: $116,026.32 | J55: $116,108.06 | K55: 0.92 | L55: $314,050.96 | M55: $62,810.19 | N55: $32,554.06 | O55: $14,042.92 | P55: $10,542.61 | Q55: $19,262.24 | R55: $7,278.28 | S55: $12,506.62 | T55: $16,214.42 | U55: $9,244.02 | V55: $24,054.60 | W55: $20,711.07 | X55: $15,007.36 | Y55: $558,279.35 | Z55: $9,270.00 | AA55: $12,968.75 | AB55: $33,718.75 | AC55: $3,527.50 | AD55: $29,620.62 | AE55: $17,091.00 | AF55: $141,203.75 | AG55: $97,213.75 | AH55: $253,486.87 | AI55: $598,100.99 | AJ55: $98,757.55 | AK55: $499,343.44 | AL55: $589,743.13 | AM55: $12,752.70 | AN55: $12,752.70 | AO55: $13,423.90 | AP55: $13,423.90 | AQ55: $1,342.39 | AR55: $1,342.39 | AS55: $1,342.39 | AT55: $1,342.39 | AU55: $1,342.39 | AV55: $48,997.23 | AW55: $19,847.47 | AX55: $7,401.22 | AY55: $135,311.07 | AZ55: $1,283,333.64 | BA55: $23,124.63 | BB55: $4.14 | BC55: $34,161.88 | BD55: $1,283,333.55
A56: 04101140004 | B56: ROCKTON SCH DIST 140 | C56: 1558.75 | D56: $19,429,069.70 | E56: $13,286,841.63 | F56: 68% | G56: 1 | H56: $748,137.00 | I56: $5,703,100.90 | J56: $6,451,237.90 | K56: 0.92 | L56: $4,579,271.53 | M56: $915,854.30 | N56: $497,247.35 | O56: $220,218.66 | P56: $153,763.73 | Q56: $304,068.22 | R56: $115,892.62 | S56: $188,143.17 | T56: $254,271.66 | U56: $140,835.49 | V56: $377,219.94 | W56: $324,787.23 | X56: $225,762.93 | Y56: $8,297,336.83 | Z56: $138,375.00 | AA56: $194,843.75 | AB56: $506,593.75 | AC56: $52,997.50 | AD56: $890,046.25 | AE56: $259,457.50 | AF56: $2,121,458.75 | AG56: $1,460,548.75 | AH56: $3,735,832.13 | AI56: $9,360,153.38 | AJ56: $1,483,742.95 | AK56: $7,876,410.43 | AL56: $9,234,584.21 | AM56: $158,402.03 | AN56: $158,402.03 | AO56: $165,113.98 | AP56: $165,113.98 | AQ56: $17,451.07 | AR56: $17,451.07 | AS56: $18,122.26 | AT56: $18,122.26 | AU56: $22,149.43 | AV56: $741,670.53 | AW56: $300,430.93 | AX56: $114,718.97 | AY56: $1,897,148.54 | AZ56: $19,429,069.70 | BA56: $352,042.94 | BB56: $10,306.06 | BC56: $609,996.03 | BD56: $19,429,069.58
A57: 04101205025 | B57: ROCKFORD SCHOOL DIST 205 | C57: 25548.12 | D57: $406,606,154.87 | E57: $326,864,525.66 | F57: 80% | G57: 2 | H57: $2,920,485.31 | I57: $176,993,641.38 | J57: $179,914,126.69 | K57: 0.92 | L57: $87,105,979.81 | M57: $20,950,312.76 | N57: $8,519,693.09 | O57: $3,473,467.78 | P57: $3,402,828.38 | Q57: $5,852,505.51 | R57: $1,906,349.69 | S57: $3,202,512.18 | T57: $3,869,351.37 | U57: $2,315,085.42 | V57: $5,740,303.57 | W57: $4,942,414.45 | X57: $3,842,863.66 | Y57: $155,123,667.67 | Z57: $2,282,291.10 | AA57: $3,193,515.00 | AB57: $8,303,139.00 | AC57: $868,636.08 | AD57: $14,587,976.52 | AE57: $9,519,342.61 | AF57: $34,770,991.32 | AG57: $23,938,588.44 | AH57: $81,470,891.39 | AI57: $178,935,371.46 | AJ57: $24,318,744.46 | AK57: $154,616,627.00 | AL57: $176,877,276.11 | AM57: $9,630,977.80 | AN57: $9,630,977.80 | AO57: $10,032,352.44 | AP57: $10,032,352.44 | AQ57: $3,056,622.26 | AR57: $3,056,622.26 | AS57: $3,183,478.13 | AT57: $3,183,478.13 | AU57: $3,820,442.23 | AV57: $12,161,383.15 | AW57: $4,926,251.65 | AX57: $1,890,272.64 | AY57: $74,605,210.93 | AZ57: $406,606,154.87 | BA57: $57,561,471.62 | BB57: $3,567,768.57 | BC57: $12,806,818.05 | BD57: $406,606,154.71
A58: 04101207016 | B58: HONONEGAH COMM H S DIST 207 | C58: 1904.49 | D58: $26,350,014.92 | E58: $19,711,537.98 | F58: 75% | G58: 1 | H58: $433,637.71 | I58: $6,752,727.09 | J58: $7,186,364.80 | K58: 0.92 | L58: $5,836,671.44 | M58: $1,945,362.58 | N58: $698,932.22 | O58: $232,732.68 | P58: $185,398.24 | Q58: $596,704.62 | R58: $141,646.54 | S58: $258,832.80 | T58: $233,635.12 | U58: $172,373.94 | V58: $346,604.99 | W58: $298,427.69 | X58: $310,587.16 | Y58: $11,257,910.02 | Z58: $171,404.10 | AA58: $238,061.25 | AB58: $618,959.25 | AC58: $64,752.66 | AD58: $1,087,463.79 | AE58: $1,635,956.91 | AF58: $2,592,010.89 | AG58: $1,784,507.13 | AH58: $4,883,536.70 | AI58: $13,076,652.68 | AJ58: $1,812,845.94 | AK58: $11,263,806.74 | AL58: $12,923,231.52 | AM58: $178,537.88 | AN58: $178,537.88 | AO58: $185,921.02 | AP58: $185,921.02 | AQ58: $4,698.36 | AR58: $4,698.36 | AS58: $5,369.56 | AT58: $5,369.56 | AU58: $6,040.75 | AV58: $906,113.32 | AW58: $367,042.31 | AX58: $140,623.25 | AY58: $2,168,873.27 | AZ58: $26,350,014.92 | BA58: $251,397.79 | BB58: $2,217.97 | BC58: $691,572.03 | BD58: $26,350,014.81
A59: 04101320026 | B59: SOUTH BELOIT C U SCH DIST 320 | C59: 862.7 | D59: $12,628,384.51 | E59: $10,316,602.51 | F59: 82% | G59: 2 | H59: $77,069.56 | I59: $5,328,098.56 | J59: $5,405,168.12 | K59: 0.92 | L59: $2,801,239.10 | M59: $668,095.26 | N59: $286,074.19 | O59: $116,816.05 | P59: $102,518.66 | Q59: $197,135.21 | R59: $63,265.05 | S59: $107,393.86 | T59: $130,452.41 | U59: $78,030.47 | V59: $193,530.23 | W59: $166,629.97 | X59: $128,867.57 | Y59: $5,040,048.03 | Z59: $76,878.00 | AA59: $107,837.50 | AB59: $280,377.50 | AC59: $29,331.80 | AD59: $492,601.70 | AE59: $313,037.16 | AF59: $1,174,134.70 | AG59: $808,349.90 | AH59: $2,484,306.29 | AI59: $5,766,854.55 | AJ59: $821,186.87 | AK59: $4,945,667.68 | AL59: $5,697,357.50 | AM59: $241,630.21 | AN59: $241,630.21 | AO59: $251,698.14 | AP59: $251,698.14 | AQ59: $49,668.43 | AR59: $49,668.43 | AS59: $51,682.01 | AT59: $51,682.01 | AU59: $61,749.94 | AV59: $410,100.17 | AW59: $166,120.63 | AX59: $63,650.52 | AY59: $1,890,978.84 | AZ59: $12,628,384.51 | BA59: $1,152,749.59 | BB59: $27,173.21 | BC59: $381,688.26 | BD59: $12,628,384.37
A60: 04101321026 | B60: PECATONICA C U SCH DIST 321 | C60: 882.75 | D60: $11,560,585.74 | E60: $8,150,185.39 | F60: 70% | G60: 1 | H60: $360,738.09 | I60: $3,240,660.40 | J60: $3,601,398.49 | K60: 0.92 | L60: $2,663,280.44 | M60: $652,149.48 | N60: $294,662.07 | O60: $118,859.54 | P60: $88,555.37 | Q60: $207,809.43 | R60: $65,504.52 | S60: $110,656.46 | T60: $131,926.45 | U60: $79,661.77 | V60: $195,717.01 | W60: $168,512.79 | X60: $132,782.53 | Y60: $4,910,077.86 | Z60: $78,750.00 | AA60: $110,343.75 | AB60: $286,893.75 | AC60: $30,013.50 | AD60: $504,050.25 | AE60: $349,463.00 | AF60: $1,201,422.75 | AG60: $827,136.75 | AH60: $2,202,842.43 | AI60: $5,590,916.18 | AJ60: $840,272.07 | AK60: $4,750,644.11 | AL60: $5,519,803.95 | AM60: $106,720.01 | AN60: $106,720.01 | AO60: $111,418.37 | AP60: $111,418.37 | AQ60: $7,383.14 | AR60: $7,383.14 | AS60: $7,383.14 | AT60: $7,383.14 | AU60: $9,396.73 | AV60: $420,168.10 | AW60: $170,198.88 | AX60: $65,130.77 | AY60: $1,130,703.80 | AZ60: $11,560,585.74 | BA60: $192,289.58 | BB60: $2,947.79 | BC60: $345,920.62 | BD60: $11,560,585.61
A61: 04101322026 | B61: DURAND C U SCH DIST 322 | C61: 516.96 | D61: $6,722,745.67 | E61: $7,090,684.57 | F61: 105% | G61: 4 | H61: $428.22 | I61: $2,217,334.36 | J61: $2,217,762.58 | K61: 0.92 | L61: $1,583,902.27 | M61: $390,668.67 | N61: $172,482.40 | O61: $68,526.30 | P61: $53,004.94 | Q61: $120,929.38 | R61: $37,511.13 | S61: $64,708.20 | T61: $75,912.98 | U61: $46,220.14 | V61: $112,619.28 | W61: $96,965.46 | X61: $77,646.79 | Y61: $2,901,097.94 | Z61: $46,323.90 | AA61: $64,620.00 | AB61: $168,012.00 | AC61: $17,576.64 | AD61: $147,592.08 | AE61: $209,520.47 | AF61: $703,582.56 | AG61: $484,391.52 | AH61: $1,313,231.06 | AI61: $3,154,850.23 | AJ61: $492,083.88 | AK61: $2,662,766.35 | AL61: $3,113,205.17 | AM61: $74,502.65 | AN61: $74,502.65 | AO61: $77,858.62 | AP61: $77,858.62 | AQ61: $4,027.17 | AR61: $4,027.17 | AS61: $4,027.17 | AT61: $4,027.17 | AU61: $4,698.36 | AV61: $245,657.38 | AW61: $99,509.25 | AX61: $37,746.24 | AY61: $708,442.45 | AZ61: $6,722,745.67 | BA61: $83,175.52 | BB61: $1.75 | BC61: $245,662.18 | BD61: $6,722,745.56
A62: 04101323026 | B62: WINNEBAGO C U SCH DIST 323 | C62: 1268.77 | D62: $16,652,315.38 | E62: $13,568,777.71 | F62: 81% | G62: 2 | H62: $79,520.07 | I62: $4,527,268.26 | J62: $4,606,788.33 | K62: 0.92 | L62: $3,821,568.02 | M62: $941,547.46 | N62: $423,832.71 | O62: $170,214.51 | P62: $127,500.44 | Q62: $298,499.09 | R62: $94,057.78 | S62: $159,051.67 | T62: $188,676.94 | U62: $114,462.82 | V62: $279,908.13 | W62: $241,001.54 | X62: $190,854.50 | Y62: $7,051,175.61 | Z62: $113,199.30 | AA62: $158,596.25 | AB62: $412,350.25 | AC62: $43,138.18 | AD62: $724,467.67 | AE62: $508,576.39 | AF62: $1,726,795.97 | AG62: $1,188,837.49 | AH62: $3,173,495.37 | AI62: $8,049,456.87 | AJ62: $1,207,716.78 | AK62: $6,841,740.09 | AL62: $7,947,247.79 | AM62: $157,730.83 | AN62: $157,730.83 | AO62: $164,442.78 | AP62: $164,442.78 | AQ62: $12,752.70 | AR62: $12,752.70 | AS62: $13,423.90 | AT62: $13,423.90 | AU62: $16,108.68 | AV62: $603,404.35 | AW62: $244,422.99 | AX62: $93,255.42 | AY62: $1,653,891.86 | AZ62: $16,652,315.38 | BA62: $233,867.98 | BB62: $3,119.48 | BC62: $468,284.39 | BD62: $16,652,315.26
B63: SAFE SCH-INTERMEDIATE SERVICE CEN | C63: 28.65 | D63: $456,816.14 | E63: $454,627.19 | F63: 100% | G63: 3 | H63: $519.13 | I63: $408,945.58 | J63: $409,464.71 | K63: 1.06 | L63: $101,001.45 | M63: $30,714.83 | N63: $10,693.85 | O63: $3,281.89 | P63: $3,789.67 | Q63: $8,836.25 | R63: $1,293.58 | S63: $4,083.24 | T63: $3,405.79 | U63: $2,826.86 | V63: $5,052.60 | W63: $4,350.30 | X63: $4,899.70 | Y63: $184,230.01 | Z63: $2,578.50 | AA63: $3,581.25 | AB63: $9,311.25 | AC63: $974.10 | AD63: $8,179.57 | AE63: $20,346.45 | AF63: $38,992.65 | AG63: $26,845.05 | AH63: $81,655.63 | AI63: $192,464.45 | AJ63: $27,271.36 | AK63: $165,193.09 | AL63: $194,032.28 | AM63: $4,652.42 | AN63: $4,652.42 | AO63: $5,427.83 | AP63: $5,427.83 | AQ63: $6,203.23 | AR63: $6,203.23 | AS63: $6,978.64 | AT63: $6,978.64 | AU63: $8,529.44 | AV63: $15,508.09 | AW63: $6,281.91 | AX63: $1,710.06 | AY63: $78,553.74 | AZ63: $456,816.14 | BA63: $427.54 | BB63: $138.63 | BC63: $317.72 | BD63: $456,816.03
B64: Region 05 North Cook ISC 1 ALOP | C64: 270 | D64: $4,485,501.41 | E64: $534,180.94 | F64: 12% | G64: 1 | H64: $1,091,414.95 | I64: $85,630.80 | J64: $1,177,045.75 | K64: 1.06 | L64: $911,403.47 | M64: $238,697.48 | N64: $105,974.57 | O64: $41,187.30 | P64: $37,469.72 | Q64: $90,148.42 | R64: $22,637.74 | S64: $39,576.05 | T64: $45,126.77 | U64: $27,954.51 | V64: $66,946.98 | W64: $57,641.50 | X64: $47,489.40 | Y64: $1,732,253.91 | Z64: $24,300.00 | AA64: $33,750.00 | AB64: $87,750.00 | AC64: $9,180.00 | AD64: $154,170.00 | AE64: $137,990.00 | AF64: $367,470.00 | AG64: $252,990.00 | AH64: $803,859.91 | AI64: $1,871,459.91 | AJ64: $257,007.60 | AK64: $1,614,452.31 | AL64: $1,886,235.27 | AM64: $50,401.29 | AN64: $50,401.29 | AO64: $52,727.50 | AP64: $52,727.50 | AQ64: $80,642.07 | AR64: $80,642.07 | AS64: $83,743.69 | AT64: $83,743.69 | AU64: $100,802.59 | AV64: $148,102.26 | AW64: $59,992.27 | AX64: $23,085.90 | AY64: $867,012.12 | AZ64: $4,485,501.41 | BA64: $92,480.99 | BB64: $135,775.38 | BC64: $74,554.81 | BD64: $4,485,501.30
A65: 05016015004 | B65: PALATINE C C SCHOOL DIST 15 | C65: 10639.81 | D65: $167,394,680.58 | E65: $151,392,498.12 | F65: 90% | G65: 3 | H65: $190,229.12 | I65: $17,608,077.31 | J65: $17,798,306.43 | K65: 1.06 | L65: $37,956,456.59 | M65: $7,591,291.31 | N65: $3,922,334.32 | O65: $1,743,259.70 | P65: $1,477,335.15 | Q65: $2,425,564.89 | R65: $917,151.91 | S65: $1,485,044.37 | T65: $2,012,824.60 | U65: $1,113,783.28 | V65: $2,986,088.14 | W65: $2,571,028.69 | X65: $1,781,983.25 | Y65: $67,984,146.20 | Z65: $946,287.90 | AA65: $1,329,976.25 | AB65: $3,457,938.25 | AC65: $361,753.54 | AD65: $6,075,331.51 | AE65: $1,794,312.59 | AF65: $14,480,781.41 | AG65: $9,969,501.97 | AH65: $30,415,535.51 | AI65: $68,831,418.93 | AJ65: $10,127,822.34 | AK65: $58,703,596.59 | AL65: $69,413,667.43 | AM65: $2,542,551.49 | AN65: $2,542,551.49 | AO65: $2,648,006.51 | AP65: $2,648,006.51 | AQ65: $1,966,425.91 | AR65: $1,966,425.91 | AS65: $2,047,843.39 | AT65: $2,047,843.39 | AU65: $2,458,032.39 | AV65: $5,850,427.27 | AW65: $2,369,851.90 | AX65: $908,900.65 | AY65: $29,996,866.81 | AZ65: $167,394,680.58 | BA65: $5,370,621.42 | BB65: $1,455,446.11 | BC65: $4,413,461.95 | BD65: $167,394,680.44
A66: 05016021004 | B66: WHEELING C C SCHOOL DIST 21 | C66: 5756.5 | D66: $100,751,953.44 | E66: $91,882,957.84 | F66: 91% | G66: 3 | H66: $114,495.61 | I66: $13,432,736.43 | J66: $13,547,232.04 | K66: 1.06 | L66: $21,596,804.94 | M66: $4,319,360.98 | N66: $2,122,293.32 | O66: $942,422.12 | P66: $921,695.46 | Q66: $1,281,925.35 | R66: $496,089.93 | S66: $803,142.65 | T66: $1,088,151.37 | U66: $602,435.51 | V66: $1,614,306.53 | W66: $1,389,921.60 | X66: $963,733.32 | Y66: $38,142,283.08 | Z66: $511,560.00 | AA66: $719,562.50 | AB66: $1,870,862.50 | AC66: $195,721.00 | AD66: $3,286,961.50 | AE66: $944,178.00 | AF66: $7,834,596.50 | AG66: $5,393,840.50 | AH66: $18,685,766.97 | AI66: $39,443,049.47 | AJ66: $5,479,497.22 | AK66: $33,963,552.25 | AL66: $39,758,065.76 | AM66: $1,927,655.69 | AN66: $1,927,655.69 | AO66: $2,008,297.76 | AP66: $2,008,297.76 | AQ66: $1,882,682.22 | AR66: $1,882,682.22 | AS66: $1,960,998.08 | AT66: $1,960,998.08 | AU66: $2,353,352.78 | AV66: $3,165,201.34 | AW66: $1,282,138.56 | AX66: $491,644.28 | AY66: $22,851,604.46 | AZ66: $100,751,953.44 | BA66: $5,794,096.13 | BB66: $1,594,073.83 | BC66: $2,396,048.98 | BD66: $100,751,953.30
A67: 05016023002 | B67: PROSPECT HEIGHTS SCHOOL DIST 23 | C67: 1370.89 | D67: $21,169,114.75 | E67: $20,923,023.76 | F67: 99% | G67: 3 | H67: $24,056.81 | I67: $1,880,202.48 | J67: $1,904,259.29 | K67: 1.06 | L67: $4,838,946.77 | M67: $967,789.35 | N67: $504,394.93 | O67: $223,438.10 | P67: $190,184.59 | Q67: $312,335.19 | R67: $117,716.25 | S67: $190,970.17 | T67: $257,988.94 | U67: $143,227.62 | V67: $382,734.64 | W67: $329,535.40 | X67: $229,155.20 | Y67: $8,688,417.15 | Z67: $121,752.90 | AA67: $171,361.25 | AB67: $445,539.25 | AC67: $46,610.26 | AD67: $391,389.09 | AE67: $231,989.09 | AF67: $1,865,781.29 | AG67: $1,284,523.93 | AH67: $3,917,135.12 | AI67: $8,476,082.18 | AJ67: $1,304,922.77 | AK67: $7,171,159.41 | AL67: $8,551,102.19 | AM67: $297,755.34 | AN67: $297,755.34 | AO67: $310,161.81 | AP67: $310,161.81 | AQ67: $288,450.48 | AR67: $288,450.48 | AS67: $300,081.55 | AT67: $300,081.55 | AU67: $360,563.11 | AV67: $753,693.21 | AW67: $305,301.00 | AX67: $117,139.59 | AY67: $3,929,595.27 | AZ67: $21,169,114.75 | BA67: $418,517.30 | BB67: $148,563.26 | BC67: $614,892.64 | BD67: $21,169,114.61
A68: 05016025002 | B68: ARLINGTON HEIGHTS SCH DIST 25 | C68: 5088.8 | D68: $68,204,512.20 | E68: $72,531,167.68 | F68: 106% | G68: 4 | H68: $4,344.52 | I68: $5,058,580.83 | J68: $5,062,925.35 | K68: 1.06 | L68: $16,962,123.37 | M68: $3,392,424.67 | N68: $1,875,257.79 | O68: $833,284.03 | P68: $583,052.25 | Q68: $1,153,971.24 | R68: $437,878.59 | S68: $710,170.33 | T68: $962,136.97 | U68: $532,392.17 | V68: $1,427,360.24 | W68: $1,228,960.41 | X68: $852,170.92 | Y68: $30,951,182.98 | Z68: $454,130.10 | AA68: $636,100.00 | AB68: $1,653,860.00 | AC68: $173,019.20 | AD68: $1,452,852.39 | AE68: $855,775.17 | AF68: $6,925,856.80 | AG68: $4,768,205.60 | AH68: $12,275,358.41 | AI68: $29,195,157.67 | AJ68: $4,843,926.94 | AK68: $24,351,230.73 | AL68: $29,473,635.02 | AM68: $398,557.93 | AN68: $398,557.93 | AO68: $414,841.43 | AP68: $414,841.43 | AQ68: $334,974.76 | AR68: $334,974.76 | AS68: $348,932.04 | AT68: $348,932.04 | AU68: $418,718.45 | AV68: $2,798,434.99 | AW68: $1,133,571.30 | AX68: $434,357.03 | AY68: $7,779,694.09 | AZ68: $68,204,512.20 | BA68: $282,039.13 | BB68: $152,252.40 | BC68: $2,095,965.91 | BD68: $68,204,512.09
A69: 05016026002 | B69: RIVER TRAILS SCHOOL DIST 26 | C69: 1491.48 | D69: $21,754,398.78 | E69: $25,551,721.53 | F69: 117% | G69: 4 | H69: $1,385.72 | I69: $1,523,718.09 | J69: $1,525,103.81 | K69: 1.06 | L69: $5,228,304.26 | M69: $1,045,660.85 | N69: $548,640.10 | O69: $243,348.43 | P69: $192,308.17 | Q69: $332,998.58 | R69: $127,418.14 | S69: $207,617.24 | T69: $280,978.05 | U69: $155,791.45 | V69: $416,839.71 | W69: $358,899.94 | X69: $249,130.90 | Y69: $9,387,935.82 | Z69: $132,853.50 | AA69: $186,435.00 | AB69: $484,731.00 | AC69: $50,710.32 | AD69: $425,817.54 | AE69: $246,724.59 | AF69: $2,029,904.28 | AG69: $1,397,516.76 | AH69: $3,983,920.53 | AI69: $8,938,613.52 | AJ69: $1,419,709.98 | AK69: $7,518,903.54 | AL69: $9,020,232.64 | AM69: $261,311.33 | AN69: $261,311.33 | AO69: $272,166.99 | AP69: $272,166.99 | AQ69: $187,647.89 | AR69: $187,647.89 | AS69: $195,401.94 | AT69: $195,401.94 | AU69: $234,172.17 | AV69: $819,602.60 | AW69: $331,999.13 | AX69: $127,399.99 | AY69: $3,346,230.19 | AZ69: $21,754,398.78 | BA69: $330,775.59 | BB69: $83,854.39 | BC69: $524,127.84 | BD69: $21,754,398.65
A70: 05016027002 | B70: NORTHBROOK ELEM SCHOOL DIST 27 | C70: 1353.31 | D70: $17,522,324.19 | E70: $30,266,526.61 | F70: 173% | G70: 4 | H70: $1,116.14 | I70: $791,396.79 | J70: $792,512.93 | K70: 1.06 | L70: $4,467,287.34 | M70: $893,457.45 | N70: $498,495.58 | O70: $221,225.85 | P70: $147,847.84 | Q70: $307,566.71 | R70: $116,422.66 | S70: $188,771.50 | T70: $255,434.59 | U70: $141,343.05 | V70: $378,945.19 | W70: $326,272.67 | X70: $226,516.90 | Y70: $8,169,587.33 | Z70: $120,935.70 | AA70: $169,163.75 | AB70: $439,825.75 | AC70: $46,012.54 | AD70: $386,370.00 | AE70: $228,806.85 | AF70: $1,841,854.91 | AG70: $1,268,051.47 | AH70: $3,129,668.16 | AI70: $7,630,689.13 | AJ70: $1,288,188.72 | AK70: $6,342,500.41 | AL70: $7,704,747.09 | AM70: $63,583.17 | AN70: $63,583.17 | AO70: $66,684.79 | AP70: $66,684.79 | AQ70: $42,647.24 | AR70: $42,647.24 | AS70: $44,198.05 | AT70: $44,198.05 | AU70: $53,502.91 | AV70: $743,612.95 | AW70: $301,217.75 | AX70: $115,429.52 | AY70: $1,647,989.63 | AZ70: $17,522,324.19 | BA70: $33,245.70 | BB70: $14,961.52 | BC70: $475,677.75 | BD70: $17,522,324.05
A71: 05016028002 | B71: NORTHBROOK SCHOOL DIST 28 | C71: 1777.75 | D71: $23,048,225.91 | E71: $44,037,818.88 | F71: 191% | G71: 4 | H71: $1,468.13 | I71: $1,056,245.46 | J71: $1,057,713.59 | K71: 1.06 | L71: $5,849,211.48 | M71: $1,169,842.29 | N71: $654,828.51 | O71: $291,280.70 | P71: $194,529.67 | Q71: $402,936.23 | R71: $153,289.84 | S71: $248,135.58 | T71: $336,322.21 | U71: $185,944.64 | V71: $498,944.50 | W71: $429,592.35 | X71: $297,751.00 | Y71: $10,712,609.00 | Z71: $158,242.50 | AA71: $222,218.75 | AB71: $577,768.75 | AC71: $60,443.50 | AD71: $507,547.62 | AE71: $297,901.25 | AF71: $2,419,517.75 | AG71: $1,665,751.75 | AH71: $4,118,595.87 | AI71: $10,027,987.74 | AJ71: $1,692,204.67 | AK71: $8,335,783.07 | AL71: $10,125,272.58 | AM71: $73,663.43 | AN71: $73,663.43 | AO71: $76,765.04 | AP71: $76,765.04 | AQ71: $72,112.62 | AR71: $72,112.62 | AS71: $75,214.24 | AT71: $75,214.24 | AU71: $90,722.33 | AV71: $977,009.72 | AW71: $395,760.55 | AX71: $151,340.93 | AY71: $2,210,344.19 | AZ71: $23,048,225.91 | BA71: $47,979.68 | BB71: $24,899.88 | BC71: $609,917.10 | BD71: $23,048,225.77
A72: 05016029002 | B72: SUNSET RIDGE SCHOOL DIST 29 | C72: 487 | D72: $6,170,365.68 | E72: $14,794,472.72 | F72: 240% | G72: 4 | H72: $393.04 | I72: $370,262.88 | J72: $370,655.92 | K72: 1.06 | L72: $1,612,736.45 | M72: $322,547.28 | N72: $179,192.93 | O72: $78,903.88 | P72: $51,879.07 | Q72: $106,495.96 | R72: $41,394.72 | S72: $67,530.57 | T72: $91,105.00 | U72: $50,883.50 | V72: $135,157.12 | W72: $116,370.58 | X72: $81,033.50 | Y72: $2,935,230.56 | Z72: $43,605.00 | AA72: $60,875.00 | AB72: $158,275.00 | AC72: $16,558.00 | AD72: $139,038.50 | AE72: $79,224.50 | AF72: $662,807.00 | AG72: $456,319.00 | AH72: $1,097,323.04 | AI72: $2,714,025.04 | AJ72: $463,565.56 | AK72: $2,250,459.48 | AL72: $2,740,675.42 | AM72: $6,203.23 | AN72: $6,203.23 | AO72: $6,203.23 | AP72: $6,203.23 | AQ72: $10,080.25 | AR72: $10,080.25 | AS72: $10,080.25 | AT72: $10,080.25 | AU72: $12,406.47 | AV72: $267,514.56 | AW72: $108,363.00 | AX72: $41,041.60 | AY72: $494,459.55 | AZ72: $6,170,365.68 | BA72: $11,517.88 | BB72: $1,577.62 | BC72: $254,060.88 | BD72: $6,170,365.53
A73: 05016030002 | B73: NORTHBROOK/GLENVIEW SCH DIST 30 | C73: 1230.75 | D73: $16,010,397.45 | E73: $26,840,253.29 | F73: 168% | G73: 4 | H73: $1,019.83 | I73: $711,513.60 | J73: $712,533.43 | K73: 1.06 | L73: $4,064,656.29 | M73: $812,931.25 | N73: $452,775.57 | O73: $200,578.10 | P73: $135,529.07 | Q73: $274,982.12 | R73: $106,073.98 | S73: $171,496.24 | T73: $231,594.03 | U73: $128,465.13 | V73: $343,576.97 | W73: $295,820.56 | X73: $205,787.40 | Y73: $7,424,266.71 | Z73: $109,890.00 | AA73: $153,843.75 | AB73: $399,993.75 | AC73: $41,845.50 | AD73: $351,379.12 | AE73: $203,837.00 | AF73: $1,675,050.75 | AG73: $1,153,212.75 | AH73: $2,863,522.10 | AI73: $6,952,574.72 | AJ73: $1,171,526.31 | AK73: $5,781,048.41 | AL73: $7,019,925.76 | AM73: $51,176.69 | AN73: $51,176.69 | AO73: $53,502.91 | AP73: $53,502.91 | AQ73: $56,604.53 | AR73: $56,604.53 | AS73: $58,930.74 | AT73: $58,930.74 | AU73: $70,561.81 | AV73: $676,152.76 | AW73: $273,891.43 | AX73: $105,169.12 | AY73: $1,566,204.86 | AZ73: $16,010,397.45 | BA73: $39,983.24 | BB73: $19,440.51 | BC73: $413,335.88 | BD73: $16,010,397.33
A74: 05016031002 | B74: WEST NORTHFIELD SCHOOL DIST 31 | C74: 907 | D74: $13,603,004.57 | E74: $20,517,661.04 | F74: 151% | G74: 4 | H74: $866.48 | I74: $808,369.78 | J74: $809,236.26 | K74: 1.06 | L74: $3,240,221.29 | M74: $648,044.25 | N74: $334,051.03 | O74: $147,483.90 | P74: $121,517.55 | Q74: $202,660.23 | R74: $77,615.11 | S74: $126,266.46 | T74: $170,289.72 | U74: $94,856.89 | V74: $252,630.13 | W74: $217,515.11 | X74: $151,513.80 | Y74: $5,784,665.47 | Z74: $80,910.00 | AA74: $113,375.00 | AB74: $294,775.00 | AC74: $30,838.00 | AD74: $258,948.50 | AE74: $150,691.00 | AF74: $1,234,427.00 | AG74: $849,859.00 | AH74: $2,504,110.97 | AI74: $5,517,934.47 | AJ74: $863,355.16 | AK74: $4,654,579.31 | AL74: $5,567,568.75 | AM74: $186,097.09 | AN74: $186,097.09 | AO74: $193,851.13 | AP74: $193,851.13 | AQ74: $133,369.58 | AR74: $133,369.58 | AS74: $139,572.81 | AT74: $139,572.81 | AU74: $167,487.38 | AV74: $498,585.12 | AW74: $201,963.52 | AX74: $76,953.01 | AY74: $2,250,770.25 | AZ74: $13,603,004.57 | BA74: $225,920.18 | BB74: $58,352.81 | BC74: $336,411.86 | BD74: $13,603,004.47
A75: 05016034004 | B75: GLENVIEW C C SCHOOL DIST 34 | C75: 4307.8 | D75: $60,371,933.49 | E75: $66,634,411.87 | F75: 110% | G75: 4 | H75: $3,845.59 | I75: $4,595,162.71 | J75: $4,599,008.30 | K75: 1.06 | L75: $14,592,794.51 | M75: $2,918,558.89 | N75: $1,587,664.18 | O75: $704,973.04 | P75: $524,408.24 | Q75: $988,664.06 | R75: $371,258.95 | S75: $600,865.03 | T75: $813,984.90 | U75: $450,727.30 | V75: $1,207,572.02 | W75: $1,039,722.26 | X75: $721,009.72 | Y75: $26,522,203.10 | Z75: $384,312.60 | AA75: $538,475.00 | AB75: $1,400,035.00 | AC75: $146,465.20 | AD75: $1,229,876.90 | AE75: $734,915.34 | AF75: $5,862,915.80 | AG75: $4,036,408.60 | AH75: $10,964,639.77 | AI75: $25,298,044.21 | AJ75: $4,100,508.66 | AK75: $21,197,535.55 | AL75: $25,533,782.45 | AM75: $512,542.40 | AN75: $512,542.40 | AO75: $534,253.72 | AP75: $534,253.72 | AQ75: $473,772.17 | AR75: $473,772.17 | AS75: $493,157.28 | AT75: $493,157.28 | AU75: $592,409.07 | AV75: $2,368,860.87 | AW75: $959,562.30 | AX75: $367,664.42 | AY75: $8,315,947.80 | AZ75: $60,371,933.49 | BA75: $546,622.79 | BB75: $213,830.61 | BC75: $1,725,440.97 | BD75: $60,371,933.35
A76: 05016035002 | B76: GLENCOE SCHOOL DIST 35 | C76: 1214.5 | D76: $15,283,506.93 | E76: $29,314,896.23 | F76: 192% | G76: 4 | H76: $973.53 | I76: $719,554.19 | J76: $720,527.72 | K76: 1.06 | L76: $3,965,842.08 | M76: $793,168.40 | N76: $446,876.21 | O76: $198,365.84 | P76: $127,542.76 | Q76: $274,187.38 | R76: $104,133.61 | S76: $169,297.57 | T76: $229,039.68 | U76: $126,894.65 | V76: $339,787.52 | W76: $292,557.83 | X76: $203,149.10 | Y76: $7,270,842.63 | Z76: $108,900.00 | AA76: $151,812.50 | AB76: $394,712.50 | AC76: $41,293.00 | AD76: $346,739.75 | AE76: $204,446.00 | AF76: $1,652,934.50 | AG76: $1,137,986.50 | AH76: $2,712,328.86 | AI76: $6,751,153.61 | AJ76: $1,156,058.26 | AK76: $5,595,095.35 | AL76: $6,817,615.39 | AM76: $16,283.49 | AN76: $16,283.49 | AO76: $17,058.89 | AP76: $17,058.89 | AQ76: $16,283.49 | AR76: $16,283.49 | AS76: $17,058.89 | AT76: $17,058.89 | AU76: $20,160.51 | AV76: $667,623.31 | AW76: $270,436.38 | AX76: $103,459.05 | AY76: $1,195,048.77 | AZ76: $15,283,506.93 | BA76: $12,016.90 | BB76: $45.28 | BC76: $435,707.40 | BD76: $15,283,506.79
A77: 05016036002 | B77: WINNETKA SCHOOL DIST 36 | C77: 1716.5 | D77: $21,465,508.52 | E77: $45,143,975.09 | F77: 210% | G77: 4 | H77: $1,367.31 | I77: $1,089,135.21 | J77: $1,090,502.52 | K77: 1.06 | L77: $5,600,701.11 | M77: $1,120,140.22 | N77: $632,705.93 | O77: $280,956.83 | P77: $178,895.47 | Q77: $380,683.35 | R77: $146,821.92 | S77: $239,340.90 | T77: $324,401.93 | U77: $179,348.63 | V77: $481,260.39 | W77: $414,366.29 | X77: $287,197.80 | Y77: $10,266,820.77 | Z77: $153,045.00 | AA77: $214,562.50 | AB77: $557,862.50 | AC77: $58,361.00 | AD77: $490,060.75 | AE77: $281,320.50 | AF77: $2,336,156.50 | AG77: $1,608,360.50 | AH77: $3,805,726.56 | AI77: $9,505,455.81 | AJ77: $1,633,902.02 | AK77: $7,871,553.79 | AL77: $9,599,388.83 | AM77: $11,631.06 | AN77: $11,631.06 | AO77: $12,406.47 | AP77: $12,406.47 | AQ77: $14,732.68 | AR77: $14,732.68 | AS77: $15,508.09 | AT77: $15,508.09 | AU77: $18,609.70 | AV77: $943,667.32 | AW77: $382,254.44 | AX77: $146,210.73 | AY77: $1,599,298.79 | AZ77: $21,465,508.52 | BA77: $13,669.11 | BB77: $34.77 | BC77: $708,284.00 | BD77: $21,465,508.39
A78: 05016037002 | B78: AVOCA SCHOOL DIST 37 | C78: 694.81 | D78: $9,337,673.71 | E78: $15,536,958.28 | F78: 166% | G78: 4 | H78: $594.79 | I78: $463,694.35 | J78: $464,289.14 | K78: 1.06 | L78: $2,297,061.74 | M78: $459,412.34 | N78: $255,147.14 | O78: $112,825.18 | P78: $79,830.40 | Q78: $159,743.95 | R78: $58,858.12 | S78: $96,741.46 | T78: $130,271.64 | U78: $72,242.00 | V78: $193,262.05 | W78: $166,399.06 | X78: $116,085.20 | Y78: $4,197,880.28 | Z78: $62,203.50 | AA78: $86,851.25 | AB78: $225,813.25 | AC78: $23,623.54 | AD78: $198,368.25 | AE78: $119,790.67 | AF78: $945,636.41 | AG78: $651,036.97 | AH78: $1,680,873.20 | AI78: $3,994,197.04 | AJ78: $661,375.74 | AK78: $3,332,821.30 | AL78: $4,032,219.53 | AM78: $45,748.86 | AN78: $45,748.86 | AO78: $47,299.67 | AP78: $47,299.67 | AQ78: $61,256.95 | AR78: $61,256.95 | AS78: $63,583.17 | AT78: $63,583.17 | AU78: $76,765.04 | AV78: $381,499.03 | AW78: $154,535.07 | AX78: $58,997.31 | AY78: $1,107,573.75 | AZ78: $9,337,673.71 | BA78: $26,087.84 | BB78: $22,858.80 | BC78: $259,374.72 | BD78: $9,337,673.56
A79: 05016038002 | B79: KENILWORTH SCHOOL DIST 38 | C79: 454.54 | D79: $5,648,545.76 | E79: $13,578,332.02 | F79: 240% | G79: 4 | H79: $359.80 | I79: $274,862.69 | J79: $275,222.49 | K79: 1.06 | L79: $1,474,839.00 | M79: $294,967.80 | N79: $166,656.80 | O79: $73,741.95 | P79: $46,933.99 | Q79: $102,522.23 | R79: $38,807.55 | S79: $63,133.23 | T79: $85,144.86 | U79: $47,114.35 | V79: $126,315.06 | W79: $108,757.55 | X79: $75,756.90 | Y79: $2,704,691.27 | Z79: $40,691.70 | AA79: $56,817.50 | AB79: $147,725.50 | AC79: $15,454.36 | AD79: $129,771.17 | AE79: $76,581.93 | AF79: $618,628.94 | AG79: $425,903.98 | AH79: $999,500.01 | AI79: $2,511,075.09 | AJ79: $432,667.53 | AK79: $2,078,407.56 | AL79: $2,535,949.14 | AM79: $0.00 | AN79: $0.00 | AO79: $0.00 | AP79: $0.00 | AQ79: $3,101.61 | AR79: $3,101.61 | AS79: $3,877.02 | AT79: $3,877.02 | AU79: $4,652.42 | AV79: $249,680.26 | AW79: $101,138.80 | AX79: $38,476.50 | AY79: $407,905.24 | AZ79: $5,648,545.76 | BA79: $3,435.04 | BB79: $12.02 | BC79: $163,554.46 | BD79: $5,648,545.65
A80: 05016039002 | B80: WILMETTE SCHOOL DIST 39 | C80: 3228.79 | D80: $40,977,476.34 | E80: $62,247,473.41 | F80: 152% | G80: 4 | H80: $2,610.20 | I80: $2,801,455.68 | J80: $2,804,065.88 | K80: 1.06 | L80: $10,468,407.24 | M80: $2,093,681.44 | N80: $1,189,457.65 | O80: $528,729.78 | P80: $342,224.19 | Q80: $742,292.79 | R80: $277,474.02 | S80: $450,413.20 | T80: $610,488.68 | U80: $337,652.85 | V80: $905,679.01 | W80: $779,791.69 | X80: $540,474.61 | Y80: $19,266,767.15 | Z80: $288,911.70 | AA80: $403,598.75 | AB80: $1,049,356.75 | AC80: $109,778.86 | AD80: $921,819.54 | AE80: $552,647.93 | AF80: $4,394,383.19 | AG80: $3,025,376.23 | AH80: $7,284,650.31 | AI80: $18,030,523.26 | AJ80: $3,073,420.62 | AK80: $14,957,102.64 | AL80: $18,207,214.21 | AM80: $69,011.00 | AN80: $69,011.00 | AO80: $72,112.62 | AP80: $72,112.62 | AQ80: $84,519.09 | AR80: $84,519.09 | AS80: $88,396.11 | AT80: $88,396.11 | AU80: $106,230.42 | AV80: $1,774,900.99 | AW80: $718,965.01 | AX80: $275,320.79 | AY80: $3,503,494.85 | AZ80: $40,977,476.34 | BA80: $48,454.42 | BB80: $21,185.82 | BC80: $1,539,015.81 | BD80: $40,977,476.21
A81: 05016054004 | B81: SCHAUMBURG C C SCHOOL DIST 54 | C81: 14909.38 | D81: $226,645,982.46 | E81: $195,939,026.09 | F81: 86% | G81: 2 | H81: $309,364.60 | I81: $17,921,875.12 | J81: $18,231,239.72 | K81: 1.06 | L81: $52,822,833.74 | M81: $10,564,566.74 | N81: $5,495,987.54 | O81: $2,442,333.38 | P81: $1,980,173.18 | Q81: $3,339,522.83 | R81: $1,285,176.91 | S81: $2,080,883.87 | T81: $2,819,997.92 | U81: $1,560,427.33 | V81: $4,183,554.97 | W81: $3,602,050.35 | X81: $2,496,962.57 | Y81: $94,674,471.33 | Z81: $1,327,376.70 | AA81: $1,863,672.50 | AB81: $4,845,548.50 | AC81: $506,918.92 | AD81: $8,513,255.98 | AE81: $2,464,073.51 | AF81: $20,291,666.18 | AG81: $13,970,089.06 | AH81: $40,900,886.61 | AI81: $94,683,487.96 | AJ81: $14,191,940.63 | AK81: $80,491,547.33 | AL81: $95,499,382.62 | AM81: $2,986,082.89 | AN81: $2,986,082.89 | AO81: $3,110,147.61 | AP81: $3,110,147.61 | AQ81: $2,153,298.41 | AR81: $2,153,298.41 | AS81: $2,243,245.34 | AT81: $2,243,245.34 | AU81: $2,692,204.57 | AV81: $8,199,127.63 | AW81: $3,321,247.71 | AX81: $1,273,999.97 | AY81: $36,472,128.38 | AZ81: $226,645,982.46 | BA81: $4,042,979.51 | BB81: $1,353,110.79 | BC81: $5,384,531.08 | BD81: $226,645,982.33
A82: 05016057002 | B82: MOUNT PROSPECT SCHOOL DIST 57 | C82: 2108.63 | D82: $28,490,910.83 | E82: $29,230,847.18 | F82: 103% | G82: 4 | H82: $1,814.82 | I82: $2,114,523.13 | J82: $2,116,337.95 | K82: 1.06 | L82: $7,060,791.72 | M82: $1,412,158.34 | N82: $776,502.73 | O82: $344,374.90 | P82: $244,240.14 | Q82: $480,821.35 | R82: $181,101.93 | S82: $293,993.55 | T82: $397,626.51 | U82: $220,495.16 | V82: $589,891.35 | W82: $507,897.80 | X82: $352,778.41 | Y82: $12,862,673.89 | Z82: $187,647.30 | AA82: $263,578.75 | AB82: $685,304.75 | AC82: $71,693.42 | AD82: $602,013.86 | AE82: $356,989.09 | AF82: $2,869,845.43 | AG82: $1,975,786.31 | AH82: $5,136,164.80 | AI82: $12,149,023.71 | AJ82: $2,007,162.72 | AK82: $10,141,860.99 | AL82: $12,264,415.49 | AM82: $212,460.84 | AN82: $212,460.84 | AO82: $221,765.69 | AP82: $221,765.69 | AQ82: $128,717.15 | AR82: $128,717.15 | AS82: $134,144.98 | AT82: $134,144.98 | AU82: $161,284.14 | AV82: $1,159,229.79 | AW82: $469,573.04 | AX82: $179,557.04 | AY82: $3,363,821.33 | AZ82: $28,490,910.83 | BA82: $146,586.42 | BB82: $68,512.23 | BC82: $820,393.47 | BD82: $28,490,910.71
A83: 05016059004 | B83: COMM CONS SCH DIST 59 | C83: 5840.56 | D83: $98,821,697.80 | E83: $120,095,683.29 | F83: 122% | G83: 4 | H83: $6,294.78 | I83: $12,050,683.69 | J83: $12,056,978.47 | K83: 1.06 | L83: $21,829,092.08 | M83: $4,365,818.41 | N83: $2,152,527.52 | O83: $955,695.67 | P83: $914,094.60 | Q83: $1,315,304.68 | R83: $502,557.85 | S83: $814,764.19 | T83: $1,103,477.44 | U83: $610,916.09 | V83: $1,637,043.24 | W83: $1,409,497.96 | X83: $977,678.62 | Y83: $38,588,468.35 | Z83: $517,363.20 | AA83: $730,070.00 | AB83: $1,898,182.00 | AC83: $198,579.04 | AD83: $1,667,479.87 | AE83: $968,522.92 | AF83: $7,949,002.16 | AG83: $5,472,604.72 | AH83: $18,578,106.26 | AI83: $37,979,910.17 | AJ83: $5,559,512.25 | AK83: $32,420,397.92 | AL83: $38,299,526.52 | AM83: $1,994,340.48 | AN83: $1,994,340.48 | AO83: $2,077,308.76 | AP83: $2,077,308.76 | AQ83: $1,646,183.84 | AR83: $1,646,183.84 | AS83: $1,714,419.44 | AT83: $1,714,419.44 | AU83: $2,057,148.25 | AV83: $3,211,725.61 | AW83: $1,300,984.30 | AX83: $499,339.58 | AY83: $21,933,702.78 | AZ83: $98,821,697.80 | BA83: $5,415,880.23 | BB83: $876,151.53 | BC83: $2,382,312.98 | BD83: $98,821,697.65
A84: 05016062004 | B84: DES PLAINES C C SCH DIST 62 | C84: 3967.63 | D84: $65,508,175.12 | E84: $95,432,329.23 | F84: 146% | G84: 4 | H84: $4,172.76 | I84: $8,064,088.15 | J84: $8,068,260.91 | K84: 1.06 | L84: $14,516,840.31 | M84: $2,903,368.05 | N84: $1,461,565.45 | O84: $648,929.16 | P84: $600,949.92 | Q84: $898,857.76 | R84: $341,506.49 | S84: $553,436.58 | T84: $749,274.81 | U84: $415,234.48 | V84: $1,111,572.57 | W84: $957,066.51 | X84: $664,097.81 | Y84: $25,822,699.90 | Z84: $350,921.70 | AA84: $495,953.75 | AB84: $1,289,479.75 | AC84: $134,899.42 | AD84: $1,132,758.36 | AE84: $661,939.85 | AF84: $5,399,944.43 | AG84: $3,717,669.31 | AH84: $12,265,364.67 | AI84: $25,448,931.24 | AJ84: $3,776,707.64 | AK84: $21,672,223.60 | AL84: $25,666,054.16 | AM84: $1,217,385.13 | AN84: $1,217,385.13 | AO84: $1,267,786.42 | AP84: $1,267,786.42 | AQ84: $1,058,427.20 | AR84: $1,058,427.20 | AS84: $1,102,625.25 | AT84: $1,102,625.25 | AU84: $1,323,615.55 | AV84: $2,181,212.97 | AW84: $883,551.14 | AX84: $338,593.28 | AY84: $14,019,420.94 | AZ84: $65,508,175.12 | BA84: $3,696,995.95 | BB84: $483,656.93 | BC84: $1,907,056.82 | BD84: $65,508,175.00
A85: 05016063002 | B85: EAST MAINE SCHOOL DIST 63 | C85: 3368.75 | D85: $58,885,321.38 | E85: $44,102,223.05 | F85: 75% | G85: 1 | H85: $784,362.08 | I85: $8,023,420.87 | J85: $8,807,782.95 | K85: 1.06 | L85: $12,804,552.22 | M85: $2,560,910.44 | N85: $1,241,077.02 | O85: $550,852.36 | P85: $539,146.57 | Q85: $747,061.27 | R85: $289,763.08 | S85: $469,887.13 | T85: $636,032.14 | U85: $352,415.35 | V85: $943,573.53 | W85: $812,418.96 | X85: $563,842.41 | Y85: $22,511,532.48 | Z85: $298,620.00 | AA85: $421,093.75 | AB85: $1,094,843.75 | AC85: $114,537.50 | AD85: $1,923,556.25 | AE85: $549,042.00 | AF85: $4,584,868.75 | AG85: $3,156,518.75 | AH85: $10,919,359.95 | AI85: $23,062,440.70 | AJ85: $3,206,645.75 | AK85: $19,855,794.95 | AL85: $23,246,790.76 | AM85: $1,212,732.70 | AN85: $1,212,732.70 | AO85: $1,263,133.99 | AP85: $1,263,133.99 | AQ85: $990,967.00 | AR85: $990,967.00 | AS85: $1,032,063.44 | AT85: $1,032,063.44 | AU85: $1,239,096.45 | AV85: $1,852,441.45 | AW85: $750,374.57 | AX85: $287,291.26 | AY85: $13,126,997.99 | AZ85: $58,885,321.38 | BA85: $3,913,373.84 | BB85: $800,421.03 | BC85: $1,263,068.87 | BD85: $58,885,321.23
A86: 05016064004 | B86: PARK RIDGE C C SCHOOL DIST 64 | C86: 4597.73 | D86: $60,878,559.81 | E86: $76,987,839.36 | F86: 126% | G86: 4 | H86: $3,877.86 | I86: $3,376,015.25 | J86: $3,379,893.11 | K86: 1.06 | L86: $15,354,548.86 | M86: $3,070,909.77 | N86: $1,694,590.01 | O86: $752,905.31 | P86: $518,503.24 | Q86: $1,038,733.06 | R86: $395,837.07 | S86: $641,697.47 | T86: $869,329.07 | U86: $481,194.58 | V86: $1,289,676.81 | W86: $1,110,414.67 | X86: $770,006.72 | Y86: $27,988,346.64 | Z86: $409,903.20 | AA86: $574,716.25 | AB86: $1,494,262.25 | AC86: $156,322.82 | AD86: $1,312,651.91 | AE86: $768,907.84 | AF86: $6,257,510.53 | AG86: $4,308,073.01 | AH86: $10,929,184.60 | AI86: $26,211,532.41 | AJ86: $4,376,487.23 | AK86: $21,835,045.18 | AL86: $26,463,136.66 | AM86: $335,750.16 | AN86: $335,750.16 | AO86: $349,707.44 | AP86: $349,707.44 | AQ86: $208,583.82 | AR86: $208,583.82 | AS86: $217,113.27 | AT86: $217,113.27 | AU86: $260,535.92 | AV86: $2,527,818.80 | AW86: $1,023,951.91 | AX86: $392,460.39 | AY86: $6,427,076.40 | AZ86: $60,878,559.81 | BA86: $183,108.53 | BB86: $630.33 | BC86: $1,671,905.70 | BD86: $60,878,559.70
A87: 05016065004 | B87: EVANSTON C C SCHOOL DIST 65 | C87: 6611.88 | D87: $94,993,033.64 | E87: $130,502,494.54 | F87: 137% | G87: 4 | H87: $6,050.90 | I87: $8,282,670.40 | J87: $8,288,721.30 | K87: 1.06 | L87: $23,095,241.37 | M87: $4,619,048.27 | N87: $2,437,171.45 | O87: $1,082,531.82 | P87: $834,550.42 | Q87: $1,498,096.27 | R87: $569,824.28 | S87: $922,813.10 | T87: $1,249,926.61 | U87: $691,952.78 | V87: $1,854,305.16 | W87: $1,596,560.96 | X87: $1,107,332.23 | Y87: $41,559,354.72 | Z87: $591,319.80 | AA87: $826,485.00 | AB87: $2,148,861.00 | AC87: $224,803.92 | AD87: $1,887,691.73 | AE87: $1,111,870.26 | AF87: $8,998,768.68 | AG87: $6,195,331.56 | AH87: $17,340,916.16 | AI87: $39,326,048.11 | AJ87: $6,293,716.33 | AK87: $33,032,331.78 | AL87: $39,687,873.86 | AM87: $1,134,416.84 | AN87: $1,134,416.84 | AO87: $1,181,716.52 | AP87: $1,181,716.52 | AQ87: $645,136.57 | AR87: $645,136.57 | AS87: $671,500.33 | AT87: $671,500.33 | AU87: $806,420.72 | AV87: $3,635,871.89 | AW87: $1,472,794.64 | AX87: $565,177.16 | AY87: $13,745,804.93 | AZ87: $94,993,033.64 | BA87: $1,868,899.91 | BB87: $322,331.12 | BC87: $3,022,781.62 | BD87: $94,993,033.51
A88: 05016067002 | B88: GOLF ELEM SCHOOL DIST 67 | C88: 679.46 | D88: $9,994,177.91 | E88: $11,361,423.17 | F88: 114% | G88: 4 | H88: $636.61 | I88: $607,035.44 | J88: $607,672.05 | K88: 1.06 | L88: $2,398,825.63 | M88: $479,765.11 | N88: $249,247.79 | O88: $110,612.92 | P88: $88,552.58 | Q88: $153,385.98 | R88: $57,564.54 | S88: $94,542.79 | T88: $127,717.29 | U88: $70,985.62 | V88: $189,472.59 | W88: $163,136.33 | X88: $113,446.90 | Y88: $4,297,256.07 | Z88: $60,552.00 | AA88: $84,932.50 | AB88: $220,824.50 | AC88: $23,101.64 | AD88: $193,985.83 | AE88: $113,569.84 | AF88: $924,745.06 | AG88: $636,654.02 | AH88: $1,832,947.05 | AI88: $4,091,312.44 | AJ88: $646,764.38 | AK88: $3,444,548.06 | AL88: $4,128,494.92 | AM88: $140,348.22 | AN88: $140,348.22 | AO88: $146,551.45 | AP88: $146,551.45 | AQ88: $77,540.45 | AR88: $77,540.45 | AS88: $80,642.07 | AT88: $80,642.07 | AU88: $96,925.56 | AV88: $372,969.58 | AW88: $151,080.02 | AX88: $57,287.24 | AY88: $1,568,426.78 | AZ88: $9,994,177.91 | BA88: $146,515.10 | BB88: $12,511.88 | BC88: $204,622.47 | BD88: $9,994,177.77
A89: 05016068002 | B89: SKOKIE SCHOOL DIST 68 | C89: 1637.54 | D89: $26,275,248.70 | E89: $33,152,142.01 | F89: 126% | G89: 4 | H89: $1,673.69 | I89: $2,338,399.00 | J89: $2,340,072.69 | K89: 1.06 | L89: $6,052,739.26 | M89: $1,210,547.84 | N89: $603,209.15 | O89: $266,945.85 | P89: $239,569.05 | Q89: $368,762.16 | R89: $141,000.78 | S89: $228,033.46 | T89: $308,224.41 | U89: $171,182.14 | V89: $457,260.53 | W89: $393,702.36 | X89: $273,629.40 | Y89: $10,714,806.39 | Z89: $144,858.60 | AA89: $204,692.50 | AB89: $532,200.50 | AC89: $55,676.36 | AD89: $467,517.67 | AE89: $272,036.18 | AF89: $2,228,691.94 | AG89: $1,534,374.98 | AH89: $4,896,029.99 | AI89: $10,336,078.72 | AJ89: $1,558,741.57 | AK89: $8,777,337.15 | AL89: $10,425,690.77 | AM89: $512,542.40 | AN89: $512,542.40 | AO89: $534,253.72 | AP89: $534,253.72 | AQ89: $307,060.19 | AR89: $307,060.19 | AS89: $319,466.67 | AT89: $319,466.67 | AU89: $383,825.24 | AV89: $900,244.67 | AW89: $364,665.08 | AX89: $139,370.46 | AY89: $5,134,751.41 | AZ89: $26,275,248.70 | BA89: $1,126,684.70 | BB89: $73,005.67 | BC89: $593,169.84 | BD89: $26,275,248.57
A90: 05016069002 | B90: SKOKIE SCHOOL DIST 69 | C90: 1679 | D90: $28,480,415.73 | E90: $21,501,956.19 | F90: 75% | G90: 1 | H90: $372,284.71 | I90: $4,146,912.13 | J90: $4,519,196.84 | K90: 1.06 | L90: $6,278,389.63 | M90: $1,255,677.92 | N90: $617,957.54 | O90: $274,320.05 | P90: $258,362.43 | Q90: $371,941.14 | R90: $144,234.75 | S90: $234,001.28 | T90: $316,738.89 | U90: $175,579.48 | V90: $469,892.04 | W90: $404,578.11 | X90: $280,790.50 | Y90: $11,082,463.76 | Z90: $149,085.00 | AA90: $209,875.00 | AB90: $545,675.00 | AC90: $57,086.00 | AD90: $958,709.00 | AE90: $273,712.50 | AF90: $2,285,119.00 | AG90: $1,573,223.00 | AH90: $5,252,585.72 | AI90: $11,305,070.22 | AJ90: $1,598,206.52 | AK90: $9,706,863.70 | AL90: $11,396,951.11 | AM90: $544,333.98 | AN90: $544,333.98 | AO90: $567,596.12 | AP90: $567,596.12 | AQ90: $438,103.56 | AR90: $438,103.56 | AS90: $456,713.27 | AT90: $456,713.27 | AU90: $548,211.01 | AV90: $922,731.40 | AW90: $373,773.85 | AX90: $142,790.60 | AY90: $6,001,000.72 | AZ90: $28,480,415.73 | BA90: $1,565,418.05 | BB90: $278,538.00 | BC90: $649,651.12 | BD90: $28,480,415.59
A91: 05016070002 | B91: MORTON GROVE SCHOOL DIST 70 | C91: 844.04 | D91: $12,297,347.94 | E91: $14,290,233.38 | F91: 116% | G91: 4 | H91: $783.32 | I91: $866,246.26 | J91: $867,029.58 | K91: 1.06 | L91: $2,931,979.93 | M91: $586,395.98 | N91: $310,453.61 | O91: $137,897.44 | P91: $108,406.75 | Q91: $192,328.54 | R91: $72,440.77 | S91: $117,471.78 | T91: $159,220.89 | U91: $87,946.79 | V91: $236,209.17 | W91: $203,376.63 | X91: $140,960.60 | Y91: $5,285,088.88 | Z91: $75,056.40 | AA91: $105,505.00 | AB91: $274,313.00 | AC91: $28,697.36 | AD91: $240,973.41 | AE91: $142,827.60 | AF91: $1,148,738.44 | AG91: $790,865.48 | AH91: $2,250,931.34 | AI91: $5,057,908.03 | AJ91: $803,424.79 | AK91: $4,254,483.24 | AL91: $5,104,096.92 | AM91: $154,305.50 | AN91: $154,305.50 | AO91: $160,508.74 | AP91: $160,508.74 | AQ91: $103,904.20 | AR91: $103,904.20 | AS91: $108,556.63 | AT91: $108,556.63 | AU91: $130,267.96 | AV91: $463,691.91 | AW91: $187,829.21 | AX91: $71,822.81 | AY91: $1,908,162.03 | AZ91: $12,297,347.94 | BA91: $162,694.27 | BB91: $51,388.57 | BC91: $269,117.39 | BD91: $12,297,347.83
A92: 05016071002 | B92: NILES ELEM SCHOOL DIST 71 | C92: 608 | D92: $9,147,670.73 | E92: $11,635,248.12 | F92: 127% | G92: 4 | H92: $582.69 | I92: $555,000.45 | J92: $555,583.14 | K92: 1.06 | L92: $2,205,621.72 | M92: $441,124.33 | N92: $223,438.10 | O92: $98,814.21 | P92: $81,894.35 | Q92: $134,312.07 | R92: $52,390.20 | S92: $84,491.73 | T92: $114,094.11 | U92: $63,447.32 | V92: $169,262.18 | W92: $145,735.12 | X92: $101,386.10 | Y92: $3,916,011.54 | Z92: $54,000.00 | AA92: $76,000.00 | AB92: $197,600.00 | AC92: $20,672.00 | AD92: $173,584.00 | AE92: $99,180.00 | AF92: $827,488.00 | AG92: $569,696.00 | AH92: $1,685,382.45 | AI92: $3,703,602.45 | AJ92: $578,743.04 | AK92: $3,124,859.41 | AL92: $3,736,874.38 | AM92: $155,856.31 | AN92: $155,856.31 | AO92: $162,059.54 | AP92: $162,059.54 | AQ92: $63,583.17 | AR92: $63,583.17 | AS92: $65,909.38 | AT92: $65,909.38 | AU92: $79,091.26 | AV92: $334,199.35 | AW92: $135,375.23 | AX92: $51,302.01 | AY92: $1,494,784.65 | AZ92: $9,147,670.73 | BA92: $200,937.15 | BB92: $18,642.81 | BC92: $197,141.67 | BD92: $9,147,670.57
A93: 05016072002 | B93: SKOKIE FAIRVIEW SCHOOL DIST 72 | C93: 731.55 | D93: $10,548,418.20 | E93: $14,779,261.12 | F93: 140% | G93: 4 | H93: $671.91 | I93: $541,844.01 | J93: $542,515.92 | K93: 1.06 | L93: $2,578,755.99 | M93: $515,751.19 | N93: $269,158.11 | O93: $118,724.53 | P93: $92,916.77 | Q93: $164,512.42 | R93: $62,092.09 | S93: $101,767.00 | T93: $137,083.23 | U93: $76,325.25 | V93: $203,367.25 | W93: $175,099.67 | X93: $122,115.60 | Y93: $4,617,669.10 | Z93: $65,217.60 | AA93: $91,443.75 | AB93: $237,753.75 | AC93: $24,872.70 | AD93: $208,857.52 | AE93: $122,736.92 | AF93: $995,639.55 | AG93: $685,462.35 | AH93: $1,927,056.21 | AI93: $4,359,040.35 | AJ93: $696,347.81 | AK93: $3,662,692.54 | AL93: $4,399,073.38 | AM93: $141,899.03 | AN93: $141,899.03 | AO93: $147,326.86 | AP93: $147,326.86 | AQ93: $61,256.95 | AR93: $61,256.95 | AS93: $63,583.17 | AT93: $63,583.17 | AU93: $76,765.04 | AV93: $401,659.55 | AW93: $162,701.56 | AX93: $62,417.44 | AY93: $1,531,675.61 | AZ93: $10,548,418.20 | BA93: $148,169.07 | BB93: $161.62 | BC93: $231,769.87 | BD93: $10,548,418.09
A94: 05016073002 | B94: EAST PRAIRIE SCHOOL DIST 73 | C94: 507.5 | D94: $7,729,678.27 | E94: $8,555,903.96 | F94: 111% | G94: 4 | H94: $492.36 | I94: $619,650.72 | J94: $620,143.08 | K94: 1.06 | L94: $1,823,638.42 | M94: $364,727.67 | N94: $186,567.13 | O94: $81,853.56 | P94: $69,490.24 | Q94: $111,264.44 | R94: $43,335.10 | S94: $70,357.43 | T94: $94,510.79 | U94: $52,768.07 | V94: $140,209.72 | W94: $120,720.89 | X94: $84,425.60 | Y94: $3,243,869.06 | Z94: $45,315.00 | AA94: $63,437.50 | AB94: $164,937.50 | AC94: $17,255.00 | AD94: $144,891.25 | AE94: $82,963.50 | AF94: $690,707.50 | AG94: $475,527.50 | AH94: $1,427,244.19 | AI94: $3,112,278.94 | AJ94: $483,079.10 | AK94: $2,629,199.84 | AL94: $3,140,051.15 | AM94: $111,658.25 | AN94: $111,658.25 | AO94: $116,310.68 | AP94: $116,310.68 | AQ94: $85,294.49 | AR94: $85,294.49 | AS94: $89,171.52 | AT94: $89,171.52 | AU94: $107,005.82 | AV94: $278,370.23 | AW94: $112,760.34 | AX94: $42,751.67 | AY94: $1,345,757.94 | AZ94: $7,729,678.27 | BA94: $166,153.68 | BB94: $34,882.02 | BC94: $177,077.82 | BD94: $7,729,678.15
A95: 05016073502 | B95: SKOKIE SCHOOL DIST 73-5 | C95: 1005.97 | D95: $15,167,113.64 | E95: $16,922,994.48 | F95: 112% | G95: 4 | H95: $966.12 | I95: $1,806,578.00 | J95: $1,807,544.12 | K95: 1.06 | L95: $3,591,970.39 | M95: $718,394.07 | N95: $370,184.58 | O95: $163,707.12 | P95: $135,595.22 | Q95: $224,913.12 | R95: $86,023.41 | S95: $140,086.67 | T95: $189,021.59 | U95: $104,907.95 | V95: $280,419.44 | W95: $241,441.78 | X95: $168,097.40 | Y95: $6,414,762.74 | Z95: $89,457.30 | AA95: $125,746.25 | AB95: $326,940.25 | AC95: $34,202.98 | AD95: $287,204.43 | AE95: $166,591.01 | AF95: $1,369,125.17 | AG95: $942,593.89 | AH95: $2,794,986.30 | AI95: $6,136,847.58 | AJ95: $957,562.72 | AK95: $5,179,284.86 | AL95: $6,191,897.86 | AM95: $227,968.93 | AN95: $227,968.93 | AO95: $237,273.79 | AP95: $237,273.79 | AQ95: $144,225.24 | AR95: $144,225.24 | AS95: $149,653.07 | AT95: $149,653.07 | AU95: $179,893.85 | AV95: $552,863.43 | AW95: $223,950.21 | AX95: $85,503.35 | AY95: $2,560,452.90 | AZ95: $15,167,113.64 | BA95: $344,699.36 | BB95: $59,057.95 | BC95: $408,519.12 | BD95: $15,167,113.50
A96: 05016074002 | B96: LINCOLNWOOD SCHOOL DIST 74 | C96: 1179.88 | D96: $17,394,106.08 | E96: $26,035,859.41 | F96: 150% | G96: 4 | H96: $1,107.97 | I96: $1,165,544.21 | J96: $1,166,652.18 | K96: 1.06 | L96: $4,157,571.15 | M96: $831,514.22 | N96: $434,340.08 | O96: $192,466.48 | P96: $154,130.45 | Q96: $267,829.41 | R96: $100,899.64 | S96: $164,272.04 | T96: $222,228.09 | U96: $123,125.50 | V96: $329,682.32 | W96: $283,857.22 | X96: $197,118.70 | Y96: $7,459,035.30 | Z96: $104,959.80 | AA96: $147,485.00 | AB96: $383,461.00 | AC96: $40,115.92 | AD96: $336,855.74 | AE96: $198,765.18 | AF96: $1,605,816.68 | AG96: $1,105,547.56 | AH96: $3,191,199.84 | AI96: $7,114,206.72 | AJ96: $1,123,104.17 | AK96: $5,991,102.55 | AL96: $7,178,773.97 | AM96: $245,027.83 | AN96: $245,027.83 | AO96: $255,883.49 | AP96: $255,883.49 | AQ96: $139,572.81 | AR96: $139,572.81 | AS96: $145,000.64 | AT96: $145,000.64 | AU96: $174,466.02 | AV96: $648,238.19 | AW96: $262,583.98 | AX96: $100,038.92 | AY96: $2,756,296.65 | AZ96: $17,394,106.08 | BA96: $352,011.52 | BB96: $42,353.76 | BC96: $417,870.16 | BD96: $17,394,105.92
A97: 05016202017 | B97: EVANSTON TWP H S DIST 202 | C97: 3701.82 | D97: $57,096,483.01 | E97: $71,440,901.32 | F97: 125% | G97: 4 | H97: $3,636.95 | I97: $2,962,571.23 | J97: $2,966,208.18 | K97: 1.06 | L97: $13,317,806.03 | M97: $4,438,824.74 | N97: $1,569,095.73 | O97: $522,466.47 | P97: $443,873.69 | Q97: $1,340,651.98 | R97: $318,868.75 | S97: $581,077.00 | T97: $524,492.36 | U97: $387,279.97 | V97: $778,100.80 | W97: $669,946.56 | X97: $697,265.02 | Y97: $25,589,749.10 | Z97: $333,163.80 | AA97: $462,727.50 | AB97: $1,203,091.50 | AC97: $125,861.88 | AD97: $1,056,869.61 | AE97: $3,179,863.38 | AF97: $5,038,177.02 | AG97: $3,468,605.34 | AH97: $10,012,877.67 | AI97: $24,881,237.70 | AJ97: $3,523,688.42 | AK97: $21,357,549.28 | AL97: $25,083,814.54 | AM97: $555,189.65 | AN97: $555,189.65 | AO97: $577,676.38 | AP97: $577,676.38 | AQ97: $183,770.87 | AR97: $183,770.87 | AS97: $191,524.92 | AT97: $191,524.92 | AU97: $230,295.14 | AV97: $2,035,436.92 | AW97: $824,501.15 | AX97: $316,362.40 | AY97: $6,422,919.25 | AZ97: $57,096,483.01 | BA97: $588,986.37 | BB97: $26,872.11 | BC97: $1,137,853.01 | BD97: $57,096,482.89
A98: 05016203017 | B98: NEW TRIER TWP H S DIST 203 | C98: 3912.66 | D98: $55,371,572.02 | E98: $117,463,156.56 | F98: 212% | G98: 4 | H98: $3,527.08 | I98: $2,420,656.98 | J98: $2,424,184.06 | K98: 1.06 | L98: $13,416,192.57 | M98: $4,471,616.98 | N98: $1,659,000.67 | O98: $553,000.22 | P98: $411,700.61 | Q98: $1,417,648.88 | R98: $336,978.94 | S98: $614,371.14 | T98: $555,144.51 | U98: $409,580.76 | V98: $823,574.22 | W98: $709,099.28 | X98: $737,216.42 | Y98: $26,115,125.20 | Z98: $352,139.40 | AA98: $489,082.50 | AB98: $1,271,614.50 | AC98: $133,030.44 | AD98: $1,117,064.43 | AE98: $3,360,974.94 | AF98: $5,325,130.26 | AG98: $3,666,162.42 | AH98: $9,495,993.78 | AI98: $25,211,192.67 | AJ98: $3,724,382.80 | AK98: $21,486,809.87 | AL98: $25,425,307.43 | AM98: $103,904.20 | AN98: $103,904.20 | AO98: $107,781.23 | AP98: $107,781.23 | AQ98: $9,304.85 | AR98: $9,304.85 | AS98: $10,080.25 | AT98: $10,080.25 | AU98: $12,406.47 | AV98: $2,150,972.20 | AW98: $871,301.41 | AX98: $334,318.11 | AY98: $3,831,139.25 | AZ98: $55,371,572.02 | BA98: $68,227.84 | BB98: $8,103.33 | BC98: $1,460,707.38 | BD98: $55,371,571.88
A99: 05016207017 | B99: MAINE TOWNSHIP H S DIST 207 | C99: 6206.65 | D99: $99,321,745.57 | E99: $135,411,149.62 | F99: 136% | G99: 4 | H99: $6,326.63 | I99: $5,627,226.44 | J99: $5,633,553.07 | K99: 1.06 | L99: $22,804,474.00 | M99: $7,600,731.18 | N99: $2,631,840.02 | O99: $876,997.28 | P99: $785,582.19 | Q99: $2,248,309.60 | R99: $534,897.48 | S99: $974,638.89 | T99: $880,397.90 | U99: $649,549.86 | V99: $1,306,097.77 | W99: $1,124,553.16 | X99: $1,169,520.73 | Y99: $43,587,590.06 | Z99: $558,598.50 | AA99: $775,831.25 | AB99: $2,017,161.25 | AC99: $211,026.10 | AD99: $1,771,998.57 | AE99: $5,331,512.35 | AF99: $8,447,250.65 | AG99: $5,815,631.05 | AH99: $17,572,536.00 | AI99: $42,501,545.72 | AJ99: $5,907,986.00 | AK99: $36,593,559.72 | AL99: $42,841,195.83 | AM99: $1,277,866.68 | AN99: $1,277,866.68 | AO99: $1,331,369.59 | AP99: $1,331,369.59 | AQ99: $440,429.78 | AR99: $440,429.78 | AS99: $459,039.48 | AT99: $459,039.48 | AU99: $550,537.22 | AV99: $3,412,555.39 | AW99: $1,382,335.08 | AX99: $530,120.79 | AY99: $12,892,959.54 | AZ99: $99,321,745.57 | BA99: $1,309,607.09 | BB99: $94,378.51 | BC99: $1,865,064.77 | BD99: $99,321,745.43
A100: 05016211017 | B100: TOWNSHIP H S DIST 211 | C100: 12253 | D100: $193,660,520.58 | E100: $193,165,388.92 | F100: 100% | G100: 3 | H100: $220,077.91 | I100: $12,465,957.42 | J100: $12,686,035.33 | K100: 1.06 | L100: $44,586,915.39 | M100: $14,860,818.89 | N100: $5,195,827.26 | O100: $1,731,942.42 | P100: $1,522,992.61 | Q100: $4,439,550.92 | R100: $1,056,212.33 | S100: $1,924,150.13 | T100: $1,738,658.14 | U100: $1,282,766.75 | V100: $2,579,353.63 | W100: $2,220,829.35 | X100: $2,308,889.46 | Y100: $85,448,907.28 | Z100: $1,102,770.00 | AA100: $1,531,625.00 | AB100: $3,982,225.00 | AC100: $416,602.00 | AD100: $3,498,231.50 | AE100: $10,525,327.00 | AF100: $16,676,333.00 | AG100: $11,481,061.00 | AH100: $34,163,066.93 | AI100: $83,377,241.43 | AJ100: $11,663,385.64 | AK100: $71,713,855.79 | AL100: $84,047,769.47 | AM100: $2,206,801.32 | AN100: $2,206,801.32 | AO100: $2,298,299.06 | AP100: $2,298,299.06 | AQ100: $870,003.89 | AR100: $870,003.89 | AS100: $905,672.50 | AT100: $905,672.50 | AU100: $1,087,117.16 | AV100: $6,738,265.47 | AW100: $2,729,491.45 | AX100: $1,047,416.08 | AY100: $24,163,843.70 | AZ100: $193,660,520.58 | BA100: $2,014,667.54 | BB100: $202,955.59 | BC100: $4,014,468.06 | BD100: $193,660,520.45
A101: 05016214017 | B101: TOWNSHIP HIGH SCHOOL DIST 214 | C101: 12049.5 | D101: $193,349,736.33 | E101: $229,743,096.42 | F101: 119% | G101: 4 | H101: $12,316.07 | I101: $10,130,814.46 | J101: $10,143,130.53 | K101: 1.06 | L101: $44,350,278.79 | M101: $14,781,947.91 | N101: $5,109,314.96 | O101: $1,703,104.98 | P101: $1,531,163.40 | Q101: $4,365,271.55 | R101: $1,038,748.92 | S101: $1,892,112.37 | T101: $1,709,708.88 | U101: $1,261,408.25 | V101: $2,536,406.51 | W101: $2,183,851.78 | X101: $2,270,445.66 | Y101: $84,733,763.96 | Z101: $1,084,455.00 | AA101: $1,506,187.50 | AB101: $3,916,087.50 | AC101: $409,683.00 | AD101: $3,440,132.25 | AE101: $10,350,520.50 | AF101: $16,399,369.50 | AG101: $11,290,381.50 | AH101: $34,230,403.37 | AI101: $82,627,220.12 | AJ101: $11,469,678.06 | AK101: $71,157,542.06 | AL101: $83,286,611.91 | AM101: $2,538,674.47 | AN101: $2,538,674.47 | AO101: $2,644,129.48 | AP101: $2,644,129.48 | AQ101: $866,902.27 | AR101: $866,902.27 | AS101: $903,346.29 | AT101: $903,346.29 | AU101: $1,084,015.55 | AV101: $6,625,831.81 | AW101: $2,683,947.58 | AX101: $1,029,460.38 | AY101: $25,329,360.34 | AZ101: $193,349,736.33 | BA101: $2,333,737.55 | BB101: $191,166.08 | BC101: $3,390,689.05 | BD101: $193,349,736.21
A102: 05016219017 | B102: NILES TWP COMM HIGH SCH DIST 219 | C102: 4618.99 | D102: $74,878,417.74 | E102: $148,110,899.52 | F102: 198% | G102: 4 | H102: $4,769.63 | I102: $4,853,816.65 | J102: $4,858,586.28 | K102: 1.06 | L102: $17,170,148.09 | M102: $5,722,810.35 | N102: $1,958,401.10 | O102: $652,234.92 | P102: $595,723.39 | Q102: $1,673,097.44 | R102: $397,777.45 | S102: $725,246.92 | T102: $654,764.01 | U102: $483,393.25 | V102: $971,362.85 | W102: $836,345.62 | X102: $870,262.12 | Y102: $32,711,567.51 | Z102: $415,709.10 | AA102: $577,373.75 | AB102: $1,501,171.75 | AC102: $157,045.66 | AD102: $1,318,721.64 | AE102: $3,967,712.41 | AF102: $6,286,445.39 | AG102: $4,327,993.63 | AH102: $13,287,886.88 | AI102: $31,840,060.21 | AJ102: $4,396,724.20 | AK102: $27,443,336.01 | AL102: $32,092,827.88 | AM102: $1,096,422.02 | AN102: $1,096,422.02 | AO102: $1,142,170.89 | AP102: $1,142,170.89 | AQ102: $306,284.79 | AR102: $306,284.79 | AS102: $319,466.67 | AT102: $319,466.67 | AU102: $383,049.84 | AV102: $2,539,449.87 | AW102: $1,028,663.35 | AX102: $394,170.46 | AY102: $10,074,022.26 | AZ102: $74,878,417.74 | BA102: $1,439,768.72 | BB102: $105,822.69 | BC102: $1,598,238.50 | BD102: $74,878,417.65
A103: 05016225017 | B103: GLENBROOK HSD 225 | C103: 5159.66 | D103: $76,616,375.97 | E103: $132,344,672.74 | F103: 173% | G103: 4 | H103: $4,880.34 | I103: $3,358,743.87 | J103: $3,363,624.21 | K103: 1.06 | L103: $18,121,783.45 | M103: $6,039,990.41 | N103: $2,187,404.26 | O103: $728,569.31 | P103: $584,496.28 | Q103: $1,868,760.16 | R103: $444,346.52 | S103: $810,052.75 | T103: $731,394.38 | U103: $539,930.47 | V103: $1,085,046.41 | W103: $934,227.43 | X103: $972,025.12 | Y103: $35,048,026.95 | Z103: $464,369.40 | AA103: $644,957.50 | AB103: $1,676,889.50 | AC103: $175,428.44 | AD103: $1,473,082.93 | AE103: $4,432,147.94 | AF103: $7,022,297.26 | AG103: $4,834,601.42 | AH103: $13,308,270.95 | AI103: $34,032,045.34 | AJ103: $4,911,377.16 | AK103: $29,120,668.18 | AL103: $34,314,400.41 | AM103: $451,285.44 | AN103: $451,285.44 | AO103: $469,895.15 | AP103: $469,895.15 | AQ103: $184,546.28 | AR103: $184,546.28 | AS103: $192,300.32 | AT103: $192,300.32 | AU103: $231,070.55 | AV103: $2,837,205.22 | AW103: $1,149,276.09 | AX103: $440,342.27 | AY103: $7,253,948.51 | AZ103: $76,616,375.97 | BA103: $279,479.43 | BB103: $38,197.85 | BC103: $1,478,209.94 | BD103: $76,616,375.87
B104: SAFE SCH-INTERMEDIATE SERVICE CEN | C104: 72.64 | D104: $1,252,448.75 | E104: $876,202.39 | F104: 70% | G104: 1 | H104: $45,556.04 | I104: $750,957.52 | J104: $796,513.56 | K104: 1.06 | L104: $268,932.00 | M104: $82,164.38 | N104: $28,799.67 | O104: $9,845.69 | P104: $10,308.23 | Q104: $24,697.08 | R104: $5,821.13 | S104: $10,679.25 | T104: $10,217.38 | U104: $7,224.20 | V104: $15,157.80 | W104: $13,050.90 | X104: $12,814.60 | Y104: $499,712.31 | Z104: $6,537.60 | AA104: $9,080.00 | AB104: $23,608.00 | AC104: $2,469.76 | AD104: $41,477.44 | AE104: $52,033.86 | AF104: $98,863.04 | AG104: $68,063.68 | AH104: $223,018.59 | AI104: $525,151.97 | AJ104: $69,144.56 | AK104: $456,007.41 | AL104: $529,127.09 | AM104: $23,262.13 | AN104: $23,262.13 | AO104: $24,037.54 | AP104: $24,037.54 | AQ104: $12,406.47 | AR104: $12,406.47 | AS104: $13,181.87 | AT104: $13,181.87 | AU104: $16,283.49 | AV104: $39,545.63 | AW104: $16,018.87 | AX104: $5,985.23 | AY104: $223,609.24 | AZ104: $1,252,448.75 | BA104: $30,548.20 | BB104: $11,092.28 | BC104: $13,599.15 | BD104: $1,252,448.64
B105: ALOP SCH-INTERMEDIATE SERVICE CEN | C105: 2373 | D105: $40,661,387.65 | E105: $18,419,763.45 | F105: 45% | G105: 1 | H105: $5,053,454.90 | I105: $14,353,624.69 | J105: $19,407,079.59 | K105: 1.06 | L105: $8,734,061.26 | M105: $2,589,333.19 | N105: $965,940.32 | O105: $351,231.08 | P105: $334,678.31 | Q105: $813,234.49 | R105: $203,739.67 | S105: $359,953.64 | T105: $370,380.16 | U105: $248,135.58 | V105: $549,470.53 | W105: $473,095.38 | X105: $431,927.41 | Y105: $16,425,181.02 | Z105: $213,570.00 | AA105: $296,625.00 | AB105: $771,225.00 | AC105: $80,682.00 | AD105: $1,354,983.00 | AE105: $1,585,349.00 | AF105: $3,229,653.00 | AG105: $2,223,501.00 | AH105: $7,255,287.17 | AI105: $17,010,875.17 | AJ105: $2,258,811.24 | AK105: $14,752,063.93 | AL105: $17,140,734.22 | AM105: $759,896.45 | AN105: $759,896.45 | AO105: $791,688.03 | AP105: $791,688.03 | AQ105: $366,766.34 | AR105: $366,766.34 | AS105: $382,274.43 | AT105: $382,274.43 | AU105: $459,039.48 | AV105: $1,304,230.44 | AW105: $528,308.93 | AX105: $202,642.94 | AY105: $7,095,472.29 | AZ105: $40,661,387.65 | BA105: $1,652,293.78 | BB105: $573,900.01 | BC105: $743,873.21 | BD105: $40,661,387.53
A106: 06016078002 | B106: ROSEMONT ELEM SCHOOL DIST 78 | C106: 192.3 | D106: $2,871,286.36 | E106: $8,776,903.84 | F106: 306% | G106: 4 | H106: $182.89 | I106: $270,084.88 | J106: $270,267.77 | K106: 1.06 | L106: $690,962.07 | M106: $138,192.41 | N106: $70,054.85 | O106: $30,234.19 | P106: $25,712.17 | Q106: $41,326.79 | R106: $15,523.02 | S106: $26,384.03 | T106: $34,909.39 | U106: $19,788.02 | V106: $51,789.17 | W106: $44,590.59 | X106: $31,659.60 | Y106: $1,221,126.30 | Z106: $16,872.30 | AA106: $24,037.50 | AB106: $62,497.50 | AC106: $6,538.20 | AD106: $54,901.64 | AE106: $30,624.51 | AF106: $261,720.30 | AG106: $180,185.10 | AH106: $528,455.53 | AI106: $1,165,832.58 | AJ106: $183,046.52 | AK106: $982,786.06 | AL106: $1,176,355.92 | AM106: $47,299.67 | AN106: $47,299.67 | AO106: $49,625.89 | AP106: $49,625.89 | AQ106: $21,711.32 | AR106: $21,711.32 | AS106: $22,486.73 | AT106: $22,486.73 | AU106: $27,139.15 | AV106: $105,455.01 | AW106: $42,717.01 | AX106: $16,245.63 | AY106: $473,804.02 | AZ106: $2,871,286.36 | BA106: $145,590.09 | BB106: $62.49 | BC106: $64,607.37 | BD106: $2,871,286.24
A107: 06016079002 | B107: PENNOYER SCHOOL DIST 79 | C107: 419.25 | D107: $6,510,216.23 | E107: $5,599,693.37 | F107: 86% | G107: 2 | H107: $8,699.29 | I107: $544,192.40 | J107: $552,891.69 | K107: 1.06 | L107: $1,512,447.39 | M107: $302,489.47 | N107: $153,383.25 | O107: $67,842.59 | P107: $57,317.34 | Q107: $95,369.52 | R107: $35,573.59 | S107: $58,107.70 | T107: $78,333.27 | U107: $43,659.29 | V107: $116,209.86 | W107: $100,056.95 | X107: $69,726.50 | Y107: $2,690,516.72 | Z107: $37,485.00 | AA107: $52,406.25 | AB107: $136,256.25 | AC107: $14,254.50 | AD107: $239,391.75 | AE107: $71,840.50 | AF107: $570,599.25 | AG107: $392,837.25 | AH107: $1,179,434.95 | AI107: $2,694,505.70 | AJ107: $399,075.69 | AK107: $2,295,430.01 | AL107: $2,717,448.56 | AM107: $109,332.04 | AN107: $109,332.04 | AO107: $113,209.06 | AP107: $113,209.06 | AQ107: $55,829.12 | AR107: $55,829.12 | AS107: $58,155.34 | AT107: $58,155.34 | AU107: $70,561.81 | AV107: $230,295.14 | AW107: $93,286.41 | AX107: $35,056.37 | AY107: $1,102,250.85 | AZ107: $6,510,216.23 | BA107: $211,027.54 | BB107: $14,939.58 | BC107: $120,623.45 | BD107: $6,510,216.13
A108: 06016080002 | B108: NORRIDGE SCHOOL DIST 80 | C108: 1063 | D108: $16,656,022.68 | E108: $13,945,118.30 | F108: 84% | G108: 2 | H108: $25,563.17 | I108: $1,340,591.26 | J108: $1,366,154.43 | K108: 1.06 | L108: $3,853,016.89 | M108: $770,603.37 | N108: $391,569.75 | O108: $173,293.58 | P108: $147,034.81 | Q108: $242,397.54 | R108: $91,197.75 | S108: $148,253.16 | T108: $200,090.43 | U108: $111,189.87 | V108: $296,840.40 | W108: $255,580.26 | X108: $177,896.80 | Y108: $6,858,964.61 | Z108: $94,545.00 | AA108: $132,875.00 | AB108: $345,475.00 | AC108: $36,142.00 | AD108: $606,973.00 | AE108: $179,672.50 | AF108: $1,446,743.00 | AG108: $996,031.00 | AH108: $3,023,752.62 | AI108: $6,862,209.12 | AJ108: $1,011,848.44 | AK108: $5,850,360.68 | AL108: $6,920,380.28 | AM108: $287,675.08 | AN108: $287,675.08 | AO108: $300,081.55 | AP108: $300,081.55 | AQ108: $148,102.26 | AR108: $148,102.26 | AS108: $154,305.50 | AT108: $154,305.50 | AU108: $185,321.68 | AV108: $583,879.62 | AW108: $236,514.04 | AX108: $90,633.55 | AY108: $2,876,677.67 | AZ108: $16,656,022.68 | BA108: $426,370.60 | BB108: $52,523.08 | BC108: $317,985.99 | BD108: $16,656,022.56
A109: 06016081002 | B109: SCHILLER PARK SCHOOL DIST 81 | C109: 1275.47 | D109: $21,702,428.59 | E109: $17,859,808.04 | F109: 82% | G109: 2 | H109: $82,366.89 | I109: $3,948,595.10 | J109: $4,030,961.99 | K109: 1.06 | L109: $4,838,209.35 | M109: $967,641.86 | N109: $469,736.22 | O109: $208,689.71 | P109: $196,932.15 | Q109: $288,492.81 | R109: $109,954.74 | S109: $177,778.15 | T109: $240,959.96 | U109: $133,490.66 | V109: $357,471.63 | W109: $307,783.89 | X109: $213,325.40 | Y109: $8,510,466.53 | Z109: $113,712.30 | AA109: $159,433.75 | AB109: $414,527.75 | AC109: $43,365.98 | AD109: $728,293.37 | AE109: $213,773.43 | AF109: $1,735,914.67 | AG109: $1,195,115.39 | AH109: $4,003,444.78 | AI109: $8,607,581.42 | AJ109: $1,214,094.38 | AK109: $7,393,487.04 | AL109: $8,677,379.70 | AM109: $483,077.02 | AN109: $483,077.02 | AO109: $503,237.54 | AP109: $503,237.54 | AQ109: $271,391.58 | AR109: $271,391.58 | AS109: $283,022.65 | AT109: $283,022.65 | AU109: $339,627.18 | AV109: $700,965.70 | AW109: $283,942.49 | AX109: $108,589.25 | AY109: $4,514,582.20 | AZ109: $21,702,428.59 | BA109: $1,638,034.76 | BB109: $244,314.45 | BC109: $549,557.12 | BD109: $21,702,428.43
A110: 06016083002 | B110: MANNHEIM SCHOOL DIST 83 | C110: 2323.61 | D110: $39,700,854.33 | E110: $54,280,834.53 | F110: 137% | G110: 4 | H110: $2,528.88 | I110: $6,507,547.07 | J110: $6,510,075.95 | K110: 1.06 | L110: $8,789,303.04 | M110: $1,757,860.60 | N110: $856,144.04 | O110: $380,508.46 | P110: $368,135.90 | Q110: $531,685.09 | R110: $199,858.91 | S110: $324,146.74 | T110: $439,347.50 | U110: $242,795.96 | V110: $651,785.73 | W110: $561,189.00 | X110: $388,960.81 | Y110: $15,491,721.78 | Z110: $207,040.50 | AA110: $290,451.25 | AB110: $755,173.25 | AC110: $79,002.74 | AD110: $663,390.65 | AE110: $394,235.93 | AF110: $3,162,433.21 | AG110: $2,177,222.57 | AH110: $7,473,108.36 | AI110: $15,202,058.46 | AJ110: $2,211,797.88 | AK110: $12,990,260.58 | AL110: $15,329,214.72 | AM110: $863,025.25 | AN110: $863,025.25 | AO110: $899,469.26 | AP110: $899,469.26 | AQ110: $630,403.89 | AR110: $630,403.89 | AS110: $656,767.64 | AT110: $656,767.64 | AU110: $787,811.01 | AV110: $1,277,091.28 | AW110: $517,315.58 | AX110: $198,367.78 | AY110: $8,879,917.73 | AZ110: $39,700,854.33 | BA110: $3,437,375.18 | BB110: $343,819.58 | BC110: $1,045,789.99 | BD110: $39,700,854.23
A111: 06016084002 | B111: FRANKLIN PARK SCHOOL DIST 84 | C111: 1240.89 | D111: $20,309,713.02 | E111: $21,218,699.95 | F111: 104% | G111: 4 | H111: $1,293.69 | I111: $3,790,244.85 | J111: $3,791,538.54 | K111: 1.06 | L111: $4,622,882.85 | M111: $924,576.56 | N111: $456,462.67 | O111: $202,790.36 | P111: $182,071.38 | Q111: $280,545.35 | R111: $106,720.78 | S111: $172,752.62 | T111: $234,148.37 | U111: $129,407.42 | V111: $347,366.43 | W111: $299,083.28 | X111: $207,295.00 | Y111: $8,166,103.07 | Z111: $110,622.60 | AA111: $155,111.25 | AB111: $403,289.25 | AC111: $42,190.26 | AD111: $708,548.19 | AE111: $207,933.42 | AF111: $1,688,851.29 | AG111: $1,162,713.93 | AH111: $3,719,267.14 | AI111: $8,198,527.33 | AJ111: $1,181,178.37 | AK111: $7,017,348.96 | AL111: $8,266,433.27 | AM111: $410,964.40 | AN111: $410,964.40 | AO111: $428,023.30 | AP111: $428,023.30 | AQ111: $212,460.84 | AR111: $212,460.84 | AS111: $221,765.69 | AT111: $221,765.69 | AU111: $265,963.75 | AV111: $682,355.99 | AW111: $276,404.19 | AX111: $106,024.15 | AY111: $3,877,176.54 | AZ111: $20,309,713.02 | BA111: $1,356,544.15 | BB111: $130,109.46 | BC111: $443,501.07 | BD111: $20,309,712.88
A112: 06016084502 | B112: RHODES SCHOOL DIST 84-5 | C112: 524.23 | D112: $9,263,535.83 | E112: $13,012,856.53 | F112: 140% | G112: 4 | H112: $590.07 | I112: $1,642,470.50 | J112: $1,643,060.57 | K112: 1.06 | L112: $2,044,126.85 | M112: $408,825.36 | N112: $192,466.48 | O112: $85,540.66 | P112: $86,844.88 | Q112: $118,417.15 | R112: $44,628.69 | S112: $72,870.19 | T112: $98,768.04 | U112: $54,338.55 | V112: $146,525.47 | W112: $126,158.76 | X112: $87,440.80 | Y112: $3,566,951.88 | Z112: $46,543.50 | AA112: $65,528.75 | AB112: $170,374.75 | AC112: $17,823.82 | AD112: $149,667.66 | AE112: $87,624.67 | AF112: $713,477.03 | AG112: $491,203.51 | AH112: $1,753,261.82 | AI112: $3,495,505.51 | AJ112: $499,004.05 | AK112: $2,996,501.46 | AL112: $3,524,193.25 | AM112: $231,845.95 | AN112: $231,845.95 | AO112: $241,150.81 | AP112: $241,150.81 | AQ112: $145,776.05 | AR112: $145,776.05 | AS112: $151,979.29 | AT112: $151,979.29 | AU112: $182,220.06 | AV112: $287,675.08 | AW112: $116,529.49 | AX112: $44,461.74 | AY112: $2,172,390.57 | AZ112: $9,263,535.83 | BA112: $1,036,219.15 | BB112: $88,859.22 | BC112: $202,948.31 | BD112: $9,263,535.70
A113: 06016085502 | B113: RIVER GROVE SCHOOL DIST 85-5 | C113: 702.72 | D113: $11,807,194.91 | E113: $8,630,297.26 | F113: 73% | G113: 1 | H113: $263,648.76 | I113: $4,200,306.63 | J113: $4,463,955.39 | K113: 1.06 | L113: $2,684,206.98 | M113: $536,841.39 | N113: $258,096.82 | O113: $114,300.02 | P113: $106,901.45 | Q113: $158,949.20 | R113: $59,504.92 | S113: $97,683.75 | T113: $131,974.54 | U113: $73,184.29 | V113: $195,788.35 | W113: $168,574.21 | X113: $117,215.90 | Y113: $4,703,221.82 | Z113: $62,922.60 | AA113: $87,840.00 | AB113: $228,384.00 | AC113: $23,892.48 | AD113: $401,253.12 | AE113: $118,887.26 | AF113: $956,401.92 | AG113: $658,448.64 | AH113: $2,172,649.94 | AI113: $4,710,679.96 | AJ113: $668,905.11 | AK113: $4,041,774.85 | AL113: $4,749,135.31 | AM113: $263,637.54 | AN113: $263,637.54 | AO113: $275,268.61 | AP113: $275,268.61 | AQ113: $126,390.94 | AR113: $126,390.94 | AS113: $131,818.77 | AT113: $131,818.77 | AU113: $158,182.52 | AV113: $386,151.46 | AW113: $156,419.64 | AX113: $59,852.34 | AY113: $2,354,837.68 | AZ113: $11,807,194.91 | BA113: $1,209,925.26 | BB113: $229,702.45 | BC113: $365,697.95 | BD113: $11,807,194.81
A114: 06016086002 | B114: UNION RIDGE SCHOOL DIST 86 | C114: 584.25 | D114: $9,779,603.78 | E114: $7,325,970.79 | F114: 75% | G114: 1 | H114: $124,882.47 | I114: $1,094,670.50 | J114: $1,219,552.97 | K114: 1.06 | L114: $2,179,812.04 | M114: $435,962.40 | N114: $215,326.49 | O114: $95,127.11 | P114: $88,420.92 | Q114: $127,954.11 | R114: $49,803.03 | S114: $81,036.68 | T114: $109,836.87 | U114: $60,934.56 | V114: $162,946.43 | W114: $140,297.25 | X114: $97,240.20 | Y114: $3,844,698.09 | Z114: $51,975.00 | AA114: $73,031.25 | AB114: $189,881.25 | AC114: $19,864.50 | AD114: $333,606.75 | AE114: $94,755.50 | AF114: $795,164.25 | AG114: $547,442.25 | AH114: $1,799,261.43 | AI114: $3,904,982.18 | AJ114: $556,135.89 | AK114: $3,348,846.29 | AL114: $3,936,954.43 | AM114: $187,647.89 | AN114: $187,647.89 | AO114: $195,401.94 | AP114: $195,401.94 | AQ114: $137,246.60 | AR114: $137,246.60 | AS114: $142,674.43 | AT114: $142,674.43 | AU114: $171,364.40 | AV114: $321,017.48 | AW114: $130,035.61 | AX114: $49,591.94 | AY114: $1,997,951.15 | AZ114: $9,779,603.78 | BA114: $464,241.16 | BB114: $88,932.61 | BC114: $180,093.07 | BD114: $9,779,603.67
A115: 06016087002 | B115: BERKELEY SCHOOL DIST 87 | C115: 2322.39 | D115: $40,303,460.99 | E115: $32,236,126.81 | F115: 80% | G115: 2 | H115: $264,028.92 | I115: $16,712,602.77 | J115: $16,976,631.69 | K115: 1.06 | L115: $8,888,117.25 | M115: $1,777,623.44 | N115: $856,144.04 | O115: $379,771.04 | P115: $367,631.76 | Q115: $532,479.84 | R115: $199,858.91 | S115: $323,832.64 | T115: $438,496.05 | U115: $243,110.05 | V115: $650,522.58 | W115: $560,101.42 | X115: $388,583.91 | Y115: $15,606,272.93 | Z115: $206,765.10 | AA115: $290,298.75 | AB115: $754,776.75 | AC115: $78,961.26 | AD115: $1,326,084.69 | AE115: $395,094.67 | AF115: $3,160,772.79 | AG115: $2,176,079.43 | AH115: $7,460,305.21 | AI115: $15,849,138.65 | AJ115: $2,210,636.59 | AK115: $13,638,502.06 | AL115: $15,976,228.14 | AM115: $956,849.20 | AN115: $956,849.20 | AO115: $997,170.24 | AP115: $997,170.24 | AQ115: $528,825.89 | AR115: $528,825.89 | AS115: $550,537.22 | AT115: $550,537.22 | AU115: $661,420.07 | AV115: $1,277,091.28 | AW115: $517,315.58 | AX115: $198,367.78 | AY115: $8,720,959.81 | AZ115: $40,303,460.99 | BA115: $5,656,590.79 | BB115: $889,131.06 | BC115: $940,863.66 | BD115: $40,303,460.88
A116: 06016088002 | B116: BELLWOOD SCHOOL DIST 88 | C116: 2082.47 | D116: $37,685,164.71 | E116: $30,372,536.27 | F116: 81% | G116: 2 | H116: $254,423.13 | I116: $19,220,233.24 | J116: $19,474,656.37 | K116: 1.06 | L116: $8,399,945.54 | M116: $1,679,989.10 | N116: $766,916.28 | O116: $340,687.80 | P116: $349,061.35 | Q116: $468,900.16 | R116: $179,161.55 | S116: $290,538.50 | T116: $393,369.27 | U116: $217,668.30 | V116: $583,575.60 | W116: $502,459.92 | X116: $348,632.51 | Y116: $14,520,905.88 | Z116: $185,967.90 | AA116: $260,308.75 | AB116: $676,802.75 | AC116: $70,803.98 | AD116: $1,189,090.37 | AE116: $348,145.35 | AF116: $2,834,241.67 | AG116: $1,951,274.39 | AH116: $7,028,058.35 | AI116: $14,544,693.51 | AJ116: $1,982,261.54 | AK116: $12,562,431.97 | AL116: $14,658,653.72 | AM116: $1,087,892.57 | AN116: $1,087,892.57 | AO116: $1,132,866.03 | AP116: $1,132,866.03 | AQ116: $427,247.90 | AR116: $427,247.90 | AS116: $445,082.20 | AT116: $445,082.20 | AU116: $533,478.32 | AV116: $1,144,497.10 | AW116: $463,605.22 | AX116: $177,846.97 | AY116: $8,505,605.01 | AZ116: $37,685,164.71 | BA116: $8,025,156.05 | BB116: $664,429.21 | BC116: $987,797.38 | BD116: $37,685,164.61
A117: 06016089002 | B117: MAYWOOD-MELROSE PARK-BROADVIEW-89 | C117: 4079.29 | D117: $74,875,674.74 | E117: $57,291,415.22 | F117: 77% | G117: 1 | H117: $936,236.23 | I117: $45,859,249.44 | J117: $46,795,485.67 | K117: 1.06 | L117: $16,630,284.60 | M117: $3,326,056.91 | N117: $1,503,598.36 | O117: $667,364.64 | P117: $696,597.35 | Q117: $918,726.41 | R117: $351,208.38 | S117: $569,141.37 | T117: $770,561.02 | U117: $426,541.93 | V117: $1,143,151.34 | W117: $984,255.90 | X117: $682,942.81 | Y117: $28,670,431.02 | Z117: $365,591.70 | AA117: $509,911.25 | AB117: $1,325,769.25 | AC117: $138,695.86 | AD117: $2,329,274.59 | AE117: $682,913.77 | AF117: $5,551,913.69 | AG117: $3,822,294.73 | AH117: $13,996,944.46 | AI117: $28,723,309.30 | AJ117: $3,882,994.56 | AK117: $24,840,314.74 | AL117: $28,946,542.65 | AM117: $2,214,555.37 | AN117: $2,214,555.37 | AO117: $2,306,828.51 | AP117: $2,306,828.51 | AQ117: $883,961.17 | AR117: $883,961.17 | AS117: $921,180.59 | AT117: $921,180.59 | AU117: $1,105,726.87 | AV117: $2,243,245.34 | AW117: $908,678.80 | AX117: $347,998.65 | AY117: $17,258,700.94 | AZ117: $74,875,674.74 | BA117: $16,762,668.45 | BB117: $1,241,613.36 | BC117: $1,948,244.31 | BD117: $74,875,674.61
A118: 06016090002 | B118: RIVER FOREST SCHOOL DIST 90 | C118: 1392.8 | D118: $17,896,801.61 | E118: $23,954,938.17 | F118: 134% | G118: 4 | H118: $1,139.99 | I118: $1,077,026.08 | J118: $1,078,166.07 | K118: 1.06 | L118: $4,580,849.94 | M118: $916,169.98 | N118: $512,506.55 | O118: $227,125.20 | P118: $150,531.88 | Q118: $316,308.92 | R118: $119,656.63 | S118: $194,111.13 | T118: $262,246.18 | U118: $145,426.29 | V118: $389,050.40 | W118: $334,973.28 | X118: $232,924.20 | Y118: $8,381,880.58 | Z118: $124,572.60 | AA118: $174,100.00 | AB118: $452,660.00 | AC118: $47,355.20 | AD118: $397,644.39 | AE118: $235,368.42 | AF118: $1,895,600.80 | AG118: $1,305,053.60 | AH118: $3,191,115.93 | AI118: $7,823,470.94 | AJ118: $1,325,778.46 | AK118: $6,497,692.48 | AL118: $7,899,689.94 | AM118: $65,133.98 | AN118: $65,133.98 | AO118: $68,235.59 | AP118: $68,235.59 | AQ118: $28,689.96 | AR118: $28,689.96 | AS118: $30,240.77 | AT118: $30,240.77 | AU118: $36,444.01 | AV118: $765,324.28 | AW118: $310,012.43 | AX118: $118,849.66 | AY118: $1,615,230.98 | AZ118: $17,896,801.61 | BA118: $41,532.64 | BB118: $3,731.61 | BC118: $552,082.42 | BD118: $17,896,801.50
A119: 06016091002 | B119: FOREST PARK SCHOOL DIST 91 | C119: 638.72 | D119: $9,748,813.29 | E119: $18,576,194.67 | F119: 191% | G119: 4 | H119: $620.98 | I119: $1,596,369.22 | J119: $1,596,990.20 | K119: 1.06 | L119: $2,399,563.05 | M119: $479,912.60 | N119: $234,499.40 | O119: $103,976.14 | P119: $87,965.66 | Q119: $137,491.06 | R119: $54,330.57 | S119: $88,889.07 | T119: $120,054.25 | U119: $66,588.28 | V119: $178,104.24 | W119: $153,348.15 | X119: $106,662.70 | Y119: $4,211,385.17 | Z119: $56,262.60 | AA119: $79,840.00 | AB119: $207,584.00 | AC119: $21,716.48 | AD119: $182,354.55 | AE119: $100,647.26 | AF119: $869,297.92 | AG119: $598,480.64 | AH119: $1,801,703.65 | AI119: $3,917,887.10 | AJ119: $607,984.79 | AK119: $3,309,902.31 | AL119: $3,952,840.14 | AM119: $207,808.41 | AN119: $207,808.41 | AO119: $217,113.27 | AP119: $217,113.27 | AQ119: $35,668.60 | AR119: $35,668.60 | AS119: $36,444.01 | AT119: $36,444.01 | AU119: $44,198.05 | AV119: $350,482.85 | AW119: $141,971.24 | AX119: $53,867.11 | AY119: $1,584,587.83 | AZ119: $9,748,813.29 | BA119: $695,517.67 | BB119: $86.21 | BC119: $464,852.06 | BD119: $9,748,813.14
A120: 06016092002 | B120: LINDOP SCHOOL DISTRICT 92 | C120: 342.71 | D120: $5,360,840.29 | E120: $6,566,223.19 | F120: 122% | G120: 4 | H120: $341.47 | I120: $1,718,009.94 | J120: $1,718,351.41 | K120: 1.06 | L120: $1,294,171.22 | M120: $258,834.24 | N120: $125,361.31 | O120: $55,306.46 | P120: $48,619.23 | Q120: $77,090.36 | R120: $29,105.66 | S120: $47,428.44 | T120: $63,858.64 | U120: $35,806.90 | V120: $94,736.29 | W120: $81,568.16 | X120: $56,911.90 | Y120: $2,268,798.81 | Z120: $30,431.70 | AA120: $42,838.75 | AB120: $111,380.75 | AC120: $11,652.14 | AD120: $97,843.70 | AE120: $57,557.93 | AF120: $466,428.31 | AG120: $321,119.27 | AH120: $994,302.86 | AI120: $2,133,555.41 | AJ120: $326,218.79 | AK120: $1,807,336.62 | AL120: $2,152,309.72 | AM120: $127,941.74 | AN120: $127,941.74 | AO120: $133,369.58 | AP120: $133,369.58 | AQ120: $23,262.13 | AR120: $23,262.13 | AS120: $24,037.54 | AT120: $24,037.54 | AU120: $28,689.96 | AV120: $188,423.30 | AW120: $76,325.25 | AX120: $29,071.14 | AY120: $939,731.63 | AZ120: $5,360,840.29 | BA120: $561,369.72 | BB120: $11,852.52 | BC120: $97,976.64 | BD120: $5,360,840.16
A121: 06016092502 | B121: WESTCHESTER SCHOOL DIST 92-5 | C121: 1027.88 | D121: $15,574,135.75 | E121: $14,955,648.49 | F121: 96% | G121: 3 | H121: $17,698.61 | I121: $1,387,539.92 | J121: $1,405,238.53 | K121: 1.06 | L121: $3,701,845.89 | M121: $740,369.17 | N121: $378,296.20 | O121: $168,131.64 | P121: $136,086.06 | Q121: $228,886.85 | R121: $87,963.79 | S121: $143,227.62 | T121: $194,130.29 | U121: $107,420.72 | V121: $287,998.34 | W121: $247,967.23 | X121: $171,866.40 | Y121: $6,594,190.20 | Z121: $90,897.30 | AA121: $128,485.00 | AB121: $334,061.00 | AC121: $34,947.92 | AD121: $586,919.48 | AE121: $168,672.85 | AF121: $1,398,944.68 | AG121: $963,123.56 | AH121: $2,808,952.47 | AI121: $6,515,004.26 | AJ121: $978,418.41 | AK121: $5,536,585.85 | AL121: $6,571,253.53 | AM121: $255,108.09 | AN121: $255,108.09 | AO121: $265,963.75 | AP121: $265,963.75 | AQ121: $91,497.73 | AR121: $91,497.73 | AS121: $94,599.35 | AT121: $94,599.35 | AU121: $113,984.46 | AV121: $564,494.50 | AW121: $228,661.65 | AX121: $87,213.42 | AY121: $2,408,691.87 | AZ121: $15,574,135.75 | BA121: $388,770.38 | BB121: $36,151.16 | BC121: $384,900.55 | BD121: $15,574,135.60
A122: 06016093002 | B122: HILLSIDE SCHOOL DIST 93 | C122: 420.5 | D122: $6,843,114.51 | E122: $8,911,016.67 | F122: 130% | G122: 4 | H122: $435.89 | I122: $627,817.82 | J122: $628,253.71 | K122: 1.06 | L122: $1,595,775.80 | M122: $319,155.15 | N122: $154,858.09 | O122: $67,842.59 | P122: $62,753.43 | Q122: $95,369.52 | R122: $35,573.59 | S122: $58,421.79 | T122: $78,333.27 | U122: $43,659.29 | V122: $116,209.86 | W122: $100,056.95 | X122: $70,103.40 | Y122: $2,798,112.73 | Z122: $37,305.00 | AA122: $52,562.50 | AB122: $136,662.50 | AC122: $14,297.00 | AD122: $120,052.75 | AE122: $70,722.50 | AF122: $572,300.50 | AG122: $394,008.50 | AH122: $1,277,957.56 | AI122: $2,675,868.81 | AJ122: $400,265.54 | AK122: $2,275,603.27 | AL122: $2,698,880.07 | AM122: $156,631.71 | AN122: $156,631.71 | AO122: $162,834.95 | AP122: $162,834.95 | AQ122: $65,133.98 | AR122: $65,133.98 | AS122: $67,460.19 | AT122: $67,460.19 | AU122: $81,417.47 | AV122: $231,070.55 | AW122: $93,600.51 | AX122: $35,911.40 | AY122: $1,346,121.59 | AZ122: $6,843,114.51 | BA122: $393,229.49 | BB122: $217.13 | BC122: $118,951.35 | BD122: $6,843,114.39
A123: 06016094002 | B123: KOMAREK SCHOOL DIST 94 | C123: 478.97 | D123: $7,076,440.49 | E123: $7,953,129.45 | F123: 112% | G123: 4 | H123: $450.75 | I123: $558,193.03 | J123: $558,643.78 | K123: 1.06 | L123: $1,683,528.72 | M123: $336,705.73 | N123: $176,243.26 | O123: $78,166.46 | P123: $62,733.38 | Q123: $108,085.46 | R123: $40,101.14 | S123: $66,588.28 | T123: $90,253.55 | U123: $49,941.21 | V123: $133,893.96 | W123: $115,283.01 | X123: $79,902.80 | Y123: $3,021,426.96 | Z123: $42,162.30 | AA123: $59,871.25 | AB123: $155,665.25 | AC123: $16,284.98 | AD123: $136,745.93 | AE123: $79,906.59 | AF123: $651,878.17 | AG123: $448,794.89 | AH123: $1,299,085.75 | AI123: $2,890,395.11 | AJ123: $455,921.96 | AK123: $2,434,473.15 | AL123: $2,916,606.06 | AM123: $102,353.39 | AN123: $102,353.39 | AO123: $107,005.82 | AP123: $107,005.82 | AQ123: $58,155.34 | AR123: $58,155.34 | AS123: $60,481.55 | AT123: $60,481.55 | AU123: $72,888.02 | AV123: $262,862.13 | AW123: $106,478.43 | AX123: $40,186.57 | AY123: $1,138,407.35 | AZ123: $7,076,440.49 | BA123: $69,959.99 | BB123: $18,272.99 | BC123: $213,722.43 | BD123: $7,076,440.37
A124: 06016095002 | B124: BROOKFIELD SCHOOL DIST 95 | C124: 1303.39 | D124: $17,915,372.99 | E124: $11,687,099.54 | F124: 65% | G124: 1 | H124: $877,655.29 | I124: $3,993,411.64 | J124: $4,871,066.93 | K124: 1.06 | L124: $4,445,164.75 | M124: $889,032.94 | N124: $480,060.09 | O124: $212,376.81 | P124: $150,826.88 | Q124: $287,698.06 | R124: $111,895.12 | S124: $181,547.30 | T124: $245,217.21 | U124: $136,003.42 | V124: $363,787.38 | W124: $313,221.77 | X124: $217,848.20 | Y124: $8,034,679.93 | Z124: $115,783.20 | AA124: $162,923.75 | AB124: $423,601.75 | AC124: $44,315.26 | AD124: $744,235.69 | AE124: $212,516.76 | AF124: $1,773,913.79 | AG124: $1,221,276.43 | AH124: $3,161,713.98 | AI124: $7,860,280.61 | AJ124: $1,240,670.87 | AK124: $6,619,609.74 | AL124: $7,931,606.77 | AM124: $141,899.03 | AN124: $141,899.03 | AO124: $148,102.26 | AP124: $148,102.26 | AQ124: $47,299.67 | AR124: $47,299.67 | AS124: $48,850.48 | AT124: $48,850.48 | AU124: $58,930.74 | AV124: $716,473.79 | AW124: $290,224.40 | AX124: $111,154.36 | AY124: $1,949,086.17 | AZ124: $17,915,372.99 | BA124: $311,315.07 | BB124: $54,664.63 | BC124: $561,464.99 | BD124: $17,915,372.87
A125: 06016096002 | B125: RIVERSIDE SCHOOL DIST 96 | C125: 1652 | D125: $22,289,643.50 | E125: $26,959,580.66 | F125: 121% | G125: 4 | H125: $1,419.81 | I125: $1,496,026.16 | J125: $1,497,445.97 | K125: 1.06 | L125: $5,621,348.86 | M125: $1,124,269.76 | N125: $608,371.08 | O125: $269,895.53 | P125: $191,518.53 | Q125: $370,351.65 | R125: $141,647.58 | S125: $230,232.13 | T125: $311,630.20 | U125: $172,752.62 | V125: $462,313.13 | W125: $398,052.66 | X125: $276,267.70 | Y125: $10,178,651.43 | Z125: $147,015.00 | AA125: $206,500.00 | AB125: $536,900.00 | AC125: $56,168.00 | AD125: $471,646.00 | AE125: $273,751.50 | AF125: $2,248,372.00 | AG125: $1,547,924.00 | AH125: $4,018,229.43 | AI125: $9,506,505.93 | AJ125: $1,572,505.76 | AK125: $7,934,000.17 | AL125: $9,596,909.28 | AM125: $183,770.87 | AN125: $183,770.87 | AO125: $191,524.92 | AP125: $191,524.92 | AQ125: $65,133.98 | AR125: $65,133.98 | AS125: $67,460.19 | AT125: $67,460.19 | AU125: $81,417.47 | AV125: $907,998.71 | AW125: $367,806.04 | AX125: $141,080.53 | AY125: $2,514,082.67 | AZ125: $22,289,643.50 | BA125: $209,992.21 | BB125: $15,945.30 | BC125: $617,099.45 | BD125: $22,289,643.38
A126: 06016097002 | B126: OAK PARK ELEM SCHOOL DIST 97 | C126: 5609.97 | D126: $73,475,554.93 | E126: $77,161,218.50 | F126: 105% | G126: 4 | H126: $4,680.27 | I126: $11,495,398.10 | J126: $11,500,078.37 | K126: 1.06 | L126: $18,856,554.07 | M126: $3,771,310.80 | N126: $2,066,986.86 | O126: $918,824.69 | P126: $624,023.60 | Q126: $1,258,082.97 | R126: $483,154.07 | S126: $782,726.43 | T126: $1,060,905.01 | U126: $587,044.82 | V126: $1,573,885.71 | W126: $1,355,119.18 | X126: $939,234.82 | Y126: $34,277,853.03 | Z126: $500,900.40 | AA126: $701,246.25 | AB126: $1,823,240.25 | AC126: $190,738.98 | AD126: $1,601,646.43 | AE126: $931,293.76 | AF126: $7,635,169.17 | AG126: $5,256,541.89 | AH126: $13,160,488.65 | AI126: $31,801,265.78 | AJ126: $5,340,018.24 | AK126: $26,461,247.54 | AL126: $32,108,263.42 | AM126: $438,103.56 | AN126: $438,103.56 | AO126: $455,937.87 | AP126: $455,937.87 | AQ126: $91,497.73 | AR126: $91,497.73 | AS126: $95,374.75 | AT126: $95,374.75 | AU126: $114,759.87 | AV126: $3,084,559.27 | AW126: $1,249,472.61 | AX126: $478,818.78 | AY126: $7,089,438.35 | AZ126: $73,475,554.93 | BA126: $515,697.99 | BB126: $18,094.12 | BC126: $1,860,717.21 | BD126: $73,475,554.80
A127: 06016098002 | B127: BERWYN NORTH SCHOOL DIST 98 | C127: 2478.31 | D127: $43,447,776.09 | E127: $32,291,206.10 | F127: 74% | G127: 1 | H127: $894,808.65 | I127: $27,954,152.67 | J127: $28,848,961.32 | K127: 1.06 | L127: $9,670,519.34 | M127: $1,934,103.86 | N127: $912,925.34 | O127: $404,843.30 | P127: $398,276.80 | Q127: $559,501.20 | R127: $212,794.76 | S127: $345,505.24 | T127: $467,445.30 | U127: $259,128.93 | V127: $693,469.70 | W127: $597,078.99 | X127: $414,590.01 | Y127: $16,870,182.77 | Z127: $220,243.50 | AA127: $309,788.75 | AB127: $805,450.75 | AC127: $84,262.54 | AD127: $1,415,115.01 | AE127: $413,483.59 | AF127: $3,372,979.91 | AG127: $2,322,176.47 | AH127: $8,058,634.50 | AI127: $17,002,135.02 | AJ127: $2,359,053.72 | AK127: $14,643,081.30 | AL127: $17,137,757.01 | AM127: $1,108,053.09 | AN127: $1,108,053.09 | AO127: $1,154,577.36 | AP127: $1,154,577.36 | AQ127: $522,622.66 | AR127: $522,622.66 | AS127: $545,109.39 | AT127: $545,109.39 | AU127: $653,666.02 | AV127: $1,362,385.78 | AW127: $551,866.10 | AX127: $211,193.28 | AY127: $9,439,836.18 | AZ127: $43,447,776.09 | BA127: $8,220,453.51 | BB127: $873,710.93 | BC127: $1,683,718.80 | BD127: $43,447,775.96
A128: 06016099002 | B128: CICERO SCHOOL DISTRICT 99 | C128: 9348.63 | D128: $179,007,212.22 | E128: $149,110,094.58 | F128: 83% | G128: 2 | H128: $986,847.45 | I128: $122,927,254.82 | J128: $123,914,102.27 | K128: 1.06 | L128: $37,543,501.67 | M128: $7,508,700.33 | N128: $3,445,961.33 | O128: $1,531,620.30 | P128: $1,679,872.88 | Q128: $2,125,945.64 | R128: $805,903.59 | S128: $1,304,753.45 | T128: $1,768,458.84 | U128: $978,408.04 | V128: $2,623,563.91 | W128: $2,258,894.50 | X128: $1,565,642.64 | Y128: $65,141,227.12 | Z128: $833,186.70 | AA128: $1,168,578.75 | AB128: $3,038,304.75 | AC128: $317,853.42 | AD128: $5,338,067.73 | AE128: $1,574,214.51 | AF128: $12,723,485.43 | AG128: $8,759,666.31 | AH128: $33,695,884.83 | AI128: $67,449,242.43 | AJ128: $8,898,773.92 | AK128: $58,550,468.51 | AL128: $67,960,832.94 | AM128: $4,878,069.97 | AN128: $4,878,069.97 | AO128: $5,081,225.96 | AP128: $5,081,225.96 | AQ128: $3,368,357.33 | AR128: $3,368,357.33 | AS128: $3,508,705.55 | AT128: $3,508,705.55 | AU128: $4,210,446.66 | AV128: $5,140,932.11 | AW128: $2,082,454.35 | AX128: $798,601.32 | AY128: $45,905,152.06 | AZ128: $179,007,212.22 | BA128: $41,184,407.02 | BB128: $6,028,007.48 | BC128: $5,896,248.75 | BD128: $179,007,212.12
A129: 06016100002 | B129: BERWYN SOUTH SCHOOL DISTRICT 100 | C129: 3048.79 | D129: $51,127,818.06 | E129: $39,560,426.29 | F129: 77% | G129: 2 | H129: $460,119.16 | I129: $26,825,833.80 | J129: $27,285,952.96 | K129: 1.06 | L129: $11,486,046.15 | M129: $2,297,209.22 | N129: $1,123,089.90 | O129: $499,233.00 | P129: $461,784.18 | Q129: $693,018.54 | R129: $261,951.00 | S129: $425,285.55 | T129: $576,430.73 | U129: $318,807.11 | V129: $855,152.99 | W129: $736,288.67 | X129: $510,322.61 | Y129: $20,244,619.65 | Z129: $272,066.40 | AA129: $381,098.75 | AB129: $990,856.75 | AC129: $103,658.86 | AD129: $1,740,859.09 | AE129: $514,268.76 | AF129: $4,149,403.19 | AG129: $2,856,716.23 | AH129: $9,405,414.72 | AI129: $20,414,342.75 | AJ129: $2,902,082.22 | AK129: $17,512,260.53 | AL129: $20,581,183.45 | AM129: $1,087,892.57 | AN129: $1,087,892.57 | AO129: $1,133,641.44 | AP129: $1,133,641.44 | AQ129: $607,917.16 | AR129: $607,917.16 | AS129: $633,505.51 | AT129: $633,505.51 | AU129: $760,671.85 | AV129: $1,676,424.62 | AW129: $679,074.85 | AX129: $259,930.19 | AY129: $10,302,014.87 | AZ129: $51,127,818.06 | BA129: $5,609,509.82 | BB129: $907,935.19 | BC129: $1,945,618.06 | BD129: $51,127,817.97
A130: 06016101002 | B130: WESTERN SPRINGS SCHOOL DIST 101 | C130: 1453.5 | D130: $18,163,040.80 | E130: $19,640,746.48 | F130: 108% | G130: 4 | H130: $1,156.95 | I130: $1,115,184.76 | J130: $1,116,341.71 | K130: 1.06 | L130: $4,762,255.14 | M130: $952,451.01 | N130: $535,366.55 | O130: $237,449.07 | P130: $151,459.75 | Q130: $320,282.65 | R130: $124,830.97 | S130: $202,591.71 | T130: $274,166.46 | U130: $151,708.21 | V130: $406,734.51 | W130: $350,199.34 | X130: $243,100.50 | Y130: $8,712,595.87 | Z130: $129,690.00 | AA130: $181,687.50 | AB130: $472,387.50 | AC130: $49,419.00 | AD130: $414,974.25 | AE130: $236,607.00 | AF130: $1,978,213.50 | AG130: $1,361,929.50 | AH130: $3,219,964.13 | AI130: $8,044,872.38 | AJ130: $1,383,557.58 | AK130: $6,661,314.80 | AL130: $8,124,413.10 | AM130: $19,385.11 | AN130: $19,385.11 | AO130: $20,160.51 | AP130: $20,160.51 | AQ130: $0.00 | AR130: $0.00 | AS130: $0.00 | AT130: $0.00 | AU130: $775.40 | AV130: $798,666.67 | AW130: $323,518.55 | AX130: $123,979.86 | AY130: $1,326,031.72 | AZ130: $18,163,040.80 | BA130: $14,454.03 | BB130: $0.26 | BC130: $434,705.63 | BD130: $18,163,040.69
A131: 06016102002 | B131: LA GRANGE SCHOOL DIST 102 | C131: 2933.53 | D131: $38,859,445.30 | E131: $38,663,311.28 | F131: 99% | G131: 3 | H131: $44,160.29 | I131: $3,527,604.31 | J131: $3,571,764.60 | K131: 1.06 | L131: $9,819,478.08 | M131: $1,963,895.61 | N131: $1,081,056.98 | O131: $480,060.09 | P131: $331,109.31 | Q131: $662,818.19 | R131: $252,249.11 | S131: $409,266.67 | T131: $554,293.07 | U131: $306,871.47 | V131: $822,311.07 | W131: $708,011.70 | X131: $491,100.71 | Y131: $17,882,522.06 | Z131: $261,198.00 | AA131: $366,691.25 | AB131: $953,397.25 | AC131: $99,740.02 | AD131: $837,522.81 | AE131: $490,431.76 | AF131: $3,992,534.33 | AG131: $2,748,717.61 | AH131: $6,976,951.17 | AI131: $16,727,184.20 | AJ131: $2,792,368.53 | AK131: $13,934,815.67 | AL131: $16,887,717.46 | AM131: $229,519.74 | AN131: $229,519.74 | AO131: $239,600.00 | AP131: $239,600.00 | AQ131: $118,636.89 | AR131: $118,636.89 | AS131: $124,064.72 | AT131: $124,064.72 | AU131: $148,877.67 | AV131: $1,612,841.44 | AW131: $653,319.01 | AX131: $250,524.82 | AY131: $4,089,205.64 | AZ131: $38,859,445.30 | BA131: $228,265.99 | BB131: $42,492.19 | BC131: $1,205,835.06 | BD131: $38,859,445.16
A132: 06016103002 | B132: LYONS SCHOOL DIST 103 | C132: 2093.23 | D132: $35,684,411.57 | E132: $30,573,007.65 | F132: 86% | G132: 2 | H132: $106,047.09 | I132: $12,259,554.99 | J132: $12,365,602.08 | K132: 1.06 | L132: $7,916,198.35 | M132: $1,583,239.67 | N132: $771,340.79 | O132: $342,900.06 | P132: $323,973.30 | Q132: $471,284.39 | R132: $180,455.13 | S132: $292,108.98 | T132: $395,923.62 | U132: $218,924.68 | V132: $587,365.05 | W132: $505,722.64 | X132: $350,517.01 | Y132: $13,939,953.67 | Z132: $185,661.00 | AA132: $261,653.75 | AB132: $680,299.75 | AC132: $71,169.82 | AD132: $1,195,234.33 | AE132: $347,224.34 | AF132: $2,848,886.03 | AG132: $1,961,356.51 | AH132: $6,586,005.76 | AI132: $14,137,491.29 | AJ132: $1,992,503.77 | AK132: $12,144,987.52 | AL132: $14,252,040.33 | AM132: $775,404.54 | AN132: $775,404.54 | AO132: $807,971.53 | AP132: $807,971.53 | AQ132: $474,547.58 | AR132: $474,547.58 | AS132: $493,932.69 | AT132: $493,932.69 | AU132: $593,184.47 | AV132: $1,150,700.34 | AW132: $466,117.98 | AX132: $178,702.00 | AY132: $7,492,417.47 | AZ132: $35,684,411.57 | BA132: $3,273,084.20 | BB132: $449,167.86 | BC132: $1,177,442.04 | BD132: $35,684,411.47
A133: 06016105002 | B133: LA GRANGE SCHOOL DIST 105 (SOUTH) | C133: 1200.73 | D133: $17,362,726.17 | E133: $28,887,904.77 | F133: 166% | G133: 4 | H133: $1,105.97 | I133: $1,557,624.70 | J133: $1,558,730.67 | K133: 1.06 | L133: $4,203,291.15 | M133: $840,658.23 | N133: $442,451.70 | O133: $196,153.58 | P133: $152,791.99 | Q133: $273,392.63 | R133: $102,840.02 | S133: $167,412.99 | T133: $226,485.34 | U133: $125,324.17 | V133: $335,998.07 | W133: $289,295.10 | X133: $200,887.70 | Y133: $7,556,982.67 | Z133: $106,693.20 | AA133: $150,091.25 | AB133: $390,237.25 | AC133: $40,824.82 | AD133: $342,808.41 | AE133: $203,012.84 | AF133: $1,634,193.53 | AG133: $1,125,084.01 | AH133: $3,173,490.72 | AI133: $7,166,436.03 | AJ133: $1,142,950.87 | AK133: $6,023,485.16 | AL133: $7,232,144.27 | AM133: $234,172.17 | AN133: $234,172.17 | AO133: $244,252.43 | AP133: $244,252.43 | AQ133: $110,107.44 | AR133: $110,107.44 | AS133: $114,759.87 | AT133: $114,759.87 | AU133: $137,246.60 | AV133: $659,869.26 | AW133: $267,295.42 | AX133: $102,604.02 | AY133: $2,573,599.12 | AZ133: $17,362,726.17 | BA133: $434,601.41 | BB133: $95,669.08 | BC133: $564,460.27 | BD133: $17,362,726.06
A134: 06016106002 | B134: LAGRANGE HIGHLANDS SCH DIST 106 | C134: 943 | D134: $12,231,551.84 | E134: $14,366,708.24 | F134: 117% | G134: 4 | H134: $779.13 | I134: $573,602.07 | J134: $574,381.20 | K134: 1.06 | L134: $3,127,396.10 | M134: $625,479.21 | N134: $346,587.16 | O134: $153,383.25 | P134: $103,442.54 | Q134: $212,197.19 | R134: $80,849.07 | S134: $131,291.99 | T134: $177,101.31 | U134: $98,626.04 | V134: $262,735.33 | W134: $226,215.72 | X134: $157,544.20 | Y134: $5,702,849.11 | Z134: $84,015.00 | AA134: $117,875.00 | AB134: $306,475.00 | AC134: $32,062.00 | AD134: $269,226.50 | AE134: $157,297.50 | AF134: $1,283,423.00 | AG134: $883,591.00 | AH134: $2,186,041.99 | AI134: $5,320,006.99 | AJ134: $897,622.84 | AK134: $4,422,384.15 | AL134: $5,371,611.32 | AM134: $49,625.89 | AN134: $49,625.89 | AO134: $51,952.10 | AP134: $51,952.10 | AQ134: $27,139.15 | AR134: $27,139.15 | AS134: $28,689.96 | AT134: $28,689.96 | AU134: $34,117.79 | AV134: $517,970.23 | AW134: $209,815.91 | AX134: $80,373.15 | AY134: $1,157,091.28 | AZ134: $12,231,551.84 | BA134: $27,759.24 | BB134: $92.42 | BC134: $287,557.48 | BD134: $12,231,551.71
A135: 06016107002 | B135: PLEASANTDALE SCHOOL DIST 107 | C135: 793.75 | D135: $10,750,057.05 | E135: $15,573,687.13 | F135: 145% | G135: 4 | H135: $684.76 | I135: $533,389.99 | J135: $534,074.75 | K135: 1.06 | L135: $2,671,670.85 | M135: $534,334.16 | N135: $292,018.12 | O135: $129,048.41 | P135: $92,496.51 | Q135: $177,228.36 | R135: $67,913.22 | S135: $110,247.58 | T135: $149,003.51 | U135: $82,921.25 | V135: $221,051.36 | W135: $190,325.72 | X135: $132,291.90 | Y135: $4,850,550.95 | Z135: $70,515.00 | AA135: $99,218.75 | AB135: $257,968.75 | AC135: $26,987.50 | AD135: $226,615.62 | AE135: $131,107.50 | AF135: $1,080,293.75 | AG135: $743,743.75 | AH135: $1,939,608.69 | AI135: $4,576,059.31 | AJ135: $755,554.75 | AK135: $3,820,504.56 | AL135: $4,619,496.15 | AM135: $67,460.19 | AN135: $67,460.19 | AO135: $70,561.81 | AP135: $70,561.81 | AQ135: $60,481.55 | AR135: $60,481.55 | AS135: $63,583.17 | AT135: $63,583.17 | AU135: $75,989.64 | AV135: $435,777.35 | AW135: $176,521.77 | AX135: $67,547.64 | AY135: $1,280,009.84 | AZ135: $10,750,057.05 | BA135: $43,601.33 | BB135: $1,533.72 | BC135: $317,064.26 | BD135: $10,750,056.94
A136: 06016200013 | B136: OAK PARK & RIVER FOREST DIST 200 | C136: 3354.48 | D136: $48,747,628.75 | E136: $67,548,219.48 | F136: 139% | G136: 4 | H136: $3,105.14 | I136: $6,217,320.84 | J136: $6,220,425.98 | K136: 1.06 | L136: $11,717,328.38 | M136: $3,905,385.54 | N136: $1,422,364.07 | O136: $474,121.35 | P136: $367,653.57 | Q136: $1,214,739.39 | R136: $289,116.29 | S136: $526,738.45 | T136: $475,959.79 | U136: $351,158.97 | V136: $706,101.21 | W136: $607,954.75 | X136: $632,061.31 | Y136: $22,690,683.07 | Z136: $301,903.20 | AA136: $419,310.00 | AB136: $1,090,206.00 | AC136: $114,052.32 | AD136: $957,704.04 | AE136: $2,881,498.32 | AF136: $4,565,447.28 | AG136: $3,143,147.76 | AH136: $8,419,900.41 | AI136: $21,893,169.33 | AJ136: $3,193,062.42 | AK136: $18,700,106.91 | AL136: $22,076,738.48 | AM136: $246,578.64 | AN136: $246,578.64 | AO136: $256,658.90 | AP136: $256,658.90 | AQ136: $17,834.30 | AR136: $17,834.30 | AS136: $18,609.70 | AT136: $18,609.70 | AU136: $22,486.73 | AV136: $1,844,687.40 | AW136: $747,233.62 | AX136: $286,436.23 | AY136: $3,980,207.06 | AZ136: $48,747,628.75 | BA136: $267,268.46 | BB136: $36.17 | BC136: $1,003,039.87 | BD136: $48,747,628.61
A137: 06016201017 | B137: J S MORTON H S DISTRICT 201 | C137: 7797.66 | D137: $148,837,873.74 | E137: $113,250,716.51 | F137: 76% | G137: 1 | H137: $2,154,390.23 | I137: $77,506,672.52 | J137: $79,661,062.75 | K137: 1.06 | L137: $31,515,923.87 | M137: $10,504,257.42 | N137: $3,306,127.11 | O137: $1,101,759.65 | P137: $1,238,746.53 | Q137: $2,825,333.46 | R137: $672,017.52 | S137: $1,224,344.95 | T137: $1,106,031.79 | U137: $816,334.67 | V137: $1,640,832.70 | W137: $1,412,760.69 | X137: $1,469,156.24 | Y137: $58,833,626.60 | Z137: $701,789.40 | AA137: $974,707.50 | AB137: $2,534,239.50 | AC137: $265,120.44 | AD137: $4,452,463.86 | AE137: $6,698,189.94 | AF137: $10,612,615.26 | AG137: $7,306,407.42 | AH137: $26,845,729.36 | AI137: $60,391,262.68 | AJ137: $7,422,436.60 | AK137: $52,968,826.08 | AL137: $60,817,978.56 | AM137: $3,701,781.28 | AN137: $3,701,781.28 | AO137: $3,856,086.78 | AP137: $3,856,086.78 | AQ137: $1,383,321.70 | AR137: $1,383,321.70 | AS137: $1,441,477.04 | AT137: $1,441,477.04 | AU137: $1,729,927.53 | AV137: $4,287,987.12 | AW137: $1,736,949.10 | AX137: $666,071.12 | AY137: $29,186,268.47 | AZ137: $148,837,873.74 | BA137: $24,337,390.67 | BB137: $1,729,486.99 | BC137: $4,286,965.75 | BD137: $148,837,873.63
A138: 06016204017 | B138: LYONS TWP H S DIST 204 | C138: 3935.99 | D138: $58,217,066.77 | E138: $79,677,440.32 | F138: 137% | G138: 4 | H138: $3,708.33 | I138: $2,800,348.36 | J138: $2,804,056.69 | K138: 1.06 | L138: $13,844,513.30 | M138: $4,614,376.27 | N138: $1,668,330.43 | O138: $555,544.70 | P138: $443,200.20 | Q138: $1,425,801.50 | R138: $338,919.32 | S138: $617,826.20 | T138: $557,698.86 | U138: $411,779.43 | V138: $827,363.67 | W138: $712,362.01 | X138: $741,362.32 | Y138: $26,759,078.21 | Z138: $354,239.10 | AA138: $491,998.75 | AB138: $1,279,196.75 | AC138: $133,823.66 | AD138: $1,123,725.14 | AE138: $3,381,015.41 | AF138: $5,356,882.39 | AG138: $3,688,022.63 | AH138: $10,102,075.06 | AI138: $25,910,978.89 | AJ138: $3,746,590.16 | AK138: $22,164,388.73 | AL138: $26,126,370.35 | AM138: $359,787.70 | AN138: $359,787.70 | AO138: $374,520.39 | AP138: $374,520.39 | AQ138: $91,497.73 | AR138: $91,497.73 | AS138: $94,599.35 | AT138: $94,599.35 | AU138: $113,984.46 | AV138: $2,164,154.07 | AW138: $876,641.04 | AX138: $336,028.18 | AY138: $5,331,618.09 | AZ138: $58,217,066.77 | BA138: $283,592.01 | BB138: $10,583.09 | BC138: $1,052,731.84 | BD138: $58,217,066.65
A139: 06016208017 | B139: RIVERSIDE BROOKFIELD TWP DIST 208 | C139: 1640 | D139: $24,878,865.08 | E139: $18,393,533.92 | F139: 74% | G139: 1 | H139: $455,014.28 | I139: $2,555,341.41 | J139: $3,010,355.69 | K139: 1.06 | L139: $5,823,465.56 | M139: $1,940,961.06 | N139: $695,491.08 | O139: $231,547.64 | P139: $186,401.70 | Q139: $594,234.93 | R139: $141,000.78 | S139: $257,558.45 | T139: $232,445.48 | U139: $171,496.24 | V139: $344,840.12 | W139: $296,908.13 | X139: $309,058.00 | Y139: $11,225,409.17 | Z139: $147,600.00 | AA139: $205,000.00 | AB139: $533,000.00 | AC139: $55,760.00 | AD139: $936,440.00 | AE139: $1,408,760.00 | AF139: $2,232,040.00 | AG139: $1,536,680.00 | AH139: $4,242,742.10 | AI139: $11,298,022.10 | AJ139: $1,561,083.20 | AK139: $9,736,938.90 | AL139: $11,387,768.77 | AM139: $189,974.11 | AN139: $189,974.11 | AO139: $197,728.15 | AP139: $197,728.15 | AQ139: $15,508.09 | AR139: $15,508.09 | AS139: $16,283.49 | AT139: $16,283.49 | AU139: $19,385.11 | AV139: $901,795.48 | AW139: $365,293.27 | AX139: $140,225.50 | AY139: $2,265,687.04 | AZ139: $24,878,865.08 | BA139: $239,388.60 | BB139: $14,268.38 | BC139: $498,833.51 | BD139: $24,878,864.98
A140: 06016209017 | B140: PROVISO TWP H S DIST 209 | C140: 4396.66 | D140: $82,185,867.41 | E140: $66,106,571.78 | F140: 80% | G140: 2 | H140: $477,030.02 | I140: $18,683,014.41 | J140: $19,160,044.43 | K140: 1.06 | L140: $17,830,864.62 | M140: $5,943,027.17 | N140: $1,864,255.36 | O140: $620,853.01 | P140: $678,277.69 | Q140: $1,592,477.15 | R140: $379,020.46 | S140: $690,382.30 | T140: $623,260.41 | U140: $460,150.17 | V140: $924,626.27 | W140: $796,105.33 | X140: $828,426.22 | Y140: $33,231,726.16 | Z140: $395,699.40 | AA140: $549,582.50 | AB140: $1,428,914.50 | AC140: $149,486.44 | AD140: $2,510,492.86 | AE140: $3,776,730.94 | AF140: $5,983,854.26 | AG140: $4,119,670.42 | AH140: $14,757,733.27 | AI140: $33,672,164.59 | AJ140: $4,185,092.72 | AK140: $29,487,071.87 | AL140: $33,912,765.57 | AM140: $2,131,587.08 | AN140: $2,131,587.08 | AO140: $2,220,758.60 | AP140: $2,220,758.60 | AQ140: $480,750.81 | AR140: $480,750.81 | AS140: $500,911.33 | AT140: $500,911.33 | AU140: $600,938.52 | AV140: $2,417,711.36 | AW140: $979,350.32 | AX140: $375,359.72 | AY140: $15,041,375.56 | AZ140: $82,185,867.41 | BA140: $10,964,751.97 | BB140: $335,131.97 | BC140: $1,425,409.74 | BD140: $82,185,867.29
A141: 06016212016 | B141: LEYDEN COMM H S DIST 212 | C141: 3459 | D141: $58,713,818.25 | E141: $82,391,926.42 | F141: 140% | G141: 4 | H141: $3,739.97 | I141: $9,781,048.21 | J141: $9,784,788.18 | K141: 1.06 | L141: $13,304,235.47 | M141: $4,434,301.67 | N141: $1,466,468.38 | O141: $488,540.07 | P141: $476,503.13 | Q141: $1,252,784.92 | R141: $298,171.39 | S141: $543,071.43 | T141: $490,434.42 | U141: $362,152.31 | V141: $727,574.77 | W141: $626,443.54 | X141: $651,660.11 | Y141: $25,122,341.61 | Z141: $311,310.00 | AA141: $432,375.00 | AB141: $1,124,175.00 | AC141: $117,606.00 | AD141: $987,544.50 | AE141: $2,971,281.00 | AF141: $4,707,699.00 | AG141: $3,241,083.00 | AH141: $10,527,545.96 | AI141: $24,420,619.46 | AJ141: $3,292,552.92 | AK141: $21,128,066.54 | AL141: $24,609,908.32 | AM141: $1,147,598.72 | AN141: $1,147,598.72 | AO141: $1,194,898.39 | AP141: $1,194,898.39 | AQ141: $248,904.85 | AR141: $248,904.85 | AS141: $259,760.52 | AT141: $259,760.52 | AU141: $311,712.62 | AV141: $1,902,067.34 | AW141: $770,476.70 | AX141: $294,986.57 | AY141: $8,981,568.19 | AZ141: $58,713,818.25 | BA141: $1,783,414.20 | BB141: $87,733.69 | BC141: $1,071,480.59 | BD141: $58,713,818.12
A142: 06016234016 | B142: RIDGEWOOD COMM H S DIST 234 | C142: 853 | D142: $13,900,730.01 | E142: $14,165,013.74 | F142: 102% | G142: 4 | H142: $885.45 | I142: $972,947.58 | J142: $973,833.03 | K142: 1.06 | L142: $3,202,651.61 | M142: $1,067,443.77 | N142: $361,316.09 | O142: $120,438.69 | P142: $110,832.80 | Q142: $308,893.46 | R142: $73,087.56 | S142: $133,804.75 | T142: $120,905.70 | U142: $89,203.17 | V142: $179,367.39 | W142: $154,435.73 | X142: $160,559.40 | Y142: $6,082,940.12 | Z142: $76,770.00 | AA142: $106,625.00 | AB142: $277,225.00 | AC142: $29,002.00 | AD142: $243,531.50 | AE142: $732,727.00 | AF142: $1,160,933.00 | AG142: $799,261.00 | AH142: $2,469,803.02 | AI142: $5,895,877.52 | AJ142: $811,953.64 | AK142: $5,083,923.88 | AL142: $5,942,556.73 | AM142: $225,642.72 | AN142: $225,642.72 | AO142: $234,947.57 | AP142: $234,947.57 | AQ142: $41,871.84 | AR142: $41,871.84 | AS142: $43,422.65 | AT142: $43,422.65 | AU142: $52,727.50 | AV142: $468,344.34 | AW142: $189,713.79 | AX142: $72,677.85 | AY142: $1,875,233.04 | AZ142: $13,900,730.01 | BA142: $303,470.62 | BB142: $19,741.66 | BC142: $273,440.00 | BD142: $13,900,729.89
A143: 06016401026 | B143: ELMWOOD PARK C U SCH DIST 401 | C143: 2800.5 | D143: $47,063,615.87 | E143: $30,608,057.67 | F143: 65% | G143: 1 | H143: $2,402,189.24 | I143: $15,304,445.64 | J143: $17,706,634.88 | K143: 1.06 | L143: $10,522,948.05 | M143: $2,602,956.80 | N143: $1,085,691.17 | O143: $435,319.37 | P143: $406,397.15 | Q143: $766,547.85 | R143: $240,606.85 | S143: $407,382.09 | T143: $481,919.93 | U143: $292,737.17 | V143: $714,943.27 | W143: $615,567.78 | X143: $488,839.31 | Y143: $19,061,856.79 | Z143: $250,245.00 | AA143: $350,062.50 | AB143: $910,162.50 | AC143: $95,217.00 | AD143: $1,599,085.50 | AE143: $1,145,776.50 | AF143: $3,811,480.50 | AG143: $2,624,068.50 | AH143: $8,516,496.03 | AI143: $19,302,594.03 | AJ143: $2,665,739.94 | AK143: $16,636,854.09 | AL143: $19,455,847.41 | AM143: $882,410.36 | AN143: $882,410.36 | AO143: $918,854.38 | AP143: $918,854.38 | AQ143: $476,098.38 | AR143: $476,098.38 | AS143: $496,258.90 | AT143: $496,258.90 | AU143: $595,510.68 | AV143: $1,539,953.42 | AW143: $623,794.02 | AX143: $239,409.39 | AY143: $8,545,911.55 | AZ143: $47,063,615.87 | BA143: $3,747,020.38 | BB143: $578,754.03 | BC143: $1,335,051.02 | BD143: $47,063,615.75
B144: Region 07 South Cook ISC 4 TAOEP | C144: 1 | D144: $10,520.95 | E144: $6,209.82 | F144: 59% | G144: 1 | H144: $792.85 | I144: $5,157.73 | J144: $5,950.58 | K144: 1.06 | L144: $3,392.63 | M144: $1,130.76 | N144: $0.00 | O144: $0.00 | P144: $72.01 | Q144: $0.00 | R144: $0.00 | S144: $0.00 | T144: $0.00 | U144: $0.00 | V144: $0.00 | W144: $0.00 | X144: $0.00 | Y144: $4,595.40 | Z144: $90.00 | AA144: $125.00 | AB144: $325.00 | AC144: $34.00 | AD144: $571.00 | AE144: $859.00 | AF144: $1,361.00 | AG144: $937.00 | AH144: $1,568.81 | AI144: $5,870.81 | AJ144: $951.88 | AK144: $4,918.93 | AL144: $5,925.53 | AM144: $0.00 | AN144: $0.00 | AO144: $0.00 | AP144: $0.00 | AQ144: $0.00 | AR144: $0.00 | AS144: $0.00 | AT144: $0.00 | AU144: $0.00 | AV144: $0.00 | AW144: $0.00 | AX144: $0.00 | AY144: $0.00 | AZ144: $10,520.95 | BA144: $0.00 | BB144: $0.00 | BC144: $0.00 | BD144: $10,520.93
